Workbook

Sheet KALKULATOR podpor
AB2: POMOČ PRI KODAH
AB3: HE0 | AC3: hidroelektrarne
AB4: VE0 | AC4: vetrne elektrarne
A5: Inačica: 16.1.2018; PRAVNO POJASNILO: | AB5: SE1 | AC5: sončne elektrarne - na stavbah
A6: Izračun je izključno informativne narave. Borzen, d.o.o. ne prevzema nobenih garancij o točnosti izračunov. | AB6: SE2 | AC6: sončne elektrarne - ostale
A7: Vsi uporabniki vso objavljeno vsebino uporabljajo izključno na lastno odgovornost. | AB7: GT0 | AC7: geotermalne elektrarne
AB8: LB1 | AC8: elektrarne na lesno biomaso
B9: VPIŠI KODO | D9: =IF(LEFT(C9,2)="se",D10,C9) -> 0 | E9: =SEARCH("SE1",$C$9) ->  | F9: =SEARCH("SE",$C$9) ->  | AB9: LB2 | AC9: sosežig nad 5% do 90%
B10: Izračun podpore za leto: | D10: =IF(C14>2008,D13,CONCATENATE(C9,"-2009")) -> -2009 | E10: =SEARCH("GT",$C$9) ->  | F10: =SEARCH("BP",$C$9) ->  | G10: =SEARCH("ČN",$C$9) ->  | H10: =SEARCH("OP",$C$9) ->  | I10: =SEARCH("BO",$C$9) -> 
B11: Vpiši odbitke v EUR/MWh | E11: =SEARCH("LB1",$C$9) ->  | F11: =SEARCH("LB2",$C$9) ->  | G11: =SEARCH("SL",$C$9) ->  | AB11: BP1 | AC11: bioplin iz biomase
B12: (odbitki zaradi subvencij / obnov) | AB12: BP2 | AC12: bioplin iz odpadkov
B13: =IF(ISERROR(E9),"",IF(C14=2012,"","Integrirana (do2011) ali PX3 bonus (od dec2012 - max 5kW)? (1-DA, 0-NE)")) ->  | D13: =CONCATENATE(C9,"-",C14) -> - | E13: =IF(C10=2011,3,0) -> 0 | F13: =IF(C10=2011,2,0) -> 0 | AB13: ČN0 | AC13: bioplin iz čistilnih naprav
B14: =IF(ISERROR(F9),"","RSEE 2009 / 2010 / 2011 / 2012H1 / 2012H2 / 2012dec / 2013mmm / 2014mmm ") ->  | AB14: OP0 | AC14: odlagališčni plin
B15: =IF(OR(ISNUMBER(E10),ISNUMBER(F10),ISNUMBER(G10),ISNUMBER(H10),ISNUMBER(I10)),"Vpiši dodatek na OP v %","") ->  | D15: napake | E15: =IF(ISNUMBER(C10),OR(C10>2018,C10<2009)) -> FALSE | F15: =IF(ISBLANK(C9),0,ISERROR(C24)) -> 0 | G15: =IF(AND(ISNUMBER(C14),C14>C10),1,0) -> 0 | H15: =E15+F15+G15 -> 0 | AB15: BO0 | AC15: biološko razgradljivi odpadki
B16: =IF(OR(ISNUMBER(E11),ISNUMBER(F11),ISNUMBER(G11)),"Vpiši dodatek/odbitek za LB na SDRS v %","") ->  | AB16: SL1 | AC16: SPTE na lesno biomaso do 4000 OU
B17: =IF(ISERROR(F10),"","Ali ima 70% RSEE (1-DA)?") ->  | AB17: SL2 | AC17: SPTE na lesno biomaso nad 4000 OU
AB18: SF1 | AC18: SPTE na fosilna goriva do 4000 OU
B19: Tip | C19: =VLOOKUP($D$9,'Izračuni 2009-2018'!$A$2:$BK$321,2,FALSE) ->  | AB19: SF2 | AC19: SPTE na fosilna goriva nad 4000 OU
B20: Velikost | C20: =VLOOKUP($D$9,'Izračuni 2009-2018'!$A$2:$BK$321,4,FALSE) -> 
B21: Faktor B | C21: =VLOOKUP($D$9,'Izračuni 2009-2018'!$A$2:$BK$321,38,FALSE) ->  | AB21: Velikostni razredi OVE
B22: Pripomba - skladnost Uredba? | C22: =VLOOKUP($D$9,'Izračuni 2009-2018'!$A$2:$BK$321,43,FALSE) ->  | F22: =IS ->  | AB22: 1 | AC22: mikro - manjše od 50kW
AB23: 2 | AC23: mala - manjše od 1MW
A24: za skupino | B24: NDRS brez odbitkov / dodatkov | C24: =VLOOKUP($D$9,'Izračuni 2009-2018'!$A$2:$BK$321,D32,FALSE) ->  | I24: =C33/C24 ->  | Q24: NAVODILA | AB24: 3 | AC24: srednja - od 1MW do vključno 10MW
B25: SDRS brez odbitkov / dodatkov | C25: =VLOOKUP($D$9,'Izračuni 2009-2018'!$A$2:$BK$321,D33,FALSE) ->  | F25: leta | Q25: 1. V celico C9 vpiši kodo (glej pomoč pri strani) | AB25: 4 | AC25: velika - nad 10MW do vključno 125MW
B26: Skupni brez odbitkov / dodatkov | C26: =VLOOKUP($D$9,'Izračuni 2009-2018'!$A$2:$BK$321,D34,FALSE) ->  | F26: 2009 | Q26: 2. V C10 pa leto za izračun
B27: =IF(C25>0,"SDRS(0) - 2009 po uredbi","") ->  | C27: =IF(C25>0,VLOOKUP($D$9,'Izračuni 2009-2018'!$A$2:$BK$321,7,FALSE),"") ->  | F27: 2010 | Q27: 2. V roza obarvane celice vpiši podatek, če zahtevan | AB27: Velikostni razredi SPTE
B28: Splošni ZO v EUR/MWh | C28: =VLOOKUP($D$9,'Izračuni 2009-2018'!$A$2:$BK$321,D35,FALSE) ->  | F28: 2011 | Q28: 3. Gumb RESET počisti obrazec | AB28: 1 | AC28: mikro - manjše od 50kW
B29: Splošni OP v EUR/MWh | C29: =VLOOKUP($D$9,'Izračuni 2009-2018'!$A$2:$BK$321,D36,FALSE) ->  | F29: 2012 | Q29: 4. Pomoč za dodatke lesna biomasa desno spodaj | AB29: 2 | AC29: mala - manjše od 1MW
F30: 2013 | Q30: Podpore SF so v primeru spremembe cene plina za | AB30: 3 | AC30: srednja - nižja - od 1MW do vključno 5MW
F31: 2014 | Q31: drugo polovico leta! | AB31: 4 | AC31: srednja - višja - nad 5MW do vključno 25MW
A32: za konkretno enoto | B32: Veljavni NDRS | C32: =IF(ISNUMBER(C24),ROUND(C24+C13*(IF(C14<2012,0.15,0.05))*C24,2)-ROUND(ABS(C11),2),"") ->  | D32: =HLOOKUP($C$10,$F$37:$O$43,2,FALSE) ->  | F32: 2015 | P32: z upoštevanimi dodatki (INT) in odbitki iz celice C3 | AB32: 5 | AC32: velika - nižja - nad 25MW do vključno 50MW
B33: od tega kot dodatek za INT ali PX3 | C33: =IF(ISNUMBER(C24),ROUND(C13*(IF(C14<2012,0.15,0.05))*C24,2),"") ->  | D33: =HLOOKUP($C$10,$F$37:$O$43,3,FALSE) ->  | F33: 2016 | AB33: 6 | AC33: velika - višja - nad 50MW do 200MW
B34: Veljavni SDRS | C34: =IF(AND(C17=1,ISNUMBER(C25)),ROUND(C17*0.7*C25,2),IF(ISNUMBER(C25),ROUND(C25+C16/100*C25,2),"")) ->  | D34: =HLOOKUP($C$10,$F$37:$O$43,4,FALSE) ->  | F34: 2017 | P34: z upoštevanimi dodatki / odbitki (LB)
B35: od tega kot dodatek | C35: =IF(ISNUMBER(C25),ROUND(C16/100*C25,2),"") ->  | D35: =HLOOKUP($C$10,$F$37:$O$43,5,FALSE) ->  | F35: 2018
B36: Skupni veljavni | C36: =IF(ISNUMBER(C26),C32+C34,"") ->  | D36: =HLOOKUP($C$10,$F$37:$O$43,6,FALSE) ->  | F36: številke stolpcev za NDRS/SDRS/skupni/ZO/OP | AB36: POMOČ ZA IZRAČUN DODATKOV ZA LESNO BIOMASO
D37: =HLOOKUP($C$10,$F$37:$O$43,7,FALSE) ->  | F37: 2009 | G37: 2010 | H37: 2011 | I37: 2012 | J37: 2013 | K37: 2014 | L37: 2015 | M37: 2016 | N37: 2017 | O37: 2018 | AB37: Tip biomase | AC37: SDRS | AD37: Delež v %
B38: ZO v EUR/MWh | C38: =IF(ISNUMBER(C28),ROUND(C36,5),C28) ->  | E38: ndrs | F38: 6 | G38: 11 | H38: 14 | I38: 17 | J38: 20 | K38: 23 | L38: 26 | M38: 29 | N38: 32 | O38: 35 | P38: brez morebitnih dodatkov vezanih na OP | AB38: A1 s certifikati | AC38: 0.1
B39: OP v EUR/MWh | C39: =IF(ISNUMBER(C29),IF(ISNUMBER(C21),ROUND((C36-C21*D37),2),C29),C29) ->  | E39: sdrs | F39: 7 | G39: 12 | H39: 15 | I39: 18 | J39: 21 | K39: 24 | L39: 27 | M39: 30 | N39: 33 | O39: 36 | P39: brez morebitnih dodatkov vezanih na OP | AB39: A1 | AC39: 0
B40: dodatek vezan na OP v EUR/MWh | C40: =IF(ISNUMBER(C39),ROUND(C15/100*C29,2),"") ->  | E40: skupni | F40: 9 | G40: 13 | H40: 16 | I40: 19 | J40: 22 | K40: 25 | L40: 28 | M40: 31 | N40: 34 | O40: 37 | AB40: A2 | AC40: -0.1
E41: zo | F41: 39 | G41: 45 | H41: 47 | I41: 49 | J41: 51 | K41: 53 | L41: 55 | M41: 57 | N41: 59 | O41: 61 | AB41: A3 | AC41: -0.35
B42: Končni ZO v EUR/kWh | C42: =IF(ISNUMBER(C38),IF(ISNUMBER(C40),(ROUND((C38+C40)/1000,5)),(ROUND((C38)/1000,5))),C38) ->  | E42: op | F42: 42 | G42: 46 | H42: 48 | I42: 50 | J42: 52 | K42: 54 | L42: 56 | M42: 58 | N42: 60 | O42: 62 | P42: za leto | AB42: Tehtana sprememba SDRS | AD42: =IF(SUM(AD38:AD41)=100,(AD38*AC38/100)+(AD39*AC39/100)+(AD40*AC40/100)+(AD41*AC41/100),"napaka v deležih!") -> napaka v deležih!
B43: Končni OP v EUR/kWh | C43: =IF(ISNUMBER(C39),IF(ISNUMBER(C40),(ROUND((C39+C40)/1000,5)),(ROUND((C39)/1000,5))),C39) ->  | E43: tržna cena | F43: ='Izračuni 2009-2018'!$N$326 -> 65 | G43: ='Izračuni 2009-2018'!$M$326 -> 53.41 | H43: ='Izračuni 2009-2018'!$L$326 -> 53.13 | I43: ='Izračuni 2009-2018'!$K$326 -> 55.79 | J43: 50.66 | K43: 43.31 | L43: 39.65 | M43: 36.89 | N43: 41.94 | O43: 42.3 | P43: =C10 -> 0 | Q43: =IF(C17=1,"Pozor, bioplinarna z znižanimi SDRS!","") ->  | AD43: (vnos v C9 v odstotkih, brez znaka "%")
B44: =IF(H15>0,"Napaka v vnosnih poljih!","") -> 
B45: =IF(AND(C14=2012,C13=1),"Napaka - v 2012 ni več dodatka INT!","") -> 

Sheet Pojasnila
A1: Za pravilno delovanje kalkulatorja mora biti omogočeno delovanje makrojev!
A3: TEMA | B3: POJASNILO
A4: VPIŠI KODO | B4: Kode so sestavljene na naslednji način: prva dva znaka določata tip naprave, sledi številka glede podvrste in zadnja številka, ki določa velikostni razred.
B5: Ta se razlikuje med OVE (4 razredi) in SPTE (6 razredov)
B6: Primer: SE21 … sončne elekrtrarne (SE), ostale (2), mikro do 50kW (1) = SE21
A7: Vpiši odbitke v EUR/MWh | B7: Odbitki kot bi bili določeni na odločbi Agencije za energijo (v EUR/MWh), na primer zaradi subvencij ali pri vstopu obnovljenih naprav, kjer je delež pod 100%
A8: Integrirana (do2011) ali PX3 bonus (od dec2012 - max 5kW)? (1-DA, 0-NE) | B8: Ali gre za integrirano sončno elektrarno (relevantno le za postavitve do leta 2011) oziroma ali ima dodatek na notranji priklop
B9: (relevantno le za postavitve od decembra 2012 dalje, ter moči do 5kW)
A10: RSEE 2009 / 2010 / 2011 / 2012H1 / 2012H2 / 2012dec / 2013mmm / 2014mmm | B10: Leto oziroma mesec priznanih referenčnih stroškov oziroma obdobje postavitve / priklopa elektrarne (npr. 2009, 2013feb, 2012dec)
A11: Vpiši dodatek na OP v % | B11: Dodatek na obratovalno podporo v % - denimo zaradi koristne rabe toplote, rabe gnojevke (primer: 10)
A12: Vpiši dodatek/odbitek za LB na SDRS v % | B12: Dodatek ali odbitek pri spremenljivem delu stroškov (SDRS) vezan na vrsto uporabljene lesne biomase (pomoč desno spodaj od kalkulatorja)
A13: Ali ima 70% RSEE (1-DA)? | B13: Proizvodnim napravam na bioplin, ki za proizvodnjo bioplina uporabljajo substrat, ki vsebuje več kot 25 in manj kot 40 prostorninskih odstotkov zrnja oziroma
B14: silaže prvih posevkov koruze in drugih pravih žit, se določi spremenljivi del referenčnih stroškov v višini 70 %.
A15: NDRS | B15: nespremenljivi del referečnih stroškov
A16: SDRS | B16: spremenljivi del referenčnih stroškov
A17: ZO | B17: zagotovljeni odkup
A18: OP | B18: obratovalna podpora
A19: od tega kot dodatek za INT ali PX3 | B19: del vezan na dodatek za integrirane sončne elektrarne (postavitve do 2011) oz interni priklop (postavitve od dec2012 dalje, do največ 5kW)

Sheet Izračuni 2009-2018 (hidden)
E1: KODA | F1: NDRS 2009 po uredbi | G1: SDRS 2009 po uredbi | H1: Skupni 2009 po uredbi | I1: Skupni 2009 seštevek | J1: Skladnost skupni | K1: NDRS 2010 | L1: SDRS 2010 | M1: Skupni 2010 | N1: NDRS 2011 | O1: SDRS 2011 | P1: Skupni 2011 | Q1: NDRS 2012 | R1: SDRS 2012 | S1: Skupni 2012 | T1: NDRS 2013 | U1: SDRS 2013 | V1: Skupni 2013 | W1: NDRS 2014 | X1: SDRS 2014 | Y1: Skupni 2014 | Z1: NDRS 2015 | AA1: SDRS 2015 | AB1: Skupni 2015 | AC1: NDRS 2016 | AD1: SDRS 2016 | AE1: Skupni 2016 | AF1: NDRS 2017 | AG1: SDRS 2017 | AH1: Skupni 2017 | AI1: NDRS 2018 | AJ1: SDRS 2018 | AK1: Skupni 2018 | AL1: Faktor B po Prilogi III | AM1: Cena ZO 2009 po uredbi | AN1: Cena ZO 2009 izračunana | AO1: Cena ZO 2009 skladna | AP1: Višina OP 2009 po uredbi | AQ1: Višina OP 2009 izračunana | AR1: Višina OP 2009 skladna | AS1: Cena ZO 2010 | AT1: Višina OP 2010 | AU1: Cena ZO 2011 | AV1: Višina OP 2011 | AW1: Cena ZO 2012 | AX1: Višina OP 2012 | AY1: Cena ZO 2013 | AZ1: Višina OP 2013 | BA1: Cena ZO 2014 | BB1: Višina OP 2014 | BC1: Cena ZO 2015 | BD1: Višina OP 2015 | BE1: Cena ZO 2016 | BF1: Višina OP 2016 | BG1: Cena ZO 2017 | BH1: Višina OP 2017 | BI1: Cena ZO 2018 | BJ1: Višina OP 2018 | BK1: OPOMBE za kategorijo | BL1: ZO2012 - ZO2011 | BM1: OP2012 - OP2011 | BN1: ZO2013 - ZO2012 | BO1: OP2013 - OP2012 | BP1: ZO2014 - ZO2013 | BQ1: OP2014 - OP2013 | BR1: ZO2015 - ZO2014 | BS1: OP2015 - OP2014 | BT1: ZO2016 - ZO2015 | BU1: OP2016 - OP2015 | BV1: ZO2017 - ZO2016 | BW1: OP2017 - OP2016 | BX1: ZO2018 - ZO2017 | BY1: OP2018 - OP2017
A2: HE01 | B2: 1. Hidroelektrarne | C2: 1. Hidroelektrarne | D2: mikro - manjše od 50kW | E2: HE01 | F2: 105.47 | G2: 0 | H2: 105.47 | I2: =F2+G2 -> 105.47 | J2: =IF(H2=I2,"OK","razlika") -> OK | K2: =F2 -> 105.47 | L2: 0 | M2: =K2+L2 -> 105.47 | N2: =F2 -> 105.47 | O2: 0 | P2: =N2+O2 -> 105.47 | Q2: =F2 -> 105.47 | R2: 0 | S2: =Q2+R2 -> 105.47 | T2: =F2 -> 105.47 | U2: 0 | V2: =T2+U2 -> 105.47 | W2: =F2 -> 105.47 | X2: 0 | Y2: =W2+X2 -> 105.47 | Z2: =+W2 -> 105.47 | AA2: =+X2 -> 0 | AB2: =+Z2+AA2 -> 105.47 | AC2: =+Z2 -> 105.47 | AD2: =+AA2 -> 0 | AE2: =+AC2+AD2 -> 105.47 | AF2: =+AC2 -> 105.47 | AG2: =+AD2 -> 0 | AH2: =+AF2+AG2 -> 105.47 | AI2: =+AF2 -> 105.47 | AJ2: =+AG2 -> 0 | AK2: =+AI2+AJ2 -> 105.47 | AL2: 0.86 | AM2: 105.47 | AN2: =I2 -> 105.47 | AO2: =IF(AM2=AN2,"OK","razlika") -> OK | AP2: 49.57 | AQ2: =ROUND(I2-AL2*$N$326,2) -> 49.57 | AR2: =IF(AP2=AQ2,"OK","razlika") -> OK | AS2: =K2+L2 -> 105.47 | AT2: =ROUND((K2+L2)-AL2*$M$326,2) -> 59.54 | AU2: =N2+O2 -> 105.47 | AV2: =ROUND((N2+O2)-AL2*$L$326,2) -> 59.78 | AW2: =Q2+R2 -> 105.47 | AX2: =ROUND((Q2+R2)-AL2*$K$326,2) -> 57.49 | AY2: =T2+U2 -> 105.47 | AZ2: =ROUND((T2+U2)-AL2*$J$326,2) -> 61.9 | BA2: =W2+X2 -> 105.47 | BB2: =ROUND((W2+X2)-AL2*$I$326,2) -> 68.22 | BC2: =+Z2+AA2 -> 105.47 | BD2: =ROUND((Z2+AA2)-AL2*$H$326,2) -> 71.37 | BE2: =+AC2+AD2 -> 105.47 | BF2: =ROUND((AC2+AD2)-AL2*$G$326,2) -> 73.74 | BG2: =+AH2 -> 105.47 | BH2: =ROUND(AH2-AL2*$F$326,2) -> 69.4 | BI2: =+AK2 -> 105.47 | BJ2: =ROUND(AK2-AL2*$E$326,2) -> 69.09 | BL2: =AW2-AU2 -> 0 | BM2: -2.29 | BN2: 0 | BO2: 4.41 | BP2: 0 | BQ2: 6.32 | BR2: =BC2-BA2 -> 0 | BS2: =BD2-BB2 -> 3.15 | BT2: =BE2-BC2 -> 0 | BU2: =BF2-BD2 -> 2.37 | BV2: =BG2-BE2 -> 0 | BW2: =BH2-BF2 -> -4.34 | BX2: =BI2-BG2 -> 0 | BY2: =BJ2-BH2 -> -0.31
A3: HE02 | B3: 1. Hidroelektrarne | D3: mala - manjše od 1MW | E3: HE02 | F3: 92.61 | G3: 0 | H3: 92.61 | I3: 92.61 | J3: =IF(H3=I3,"OK","razlika") -> OK | K3: =F3 -> 92.61 | L3: 0 | M3: =K3+L3 -> 92.61 | N3: 92.61 | O3: 0 | P3: =N3+O3 -> 92.61 | Q3: 92.61 | R3: 0 | S3: =Q3+R3 -> 92.61 | T3: 92.61 | U3: 0 | V3: =T3+U3 -> 92.61 | W3: =F3 -> 92.61 | X3: 0 | Y3: =W3+X3 -> 92.61 | Z3: 92.61 | AA3: 0 | AB3: 92.61 | AC3: =+Z3 -> 92.61 | AD3: =+AA3 -> 0 | AE3: =+AC3+AD3 -> 92.61 | AF3: =+AC3 -> 92.61 | AG3: =+AD3 -> 0 | AH3: =+AF3+AG3 -> 92.61 | AI3: =+AF3 -> 92.61 | AJ3: =+AG3 -> 0 | AK3: =+AI3+AJ3 -> 92.61 | AL3: 0.86 | AM3: 92.61 | AN3: =I3 -> 92.61 | AO3: =IF(AM3=AN3,"OK","razlika") -> OK | AP3: 36.71 | AQ3: 36.71 | AR3: =IF(AP3=AQ3,"OK","razlika") -> OK | AS3: =K3+L3 -> 92.61 | AT3: 46.68 | AU3: =N3+O3 -> 92.61 | AV3: 46.92 | AW3: =Q3+R3 -> 92.61 | AX3: 44.63 | AY3: =T3+U3 -> 92.61 | AZ3: 49.04 | BA3: =W3+X3 -> 92.61 | BB3: 55.36 | BC3: =+Z3+AA3 -> 92.61 | BD3: 58.51 | BE3: =+AC3+AD3 -> 92.61 | BF3: 60.88 | BG3: =+AH3 -> 92.61 | BH3: 56.54 | BI3: =+AK3 -> 92.61 | BJ3: =ROUND(AK3-AL3*$E$326,2) -> 56.23 | BL3: =AW3-AU3 -> 0 | BM3: =AX3-AV3 -> -2.29 | BN3: =AY3-AW3 -> 0 | BO3: =AZ3-AX3 -> 4.41 | BP3: =BA3-AY3 -> 0 | BQ3: =BB3-AZ3 -> 6.32 | BR3: =BC3-BA3 -> 0 | BS3: =BD3-BB3 -> 3.15 | BT3: 0 | BU3: 2.37 | BV3: 0 | BW3: -4.34 | BX3: 0 | BY3: -0.31
A4: HE03 | B4: 1. Hidroelektrarne | D4: srednja - od 1MW do vključno 10MW | E4: HE03 | F4: 82.34 | G4: 0 | H4: 82.34 | I4: 82.34 | J4: OK | K4: 82.34 | L4: 0 | M4: 82.34 | N4: 82.34 | O4: 0 | P4: 82.34 | Q4: 82.34 | R4: 0 | S4: 82.34 | T4: 82.34 | U4: 0 | V4: 82.34 | W4: 82.34 | X4: 0 | Y4: 82.34 | Z4: 82.34 | AA4: 0 | AB4: 82.34 | AC4: 82.34 | AD4: 0 | AE4: 82.34 | AF4: 82.34 | AG4: 0 | AH4: 82.34 | AI4: 82.34 | AJ4: 0 | AK4: 82.34 | AL4: 0.9 | AM4: 82.34 | AN4: =I4 -> 82.34 | AO4: OK | AP4: 23.84 | AQ4: 23.84 | AR4: OK | AS4: =K4+L4 -> 82.34 | AT4: 34.27 | AU4: =N4+O4 -> 82.34 | AV4: 34.52 | AW4: =Q4+R4 -> 82.34 | AX4: 32.13 | AY4: =T4+U4 -> 82.34 | AZ4: 36.75 | BA4: =W4+X4 -> 82.34 | BB4: 43.36 | BC4: =+Z4+AA4 -> 82.34 | BD4: 46.66 | BE4: =+AC4+AD4 -> 82.34 | BF4: 49.14 | BG4: =+AH4 -> 82.34 | BH4: 44.59 | BI4: =+AK4 -> 82.34 | BJ4: 44.27 | BL4: 0 | BM4: -2.39 | BN4: 0 | BO4: 4.62 | BP4: 0 | BQ4: 6.61 | BR4: 0 | BS4: 3.3 | BT4: 0 | BU4: 2.48 | BV4: 0 | BW4: -4.55 | BX4: 0 | BY4: -0.32
A5: HE04 | B5: 1. Hidroelektrarne | D5: velika - nad 10MW do vključno 125MW | E5: HE04 | F5: 76.57 | G5: 0 | H5: 76.57 | I5: 76.57 | J5: OK | K5: 76.57 | L5: 0 | M5: 76.57 | N5: 76.57 | O5: 0 | P5: 76.57 | Q5: 76.57 | R5: 0 | S5: 76.57 | T5: 76.57 | U5: 0 | V5: 76.57 | W5: 76.57 | X5: 0 | Y5: 76.57 | Z5: 76.57 | AA5: 0 | AB5: 76.57 | AC5: 76.57 | AD5: 0 | AE5: 76.57 | AF5: 76.57 | AG5: 0 | AH5: 76.57 | AI5: 76.57 | AJ5: 0 | AK5: 76.57 | AL5: 0.9 | AM5: (ni ZO) | AN5: (ni ZO) | AO5: OK | AP5: 18.07 | AQ5: 18.07 | AR5: OK | AS5: (ni ZO) | AT5: 28.5 | AU5: (ni ZO) | AV5: 28.75 | AW5: (ni ZO) | AX5: 26.36 | AY5: (ni ZO) | AZ5: 30.98 | BA5: (ni ZO) | BB5: 37.59 | BC5: (ni ZO) | BD5: 40.89 | BE5: (ni ZO) | BF5: 43.37 | BG5: (ni ZO) | BH5: 38.82 | BI5: (ni ZO) | BJ5: 38.5 | BL5: (ni ZO) | BM5: -2.39 | BN5: (ni ZO) | BO5: 4.62 | BP5: (ni ZO) | BQ5: 6.61 | BR5: (ni ZO) | BS5: 3.3 | BT5: (ni ZO) | BU5: 2.48 | BV5: (ni ZO) | BW5: -4.55 | BX5: (ni ZO) | BY5: -0.32
A6: VE01 | B6: 2. Vetrne elektrarne | C6: 2. Vetrne elektrarne | D6: mikro - manjše od 50kW | E6: VE01 | F6: 95.38 | G6: 0 | H6: 95.38 | I6: 95.38 | J6: OK | K6: 95.38 | L6: 0 | M6: 95.38 | N6: 95.38 | O6: 0 | P6: 95.38 | Q6: 95.38 | R6: 0 | S6: 95.38 | T6: 95.38 | U6: 0 | V6: 95.38 | W6: 95.38 | X6: 0 | Y6: 95.38 | Z6: 95.38 | AA6: 0 | AB6: 95.38 | AC6: 95.38 | AD6: 0 | AE6: 95.38 | AF6: 95.38 | AG6: 0 | AH6: 95.38 | AI6: 95.38 | AJ6: 0 | AK6: 95.38 | AL6: 0.8 | AM6: 95.38 | AN6: =I6 -> 95.38 | AO6: OK | AP6: 43.38 | AQ6: 43.38 | AR6: OK | AS6: =K6+L6 -> 95.38 | AT6: 52.65 | AU6: =N6+O6 -> 95.38 | AV6: 52.88 | AW6: =Q6+R6 -> 95.38 | AX6: 50.75 | AY6: =T6+U6 -> 95.38 | AZ6: 54.85 | BA6: =W6+X6 -> 95.38 | BB6: 60.73 | BC6: =+Z6+AA6 -> 95.38 | BD6: 63.66 | BE6: =+AC6+AD6 -> 95.38 | BF6: 65.87 | BG6: =+AH6 -> 95.38 | BH6: 61.83 | BI6: =+AK6 -> 95.38 | BJ6: 61.54 | BL6: 0 | BM6: -2.13 | BN6: =AY6-AW6 -> 0 | BO6: 4.1 | BP6: =BA6-AY6 -> 0 | BQ6: 5.88 | BR6: 0 | BS6: 2.93 | BT6: 0 | BU6: 2.21 | BV6: =BG6-BE6 -> 0 | BW6: -4.04 | BX6: =BI6-BG6 -> 0 | BY6: -0.29
A7: VE02 | B7: 2. Vetrne elektrarne | D7: mala - manjše od 1MW | E7: VE02 | F7: 95.38 | G7: 0 | H7: 95.38 | I7: 95.38 | J7: OK | K7: 95.38 | L7: 0 | M7: 95.38 | N7: 95.38 | O7: 0 | P7: 95.38 | Q7: 95.38 | R7: 0 | S7: 95.38 | T7: 95.38 | U7: 0 | V7: 95.38 | W7: 95.38 | X7: 0 | Y7: 95.38 | Z7: 95.38 | AA7: 0 | AB7: 95.38 | AC7: 95.38 | AD7: 0 | AE7: 95.38 | AF7: 95.38 | AG7: 0 | AH7: 95.38 | AI7: 95.38 | AJ7: 0 | AK7: 95.38 | AL7: 0.8 | AM7: 95.38 | AN7: =I7 -> 95.38 | AO7: OK | AP7: 43.38 | AQ7: 43.38 | AR7: OK | AS7: =K7+L7 -> 95.38 | AT7: 52.65 | AU7: =N7+O7 -> 95.38 | AV7: 52.88 | AW7: =Q7+R7 -> 95.38 | AX7: 50.75 | AY7: =T7+U7 -> 95.38 | AZ7: 54.85 | BA7: =W7+X7 -> 95.38 | BB7: 60.73 | BC7: =+Z7+AA7 -> 95.38 | BD7: 63.66 | BE7: =+AC7+AD7 -> 95.38 | BF7: 65.87 | BG7: =+AH7 -> 95.38 | BH7: 61.83 | BI7: =+AK7 -> 95.38 | BJ7: 61.54 | BL7: 0 | BM7: -2.13 | BN7: 0 | BO7: 4.1 | BP7: 0 | BQ7: 5.88 | BR7: 0 | BS7: 2.93 | BT7: 0 | BU7: 2.21 | BV7: 0 | BW7: -4.04 | BX7: 0 | BY7: -0.29
A8: VE03 | B8: 2. Vetrne elektrarne | D8: srednja - od 1MW do vključno 10MW | E8: VE03 | F8: 95.38 | G8: 0 | H8: 95.38 | I8: 95.38 | J8: OK | K8: 95.38 | L8: 0 | M8: 95.38 | N8: 95.38 | O8: 0 | P8: 95.38 | Q8: 95.38 | R8: 0 | S8: 95.38 | T8: 95.38 | U8: 0 | V8: 95.38 | W8: 95.38 | X8: 0 | Y8: 95.38 | Z8: 95.38 | AA8: 0 | AB8: 95.38 | AC8: 95.38 | AD8: 0 | AE8: 95.38 | AF8: 95.38 | AG8: 0 | AH8: 95.38 | AI8: 95.38 | AJ8: 0 | AK8: 95.38 | AL8: 0.8 | AM8: 95.38 | AN8: =I8 -> 95.38 | AO8: OK | AP8: 43.38 | AQ8: 43.38 | AR8: OK | AS8: =K8+L8 -> 95.38 | AT8: 52.65 | AU8: =N8+O8 -> 95.38 | AV8: 52.88 | AW8: =Q8+R8 -> 95.38 | AX8: 50.75 | AY8: =T8+U8 -> 95.38 | AZ8: 54.85 | BA8: =W8+X8 -> 95.38 | BB8: 60.73 | BC8: =+Z8+AA8 -> 95.38 | BD8: 63.66 | BE8: =+AC8+AD8 -> 95.38 | BF8: 65.87 | BG8: =+AH8 -> 95.38 | BH8: 61.83 | BI8: =+AK8 -> 95.38 | BJ8: 61.54 | BL8: 0 | BM8: -2.13 | BN8: 0 | BO8: 4.1 | BP8: 0 | BQ8: 5.88 | BR8: 0 | BS8: 2.93 | BT8: 0 | BU8: 2.21 | BV8: 0 | BW8: -4.04 | BX8: 0 | BY8: -0.29
A9: VE04 | B9: 2. Vetrne elektrarne | D9: velika - nad 10MW do vključno 125MW | E9: VE04 | F9: 86.74 | G9: 0 | H9: 86.74 | I9: 86.74 | J9: OK | K9: 86.74 | L9: 0 | M9: 86.74 | N9: 86.74 | O9: 0 | P9: 86.74 | Q9: 86.74 | R9: 0 | S9: 86.74 | T9: 86.74 | U9: 0 | V9: 86.74 | W9: 86.74 | X9: 0 | Y9: 86.74 | Z9: 86.74 | AA9: 0 | AB9: 86.74 | AC9: 86.74 | AD9: 0 | AE9: 86.74 | AF9: 86.74 | AG9: 0 | AH9: 86.74 | AI9: 86.74 | AJ9: 0 | AK9: 86.74 | AL9: 0.86 | AM9: (ni ZO) | AN9: (ni ZO) | AO9: OK | AP9: 30.84 | AQ9: 30.84 | AR9: OK | AS9: (ni ZO) | AT9: 40.81 | AU9: (ni ZO) | AV9: 41.05 | AW9: (ni ZO) | AX9: 38.76 | AY9: (ni ZO) | AZ9: 43.17 | BA9: (ni ZO) | BB9: 49.49 | BC9: (ni ZO) | BD9: 52.64 | BE9: (ni ZO) | BF9: 55.01 | BG9: (ni ZO) | BH9: 50.67 | BI9: (ni ZO) | BJ9: 50.36 | BL9: (ni ZO) | BM9: -2.29 | BN9: (ni ZO) | BO9: 4.41 | BP9: (ni ZO) | BQ9: 6.32 | BR9: (ni ZO) | BS9: 3.15 | BT9: (ni ZO) | BU9: 2.37 | BV9: (ni ZO) | BW9: -4.34 | BX9: (ni ZO) | BY9: -0.31
A10: SE11-2009 | B10: 3.1 Sončne elektrarne - na stavbah 2009 | C10: 3.1 Sončne elektrarne - na stavbah 2009 | D10: mikro - manjše od 50kW | E10: SE11 | F10: 415.46 | G10: 0 | H10: 415.46 | I10: 415.46 | J10: OK | K10: 415.46 | L10: 0 | M10: 415.46 | N10: 415.46 | O10: 0 | P10: 415.46 | Q10: 415.46 | R10: 0 | S10: 415.46 | T10: 415.46 | U10: 0 | V10: 415.46 | W10: 415.46 | X10: 0 | Y10: 415.46 | Z10: 415.46 | AA10: 0 | AB10: 415.46 | AC10: 415.46 | AD10: 0 | AE10: 415.46 | AF10: 415.46 | AG10: 0 | AH10: 415.46 | AI10: 415.46 | AJ10: 0 | AK10: 415.46 | AL10: 0.88 | AM10: 415.46 | AN10: =I10 -> 415.46 | AO10: OK | AP10: 358.26 | AQ10: 358.26 | AR10: OK | AS10: =K10+L10 -> 415.46 | AT10: 368.46 | AU10: =N10+O10 -> 415.46 | AV10: 368.71 | AW10: =Q10+R10 -> 415.46 | AX10: 366.36 | AY10: =T10+U10 -> 415.46 | AZ10: 370.88 | BA10: =W10+X10 -> 415.46 | BB10: 377.35 | BC10: =+Z10+AA10 -> 415.46 | BD10: 380.57 | BE10: =+AC10+AD10 -> 415.46 | BF10: 383 | BG10: =+AH10 -> 415.46 | BH10: 378.55 | BI10: =+AK10 -> 415.46 | BJ10: 378.24 | BL10: 0 | BM10: -2.35 | BN10: =AY10-AW10 -> 0 | BO10: 4.52 | BP10: =BA10-AY10 -> 0 | BQ10: 6.47 | BR10: 0 | BS10: 3.22 | BT10: 0 | BU10: 2.43 | BV10: =BG10-BE10 -> 0 | BW10: -4.45 | BX10: =BI10-BG10 -> 0 | BY10: -0.31
A11: SE12-2009 | B11: 3.1 Sončne elektrarne - na stavbah 2009 | D11: mala - manjše od 1MW | E11: SE12 | F11: 380.02 | G11: 0 | H11: 380.02 | I11: 380.02 | J11: OK | K11: 380.02 | L11: 0 | M11: 380.02 | N11: =F11 -> 380.02 | O11: 0 | P11: 380.02 | Q11: 380.02 | R11: 0 | S11: 380.02 | T11: =F11 -> 380.02 | U11: 0 | V11: 380.02 | W11: 380.02 | X11: 0 | Y11: 380.02 | Z11: 380.02 | AA11: 0 | AB11: 380.02 | AC11: 380.02 | AD11: 0 | AE11: 380.02 | AF11: 380.02 | AG11: 0 | AH11: 380.02 | AI11: 380.02 | AJ11: 0 | AK11: 380.02 | AL11: 0.88 | AM11: 380.02 | AN11: =I11 -> 380.02 | AO11: OK | AP11: 322.82 | AQ11: 322.82 | AR11: OK | AS11: =K11+L11 -> 380.02 | AT11: 333.02 | AU11: =N11+O11 -> 380.02 | AV11: 333.27 | AW11: =Q11+R11 -> 380.02 | AX11: 330.92 | AY11: =T11+U11 -> 380.02 | AZ11: 335.44 | BA11: =W11+X11 -> 380.02 | BB11: 341.91 | BC11: =+Z11+AA11 -> 380.02 | BD11: 345.13 | BE11: =+AC11+AD11 -> 380.02 | BF11: 347.56 | BG11: =+AH11 -> 380.02 | BH11: 343.11 | BI11: =+AK11 -> 380.02 | BJ11: 342.8 | BK11: le za INTEGRIRANE - razlika pri ZO in OP 2009 zaradi zaokrožitve +15% | BL11: 0 | BM11: -2.35 | BN11: 0 | BO11: 4.52 | BP11: 0 | BQ11: 6.47 | BR11: 0 | BS11: 3.22 | BT11: 0 | BU11: 2.43 | BV11: 0 | BW11: -4.45 | BX11: 0 | BY11: -0.31
A12: SE13-2009 | B12: 3.1 Sončne elektrarne - na stavbah 2009 | D12: srednja - od 1MW do vključno 10MW | E12: SE13 | F12: 315.36 | G12: 0 | H12: 315.36 | I12: 315.36 | J12: OK | K12: 315.36 | L12: 0 | M12: 315.36 | N12: 315.36 | O12: 0 | P12: 315.36 | Q12: 315.36 | R12: 0 | S12: 315.36 | T12: 315.36 | U12: 0 | V12: 315.36 | W12: 315.36 | X12: 0 | Y12: 315.36 | Z12: 315.36 | AA12: 0 | AB12: 315.36 | AC12: 315.36 | AD12: 0 | AE12: 315.36 | AF12: 315.36 | AG12: 0 | AH12: 315.36 | AI12: 315.36 | AJ12: 0 | AK12: 315.36 | AL12: 0.91 | AM12: 315.36 | AN12: =I12 -> 315.36 | AO12: OK | AP12: 256.21 | AQ12: 256.21 | AR12: OK | AS12: =K12+L12 -> 315.36 | AT12: 266.76 | AU12: =N12+O12 -> 315.36 | AV12: 267.01 | AW12: =Q12+R12 -> 315.36 | AX12: 264.59 | AY12: =T12+U12 -> 315.36 | AZ12: 269.26 | BA12: =W12+X12 -> 315.36 | BB12: 275.95 | BC12: =+Z12+AA12 -> 315.36 | BD12: 279.28 | BE12: =+AC12+AD12 -> 315.36 | BF12: 281.79 | BG12: =+AH12 -> 315.36 | BH12: 277.19 | BI12: =+AK12 -> 315.36 | BJ12: 276.87 | BK12: le za INTEGRIRANE - razlika pri ZO in OP 2009 zaradi zaokrožitve +15% | BL12: 0 | BM12: -2.42 | BN12: 0 | BO12: 4.67 | BP12: 0 | BQ12: 6.69 | BR12: 0 | BS12: 3.33 | BT12: 0 | BU12: 2.51 | BV12: 0 | BW12: -4.6 | BX12: 0 | BY12: -0.32
A13: SE14-2009 | B13: 3.1 Sončne elektrarne - na stavbah 2009 | D13: velika - nad 10MW do vključno 125MW | E13: SE14 | F13: 280.71 | G13: 0 | H13: 280.71 | I13: 280.71 | J13: OK | K13: 280.71 | L13: 0 | M13: 280.71 | N13: 280.71 | O13: 0 | P13: 280.71 | Q13: 280.71 | R13: 0 | S13: 280.71 | T13: 280.71 | U13: 0 | V13: 280.71 | W13: 280.71 | X13: 0 | Y13: 280.71 | Z13: 280.71 | AA13: 0 | AB13: 280.71 | AC13: 280.71 | AD13: 0 | AE13: 280.71 | AF13: 280.71 | AG13: 0 | AH13: 280.71 | AI13: 280.71 | AJ13: 0 | AK13: 280.71 | AL13: 1 | AM13: (ni ZO) | AN13: (ni ZO) | AO13: OK | AP13: 215.71 | AQ13: 215.71 | AR13: OK | AS13: (ni ZO) | AT13: 227.3 | AU13: (ni ZO) | AV13: 227.58 | AW13: (ni ZO) | AX13: 224.92 | AY13: (ni ZO) | AZ13: 230.05 | BA13: (ni ZO) | BB13: 237.4 | BC13: (ni ZO) | BD13: 241.06 | BE13: (ni ZO) | BF13: 243.82 | BG13: (ni ZO) | BH13: 238.77 | BI13: (ni ZO) | BJ13: 238.41 | BL13: (ni ZO) | BM13: -2.66 | BN13: (ni ZO) | BO13: 5.13 | BP13: (ni ZO) | BQ13: 7.35 | BR13: (ni ZO) | BS13: 3.66 | BT13: (ni ZO) | BU13: 2.76 | BV13: (ni ZO) | BW13: -5.05 | BX13: (ni ZO) | BY13: -0.36
C14: 3.1. INT Sončne elektrarne - integrirane 2009 | D14: mikro - manjše od 50kW | F14: =ROUND(F10*1.15,2) -> 477.78 | G14: 0 | I14: =F14+G14 -> 477.78 | J14: niso v uredbi; ROUND(2009*1,15 ; 2) | K14: 477.78 | L14: 0 | M14: 477.78 | N14: 477.78 | O14: 0 | P14: 477.78 | Q14: 477.78 | R14: 0 | S14: 477.78 | T14: 477.78 | U14: 0 | V14: 477.78 | W14: 477.78 | X14: 0 | Y14: 477.78 | Z14: 477.78 | AA14: 0 | AB14: 477.78 | AC14: 477.78 | AD14: 0 | AE14: 477.78 | AF14: 477.78 | AG14: 0 | AH14: 477.78 | AI14: 477.78 | AJ14: 0 | AK14: 477.78 | AL14: 0.88 | AM14: 477.78 | AN14: =I14 -> 477.78 | AO14: OK | AP14: 420.58 | AQ14: 420.58 | AR14: OK | AS14: =K14+L14 -> 477.78 | AT14: 430.78 | AU14: =N14+O14 -> 477.78 | AV14: 431.03 | AW14: =Q14+R14 -> 477.78 | AX14: 428.68 | AY14: =T14+U14 -> 477.78 | AZ14: 433.2 | BA14: =W14+X14 -> 477.78 | BB14: 439.67 | BC14: =+Z14+AA14 -> 477.78 | BD14: 442.89 | BE14: =+AC14+AD14 -> 477.78 | BF14: 445.32 | BG14: =+AH14 -> 477.78 | BH14: 440.87 | BI14: =+AK14 -> 477.78 | BJ14: 440.56 | BL14: 0 | BM14: -2.35 | BN14: =AY14-AW14 -> 0 | BO14: 4.52 | BP14: =BA14-AY14 -> 0 | BQ14: 6.47 | BR14: 0 | BS14: 3.22 | BT14: 0 | BU14: 2.43 | BV14: =BG14-BE14 -> 0 | BW14: -4.45 | BX14: =BI14-BG14 -> 0 | BY14: -0.31
D15: mala - manjše od 1MW | F15: =ROUND(F11*1.15,2) -> 437.02 | G15: 0 | I15: =F15+G15 -> 437.02 | J15: niso v uredbi; ROUND(2009*1,15 ; 2) | K15: 437.02 | L15: 0 | M15: 437.02 | N15: 437.02 | O15: 0 | P15: 437.02 | Q15: 437.02 | R15: 0 | S15: 437.02 | T15: 437.02 | U15: 0 | V15: 437.02 | W15: 437.02 | X15: 0 | Y15: 437.02 | Z15: 437.02 | AA15: 0 | AB15: 437.02 | AC15: 437.02 | AD15: 0 | AE15: 437.02 | AF15: 437.02 | AG15: 0 | AH15: 437.02 | AI15: 437.02 | AJ15: 0 | AK15: 437.02 | AL15: 0.88 | AM15: 437.03 | AN15: =I15 -> 437.02 | AO15: razlika | AP15: 379.83 | AQ15: 379.82 | AR15: razlika | AS15: =K15+L15 -> 437.02 | AT15: 390.02 | AU15: =N15+O15 -> 437.02 | AV15: 390.27 | AW15: =Q15+R15 -> 437.02 | AX15: 387.92 | AY15: =T15+U15 -> 437.02 | AZ15: 392.44 | BA15: =W15+X15 -> 437.02 | BB15: 398.91 | BC15: =+Z15+AA15 -> 437.02 | BD15: 402.13 | BE15: =+AC15+AD15 -> 437.02 | BF15: 404.56 | BG15: =+AH15 -> 437.02 | BH15: 400.11 | BI15: =+AK15 -> 437.02 | BJ15: 399.8 | BK15: razlika pri ZO in OP 2009 zaradi zaokrožitve +15% | BL15: 0 | BM15: -2.35 | BN15: 0 | BO15: 4.52 | BP15: 0 | BQ15: 6.47 | BR15: 0 | BS15: 3.22 | BT15: 0 | BU15: 2.43 | BV15: 0 | BW15: -4.45 | BX15: 0 | BY15: -0.31
D16: srednja - od 1MW do vključno 10MW | F16: =ROUND(F12*1.15,2) -> 362.66 | G16: 0 | I16: 362.66 | J16: niso v uredbi; ROUND(2009*1,15 ; 2) | K16: 362.66 | L16: 0 | M16: 362.66 | N16: 362.66 | O16: 0 | P16: 362.66 | Q16: 362.66 | R16: 0 | S16: 362.66 | T16: 362.66 | U16: 0 | V16: 362.66 | W16: 362.66 | X16: 0 | Y16: 362.66 | Z16: 362.66 | AA16: 0 | AB16: 362.66 | AC16: 362.66 | AD16: 0 | AE16: 362.66 | AF16: 362.66 | AG16: 0 | AH16: 362.66 | AI16: 362.66 | AJ16: 0 | AK16: 362.66 | AL16: 0.91 | AM16: 362.67 | AN16: =I16 -> 362.66 | AO16: razlika | AP16: 303.52 | AQ16: 303.51 | AR16: razlika | AS16: =K16+L16 -> 362.66 | AT16: 314.06 | AU16: =N16+O16 -> 362.66 | AV16: 314.31 | AW16: =Q16+R16 -> 362.66 | AX16: 311.89 | AY16: =T16+U16 -> 362.66 | AZ16: 316.56 | BA16: =W16+X16 -> 362.66 | BB16: 323.25 | BC16: =+Z16+AA16 -> 362.66 | BD16: 326.58 | BE16: =+AC16+AD16 -> 362.66 | BF16: 329.09 | BG16: =+AH16 -> 362.66 | BH16: 324.49 | BI16: =+AK16 -> 362.66 | BJ16: 324.17 | BK16: razlika pri ZO in OP 2009 zaradi zaokrožitve +15% | BL16: 0 | BM16: -2.42 | BN16: 0 | BO16: 4.67 | BP16: 0 | BQ16: 6.69 | BR16: 0 | BS16: 3.33 | BT16: 0 | BU16: 2.51 | BV16: 0 | BW16: -4.6 | BX16: 0 | BY16: -0.32
D17: velika - nad 10MW do vključno 125MW | F17: =ROUND(F13*1.15,2) -> 322.82 | G17: 0 | I17: 322.82 | J17: niso v uredbi; ROUND(2009*1,15 ; 2) | K17: 322.82 | L17: 0 | M17: 322.82 | N17: 322.82 | O17: 0 | P17: 322.82 | Q17: 322.82 | R17: 0 | S17: 322.82 | T17: 322.82 | U17: 0 | V17: 322.82 | W17: 322.82 | X17: 0 | Y17: 322.82 | Z17: 322.82 | AA17: 0 | AB17: 322.82 | AC17: 322.82 | AD17: 0 | AE17: 322.82 | AF17: 322.82 | AG17: 0 | AH17: 322.82 | AI17: 322.82 | AJ17: 0 | AK17: 322.82 | AL17: 1 | AM17: (ni ZO) | AN17: (ni ZO) | AO17: OK | AP17: 257.82 | AQ17: 257.82 | AR17: OK | AS17: (ni ZO) | AT17: 269.41 | AU17: (ni ZO) | AV17: 269.69 | AW17: (ni ZO) | AX17: 267.03 | AY17: (ni ZO) | AZ17: 272.16 | BA17: (ni ZO) | BB17: 279.51 | BC17: (ni ZO) | BD17: 283.17 | BE17: (ni ZO) | BF17: 285.93 | BG17: (ni ZO) | BH17: 280.88 | BI17: (ni ZO) | BJ17: 280.52 | BL17: (ni ZO) | BM17: -2.66 | BN17: (ni ZO) | BO17: 5.13 | BP17: (ni ZO) | BQ17: 7.35 | BR17: (ni ZO) | BS17: 3.66 | BT17: (ni ZO) | BU17: 2.76 | BV17: (ni ZO) | BW17: -5.05 | BX17: (ni ZO) | BY17: -0.36
A18: SE21-2009 | B18: 3.2 Sončne elektrarne - samostojni objekti 2009 | C18: 3.2 Sončne elektrarne - samostojni objekti 2009 | D18: mikro - manjše od 50kW | E18: SE21 | F18: 390.42 | G18: 0 | H18: 390.42 | I18: 390.42 | J18: =IF(H18=I18,"OK","razlika") -> OK | K18: 390.42 | L18: 0 | M18: 390.42 | N18: 390.42 | O18: 0 | P18: 390.42 | Q18: 390.42 | R18: 0 | S18: 390.42 | T18: 390.42 | U18: 0 | V18: 390.42 | W18: 390.42 | X18: 0 | Y18: 390.42 | Z18: 390.42 | AA18: 0 | AB18: 390.42 | AC18: 390.42 | AD18: 0 | AE18: 390.42 | AF18: 390.42 | AG18: 0 | AH18: 390.42 | AI18: 390.42 | AJ18: 0 | AK18: 390.42 | AL18: 0.88 | AM18: 390.42 | AN18: =I18 -> 390.42 | AO18: OK | AP18: 333.22 | AQ18: 333.22 | AR18: OK | AS18: =K18+L18 -> 390.42 | AT18: 343.42 | AU18: =N18+O18 -> 390.42 | AV18: 343.67 | AW18: =Q18+R18 -> 390.42 | AX18: 341.32 | AY18: =T18+U18 -> 390.42 | AZ18: 345.84 | BA18: =W18+X18 -> 390.42 | BB18: 352.31 | BC18: =+Z18+AA18 -> 390.42 | BD18: 355.53 | BE18: =+AC18+AD18 -> 390.42 | BF18: 357.96 | BG18: =+AH18 -> 390.42 | BH18: 353.51 | BI18: =+AK18 -> 390.42 | BJ18: 353.2 | BL18: 0 | BM18: -2.35 | BN18: =AY18-AW18 -> 0 | BO18: 4.52 | BP18: =BA18-AY18 -> 0 | BQ18: 6.47 | BR18: 0 | BS18: 3.22 | BT18: 0 | BU18: 2.43 | BV18: =BG18-BE18 -> 0 | BW18: -4.45 | BX18: =BI18-BG18 -> 0 | BY18: -0.31
A19: SE22-2009 | B19: 3.2 Sončne elektrarne - samostojni objekti 2009 | D19: mala - manjše od 1MW | E19: SE22 | F19: 359.71 | G19: 0 | H19: 359.71 | I19: 359.71 | J19: =IF(H19=I19,"OK","razlika") -> OK | K19: 359.71 | L19: 0 | M19: 359.71 | N19: 359.71 | O19: 0 | P19: 359.71 | Q19: 359.71 | R19: 0 | S19: 359.71 | T19: 359.71 | U19: 0 | V19: 359.71 | W19: 359.71 | X19: 0 | Y19: 359.71 | Z19: 359.71 | AA19: 0 | AB19: 359.71 | AC19: 359.71 | AD19: 0 | AE19: 359.71 | AF19: 359.71 | AG19: 0 | AH19: 359.71 | AI19: 359.71 | AJ19: 0 | AK19: 359.71 | AL19: 0.88 | AM19: 359.71 | AN19: =I19 -> 359.71 | AO19: OK | AP19: 302.51 | AQ19: 302.51 | AR19: OK | AS19: =K19+L19 -> 359.71 | AT19: 312.71 | AU19: =N19+O19 -> 359.71 | AV19: 312.96 | AW19: =Q19+R19 -> 359.71 | AX19: 310.61 | AY19: =T19+U19 -> 359.71 | AZ19: 315.13 | BA19: =W19+X19 -> 359.71 | BB19: 321.6 | BC19: =+Z19+AA19 -> 359.71 | BD19: 324.82 | BE19: =+AC19+AD19 -> 359.71 | BF19: 327.25 | BG19: =+AH19 -> 359.71 | BH19: 322.8 | BI19: =+AK19 -> 359.71 | BJ19: 322.49 | BL19: 0 | BM19: -2.35 | BN19: 0 | BO19: 4.52 | BP19: 0 | BQ19: 6.47 | BR19: 0 | BS19: 3.22 | BT19: 0 | BU19: 2.43 | BV19: 0 | BW19: -4.45 | BX19: 0 | BY19: -0.31
A20: SE23-2009 | B20: 3.2 Sončne elektrarne - samostojni objekti 2009 | D20: srednja - od 1MW do vključno 10MW | E20: SE23 | F20: 289.98 | G20: 0 | H20: 289.98 | I20: 289.98 | J20: =IF(H20=I20,"OK","razlika") -> OK | K20: 289.98 | L20: 0 | M20: 289.98 | N20: 289.98 | O20: 0 | P20: 289.98 | Q20: 289.98 | R20: 0 | S20: 289.98 | T20: 289.98 | U20: 0 | V20: 289.98 | W20: 289.98 | X20: 0 | Y20: 289.98 | Z20: 289.98 | AA20: 0 | AB20: 289.98 | AC20: 289.98 | AD20: 0 | AE20: 289.98 | AF20: 289.98 | AG20: 0 | AH20: 289.98 | AI20: 289.98 | AJ20: 0 | AK20: 289.98 | AL20: 0.91 | AM20: 289.98 | AN20: =I20 -> 289.98 | AO20: OK | AP20: 230.83 | AQ20: 230.83 | AR20: OK | AS20: =K20+L20 -> 289.98 | AT20: 241.38 | AU20: =N20+O20 -> 289.98 | AV20: 241.63 | AW20: =Q20+R20 -> 289.98 | AX20: 239.21 | AY20: =T20+U20 -> 289.98 | AZ20: 243.88 | BA20: =W20+X20 -> 289.98 | BB20: 250.57 | BC20: =+Z20+AA20 -> 289.98 | BD20: 253.9 | BE20: =+AC20+AD20 -> 289.98 | BF20: 256.41 | BG20: =+AH20 -> 289.98 | BH20: 251.81 | BI20: =+AK20 -> 289.98 | BJ20: 251.49 | BL20: 0 | BM20: -2.42 | BN20: 0 | BO20: 4.67 | BP20: 0 | BQ20: 6.69 | BR20: 0 | BS20: 3.33 | BT20: 0 | BU20: 2.51 | BV20: 0 | BW20: -4.6 | BX20: 0 | BY20: -0.32
A21: SE24-2009 | B21: 3.2 Sončne elektrarne - samostojni objekti 2009 | D21: velika - nad 10MW do vključno 125MW | E21: SE24 | F21: 269.22 | G21: 0 | H21: 269.22 | I21: 269.22 | J21: =IF(H21=I21,"OK","razlika") -> OK | K21: 269.22 | L21: 0 | M21: 269.22 | N21: 269.22 | O21: 0 | P21: 269.22 | Q21: 269.22 | R21: 0 | S21: 269.22 | T21: 269.22 | U21: 0 | V21: 269.22 | W21: 269.22 | X21: 0 | Y21: 269.22 | Z21: 269.22 | AA21: 0 | AB21: 269.22 | AC21: 269.22 | AD21: 0 | AE21: 269.22 | AF21: 269.22 | AG21: 0 | AH21: 269.22 | AI21: 269.22 | AJ21: 0 | AK21: 269.22 | AL21: 1 | AM21: (ni ZO) | AN21: (ni ZO) | AO21: OK | AP21: 204.22 | AQ21: 204.22 | AR21: OK | AS21: (ni ZO) | AT21: 215.81 | AU21: (ni ZO) | AV21: 216.09 | AW21: (ni ZO) | AX21: 213.43 | AY21: (ni ZO) | AZ21: 218.56 | BA21: (ni ZO) | BB21: 225.91 | BC21: (ni ZO) | BD21: 229.57 | BE21: (ni ZO) | BF21: 232.33 | BG21: (ni ZO) | BH21: 227.28 | BI21: (ni ZO) | BJ21: 226.92 | BL21: (ni ZO) | BM21: -2.66 | BN21: (ni ZO) | BO21: 5.13 | BP21: (ni ZO) | BQ21: 7.35 | BR21: (ni ZO) | BS21: 3.66 | BT21: (ni ZO) | BU21: 2.76 | BV21: (ni ZO) | BW21: -5.05 | BX21: (ni ZO) | BY21: -0.36
A22: SE11-2010 | B22: 3.1 Sončne elektrarne - na stavbah 2010 | C22: 3.1 Sončne elektrarne - na stavbah 2010 | D22: mikro - manjše od 50kW | E22: SE11 | K22: =ROUND(F10*0.93,2) -> 386.38 | L22: 0 | M22: 386.38 | N22: =K22 -> 386.38 | O22: 0 | P22: 386.38 | Q22: =K22 -> 386.38 | R22: 0 | S22: 386.38 | T22: =K22 -> 386.38 | U22: 0 | V22: 386.38 | W22: =K22 -> 386.38 | X22: 0 | Y22: 386.38 | Z22: 386.38 | AA22: 0 | AB22: 386.38 | AC22: 386.38 | AD22: 0 | AE22: 386.38 | AF22: 386.38 | AG22: 0 | AH22: 386.38 | AI22: 386.38 | AJ22: 0 | AK22: 386.38 | AL22: 0.88 | AS22: =K22+L22 -> 386.38 | AT22: 339.38 | AU22: =N22+O22 -> 386.38 | AV22: 339.63 | AW22: =Q22+R22 -> 386.38 | AX22: 337.28 | AY22: =T22+U22 -> 386.38 | AZ22: 341.8 | BA22: =W22+X22 -> 386.38 | BB22: 348.27 | BC22: =+Z22+AA22 -> 386.38 | BD22: 351.49 | BE22: =+AC22+AD22 -> 386.38 | BF22: 353.92 | BG22: =+AH22 -> 386.38 | BH22: 349.47 | BI22: =+AK22 -> 386.38 | BJ22: 349.16 | BL22: 0 | BM22: -2.35 | BN22: =AY22-AW22 -> 0 | BO22: 4.52 | BP22: =BA22-AY22 -> 0 | BQ22: 6.47 | BR22: 0 | BS22: 3.22 | BT22: 0 | BU22: 2.43 | BV22: =BG22-BE22 -> 0 | BW22: -4.45 | BX22: =BI22-BG22 -> 0 | BY22: -0.31
A23: SE12-2010 | B23: 3.1 Sončne elektrarne - na stavbah 2010 | D23: mala - manjše od 1MW | E23: SE12 | K23: =ROUND(F11*0.93,2) -> 353.42 | L23: 0 | M23: 353.42 | N23: =K23 -> 353.42 | O23: 0 | P23: 353.42 | Q23: 353.42 | R23: 0 | S23: 353.42 | T23: 353.42 | U23: 0 | V23: 353.42 | W23: 353.42 | X23: 0 | Y23: 353.42 | Z23: 353.42 | AA23: 0 | AB23: 353.42 | AC23: 353.42 | AD23: 0 | AE23: 353.42 | AF23: 353.42 | AG23: 0 | AH23: 353.42 | AI23: 353.42 | AJ23: 0 | AK23: 353.42 | AL23: 0.88 | AS23: =K23+L23 -> 353.42 | AT23: 306.42 | AU23: =N23+O23 -> 353.42 | AV23: 306.67 | AW23: =Q23+R23 -> 353.42 | AX23: 304.32 | AY23: =T23+U23 -> 353.42 | AZ23: 308.84 | BA23: =W23+X23 -> 353.42 | BB23: 315.31 | BC23: =+Z23+AA23 -> 353.42 | BD23: 318.53 | BE23: =+AC23+AD23 -> 353.42 | BF23: 320.96 | BG23: =+AH23 -> 353.42 | BH23: 316.51 | BI23: =+AK23 -> 353.42 | BJ23: 316.2 | BL23: 0 | BM23: -2.35 | BN23: 0 | BO23: 4.52 | BP23: 0 | BQ23: 6.47 | BR23: 0 | BS23: 3.22 | BT23: 0 | BU23: 2.43 | BV23: 0 | BW23: -4.45 | BX23: 0 | BY23: -0.31
A24: SE13-2010 | B24: 3.1 Sončne elektrarne - na stavbah 2010 | D24: srednja - od 1MW do vključno 10MW | E24: SE13 | K24: 293.28 | L24: 0 | M24: 293.28 | N24: 293.28 | O24: 0 | P24: 293.28 | Q24: 293.28 | R24: 0 | S24: 293.28 | T24: 293.28 | U24: 0 | V24: 293.28 | W24: 293.28 | X24: 0 | Y24: 293.28 | Z24: 293.28 | AA24: 0 | AB24: 293.28 | AC24: 293.28 | AD24: 0 | AE24: 293.28 | AF24: 293.28 | AG24: 0 | AH24: 293.28 | AI24: 293.28 | AJ24: 0 | AK24: 293.28 | AL24: 0.91 | AS24: =K24+L24 -> 293.28 | AT24: 244.68 | AU24: =N24+O24 -> 293.28 | AV24: 244.93 | AW24: =Q24+R24 -> 293.28 | AX24: 242.51 | AY24: =T24+U24 -> 293.28 | AZ24: 247.18 | BA24: =W24+X24 -> 293.28 | BB24: 253.87 | BC24: =+Z24+AA24 -> 293.28 | BD24: 257.2 | BE24: =+AC24+AD24 -> 293.28 | BF24: 259.71 | BG24: =+AH24 -> 293.28 | BH24: 255.11 | BI24: =+AK24 -> 293.28 | BJ24: 254.79 | BL24: 0 | BM24: -2.42 | BN24: 0 | BO24: 4.67 | BP24: 0 | BQ24: 6.69 | BR24: 0 | BS24: 3.33 | BT24: 0 | BU24: 2.51 | BV24: 0 | BW24: -4.6 | BX24: 0 | BY24: -0.32
A25: SE14-2010 | B25: 3.1 Sončne elektrarne - na stavbah 2010 | D25: velika - nad 10MW do vključno 125MW | E25: SE14 | K25: 261.06 | L25: 0 | M25: 261.06 | N25: 261.06 | O25: 0 | P25: 261.06 | Q25: 261.06 | R25: 0 | S25: 261.06 | T25: 261.06 | U25: 0 | V25: 261.06 | W25: 261.06 | X25: 0 | Y25: 261.06 | Z25: 261.06 | AA25: 0 | AB25: 261.06 | AC25: 261.06 | AD25: 0 | AE25: 261.06 | AF25: 261.06 | AG25: 0 | AH25: 261.06 | AI25: 261.06 | AJ25: 0 | AK25: 261.06 | AL25: 1 | AS25: (ni ZO) | AT25: 207.65 | AU25: (ni ZO) | AV25: 207.93 | AW25: (ni ZO) | AX25: 205.27 | AY25: (ni ZO) | AZ25: 210.4 | BA25: (ni ZO) | BB25: 217.75 | BC25: (ni ZO) | BD25: 221.41 | BE25: (ni ZO) | BF25: 224.17 | BG25: (ni ZO) | BH25: 219.12 | BI25: (ni ZO) | BJ25: 218.76 | BL25: (ni ZO) | BM25: -2.66 | BN25: (ni ZO) | BO25: 5.13 | BP25: (ni ZO) | BQ25: 7.35 | BR25: (ni ZO) | BS25: 3.66 | BT25: (ni ZO) | BU25: 2.76 | BV25: (ni ZO) | BW25: -5.05 | BX25: (ni ZO) | BY25: -0.36
C26: 3.1 INT Sončne elektrarne - integrirane 2010 | D26: mikro - manjše od 50kW | K26: =ROUND(K22*1.15,2) -> 444.34 | L26: 0 | M26: 444.34 | N26: 444.34 | O26: 0 | P26: 444.34 | Q26: 444.34 | R26: 0 | S26: 444.34 | T26: 444.34 | U26: 0 | V26: 444.34 | W26: 444.34 | X26: 0 | Y26: 444.34 | Z26: 444.34 | AA26: 0 | AB26: 444.34 | AC26: 444.34 | AD26: 0 | AE26: 444.34 | AF26: 444.34 | AG26: 0 | AH26: 444.34 | AI26: 444.34 | AJ26: 0 | AK26: 444.34 | AL26: 0.88 | AS26: =K26+L26 -> 444.34 | AT26: 397.34 | AU26: =N26+O26 -> 444.34 | AV26: 397.59 | AW26: =Q26+R26 -> 444.34 | AX26: 395.24 | AY26: =T26+U26 -> 444.34 | AZ26: 399.76 | BA26: =W26+X26 -> 444.34 | BB26: 406.23 | BC26: =+Z26+AA26 -> 444.34 | BD26: 409.45 | BE26: =+AC26+AD26 -> 444.34 | BF26: 411.88 | BG26: =+AH26 -> 444.34 | BH26: 407.43 | BI26: =+AK26 -> 444.34 | BJ26: 407.12 | BL26: 0 | BM26: -2.35 | BN26: =AY26-AW26 -> 0 | BO26: 4.52 | BP26: =BA26-AY26 -> 0 | BQ26: 6.47 | BR26: 0 | BS26: 3.22 | BT26: 0 | BU26: 2.43 | BV26: =BG26-BE26 -> 0 | BW26: -4.45 | BX26: =BI26-BG26 -> 0 | BY26: -0.31
D27: mala - manjše od 1MW | K27: =ROUND(K23*1.15,2) -> 406.43 | L27: 0 | M27: 406.43 | N27: 406.43 | O27: 0 | P27: 406.43 | Q27: 406.43 | R27: 0 | S27: 406.43 | T27: 406.43 | U27: 0 | V27: 406.43 | W27: 406.43 | X27: 0 | Y27: 406.43 | Z27: 406.43 | AA27: 0 | AB27: 406.43 | AC27: 406.43 | AD27: 0 | AE27: 406.43 | AF27: 406.43 | AG27: 0 | AH27: 406.43 | AI27: 406.43 | AJ27: 0 | AK27: 406.43 | AL27: 0.88 | AS27: =K27+L27 -> 406.43 | AT27: 359.43 | AU27: =N27+O27 -> 406.43 | AV27: 359.68 | AW27: =Q27+R27 -> 406.43 | AX27: 357.33 | AY27: =T27+U27 -> 406.43 | AZ27: 361.85 | BA27: =W27+X27 -> 406.43 | BB27: 368.32 | BC27: =+Z27+AA27 -> 406.43 | BD27: 371.54 | BE27: =+AC27+AD27 -> 406.43 | BF27: 373.97 | BG27: =+AH27 -> 406.43 | BH27: 369.52 | BI27: =+AK27 -> 406.43 | BJ27: 369.21 | BL27: 0 | BM27: -2.35 | BN27: 0 | BO27: 4.52 | BP27: 0 | BQ27: 6.47 | BR27: 0 | BS27: 3.22 | BT27: 0 | BU27: 2.43 | BV27: 0 | BW27: -4.45 | BX27: 0 | BY27: -0.31
D28: srednja - od 1MW do vključno 10MW | K28: 337.27 | L28: 0 | M28: 337.27 | N28: 337.27 | O28: 0 | P28: 337.27 | Q28: 337.27 | R28: 0 | S28: 337.27 | T28: 337.27 | U28: 0 | V28: 337.27 | W28: 337.27 | X28: 0 | Y28: 337.27 | Z28: 337.27 | AA28: 0 | AB28: 337.27 | AC28: 337.27 | AD28: 0 | AE28: 337.27 | AF28: 337.27 | AG28: 0 | AH28: 337.27 | AI28: 337.27 | AJ28: 0 | AK28: 337.27 | AL28: 0.91 | AS28: =K28+L28 -> 337.27 | AT28: 288.67 | AU28: =N28+O28 -> 337.27 | AV28: 288.92 | AW28: =Q28+R28 -> 337.27 | AX28: 286.5 | AY28: =T28+U28 -> 337.27 | AZ28: 291.17 | BA28: =W28+X28 -> 337.27 | BB28: 297.86 | BC28: =+Z28+AA28 -> 337.27 | BD28: 301.19 | BE28: =+AC28+AD28 -> 337.27 | BF28: 303.7 | BG28: =+AH28 -> 337.27 | BH28: 299.1 | BI28: =+AK28 -> 337.27 | BJ28: 298.78 | BL28: 0 | BM28: -2.42 | BN28: 0 | BO28: 4.67 | BP28: 0 | BQ28: 6.69 | BR28: 0 | BS28: 3.33 | BT28: 0 | BU28: 2.51 | BV28: 0 | BW28: -4.6 | BX28: 0 | BY28: -0.32
D29: velika - nad 10MW do vključno 125MW | K29: 300.22 | L29: 0 | M29: 300.22 | N29: 300.22 | O29: 0 | P29: 300.22 | Q29: 300.22 | R29: 0 | S29: 300.22 | T29: 300.22 | U29: 0 | V29: 300.22 | W29: 300.22 | X29: 0 | Y29: 300.22 | Z29: 300.22 | AA29: 0 | AB29: 300.22 | AC29: 300.22 | AD29: 0 | AE29: 300.22 | AF29: 300.22 | AG29: 0 | AH29: 300.22 | AI29: 300.22 | AJ29: 0 | AK29: 300.22 | AL29: 1 | AS29: (ni ZO) | AT29: 246.81 | AU29: (ni ZO) | AV29: 247.09 | AW29: (ni ZO) | AX29: 244.43 | AY29: (ni ZO) | AZ29: 249.56 | BA29: (ni ZO) | BB29: 256.91 | BC29: (ni ZO) | BD29: 260.57 | BE29: (ni ZO) | BF29: 263.33 | BG29: (ni ZO) | BH29: 258.28 | BI29: (ni ZO) | BJ29: 257.92 | BL29: (ni ZO) | BM29: -2.66 | BN29: (ni ZO) | BO29: 5.13 | BP29: (ni ZO) | BQ29: 7.35 | BR29: (ni ZO) | BS29: 3.66 | BT29: (ni ZO) | BU29: 2.76 | BV29: (ni ZO) | BW29: -5.05 | BX29: (ni ZO) | BY29: -0.36
A30: SE21-2010 | B30: 3.2 Sončne elektrarne - samostojni objekti 2010 | C30: 3.2 Sončne elektrarne - samostojni objekti 2010 | D30: mikro - manjše od 50kW | E30: SE21 | K30: 363.09 | L30: 0 | M30: 363.09 | N30: 363.09 | O30: 0 | P30: 363.09 | Q30: 363.09 | R30: 0 | S30: 363.09 | T30: 363.09 | U30: 0 | V30: 363.09 | W30: 363.09 | X30: 0 | Y30: 363.09 | Z30: 363.09 | AA30: 0 | AB30: 363.09 | AC30: 363.09 | AD30: 0 | AE30: 363.09 | AF30: 363.09 | AG30: 0 | AH30: 363.09 | AI30: 363.09 | AJ30: 0 | AK30: 363.09 | AL30: 0.88 | AS30: =K30+L30 -> 363.09 | AT30: 316.09 | AU30: =N30+O30 -> 363.09 | AV30: 316.34 | AW30: =Q30+R30 -> 363.09 | AX30: 313.99 | AY30: =T30+U30 -> 363.09 | AZ30: 318.51 | BA30: =W30+X30 -> 363.09 | BB30: 324.98 | BC30: =+Z30+AA30 -> 363.09 | BD30: 328.2 | BE30: =+AC30+AD30 -> 363.09 | BF30: 330.63 | BG30: =+AH30 -> 363.09 | BH30: 326.18 | BI30: =+AK30 -> 363.09 | BJ30: 325.87 | BL30: 0 | BM30: -2.35 | BN30: =AY30-AW30 -> 0 | BO30: 4.52 | BP30: =BA30-AY30 -> 0 | BQ30: 6.47 | BR30: 0 | BS30: 3.22 | BT30: 0 | BU30: 2.43 | BV30: =BG30-BE30 -> 0 | BW30: -4.45 | BX30: =BI30-BG30 -> 0 | BY30: -0.31
A31: SE22-2010 | B31: 3.2 Sončne elektrarne - samostojni objekti 2010 | D31: mala - manjše od 1MW | E31: SE22 | K31: 334.53 | L31: 0 | M31: 334.53 | N31: 334.53 | O31: 0 | P31: 334.53 | Q31: 334.53 | R31: 0 | S31: 334.53 | T31: 334.53 | U31: 0 | V31: 334.53 | W31: 334.53 | X31: 0 | Y31: 334.53 | Z31: 334.53 | AA31: 0 | AB31: 334.53 | AC31: 334.53 | AD31: 0 | AE31: 334.53 | AF31: 334.53 | AG31: 0 | AH31: 334.53 | AI31: 334.53 | AJ31: 0 | AK31: 334.53 | AL31: 0.88 | AS31: =K31+L31 -> 334.53 | AT31: 287.53 | AU31: =N31+O31 -> 334.53 | AV31: 287.78 | AW31: =Q31+R31 -> 334.53 | AX31: 285.43 | AY31: =T31+U31 -> 334.53 | AZ31: 289.95 | BA31: =W31+X31 -> 334.53 | BB31: 296.42 | BC31: =+Z31+AA31 -> 334.53 | BD31: 299.64 | BE31: =+AC31+AD31 -> 334.53 | BF31: 302.07 | BG31: =+AH31 -> 334.53 | BH31: 297.62 | BI31: 334.53 | BJ31: 297.31 | BL31: 0 | BM31: -2.35 | BN31: 0 | BO31: 4.52 | BP31: 0 | BQ31: 6.47 | BR31: 0 | BS31: 3.22 | BT31: 0 | BU31: 2.43 | BV31: 0 | BW31: -4.45 | BX31: 0 | BY31: -0.31
A32: SE23-2010 | B32: 3.2 Sončne elektrarne - samostojni objekti 2010 | D32: srednja - od 1MW do vključno 10MW | E32: SE23 | K32: 269.68 | L32: 0 | M32: 269.68 | N32: 269.68 | O32: 0 | P32: 269.68 | Q32: 269.68 | R32: 0 | S32: 269.68 | T32: 269.68 | U32: 0 | V32: 269.68 | W32: 269.68 | X32: 0 | Y32: 269.68 | Z32: 269.68 | AA32: 0 | AB32: 269.68 | AC32: 269.68 | AD32: 0 | AE32: 269.68 | AF32: 269.68 | AG32: 0 | AH32: 269.68 | AI32: 269.68 | AJ32: 0 | AK32: 269.68 | AL32: 0.91 | AS32: =K32+L32 -> 269.68 | AT32: 221.08 | AU32: =N32+O32 -> 269.68 | AV32: 221.33 | AW32: =Q32+R32 -> 269.68 | AX32: 218.91 | AY32: =T32+U32 -> 269.68 | AZ32: 223.58 | BA32: =W32+X32 -> 269.68 | BB32: 230.27 | BC32: =+Z32+AA32 -> 269.68 | BD32: 233.6 | BE32: =+AC32+AD32 -> 269.68 | BF32: 236.11 | BG32: =+AH32 -> 269.68 | BH32: 231.51 | BI32: 269.68 | BJ32: 231.19 | BL32: 0 | BM32: -2.42 | BN32: 0 | BO32: 4.67 | BP32: 0 | BQ32: 6.69 | BR32: 0 | BS32: 3.33 | BT32: 0 | BU32: 2.51 | BV32: 0 | BW32: -4.6 | BX32: 0 | BY32: -0.32
A33: SE24-2010 | B33: 3.2 Sončne elektrarne - samostojni objekti 2010 | D33: velika - nad 10MW do vključno 125MW | E33: SE24 | K33: 250.37 | L33: 0 | M33: 250.37 | N33: 250.37 | O33: 0 | P33: 250.37 | Q33: 250.37 | R33: 0 | S33: 250.37 | T33: =K33 -> 250.37 | U33: 0 | V33: 250.37 | W33: =K33 -> 250.37 | X33: 0 | Y33: 250.37 | Z33: 250.37 | AA33: 0 | AB33: 250.37 | AC33: 250.37 | AD33: 0 | AE33: 250.37 | AF33: 250.37 | AG33: 0 | AH33: 250.37 | AI33: 250.37 | AJ33: 0 | AK33: 250.37 | AL33: 1 | AS33: (ni ZO) | AT33: 196.96 | AU33: (ni ZO) | AV33: 197.24 | AW33: (ni ZO) | AX33: 194.58 | AY33: (ni ZO) | AZ33: 199.71 | BA33: (ni ZO) | BB33: 207.06 | BC33: (ni ZO) | BD33: 210.72 | BE33: (ni ZO) | BF33: 213.48 | BG33: (ni ZO) | BH33: 208.43 | BI33: (ni ZO) | BJ33: 208.07 | BL33: (ni ZO) | BM33: -2.66 | BN33: (ni ZO) | BO33: 5.13 | BP33: (ni ZO) | BQ33: 7.35 | BR33: (ni ZO) | BS33: 3.66 | BT33: (ni ZO) | BU33: 2.76 | BV33: (ni ZO) | BW33: -5.05 | BX33: (ni ZO) | BY33: -0.36
A34: SE11-2011 | B34: 3.1 Sončne elektrarne - na stavbah 2011 | C34: 3.1 Sončne elektrarne - na stavbah 2011 | D34: mikro - manjše od 50kW | E34: SE11 | N34: =ROUND(F10*0.8,2) -> 332.37 | O34: 0 | P34: 332.37 | Q34: =N34 -> 332.37 | R34: 0 | S34: 332.37 | T34: =N34 -> 332.37 | U34: 0 | V34: 332.37 | W34: =N34 -> 332.37 | X34: 0 | Y34: 332.37 | Z34: 332.37 | AA34: 0 | AB34: 332.37 | AC34: 332.37 | AD34: 0 | AE34: 332.37 | AF34: 332.37 | AG34: 0 | AH34: 332.37 | AI34: 332.37 | AJ34: 0 | AK34: 332.37 | AL34: 0.88 | AU34: =N34+O34 -> 332.37 | AV34: 285.62 | AW34: =Q34+R34 -> 332.37 | AX34: =ROUND((Q34+R34)-AL34*$K$326,2) -> 283.27 | AY34: =T34+U34 -> 332.37 | AZ34: =ROUND((T34+U34)-AL34*$J$326,2) -> 287.79 | BA34: =W34+X34 -> 332.37 | BB34: 294.26 | BC34: =+Z34+AA34 -> 332.37 | BD34: 297.48 | BE34: =+AC34+AD34 -> 332.37 | BF34: 299.91 | BG34: =+AH34 -> 332.37 | BH34: 295.46 | BI34: =+AK34 -> 332.37 | BJ34: 295.15 | BL34: 0 | BM34: -2.35 | BN34: =AY34-AW34 -> 0 | BO34: 4.52 | BP34: =BA34-AY34 -> 0 | BQ34: 6.47 | BR34: 0 | BS34: 3.22 | BT34: 0 | BU34: 2.43 | BV34: =BG34-BE34 -> 0 | BW34: -4.45 | BX34: =BI34-BG34 -> 0 | BY34: -0.31
A35: SE12-2011 | B35: 3.1 Sončne elektrarne - na stavbah 2011 | D35: mala - manjše od 1MW | E35: SE12 | N35: 304.02 | O35: 0 | P35: 304.02 | Q35: =N35 -> 304.02 | R35: 0 | S35: 304.02 | T35: 304.02 | U35: 0 | V35: 304.02 | W35: 304.02 | X35: 0 | Y35: 304.02 | Z35: 304.02 | AA35: 0 | AB35: 304.02 | AC35: 304.02 | AD35: 0 | AE35: 304.02 | AF35: 304.02 | AG35: 0 | AH35: 304.02 | AI35: 304.02 | AJ35: 0 | AK35: 304.02 | AL35: 0.88 | AU35: =N35+O35 -> 304.02 | AV35: 257.27 | AW35: =Q35+R35 -> 304.02 | AX35: 254.92 | AY35: =T35+U35 -> 304.02 | AZ35: 259.44 | BA35: =W35+X35 -> 304.02 | BB35: 265.91 | BC35: =+Z35+AA35 -> 304.02 | BD35: 269.13 | BE35: =+AC35+AD35 -> 304.02 | BF35: 271.56 | BG35: =+AH35 -> 304.02 | BH35: 267.11 | BI35: 304.02 | BJ35: 266.8 | BL35: 0 | BM35: -2.35 | BN35: 0 | BO35: 4.52 | BP35: 0 | BQ35: 6.47 | BR35: 0 | BS35: 3.22 | BT35: 0 | BU35: 2.43 | BV35: 0 | BW35: -4.45 | BX35: 0 | BY35: -0.31
A36: SE13-2011 | B36: 3.1 Sončne elektrarne - na stavbah 2011 | D36: srednja - od 1MW do vključno 10MW | E36: SE13 | N36: 252.29 | O36: 0 | P36: 252.29 | Q36: 252.29 | R36: 0 | S36: 252.29 | T36: 252.29 | U36: 0 | V36: 252.29 | W36: 252.29 | X36: 0 | Y36: 252.29 | Z36: 252.29 | AA36: 0 | AB36: 252.29 | AC36: 252.29 | AD36: 0 | AE36: 252.29 | AF36: 252.29 | AG36: 0 | AH36: 252.29 | AI36: 252.29 | AJ36: 0 | AK36: 252.29 | AL36: 0.91 | AU36: =N36+O36 -> 252.29 | AV36: 203.94 | AW36: =Q36+R36 -> 252.29 | AX36: 201.52 | AY36: =T36+U36 -> 252.29 | AZ36: 206.19 | BA36: =W36+X36 -> 252.29 | BB36: 212.88 | BC36: =+Z36+AA36 -> 252.29 | BD36: 216.21 | BE36: =+AC36+AD36 -> 252.29 | BF36: 218.72 | BG36: =+AH36 -> 252.29 | BH36: 214.12 | BI36: 252.29 | BJ36: 213.8 | BL36: 0 | BM36: -2.42 | BN36: 0 | BO36: 4.67 | BP36: 0 | BQ36: 6.69 | BR36: 0 | BS36: 3.33 | BT36: 0 | BU36: 2.51 | BV36: 0 | BW36: -4.6 | BX36: 0 | BY36: -0.32
A37: SE14-2011 | B37: 3.1 Sončne elektrarne - na stavbah 2011 | D37: velika - nad 10MW do vključno 125MW | E37: SE14 | N37: 224.57 | O37: 0 | P37: 224.57 | Q37: 224.57 | R37: 0 | S37: 224.57 | T37: 224.57 | U37: 0 | V37: 224.57 | W37: 224.57 | X37: 0 | Y37: 224.57 | Z37: 224.57 | AA37: 0 | AB37: 224.57 | AC37: 224.57 | AD37: 0 | AE37: 224.57 | AF37: 224.57 | AG37: 0 | AH37: 224.57 | AI37: 224.57 | AJ37: 0 | AK37: 224.57 | AL37: 1 | AU37: (ni ZO) | AV37: 171.44 | AW37: (ni ZO) | AX37: 168.78 | AY37: (ni ZO) | AZ37: 173.91 | BA37: (ni ZO) | BB37: 181.26 | BC37: (ni ZO) | BD37: 184.92 | BE37: (ni ZO) | BF37: 187.68 | BG37: (ni ZO) | BH37: 182.63 | BI37: (ni ZO) | BJ37: 182.27 | BL37: (ni ZO) | BM37: -2.66 | BN37: (ni ZO) | BO37: 5.13 | BP37: (ni ZO) | BQ37: 7.35 | BR37: (ni ZO) | BS37: 3.66 | BT37: (ni ZO) | BU37: 2.76 | BV37: (ni ZO) | BW37: -5.05 | BX37: (ni ZO) | BY37: -0.36
C38: 3.1 INT Sončne elektrarne - integrirane 2011 | D38: mikro - manjše od 50kW | N38: =ROUND(N34*1.15,2) -> 382.23 | O38: 0 | P38: 382.23 | Q38: 382.23 | R38: 0 | S38: 382.23 | T38: 382.23 | U38: 0 | V38: 382.23 | W38: 382.23 | X38: 0 | Y38: 382.23 | Z38: 382.23 | AA38: 0 | AB38: 382.23 | AC38: 382.23 | AD38: 0 | AE38: 382.23 | AF38: 382.23 | AG38: 0 | AH38: 382.23 | AI38: 382.23 | AJ38: 0 | AK38: 382.23 | AL38: 0.88 | AU38: =N38+O38 -> 382.23 | AV38: 335.48 | AW38: =Q38+R38 -> 382.23 | AX38: 333.13 | AY38: =T38+U38 -> 382.23 | AZ38: 337.65 | BA38: =W38+X38 -> 382.23 | BB38: 344.12 | BC38: =+Z38+AA38 -> 382.23 | BD38: 347.34 | BE38: =+AC38+AD38 -> 382.23 | BF38: 349.77 | BG38: =+AH38 -> 382.23 | BH38: 345.32 | BI38: =+AK38 -> 382.23 | BJ38: 345.01 | BL38: 0 | BM38: -2.35 | BN38: =AY38-AW38 -> 0 | BO38: 4.52 | BP38: =BA38-AY38 -> 0 | BQ38: 6.47 | BR38: 0 | BS38: 3.22 | BT38: 0 | BU38: 2.43 | BV38: =BG38-BE38 -> 0 | BW38: -4.45 | BX38: =BI38-BG38 -> 0 | BY38: -0.31
D39: mala - manjše od 1MW | N39: =ROUND(N35*1.15,2) -> 349.62 | O39: 0 | P39: 349.62 | Q39: 349.62 | R39: 0 | S39: 349.62 | T39: 349.62 | U39: 0 | V39: 349.62 | W39: 349.62 | X39: 0 | Y39: 349.62 | Z39: 349.62 | AA39: 0 | AB39: 349.62 | AC39: 349.62 | AD39: 0 | AE39: 349.62 | AF39: 349.62 | AG39: 0 | AH39: 349.62 | AI39: 349.62 | AJ39: 0 | AK39: 349.62 | AL39: 0.88 | AU39: =N39+O39 -> 349.62 | AV39: 302.87 | AW39: =Q39+R39 -> 349.62 | AX39: 300.52 | AY39: =T39+U39 -> 349.62 | AZ39: 305.04 | BA39: =W39+X39 -> 349.62 | BB39: 311.51 | BC39: =+Z39+AA39 -> 349.62 | BD39: 314.73 | BE39: =+AC39+AD39 -> 349.62 | BF39: 317.16 | BG39: =+AH39 -> 349.62 | BH39: 312.71 | BI39: 349.62 | BJ39: 312.4 | BL39: 0 | BM39: -2.35 | BN39: 0 | BO39: 4.52 | BP39: 0 | BQ39: 6.47 | BR39: 0 | BS39: 3.22 | BT39: 0 | BU39: 2.43 | BV39: 0 | BW39: -4.45 | BX39: 0 | BY39: -0.31
D40: srednja - od 1MW do vključno 10MW | N40: 290.13 | O40: 0 | P40: 290.13 | Q40: 290.13 | R40: 0 | S40: 290.13 | T40: 290.13 | U40: 0 | V40: 290.13 | W40: 290.13 | X40: 0 | Y40: 290.13 | Z40: 290.13 | AA40: 0 | AB40: 290.13 | AC40: 290.13 | AD40: 0 | AE40: 290.13 | AF40: 290.13 | AG40: 0 | AH40: 290.13 | AI40: 290.13 | AJ40: 0 | AK40: 290.13 | AL40: 0.91 | AU40: =N40+O40 -> 290.13 | AV40: 241.78 | AW40: =Q40+R40 -> 290.13 | AX40: 239.36 | AY40: =T40+U40 -> 290.13 | AZ40: 244.03 | BA40: =W40+X40 -> 290.13 | BB40: 250.72 | BC40: =+Z40+AA40 -> 290.13 | BD40: 254.05 | BE40: =+AC40+AD40 -> 290.13 | BF40: 256.56 | BG40: =+AH40 -> 290.13 | BH40: 251.96 | BI40: 290.13 | BJ40: 251.64 | BL40: 0 | BM40: -2.42 | BN40: 0 | BO40: 4.67 | BP40: 0 | BQ40: 6.69 | BR40: 0 | BS40: 3.33 | BT40: 0 | BU40: 2.51 | BV40: 0 | BW40: -4.6 | BX40: 0 | BY40: -0.32
D41: velika - nad 10MW do vključno 125MW | N41: 258.26 | O41: 0 | P41: 258.26 | Q41: 258.26 | R41: 0 | S41: 258.26 | T41: 258.26 | U41: 0 | V41: 258.26 | W41: 258.26 | X41: 0 | Y41: 258.26 | Z41: 258.26 | AA41: 0 | AB41: 258.26 | AC41: 258.26 | AD41: 0 | AE41: 258.26 | AF41: 258.26 | AG41: 0 | AH41: 258.26 | AI41: 258.26 | AJ41: 0 | AK41: 258.26 | AL41: 1 | AU41: (ni ZO) | AV41: 205.13 | AW41: (ni ZO) | AX41: 202.47 | AY41: (ni ZO) | AZ41: 207.6 | BA41: (ni ZO) | BB41: 214.95 | BC41: (ni ZO) | BD41: 218.61 | BE41: (ni ZO) | BF41: 221.37 | BG41: (ni ZO) | BH41: 216.32 | BI41: (ni ZO) | BJ41: 215.96 | BL41: (ni ZO) | BM41: -2.66 | BN41: (ni ZO) | BO41: 5.13 | BP41: (ni ZO) | BQ41: 7.35 | BR41: (ni ZO) | BS41: 3.66 | BT41: (ni ZO) | BU41: 2.76 | BV41: (ni ZO) | BW41: -5.05 | BX41: (ni ZO) | BY41: -0.36
A42: SE21-2011 | B42: 3.2 Sončne elektrarne - samostojni objekti 2011 | C42: 3.2 Sončne elektrarne - samostojni objekti 2011 | D42: mikro - manjše od 50kW | E42: SE21 | N42: 312.34 | O42: 0 | P42: 312.34 | Q42: 312.34 | R42: 0 | S42: 312.34 | T42: 312.34 | U42: 0 | V42: 312.34 | W42: 312.34 | X42: 0 | Y42: 312.34 | Z42: 312.34 | AA42: 0 | AB42: 312.34 | AC42: 312.34 | AD42: 0 | AE42: 312.34 | AF42: 312.34 | AG42: 0 | AH42: 312.34 | AI42: 312.34 | AJ42: 0 | AK42: 312.34 | AL42: 0.88 | AU42: =N42+O42 -> 312.34 | AV42: 265.59 | AW42: =Q42+R42 -> 312.34 | AX42: 263.24 | AY42: =T42+U42 -> 312.34 | AZ42: 267.76 | BA42: =W42+X42 -> 312.34 | BB42: 274.23 | BC42: =+Z42+AA42 -> 312.34 | BD42: 277.45 | BE42: =+AC42+AD42 -> 312.34 | BF42: 279.88 | BG42: =+AH42 -> 312.34 | BH42: 275.43 | BI42: =+AK42 -> 312.34 | BJ42: 275.12 | BL42: 0 | BM42: -2.35 | BN42: =AY42-AW42 -> 0 | BO42: 4.52 | BP42: =BA42-AY42 -> 0 | BQ42: 6.47 | BR42: 0 | BS42: 3.22 | BT42: 0 | BU42: 2.43 | BV42: =BG42-BE42 -> 0 | BW42: -4.45 | BX42: =BI42-BG42 -> 0 | BY42: -0.31
A43: SE22-2011 | B43: 3.2 Sončne elektrarne - samostojni objekti 2011 | D43: mala - manjše od 1MW | E43: SE22 | N43: 287.77 | O43: 0 | P43: 287.77 | Q43: 287.77 | R43: 0 | S43: 287.77 | T43: 287.77 | U43: 0 | V43: 287.77 | W43: 287.77 | X43: 0 | Y43: 287.77 | Z43: 287.77 | AA43: 0 | AB43: 287.77 | AC43: 287.77 | AD43: 0 | AE43: 287.77 | AF43: 287.77 | AG43: 0 | AH43: 287.77 | AI43: 287.77 | AJ43: 0 | AK43: 287.77 | AL43: 0.88 | AU43: =N43+O43 -> 287.77 | AV43: 241.02 | AW43: =Q43+R43 -> 287.77 | AX43: 238.67 | AY43: =T43+U43 -> 287.77 | AZ43: 243.19 | BA43: =W43+X43 -> 287.77 | BB43: 249.66 | BC43: =+Z43+AA43 -> 287.77 | BD43: 252.88 | BE43: =+AC43+AD43 -> 287.77 | BF43: 255.31 | BG43: =+AH43 -> 287.77 | BH43: 250.86 | BI43: 287.77 | BJ43: 250.55 | BL43: 0 | BM43: -2.35 | BN43: 0 | BO43: 4.52 | BP43: 0 | BQ43: 6.47 | BR43: 0 | BS43: 3.22 | BT43: 0 | BU43: 2.43 | BV43: 0 | BW43: -4.45 | BX43: 0 | BY43: -0.31
A44: SE23-2011 | B44: 3.2 Sončne elektrarne - samostojni objekti 2011 | D44: srednja - od 1MW do vključno 10MW | E44: SE23 | N44: 231.98 | O44: 0 | P44: 231.98 | Q44: 231.98 | R44: 0 | S44: 231.98 | T44: 231.98 | U44: 0 | V44: 231.98 | W44: 231.98 | X44: 0 | Y44: 231.98 | Z44: 231.98 | AA44: 0 | AB44: 231.98 | AC44: 231.98 | AD44: 0 | AE44: 231.98 | AF44: 231.98 | AG44: 0 | AH44: 231.98 | AI44: 231.98 | AJ44: 0 | AK44: 231.98 | AL44: 0.91 | AU44: =N44+O44 -> 231.98 | AV44: 183.63 | AW44: =Q44+R44 -> 231.98 | AX44: 181.21 | AY44: =T44+U44 -> 231.98 | AZ44: 185.88 | BA44: =W44+X44 -> 231.98 | BB44: 192.57 | BC44: =+Z44+AA44 -> 231.98 | BD44: 195.9 | BE44: =+AC44+AD44 -> 231.98 | BF44: 198.41 | BG44: =+AH44 -> 231.98 | BH44: 193.81 | BI44: 231.98 | BJ44: 193.49 | BL44: 0 | BM44: -2.42 | BN44: 0 | BO44: 4.67 | BP44: 0 | BQ44: 6.69 | BR44: 0 | BS44: 3.33 | BT44: 0 | BU44: 2.51 | BV44: 0 | BW44: -4.6 | BX44: 0 | BY44: -0.32
A45: SE24-2011 | B45: 3.2 Sončne elektrarne - samostojni objekti 2011 | D45: velika - nad 10MW do vključno 125MW | E45: SE24 | N45: 215.38 | O45: 0 | P45: 215.38 | Q45: 215.38 | R45: 0 | S45: 215.38 | T45: =N45 -> 215.38 | U45: 0 | V45: 215.38 | W45: =N45 -> 215.38 | X45: 0 | Y45: 215.38 | Z45: 215.38 | AA45: 0 | AB45: 215.38 | AC45: 215.38 | AD45: 0 | AE45: 215.38 | AF45: 215.38 | AG45: 0 | AH45: 215.38 | AI45: 215.38 | AJ45: 0 | AK45: 215.38 | AL45: 1 | AU45: (ni ZO) | AV45: 162.25 | AW45: (ni ZO) | AX45: 159.59 | AY45: (ni ZO) | AZ45: 164.72 | BA45: (ni ZO) | BB45: 172.07 | BC45: (ni ZO) | BD45: 175.73 | BE45: (ni ZO) | BF45: 178.49 | BG45: (ni ZO) | BH45: 173.44 | BI45: (ni ZO) | BJ45: 173.08 | BL45: (ni ZO) | BM45: -2.66 | BN45: (ni ZO) | BO45: 5.13 | BP45: (ni ZO) | BQ45: 7.35 | BR45: (ni ZO) | BS45: 3.66 | BT45: (ni ZO) | BU45: 2.76 | BV45: (ni ZO) | BW45: -5.05 | BX45: (ni ZO) | BY45: -0.36
A46: SE11-2012H1 | B46: 3.1 Sončne elektrarne - na stavbah 2012 - prva polovica | C46: 3.1 Sončne elektrarne - na stavbah 2012 H1 | D46: mikro - manjše od 50kW | E46: SE11 | Q46: =ROUND(F10*0.7,2) -> 290.82 | R46: 0 | S46: =Q46+R46 -> 290.82 | T46: =Q46 -> 290.82 | U46: 0 | V46: 290.82 | W46: =Q46 -> 290.82 | X46: 0 | Y46: 290.82 | Z46: 290.82 | AA46: 0 | AB46: 290.82 | AC46: 290.82 | AD46: 0 | AE46: 290.82 | AF46: 290.82 | AG46: 0 | AH46: 290.82 | AI46: 290.82 | AJ46: 0 | AK46: 290.82 | AL46: 0.88 | AW46: =Q46+R46 -> 290.82 | AX46: 241.72 | AY46: =T46+U46 -> 290.82 | AZ46: 246.24 | BA46: =W46+X46 -> 290.82 | BB46: 252.71 | BC46: =+Z46+AA46 -> 290.82 | BD46: 255.93 | BE46: =+AC46+AD46 -> 290.82 | BF46: 258.36 | BG46: =+AH46 -> 290.82 | BH46: 253.91 | BI46: =+AK46 -> 290.82 | BJ46: 253.6 | BL46: (ni podpore 2011) | BM46: (ni podpore 2011) | BN46: =AY46-AW46 -> 0 | BO46: =AZ46-AX46 -> 4.52 | BP46: =BA46-AY46 -> 0 | BQ46: 6.47 | BR46: 0 | BS46: 3.22 | BT46: 0 | BU46: 2.43 | BV46: =BG46-BE46 -> 0 | BW46: -4.45 | BX46: =BI46-BG46 -> 0 | BY46: -0.31
A47: SE12-2012H1 | B47: 3.1 Sončne elektrarne - na stavbah 2012 - prva polovica | D47: mala - manjše od 1MW | E47: SE12 | Q47: =ROUND(F11*0.7,2) -> 266.01 | R47: 0 | S47: 266.01 | T47: =Q47 -> 266.01 | U47: 0 | V47: 266.01 | W47: =Q47 -> 266.01 | X47: 0 | Y47: 266.01 | Z47: 266.01 | AA47: 0 | AB47: 266.01 | AC47: 266.01 | AD47: 0 | AE47: 266.01 | AF47: 266.01 | AG47: 0 | AH47: 266.01 | AI47: 266.01 | AJ47: 0 | AK47: 266.01 | AL47: 0.88 | AW47: =Q47+R47 -> 266.01 | AX47: 216.91 | AY47: =T47+U47 -> 266.01 | AZ47: 221.43 | BA47: =W47+X47 -> 266.01 | BB47: 227.9 | BC47: =+Z47+AA47 -> 266.01 | BD47: 231.12 | BE47: =+AC47+AD47 -> 266.01 | BF47: 233.55 | BG47: =+AH47 -> 266.01 | BH47: 229.1 | BI47: 266.01 | BJ47: 228.79 | BL47: (ni podpore 2011) | BM47: (ni podpore 2011) | BN47: 0 | BO47: 4.52 | BP47: 0 | BQ47: 6.47 | BR47: 0 | BS47: 3.22 | BT47: 0 | BU47: 2.43 | BV47: 0 | BW47: -4.45 | BX47: 0 | BY47: -0.31
A48: SE13-2012H1 | B48: 3.1 Sončne elektrarne - na stavbah 2012 - prva polovica | D48: srednja - od 1MW do vključno 10MW | E48: SE13 | Q48: =ROUND(F12*0.7,2) -> 220.75 | R48: 0 | S48: 220.75 | T48: 220.75 | U48: 0 | V48: 220.75 | W48: 220.75 | X48: 0 | Y48: 220.75 | Z48: 220.75 | AA48: 0 | AB48: 220.75 | AC48: 220.75 | AD48: 0 | AE48: 220.75 | AF48: 220.75 | AG48: 0 | AH48: 220.75 | AI48: 220.75 | AJ48: 0 | AK48: 220.75 | AL48: 0.91 | AW48: =Q48+R48 -> 220.75 | AX48: 169.98 | AY48: =T48+U48 -> 220.75 | AZ48: 174.65 | BA48: =W48+X48 -> 220.75 | BB48: 181.34 | BC48: =+Z48+AA48 -> 220.75 | BD48: 184.67 | BE48: =+AC48+AD48 -> 220.75 | BF48: 187.18 | BG48: =+AH48 -> 220.75 | BH48: 182.58 | BI48: 220.75 | BJ48: 182.26 | BL48: (ni podpore 2011) | BM48: (ni podpore 2011) | BN48: 0 | BO48: 4.67 | BP48: 0 | BQ48: 6.69 | BR48: 0 | BS48: 3.33 | BT48: 0 | BU48: 2.51 | BV48: 0 | BW48: -4.6 | BX48: 0 | BY48: -0.32
A49: SE14-2012H1 | B49: 3.1 Sončne elektrarne - na stavbah 2012 - prva polovica | D49: velika - nad 10MW do vključno 125MW | E49: SE14 | Q49: =ROUND(F13*0.7,2) -> 196.5 | R49: 0 | S49: 196.5 | T49: 196.5 | U49: 0 | V49: 196.5 | W49: 196.5 | X49: 0 | Y49: 196.5 | Z49: 196.5 | AA49: 0 | AB49: 196.5 | AC49: 196.5 | AD49: 0 | AE49: 196.5 | AF49: 196.5 | AG49: 0 | AH49: 196.5 | AI49: 196.5 | AJ49: 0 | AK49: 196.5 | AL49: 1 | AW49: (ni ZO) | AX49: 140.71 | AY49: (ni ZO) | AZ49: 145.84 | BA49: (ni ZO) | BB49: 153.19 | BC49: (ni ZO) | BD49: 156.85 | BE49: (ni ZO) | BF49: 159.61 | BG49: (ni ZO) | BH49: 154.56 | BI49: (ni ZO) | BJ49: 154.2 | BL49: (ni podpore 2011) | BM49: (ni podpore 2011) | BN49: (ni ZO) | BO49: 5.13 | BP49: (ni ZO) | BQ49: 7.35 | BR49: (ni ZO) | BS49: 3.66 | BT49: (ni ZO) | BU49: 2.76 | BV49: (ni ZO) | BW49: -5.05 | BX49: (ni ZO) | BY49: -0.36
A50: SE11-2012H2 | B50: 3.1 Sončne elektrarne - na stavbah 2012 - druga polovica | C50: 3.1 Sončne elektrarne - na stavbah 2012 H2 | D50: mikro - manjše od 50kW | E50: SE11 | Q50: =ROUND(F10*0.4755,2) -> 197.55 | R50: 0 | S50: =Q50+R50 -> 197.55 | T50: 197.55 | U50: 0 | V50: 197.55 | W50: 197.55 | X50: 0 | Y50: 197.55 | Z50: 197.55 | AA50: 0 | AB50: 197.55 | AC50: 197.55 | AD50: 0 | AE50: 197.55 | AF50: 197.55 | AG50: 0 | AH50: 197.55 | AI50: 197.55 | AJ50: 0 | AK50: 197.55 | AL50: 0.88 | AW50: =Q50+R50 -> 197.55 | AX50: 148.45 | AY50: =T50+U50 -> 197.55 | AZ50: 152.97 | BA50: =W50+X50 -> 197.55 | BB50: 159.44 | BC50: =+Z50+AA50 -> 197.55 | BD50: 162.66 | BE50: =+AC50+AD50 -> 197.55 | BF50: 165.09 | BG50: =+AH50 -> 197.55 | BH50: 160.64 | BI50: =+AK50 -> 197.55 | BJ50: 160.33 | BL50: (ni podpore 2011) | BM50: (ni podpore 2011) | BN50: 0 | BO50: 4.52 | BP50: =BA50-AY50 -> 0 | BQ50: 6.47 | BR50: 0 | BS50: 3.22 | BT50: 0 | BU50: 2.43 | BV50: =BG50-BE50 -> 0 | BW50: -4.45 | BX50: =BI50-BG50 -> 0 | BY50: -0.31
A51: SE12-2012H2 | B51: 3.1 Sončne elektrarne - na stavbah 2012 - druga polovica | D51: mala - manjše od 1MW | E51: SE12 | Q51: =ROUND(F11*0.4755,2) -> 180.7 | R51: 0 | S51: 180.7 | T51: 180.7 | U51: 0 | V51: 180.7 | W51: 180.7 | X51: 0 | Y51: 180.7 | Z51: 180.7 | AA51: 0 | AB51: 180.7 | AC51: 180.7 | AD51: 0 | AE51: 180.7 | AF51: 180.7 | AG51: 0 | AH51: 180.7 | AI51: 180.7 | AJ51: 0 | AK51: 180.7 | AL51: 0.88 | AW51: =Q51+R51 -> 180.7 | AX51: 131.6 | AY51: =T51+U51 -> 180.7 | AZ51: 136.12 | BA51: =W51+X51 -> 180.7 | BB51: 142.59 | BC51: =+Z51+AA51 -> 180.7 | BD51: 145.81 | BE51: =+AC51+AD51 -> 180.7 | BF51: 148.24 | BG51: =+AH51 -> 180.7 | BH51: 143.79 | BI51: 180.7 | BJ51: 143.48 | BL51: (ni podpore 2011) | BM51: (ni podpore 2011) | BN51: 0 | BO51: 4.52 | BP51: 0 | BQ51: 6.47 | BR51: 0 | BS51: 3.22 | BT51: 0 | BU51: 2.43 | BV51: 0 | BW51: -4.45 | BX51: 0 | BY51: -0.31
A52: SE13-2012H2 | B52: 3.1 Sončne elektrarne - na stavbah 2012 - druga polovica | D52: srednja - od 1MW do vključno 10MW | E52: SE13 | Q52: =ROUND(F12*0.4755,2) -> 149.95 | R52: 0 | S52: 149.95 | T52: 149.95 | U52: 0 | V52: 149.95 | W52: 149.95 | X52: 0 | Y52: 149.95 | Z52: 149.95 | AA52: 0 | AB52: 149.95 | AC52: 149.95 | AD52: 0 | AE52: 149.95 | AF52: 149.95 | AG52: 0 | AH52: 149.95 | AI52: 149.95 | AJ52: 0 | AK52: 149.95 | AL52: 0.91 | AW52: =Q52+R52 -> 149.95 | AX52: 99.18 | AY52: =T52+U52 -> 149.95 | AZ52: 103.85 | BA52: =W52+X52 -> 149.95 | BB52: 110.54 | BC52: =+Z52+AA52 -> 149.95 | BD52: 113.87 | BE52: =+AC52+AD52 -> 149.95 | BF52: 116.38 | BG52: =+AH52 -> 149.95 | BH52: 111.78 | BI52: 149.95 | BJ52: 111.46 | BL52: (ni podpore 2011) | BM52: (ni podpore 2011) | BN52: 0 | BO52: 4.67 | BP52: 0 | BQ52: 6.69 | BR52: 0 | BS52: 3.33 | BT52: 0 | BU52: 2.51 | BV52: 0 | BW52: -4.6 | BX52: 0 | BY52: -0.32
A53: SE14-2012H2 | B53: 3.1 Sončne elektrarne - na stavbah 2012 - druga polovica | D53: velika - nad 10MW do vključno 125MW | E53: SE14 | Q53: =ROUND(F13*0.4755,2) -> 133.48 | R53: 0 | S53: 133.48 | T53: 133.48 | U53: 0 | V53: 133.48 | W53: 133.48 | X53: 0 | Y53: 133.48 | Z53: 133.48 | AA53: 0 | AB53: 133.48 | AC53: 133.48 | AD53: 0 | AE53: 133.48 | AF53: 133.48 | AG53: 0 | AH53: 133.48 | AI53: 133.48 | AJ53: 0 | AK53: 133.48 | AL53: 1 | AW53: (ni ZO) | AX53: 77.69 | AY53: (ni ZO) | AZ53: 82.82 | BA53: (ni ZO) | BB53: 90.17 | BC53: (ni ZO) | BD53: 93.83 | BE53: (ni ZO) | BF53: 96.59 | BG53: (ni ZO) | BH53: 91.54 | BI53: (ni ZO) | BJ53: 91.18 | BL53: (ni podpore 2011) | BM53: (ni podpore 2011) | BN53: (ni ZO) | BO53: 5.13 | BP53: (ni ZO) | BQ53: 7.35 | BR53: (ni ZO) | BS53: 3.66 | BT53: (ni ZO) | BU53: 2.76 | BV53: (ni ZO) | BW53: -5.05 | BX53: (ni ZO) | BY53: -0.36
A54: SE21-2012H1 | B54: 3.2 Sončne elektrarne - ostale 2012 - prva polovica | C54: 3.2 Sončne elektrarne - ostale 2012 H1 | D54: mikro - manjše od 50kW | E54: SE21 | Q54: =ROUND(F18*0.7,2) -> 273.29 | R54: 0 | S54: 273.29 | T54: 273.29 | U54: 0 | V54: 273.29 | W54: 273.29 | X54: 0 | Y54: 273.29 | Z54: 273.29 | AA54: 0 | AB54: 273.29 | AC54: 273.29 | AD54: 0 | AE54: 273.29 | AF54: 273.29 | AG54: 0 | AH54: 273.29 | AI54: 273.29 | AJ54: 0 | AK54: 273.29 | AL54: 0.88 | AW54: =Q54+R54 -> 273.29 | AX54: 224.19 | AY54: =T54+U54 -> 273.29 | AZ54: 228.71 | BA54: =W54+X54 -> 273.29 | BB54: 235.18 | BC54: =+Z54+AA54 -> 273.29 | BD54: 238.4 | BE54: =+AC54+AD54 -> 273.29 | BF54: 240.83 | BG54: =+AH54 -> 273.29 | BH54: 236.38 | BI54: =+AK54 -> 273.29 | BJ54: 236.07 | BL54: (ni podpore 2011) | BM54: (ni podpore 2011) | BN54: 0 | BO54: 4.52 | BP54: =BA54-AY54 -> 0 | BQ54: 6.47 | BR54: 0 | BS54: 3.22 | BT54: 0 | BU54: 2.43 | BV54: =BG54-BE54 -> 0 | BW54: -4.45 | BX54: =BI54-BG54 -> 0 | BY54: -0.31
A55: SE22-2012H1 | B55: 3.2 Sončne elektrarne - ostale 2012 - prva polovica | D55: mala - manjše od 1MW | E55: SE22 | Q55: =ROUND(F19*0.7,2) -> 251.8 | R55: 0 | S55: 251.8 | T55: 251.8 | U55: 0 | V55: 251.8 | W55: 251.8 | X55: 0 | Y55: 251.8 | Z55: 251.8 | AA55: 0 | AB55: 251.8 | AC55: 251.8 | AD55: 0 | AE55: 251.8 | AF55: 251.8 | AG55: 0 | AH55: 251.8 | AI55: 251.8 | AJ55: 0 | AK55: 251.8 | AL55: 0.88 | AW55: =Q55+R55 -> 251.8 | AX55: 202.7 | AY55: =T55+U55 -> 251.8 | AZ55: 207.22 | BA55: =W55+X55 -> 251.8 | BB55: 213.69 | BC55: =+Z55+AA55 -> 251.8 | BD55: 216.91 | BE55: =+AC55+AD55 -> 251.8 | BF55: 219.34 | BG55: =+AH55 -> 251.8 | BH55: 214.89 | BI55: 251.8 | BJ55: 214.58 | BL55: (ni podpore 2011) | BM55: (ni podpore 2011) | BN55: 0 | BO55: 4.52 | BP55: 0 | BQ55: 6.47 | BR55: 0 | BS55: 3.22 | BT55: 0 | BU55: 2.43 | BV55: 0 | BW55: -4.45 | BX55: 0 | BY55: -0.31
A56: SE23-2012H1 | B56: 3.2 Sončne elektrarne - ostale 2012 - prva polovica | D56: srednja - od 1MW do vključno 10MW | E56: SE23 | Q56: =ROUND(F20*0.7,2) -> 202.99 | R56: 0 | S56: 202.99 | T56: 202.99 | U56: 0 | V56: 202.99 | W56: 202.99 | X56: 0 | Y56: 202.99 | Z56: 202.99 | AA56: 0 | AB56: 202.99 | AC56: 202.99 | AD56: 0 | AE56: 202.99 | AF56: 202.99 | AG56: 0 | AH56: 202.99 | AI56: 202.99 | AJ56: 0 | AK56: 202.99 | AL56: 0.91 | AW56: =Q56+R56 -> 202.99 | AX56: 152.22 | AY56: =T56+U56 -> 202.99 | AZ56: 156.89 | BA56: =W56+X56 -> 202.99 | BB56: 163.58 | BC56: =+Z56+AA56 -> 202.99 | BD56: 166.91 | BE56: =+AC56+AD56 -> 202.99 | BF56: 169.42 | BG56: =+AH56 -> 202.99 | BH56: 164.82 | BI56: 202.99 | BJ56: 164.5 | BL56: (ni podpore 2011) | BM56: (ni podpore 2011) | BN56: 0 | BO56: 4.67 | BP56: 0 | BQ56: 6.69 | BR56: 0 | BS56: 3.33 | BT56: 0 | BU56: 2.51 | BV56: 0 | BW56: -4.6 | BX56: 0 | BY56: -0.32
A57: SE24-2012H1 | B57: 3.2 Sončne elektrarne - ostale 2012 - prva polovica | D57: velika - nad 10MW do vključno 125MW | E57: SE24 | Q57: =ROUND(F21*0.7,2) -> 188.45 | R57: 0 | S57: 188.45 | T57: 188.45 | U57: 0 | V57: 188.45 | W57: 188.45 | X57: 0 | Y57: 188.45 | Z57: 188.45 | AA57: 0 | AB57: 188.45 | AC57: 188.45 | AD57: 0 | AE57: 188.45 | AF57: 188.45 | AG57: 0 | AH57: 188.45 | AI57: 188.45 | AJ57: 0 | AK57: 188.45 | AL57: 1 | AW57: (ni ZO) | AX57: 132.66 | AY57: (ni ZO) | AZ57: 137.79 | BA57: (ni ZO) | BB57: 145.14 | BC57: (ni ZO) | BD57: 148.8 | BE57: (ni ZO) | BF57: 151.56 | BG57: (ni ZO) | BH57: 146.51 | BI57: (ni ZO) | BJ57: 146.15 | BL57: (ni podpore 2011) | BM57: (ni podpore 2011) | BN57: (ni ZO) | BO57: 5.13 | BP57: (ni ZO) | BQ57: 7.35 | BR57: (ni ZO) | BS57: 3.66 | BT57: (ni ZO) | BU57: 2.76 | BV57: (ni ZO) | BW57: -5.05 | BX57: (ni ZO) | BY57: -0.36
A58: SE21-2012H2 | B58: 3.2 Sončne elektrarne - ostale 2012 - druga polovica | C58: 3.2 Sončne elektrarne - ostale 2012 H2 | D58: mikro - manjše od 50kW | E58: SE21 | Q58: =ROUND(F18*0.4755,2) -> 185.64 | R58: 0 | S58: =Q58+R58 -> 185.64 | T58: 185.64 | U58: 0 | V58: 185.64 | W58: 185.64 | X58: 0 | Y58: 185.64 | Z58: 185.64 | AA58: 0 | AB58: 185.64 | AC58: 185.64 | AD58: 0 | AE58: 185.64 | AF58: 185.64 | AG58: 0 | AH58: 185.64 | AI58: 185.64 | AJ58: 0 | AK58: 185.64 | AL58: 0.88 | AW58: =Q58+R58 -> 185.64 | AX58: 136.54 | AY58: =T58+U58 -> 185.64 | AZ58: 141.06 | BA58: =W58+X58 -> 185.64 | BB58: 147.53 | BC58: =+Z58+AA58 -> 185.64 | BD58: 150.75 | BE58: =+AC58+AD58 -> 185.64 | BF58: 153.18 | BG58: =+AH58 -> 185.64 | BH58: 148.73 | BI58: =+AK58 -> 185.64 | BJ58: 148.42 | BL58: (ni podpore 2011) | BM58: (ni podpore 2011) | BN58: 0 | BO58: 4.52 | BP58: =BA58-AY58 -> 0 | BQ58: 6.47 | BR58: 0 | BS58: 3.22 | BT58: 0 | BU58: 2.43 | BV58: =BG58-BE58 -> 0 | BW58: -4.45 | BX58: =BI58-BG58 -> 0 | BY58: -0.31
A59: SE22-2012H2 | B59: 3.2 Sončne elektrarne - ostale 2012 - druga polovica | D59: mala - manjše od 1MW | E59: SE22 | Q59: =ROUND(F19*0.4755,2) -> 171.04 | R59: 0 | S59: 171.04 | T59: 171.04 | U59: 0 | V59: 171.04 | W59: 171.04 | X59: 0 | Y59: 171.04 | Z59: 171.04 | AA59: 0 | AB59: 171.04 | AC59: 171.04 | AD59: 0 | AE59: 171.04 | AF59: 171.04 | AG59: 0 | AH59: 171.04 | AI59: 171.04 | AJ59: 0 | AK59: 171.04 | AL59: 0.88 | AW59: =Q59+R59 -> 171.04 | AX59: 121.94 | AY59: =T59+U59 -> 171.04 | AZ59: 126.46 | BA59: =W59+X59 -> 171.04 | BB59: 132.93 | BC59: =+Z59+AA59 -> 171.04 | BD59: 136.15 | BE59: =+AC59+AD59 -> 171.04 | BF59: 138.58 | BG59: =+AH59 -> 171.04 | BH59: 134.13 | BI59: 171.04 | BJ59: 133.82 | BL59: (ni podpore 2011) | BM59: (ni podpore 2011) | BN59: 0 | BO59: 4.52 | BP59: 0 | BQ59: 6.47 | BR59: 0 | BS59: 3.22 | BT59: 0 | BU59: 2.43 | BV59: 0 | BW59: -4.45 | BX59: 0 | BY59: -0.31
A60: SE23-2012H2 | B60: 3.2 Sončne elektrarne - ostale 2012 - druga polovica | D60: srednja - od 1MW do vključno 10MW | E60: SE23 | Q60: =ROUND(F20*0.4755,2) -> 137.89 | R60: 0 | S60: 137.89 | T60: 137.89 | U60: 0 | V60: 137.89 | W60: 137.89 | X60: 0 | Y60: 137.89 | Z60: 137.89 | AA60: 0 | AB60: 137.89 | AC60: 137.89 | AD60: 0 | AE60: 137.89 | AF60: 137.89 | AG60: 0 | AH60: 137.89 | AI60: 137.89 | AJ60: 0 | AK60: 137.89 | AL60: 0.91 | AW60: =Q60+R60 -> 137.89 | AX60: 87.12 | AY60: =T60+U60 -> 137.89 | AZ60: 91.79 | BA60: =W60+X60 -> 137.89 | BB60: 98.48 | BC60: =+Z60+AA60 -> 137.89 | BD60: 101.81 | BE60: =+AC60+AD60 -> 137.89 | BF60: 104.32 | BG60: =+AH60 -> 137.89 | BH60: 99.72 | BI60: 137.89 | BJ60: 99.4 | BL60: (ni podpore 2011) | BM60: (ni podpore 2011) | BN60: 0 | BO60: 4.67 | BP60: 0 | BQ60: 6.69 | BR60: 0 | BS60: 3.33 | BT60: 0 | BU60: 2.51 | BV60: 0 | BW60: -4.6 | BX60: 0 | BY60: -0.32
A61: SE24-2012H2 | B61: 3.2 Sončne elektrarne - ostale 2012 - druga polovica | D61: velika - nad 10MW do vključno 125MW | E61: SE24 | Q61: =ROUND(F21*0.4755,2) -> 128.01 | R61: 0 | S61: 128.01 | T61: 128.01 | U61: 0 | V61: 128.01 | W61: 128.01 | X61: 0 | Y61: 128.01 | Z61: 128.01 | AA61: 0 | AB61: 128.01 | AC61: 128.01 | AD61: 0 | AE61: 128.01 | AF61: 128.01 | AG61: 0 | AH61: 128.01 | AI61: 128.01 | AJ61: 0 | AK61: 128.01 | AL61: 1 | AW61: (ni ZO) | AX61: 72.22 | AY61: (ni ZO) | AZ61: 77.35 | BA61: (ni ZO) | BB61: 84.7 | BC61: (ni ZO) | BD61: 88.36 | BE61: (ni ZO) | BF61: 91.12 | BG61: (ni ZO) | BH61: 86.07 | BI61: (ni ZO) | BJ61: 85.71 | BL61: (ni podpore 2011) | BM61: (ni podpore 2011) | BN61: (ni ZO) | BO61: 5.13 | BP61: (ni ZO) | BQ61: 7.35 | BR61: (ni ZO) | BS61: 3.66 | BT61: (ni ZO) | BU61: 2.76 | BV61: (ni ZO) | BW61: -5.05 | BX61: (ni ZO) | BY61: -0.36
A62: SE11-2012dec | B62: 3.1 Sončne elektrarne - na stavbah 2012 december | D62: mikro - manjše od 50kW | E62: SE11 | T62: 150 | U62: 0 | V62: =T62+U62 -> 150 | W62: 150 | X62: 0 | Y62: 150 | Z62: 150 | AA62: 0 | AB62: 150 | AC62: 150 | AD62: 0 | AE62: 150 | AF62: 150 | AG62: 0 | AH62: 150 | AI62: 150 | AJ62: 0 | AK62: 150 | AL62: 0.88 | AY62: =T62+U62 -> 150 | AZ62: 105.42 | BA62: =W62+X62 -> 150 | BB62: 111.89 | BC62: =+Z62+AA62 -> 150 | BD62: 115.11 | BE62: =+AC62+AD62 -> 150 | BF62: 117.54 | BG62: =+AH62 -> 150 | BH62: 113.09 | BI62: =+AK62 -> 150 | BJ62: 112.78 | BL62: (ni podpore 2011/2) | BM62: (ni podpore 2011/2) | BN62: (ni podpore 2011/2) | BO62: (ni podpore 2011/2) | BP62: =BA62-AY62 -> 0 | BQ62: =BB62-AZ62 -> 6.47 | BR62: 0 | BS62: 3.22 | BT62: 0 | BU62: 2.43 | BV62: =BG62-BE62 -> 0 | BW62: -4.45 | BX62: =BI62-BG62 -> 0 | BY62: -0.31
A63: SE12-2012dec | B63: 3.1 Sončne elektrarne - na stavbah 2012 december | D63: mala - manjše od 1MW | E63: SE12 | T63: 137.19 | U63: 0 | V63: 137.19 | W63: 137.19 | X63: 0 | Y63: 137.19 | Z63: 137.19 | AA63: 0 | AB63: 137.19 | AC63: 137.19 | AD63: 0 | AE63: 137.19 | AF63: 137.19 | AG63: 0 | AH63: 137.19 | AI63: 137.19 | AJ63: 0 | AK63: 137.19 | AL63: 0.88 | AY63: =T63+U63 -> 137.19 | AZ63: 92.61 | BA63: =W63+X63 -> 137.19 | BB63: 99.08 | BC63: =+Z63+AA63 -> 137.19 | BD63: 102.3 | BE63: =+AC63+AD63 -> 137.19 | BF63: 104.73 | BG63: =+AH63 -> 137.19 | BH63: 100.28 | BI63: 137.19 | BJ63: 99.97 | BL63: (ni podpore 2011/2) | BM63: (ni podpore 2011/2) | BN63: (ni podpore 2011/2) | BO63: (ni podpore 2011/2) | BP63: 0 | BQ63: 6.47 | BR63: 0 | BS63: 3.22 | BT63: 0 | BU63: 2.43 | BV63: 0 | BW63: -4.45 | BX63: 0 | BY63: -0.31
A64: SE13-2012dec | B64: 3.1 Sončne elektrarne - na stavbah 2012 december | D64: srednja - od 1MW do vključno 10MW | E64: SE13 | T64: 113.85 | U64: 0 | V64: 113.85 | W64: 113.85 | X64: 0 | Y64: 113.85 | Z64: 113.85 | AA64: 0 | AB64: 113.85 | AC64: 113.85 | AD64: 0 | AE64: 113.85 | AF64: 113.85 | AG64: 0 | AH64: 113.85 | AI64: 113.85 | AJ64: 0 | AK64: 113.85 | AL64: 0.91 | AY64: =T64+U64 -> 113.85 | AZ64: 67.75 | BA64: =W64+X64 -> 113.85 | BB64: 74.44 | BC64: =+Z64+AA64 -> 113.85 | BD64: 77.77 | BE64: =+AC64+AD64 -> 113.85 | BF64: 80.28 | BG64: =+AH64 -> 113.85 | BH64: 75.68 | BI64: 113.85 | BJ64: 75.36 | BL64: (ni podpore 2011/2) | BM64: (ni podpore 2011/2) | BN64: (ni podpore 2011/2) | BO64: (ni podpore 2011/2) | BP64: 0 | BQ64: 6.69 | BR64: 0 | BS64: 3.33 | BT64: 0 | BU64: 2.51 | BV64: 0 | BW64: -4.6 | BX64: 0 | BY64: -0.32
A65: SE14-2012dec | B65: 3.1 Sončne elektrarne - na stavbah 2012 december | D65: velika - nad 10MW do vključno 125MW | E65: SE14 | T65: 101.34 | U65: 0 | V65: 101.34 | W65: 101.34 | X65: 0 | Y65: 101.34 | Z65: 101.34 | AA65: 0 | AB65: 101.34 | AC65: 101.34 | AD65: 0 | AE65: 101.34 | AF65: 101.34 | AG65: 0 | AH65: 101.34 | AI65: 101.34 | AJ65: 0 | AK65: 101.34 | AL65: 1 | AY65: (ni ZO) | AZ65: 50.68 | BA65: (ni ZO) | BB65: 58.03 | BC65: (ni ZO) | BD65: 61.69 | BE65: (ni ZO) | BF65: 64.45 | BG65: (ni ZO) | BH65: 59.4 | BI65: (ni ZO) | BJ65: 59.04 | BL65: (ni podpore 2011/2) | BM65: (ni podpore 2011/2) | BN65: (ni podpore 2011/2) | BO65: (ni podpore 2011/2) | BP65: (ni ZO) | BQ65: 7.35 | BR65: (ni ZO) | BS65: 3.66 | BT65: (ni ZO) | BU65: 2.76 | BV65: (ni ZO) | BW65: -5.05 | BX65: (ni ZO) | BY65: -0.36
A66: SE21-2012dec | B66: 3.2 Sončne elektrarne - ostale 2012 december | D66: mikro - manjše od 50kW | E66: SE21 | T66: 140.95 | U66: 0 | V66: 140.95 | W66: 140.95 | X66: 0 | Y66: 140.95 | Z66: =+W66 -> 140.95 | AA66: =+X66 -> 0 | AB66: =+Z66+AA66 -> 140.95 | AC66: 140.95 | AD66: 0 | AE66: 140.95 | AF66: 140.95 | AG66: 0 | AH66: 140.95 | AI66: 140.95 | AJ66: 0 | AK66: 140.95 | AL66: 0.88 | AY66: =T66+U66 -> 140.95 | AZ66: =ROUND((T66+U66)-AL66*$J$326,2) -> 96.37 | BA66: =W66+X66 -> 140.95 | BB66: =ROUND((W66+X66)-AL66*$I$326,2) -> 102.84 | BC66: =+Z66+AA66 -> 140.95 | BD66: =ROUND((Z66+AA66)-AL66*$H$326,2) -> 106.06 | BE66: =+AC66+AD66 -> 140.95 | BF66: =ROUND((AC66+AD66)-AL66*$G$326,2) -> 108.49 | BG66: =+AH66 -> 140.95 | BH66: =ROUND(AH66-AL66*$F$326,2) -> 104.04 | BI66: =+AK66 -> 140.95 | BJ66: 103.73 | BL66: (ni podpore 2011/2) | BM66: (ni podpore 2011/2) | BN66: (ni podpore 2011/2) | BO66: (ni podpore 2011/2) | BP66: =BA66-AY66 -> 0 | BQ66: 6.47 | BR66: 0 | BS66: 3.22 | BT66: =BE66-BC66 -> 0 | BU66: =BF66-BD66 -> 2.43 | BV66: =BG66-BE66 -> 0 | BW66: =BH66-BF66 -> -4.45 | BX66: =BI66-BG66 -> 0 | BY66: =BJ66-BH66 -> -0.31
A67: SE22-2012dec | B67: 3.2 Sončne elektrarne - ostale 2012 december | D67: mala - manjše od 1MW | E67: SE22 | T67: 129.86 | U67: 0 | V67: 129.86 | W67: 129.86 | X67: 0 | Y67: 129.86 | Z67: 129.86 | AA67: 0 | AB67: 129.86 | AC67: =+Z67 -> 129.86 | AD67: =+AA67 -> 0 | AE67: =+AC67+AD67 -> 129.86 | AF67: =+AC67 -> 129.86 | AG67: =+AD67 -> 0 | AH67: =+AF67+AG67 -> 129.86 | AI67: =+AF67 -> 129.86 | AJ67: =+AG67 -> 0 | AK67: =+AI67+AJ67 -> 129.86 | AL67: 0.88 | AY67: =T67+U67 -> 129.86 | AZ67: 85.28 | BA67: =W67+X67 -> 129.86 | BB67: 91.75 | BC67: =+Z67+AA67 -> 129.86 | BD67: 94.97 | BE67: =+AC67+AD67 -> 129.86 | BF67: 97.4 | BG67: =+AH67 -> 129.86 | BH67: 92.95 | BI67: 129.86 | BJ67: =ROUND(AK67-AL67*$E$326,2) -> 92.64 | BL67: (ni podpore 2011/2) | BM67: (ni podpore 2011/2) | BN67: (ni podpore 2011/2) | BO67: (ni podpore 2011/2) | BP67: 0 | BQ67: 6.47 | BR67: =BC67-BA67 -> 0 | BS67: =BD67-BB67 -> 3.22 | BT67: 0 | BU67: 2.43 | BV67: 0 | BW67: -4.45 | BX67: 0 | BY67: -0.31
A68: SE23-2012dec | B68: 3.2 Sončne elektrarne - ostale 2012 december | D68: srednja - od 1MW do vključno 10MW | E68: SE23 | T68: 104.68 | U68: 0 | V68: 104.68 | W68: 104.68 | X68: 0 | Y68: 104.68 | Z68: 104.68 | AA68: 0 | AB68: 104.68 | AC68: 104.68 | AD68: 0 | AE68: 104.68 | AF68: 104.68 | AG68: 0 | AH68: 104.68 | AI68: 104.68 | AJ68: 0 | AK68: 104.68 | AL68: 0.91 | AY68: =T68+U68 -> 104.68 | AZ68: 58.58 | BA68: =W68+X68 -> 104.68 | BB68: 65.27 | BC68: =+Z68+AA68 -> 104.68 | BD68: 68.6 | BE68: =+AC68+AD68 -> 104.68 | BF68: 71.11 | BG68: =+AH68 -> 104.68 | BH68: 66.51 | BI68: 104.68 | BJ68: 66.19 | BL68: (ni podpore 2011/2) | BM68: (ni podpore 2011/2) | BN68: (ni podpore 2011/2) | BO68: (ni podpore 2011/2) | BP68: 0 | BQ68: 6.69 | BR68: 0 | BS68: 3.33 | BT68: 0 | BU68: 2.51 | BV68: 0 | BW68: -4.6 | BX68: 0 | BY68: -0.32
A69: SE24-2012dec | B69: 3.2 Sončne elektrarne - ostale 2012 december | D69: velika - nad 10MW do vključno 125MW | E69: SE24 | T69: 97.19 | U69: 0 | V69: 97.19 | W69: 97.19 | X69: 0 | Y69: 97.19 | Z69: 97.19 | AA69: 0 | AB69: 97.19 | AC69: 97.19 | AD69: 0 | AE69: 97.19 | AF69: 97.19 | AG69: 0 | AH69: 97.19 | AI69: 97.19 | AJ69: 0 | AK69: 97.19 | AL69: 1 | AY69: (ni ZO) | AZ69: 46.53 | BA69: (ni ZO) | BB69: 53.88 | BC69: (ni ZO) | BD69: 57.54 | BE69: (ni ZO) | BF69: 60.3 | BG69: (ni ZO) | BH69: 55.25 | BI69: (ni ZO) | BJ69: 54.89 | BL69: (ni podpore 2011/2) | BM69: (ni podpore 2011/2) | BN69: (ni podpore 2011/2) | BO69: (ni podpore 2011/2) | BP69: (ni ZO) | BQ69: 7.35 | BR69: (ni ZO) | BS69: 3.66 | BT69: (ni ZO) | BU69: 2.76 | BV69: (ni ZO) | BW69: -5.05 | BX69: (ni ZO) | BY69: -0.36
A70: SE11-2013jan | B70: 3.1 Sončne elektrarne - na stavbah 2013 januar | D70: mikro - manjše od 50kW | E70: SE11 | T70: =ROUND(0.98*T62,2) -> 147 | U70: 0 | V70: =T70+U70 -> 147 | W70: =ROUND(0.98*W62,2) -> 147 | X70: 0 | Y70: 147 | Z70: 147 | AA70: 0 | AB70: 147 | AC70: 147 | AD70: 0 | AE70: 147 | AF70: 147 | AG70: 0 | AH70: 147 | AI70: 147 | AJ70: 0 | AK70: 147 | AL70: 0.88 | AY70: =T70+U70 -> 147 | AZ70: 102.42 | BA70: =W70+X70 -> 147 | BB70: 108.89 | BC70: =+Z70+AA70 -> 147 | BD70: 112.11 | BE70: =+AC70+AD70 -> 147 | BF70: 114.54 | BG70: =+AH70 -> 147 | BH70: 110.09 | BI70: =+AK70 -> 147 | BJ70: 109.78 | BL70: (ni podpore 2011/2) | BM70: (ni podpore 2011/2) | BN70: (ni podpore 2011/2) | BO70: (ni podpore 2011/2) | BP70: =BA70-AY70 -> 0 | BQ70: 6.47 | BR70: 0 | BS70: 3.22 | BT70: 0 | BU70: 2.43 | BV70: =BG70-BE70 -> 0 | BW70: -4.45 | BX70: =BI70-BG70 -> 0 | BY70: -0.31
A71: SE12-2013jan | B71: 3.1 Sončne elektrarne - na stavbah 2013 januar | D71: mala - manjše od 1MW | E71: SE12 | T71: =ROUND(0.98*T63,2) -> 134.45 | U71: 0 | V71: 134.45 | W71: =ROUND(0.98*W63,2) -> 134.45 | X71: 0 | Y71: 134.45 | Z71: 134.45 | AA71: 0 | AB71: 134.45 | AC71: 134.45 | AD71: 0 | AE71: 134.45 | AF71: 134.45 | AG71: 0 | AH71: 134.45 | AI71: 134.45 | AJ71: 0 | AK71: 134.45 | AL71: 0.88 | AY71: =T71+U71 -> 134.45 | AZ71: 89.87 | BA71: =W71+X71 -> 134.45 | BB71: 96.34 | BC71: =+Z71+AA71 -> 134.45 | BD71: 99.56 | BE71: =+AC71+AD71 -> 134.45 | BF71: 101.99 | BG71: =+AH71 -> 134.45 | BH71: 97.54 | BI71: 134.45 | BJ71: 97.23 | BL71: (ni podpore 2011/2) | BM71: (ni podpore 2011/2) | BN71: (ni podpore 2011/2) | BO71: (ni podpore 2011/2) | BP71: 0 | BQ71: 6.47 | BR71: 0 | BS71: 3.22 | BT71: 0 | BU71: 2.43 | BV71: 0 | BW71: -4.45 | BX71: 0 | BY71: -0.31
A72: SE13-2013jan | B72: 3.1 Sončne elektrarne - na stavbah 2013 januar | D72: srednja - od 1MW do vključno 10MW | E72: SE13 | T72: 111.57 | U72: 0 | V72: 111.57 | W72: 111.57 | X72: 0 | Y72: 111.57 | Z72: 111.57 | AA72: 0 | AB72: 111.57 | AC72: 111.57 | AD72: 0 | AE72: 111.57 | AF72: 111.57 | AG72: 0 | AH72: 111.57 | AI72: 111.57 | AJ72: 0 | AK72: 111.57 | AL72: 0.91 | AY72: =T72+U72 -> 111.57 | AZ72: 65.47 | BA72: =W72+X72 -> 111.57 | BB72: 72.16 | BC72: =+Z72+AA72 -> 111.57 | BD72: 75.49 | BE72: =+AC72+AD72 -> 111.57 | BF72: 78 | BG72: =+AH72 -> 111.57 | BH72: 73.4 | BI72: 111.57 | BJ72: 73.08 | BL72: (ni podpore 2011/2) | BM72: (ni podpore 2011/2) | BN72: (ni podpore 2011/2) | BO72: (ni podpore 2011/2) | BP72: 0 | BQ72: 6.69 | BR72: 0 | BS72: 3.33 | BT72: 0 | BU72: 2.51 | BV72: 0 | BW72: -4.6 | BX72: 0 | BY72: -0.32
A73: SE14-2013jan | B73: 3.1 Sončne elektrarne - na stavbah 2013 januar | D73: velika - nad 10MW do vključno 125MW | E73: SE14 | T73: 99.31 | U73: 0 | V73: 99.31 | W73: 99.31 | X73: 0 | Y73: 99.31 | Z73: 99.31 | AA73: 0 | AB73: 99.31 | AC73: 99.31 | AD73: 0 | AE73: 99.31 | AF73: 99.31 | AG73: 0 | AH73: 99.31 | AI73: 99.31 | AJ73: 0 | AK73: 99.31 | AL73: 1 | AY73: (ni ZO) | AZ73: 48.65 | BA73: (ni ZO) | BB73: 56 | BC73: (ni ZO) | BD73: 59.66 | BE73: (ni ZO) | BF73: 62.42 | BG73: (ni ZO) | BH73: 57.37 | BI73: (ni ZO) | BJ73: 57.01 | BL73: (ni podpore 2011/2) | BM73: (ni podpore 2011/2) | BN73: (ni podpore 2011/2) | BO73: (ni podpore 2011/2) | BP73: (ni ZO) | BQ73: 7.35 | BR73: (ni ZO) | BS73: 3.66 | BT73: (ni ZO) | BU73: 2.76 | BV73: (ni ZO) | BW73: -5.05 | BX73: (ni ZO) | BY73: -0.36
A74: SE21-2013jan | B74: 3.2 Sončne elektrarne - ostale 2013 januar | D74: mikro - manjše od 50kW | E74: SE21 | T74: 138.13 | U74: 0 | V74: 138.13 | W74: 138.13 | X74: 0 | Y74: 138.13 | Z74: 138.13 | AA74: 0 | AB74: 138.13 | AC74: 138.13 | AD74: 0 | AE74: 138.13 | AF74: 138.13 | AG74: 0 | AH74: 138.13 | AI74: 138.13 | AJ74: 0 | AK74: 138.13 | AL74: 0.88 | AY74: =T74+U74 -> 138.13 | AZ74: 93.55 | BA74: =W74+X74 -> 138.13 | BB74: 100.02 | BC74: =+Z74+AA74 -> 138.13 | BD74: 103.24 | BE74: =+AC74+AD74 -> 138.13 | BF74: 105.67 | BG74: =+AH74 -> 138.13 | BH74: 101.22 | BI74: =+AK74 -> 138.13 | BJ74: 100.91 | BL74: (ni podpore 2011/2) | BM74: (ni podpore 2011/2) | BN74: (ni podpore 2011/2) | BO74: (ni podpore 2011/2) | BP74: =BA74-AY74 -> 0 | BQ74: 6.47 | BR74: 0 | BS74: 3.22 | BT74: 0 | BU74: 2.43 | BV74: =BG74-BE74 -> 0 | BW74: -4.45 | BX74: =BI74-BG74 -> 0 | BY74: -0.31
A75: SE22-2013jan | B75: 3.2 Sončne elektrarne - ostale 2013 januar | D75: mala - manjše od 1MW | E75: SE22 | T75: 127.26 | U75: 0 | V75: 127.26 | W75: 127.26 | X75: 0 | Y75: 127.26 | Z75: 127.26 | AA75: 0 | AB75: 127.26 | AC75: 127.26 | AD75: 0 | AE75: 127.26 | AF75: 127.26 | AG75: 0 | AH75: 127.26 | AI75: 127.26 | AJ75: 0 | AK75: 127.26 | AL75: 0.88 | AY75: =T75+U75 -> 127.26 | AZ75: 82.68 | BA75: =W75+X75 -> 127.26 | BB75: 89.15 | BC75: =+Z75+AA75 -> 127.26 | BD75: 92.37 | BE75: =+AC75+AD75 -> 127.26 | BF75: 94.8 | BG75: =+AH75 -> 127.26 | BH75: 90.35 | BI75: 127.26 | BJ75: 90.04 | BL75: (ni podpore 2011/2) | BM75: (ni podpore 2011/2) | BN75: (ni podpore 2011/2) | BO75: (ni podpore 2011/2) | BP75: 0 | BQ75: 6.47 | BR75: 0 | BS75: 3.22 | BT75: 0 | BU75: 2.43 | BV75: 0 | BW75: -4.45 | BX75: 0 | BY75: -0.31
A76: SE23-2013jan | B76: 3.2 Sončne elektrarne - ostale 2013 januar | D76: srednja - od 1MW do vključno 10MW | E76: SE23 | T76: 102.59 | U76: 0 | V76: 102.59 | W76: 102.59 | X76: 0 | Y76: 102.59 | Z76: 102.59 | AA76: 0 | AB76: 102.59 | AC76: 102.59 | AD76: 0 | AE76: 102.59 | AF76: 102.59 | AG76: 0 | AH76: 102.59 | AI76: 102.59 | AJ76: 0 | AK76: 102.59 | AL76: 0.91 | AY76: =T76+U76 -> 102.59 | AZ76: 56.49 | BA76: =W76+X76 -> 102.59 | BB76: 63.18 | BC76: =+Z76+AA76 -> 102.59 | BD76: 66.51 | BE76: =+AC76+AD76 -> 102.59 | BF76: 69.02 | BG76: =+AH76 -> 102.59 | BH76: 64.42 | BI76: 102.59 | BJ76: 64.1 | BL76: (ni podpore 2011/2) | BM76: (ni podpore 2011/2) | BN76: (ni podpore 2011/2) | BO76: (ni podpore 2011/2) | BP76: 0 | BQ76: 6.69 | BR76: 0 | BS76: 3.33 | BT76: 0 | BU76: 2.51 | BV76: 0 | BW76: -4.6 | BX76: 0 | BY76: -0.32
A77: SE24-2013jan | B77: 3.2 Sončne elektrarne - ostale 2013 januar | D77: velika - nad 10MW do vključno 125MW | E77: SE24 | T77: 95.25 | U77: 0 | V77: 95.25 | W77: 95.25 | X77: 0 | Y77: 95.25 | Z77: 95.25 | AA77: 0 | AB77: 95.25 | AC77: 95.25 | AD77: 0 | AE77: 95.25 | AF77: 95.25 | AG77: 0 | AH77: 95.25 | AI77: 95.25 | AJ77: 0 | AK77: 95.25 | AL77: 1 | AY77: (ni ZO) | AZ77: 44.59 | BA77: (ni ZO) | BB77: 51.94 | BC77: (ni ZO) | BD77: 55.6 | BE77: (ni ZO) | BF77: 58.36 | BG77: (ni ZO) | BH77: 53.31 | BI77: (ni ZO) | BJ77: 52.95 | BL77: (ni podpore 2011/2) | BM77: (ni podpore 2011/2) | BN77: (ni podpore 2011/2) | BO77: (ni podpore 2011/2) | BP77: (ni ZO) | BQ77: 7.35 | BR77: (ni ZO) | BS77: 3.66 | BT77: (ni ZO) | BU77: 2.76 | BV77: (ni ZO) | BW77: -5.05 | BX77: (ni ZO) | BY77: -0.36
A78: SE11-2013feb | B78: 3.1 Sončne elektrarne - na stavbah 2013 februar | D78: mikro - manjše od 50kW | E78: SE11 | T78: 144.06 | U78: 0 | V78: 144.06 | W78: 144.06 | X78: 0 | Y78: 144.06 | Z78: 144.06 | AA78: 0 | AB78: 144.06 | AC78: 144.06 | AD78: 0 | AE78: 144.06 | AF78: 144.06 | AG78: 0 | AH78: 144.06 | AI78: 144.06 | AJ78: 0 | AK78: 144.06 | AL78: 0.88 | AY78: =T78+U78 -> 144.06 | AZ78: 99.48 | BA78: =W78+X78 -> 144.06 | BB78: 105.95 | BC78: =+Z78+AA78 -> 144.06 | BD78: 109.17 | BE78: =+AC78+AD78 -> 144.06 | BF78: 111.6 | BG78: =+AH78 -> 144.06 | BH78: 107.15 | BI78: =+AK78 -> 144.06 | BJ78: 106.84 | BL78: (ni podpore 2011/2) | BM78: (ni podpore 2011/2) | BN78: (ni podpore 2011/2) | BO78: (ni podpore 2011/2) | BP78: =BA78-AY78 -> 0 | BQ78: 6.47 | BR78: 0 | BS78: 3.22 | BT78: 0 | BU78: 2.43 | BV78: =BG78-BE78 -> 0 | BW78: -4.45 | BX78: =BI78-BG78 -> 0 | BY78: -0.31
A79: SE12-2013feb | B79: 3.1 Sončne elektrarne - na stavbah 2013 februar | D79: mala - manjše od 1MW | E79: SE12 | T79: 131.76 | U79: 0 | V79: 131.76 | W79: 131.76 | X79: 0 | Y79: 131.76 | Z79: 131.76 | AA79: 0 | AB79: 131.76 | AC79: 131.76 | AD79: 0 | AE79: 131.76 | AF79: 131.76 | AG79: 0 | AH79: 131.76 | AI79: 131.76 | AJ79: 0 | AK79: 131.76 | AL79: 0.88 | AY79: =T79+U79 -> 131.76 | AZ79: 87.18 | BA79: =W79+X79 -> 131.76 | BB79: 93.65 | BC79: =+Z79+AA79 -> 131.76 | BD79: 96.87 | BE79: =+AC79+AD79 -> 131.76 | BF79: 99.3 | BG79: =+AH79 -> 131.76 | BH79: 94.85 | BI79: 131.76 | BJ79: 94.54 | BL79: (ni podpore 2011/2) | BM79: (ni podpore 2011/2) | BN79: (ni podpore 2011/2) | BO79: (ni podpore 2011/2) | BP79: 0 | BQ79: 6.47 | BR79: 0 | BS79: 3.22 | BT79: 0 | BU79: 2.43 | BV79: 0 | BW79: -4.45 | BX79: 0 | BY79: -0.31
A80: SE13-2013feb | B80: 3.1 Sončne elektrarne - na stavbah 2013 februar | D80: srednja - od 1MW do vključno 10MW | E80: SE13 | T80: 109.34 | U80: 0 | V80: 109.34 | W80: 109.34 | X80: 0 | Y80: 109.34 | Z80: 109.34 | AA80: 0 | AB80: 109.34 | AC80: 109.34 | AD80: 0 | AE80: 109.34 | AF80: 109.34 | AG80: 0 | AH80: 109.34 | AI80: 109.34 | AJ80: 0 | AK80: 109.34 | AL80: 0.91 | AY80: =T80+U80 -> 109.34 | AZ80: 63.24 | BA80: =W80+X80 -> 109.34 | BB80: 69.93 | BC80: =+Z80+AA80 -> 109.34 | BD80: 73.26 | BE80: =+AC80+AD80 -> 109.34 | BF80: 75.77 | BG80: =+AH80 -> 109.34 | BH80: 71.17 | BI80: 109.34 | BJ80: 70.85 | BL80: (ni podpore 2011/2) | BM80: (ni podpore 2011/2) | BN80: (ni podpore 2011/2) | BO80: (ni podpore 2011/2) | BP80: 0 | BQ80: 6.69 | BR80: 0 | BS80: 3.33 | BT80: 0 | BU80: 2.51 | BV80: 0 | BW80: -4.6 | BX80: 0 | BY80: -0.32
A81: SE14-2013feb | B81: 3.1 Sončne elektrarne - na stavbah 2013 februar | D81: velika - nad 10MW do vključno 125MW | E81: SE14 | T81: 97.32 | U81: 0 | V81: 97.32 | W81: 97.32 | X81: 0 | Y81: 97.32 | Z81: 97.32 | AA81: 0 | AB81: 97.32 | AC81: 97.32 | AD81: 0 | AE81: 97.32 | AF81: 97.32 | AG81: 0 | AH81: 97.32 | AI81: 97.32 | AJ81: 0 | AK81: 97.32 | AL81: 1 | AY81: (ni ZO) | AZ81: 46.66 | BA81: (ni ZO) | BB81: 54.01 | BC81: (ni ZO) | BD81: 57.67 | BE81: (ni ZO) | BF81: 60.43 | BG81: (ni ZO) | BH81: 55.38 | BI81: (ni ZO) | BJ81: 55.02 | BL81: (ni podpore 2011/2) | BM81: (ni podpore 2011/2) | BN81: (ni podpore 2011/2) | BO81: (ni podpore 2011/2) | BP81: (ni ZO) | BQ81: 7.35 | BR81: (ni ZO) | BS81: 3.66 | BT81: (ni ZO) | BU81: 2.76 | BV81: (ni ZO) | BW81: -5.05 | BX81: (ni ZO) | BY81: -0.36
A82: SE21-2013feb | B82: 3.2 Sončne elektrarne - ostale 2013 februar | D82: mikro - manjše od 50kW | E82: SE21 | T82: 135.37 | U82: 0 | V82: 135.37 | W82: 135.37 | X82: 0 | Y82: 135.37 | Z82: 135.37 | AA82: 0 | AB82: 135.37 | AC82: 135.37 | AD82: 0 | AE82: 135.37 | AF82: 135.37 | AG82: 0 | AH82: 135.37 | AI82: 135.37 | AJ82: 0 | AK82: 135.37 | AL82: 0.88 | AY82: =T82+U82 -> 135.37 | AZ82: 90.79 | BA82: =W82+X82 -> 135.37 | BB82: 97.26 | BC82: =+Z82+AA82 -> 135.37 | BD82: 100.48 | BE82: =+AC82+AD82 -> 135.37 | BF82: 102.91 | BG82: =+AH82 -> 135.37 | BH82: 98.46 | BI82: =+AK82 -> 135.37 | BJ82: 98.15 | BL82: (ni podpore 2011/2) | BM82: (ni podpore 2011/2) | BN82: (ni podpore 2011/2) | BO82: (ni podpore 2011/2) | BP82: =BA82-AY82 -> 0 | BQ82: 6.47 | BR82: 0 | BS82: 3.22 | BT82: 0 | BU82: 2.43 | BV82: =BG82-BE82 -> 0 | BW82: -4.45 | BX82: =BI82-BG82 -> 0 | BY82: -0.31
A83: SE22-2013feb | B83: 3.2 Sončne elektrarne - ostale 2013 februar | D83: mala - manjše od 1MW | E83: SE22 | T83: 124.71 | U83: 0 | V83: 124.71 | W83: 124.71 | X83: 0 | Y83: 124.71 | Z83: 124.71 | AA83: 0 | AB83: 124.71 | AC83: 124.71 | AD83: 0 | AE83: 124.71 | AF83: 124.71 | AG83: 0 | AH83: 124.71 | AI83: 124.71 | AJ83: 0 | AK83: 124.71 | AL83: 0.88 | AY83: =T83+U83 -> 124.71 | AZ83: 80.13 | BA83: =W83+X83 -> 124.71 | BB83: 86.6 | BC83: =+Z83+AA83 -> 124.71 | BD83: 89.82 | BE83: =+AC83+AD83 -> 124.71 | BF83: 92.25 | BG83: =+AH83 -> 124.71 | BH83: 87.8 | BI83: 124.71 | BJ83: 87.49 | BL83: (ni podpore 2011/2) | BM83: (ni podpore 2011/2) | BN83: (ni podpore 2011/2) | BO83: (ni podpore 2011/2) | BP83: 0 | BQ83: 6.47 | BR83: 0 | BS83: 3.22 | BT83: 0 | BU83: 2.43 | BV83: 0 | BW83: -4.45 | BX83: 0 | BY83: -0.31
A84: SE23-2013feb | B84: 3.2 Sončne elektrarne - ostale 2013 februar | D84: srednja - od 1MW do vključno 10MW | E84: SE23 | T84: 100.54 | U84: 0 | V84: 100.54 | W84: 100.54 | X84: 0 | Y84: 100.54 | Z84: 100.54 | AA84: 0 | AB84: 100.54 | AC84: 100.54 | AD84: 0 | AE84: 100.54 | AF84: 100.54 | AG84: 0 | AH84: 100.54 | AI84: 100.54 | AJ84: 0 | AK84: 100.54 | AL84: 0.91 | AY84: =T84+U84 -> 100.54 | AZ84: 54.44 | BA84: =W84+X84 -> 100.54 | BB84: 61.13 | BC84: =+Z84+AA84 -> 100.54 | BD84: 64.46 | BE84: =+AC84+AD84 -> 100.54 | BF84: 66.97 | BG84: =+AH84 -> 100.54 | BH84: 62.37 | BI84: 100.54 | BJ84: 62.05 | BL84: (ni podpore 2011/2) | BM84: (ni podpore 2011/2) | BN84: (ni podpore 2011/2) | BO84: (ni podpore 2011/2) | BP84: 0 | BQ84: 6.69 | BR84: 0 | BS84: 3.33 | BT84: 0 | BU84: 2.51 | BV84: 0 | BW84: -4.6 | BX84: 0 | BY84: -0.32
A85: SE24-2013feb | B85: 3.2 Sončne elektrarne - ostale 2013 februar | D85: velika - nad 10MW do vključno 125MW | E85: SE24 | T85: 93.35 | U85: 0 | V85: 93.35 | W85: 93.35 | X85: 0 | Y85: 93.35 | Z85: 93.35 | AA85: 0 | AB85: 93.35 | AC85: 93.35 | AD85: 0 | AE85: 93.35 | AF85: 93.35 | AG85: 0 | AH85: 93.35 | AI85: 93.35 | AJ85: 0 | AK85: 93.35 | AL85: 1 | AY85: (ni ZO) | AZ85: 42.69 | BA85: (ni ZO) | BB85: 50.04 | BC85: (ni ZO) | BD85: 53.7 | BE85: (ni ZO) | BF85: 56.46 | BG85: (ni ZO) | BH85: 51.41 | BI85: (ni ZO) | BJ85: 51.05 | BL85: (ni podpore 2011/2) | BM85: (ni podpore 2011/2) | BN85: (ni podpore 2011/2) | BO85: (ni podpore 2011/2) | BP85: (ni ZO) | BQ85: 7.35 | BR85: (ni ZO) | BS85: 3.66 | BT85: (ni ZO) | BU85: 2.76 | BV85: (ni ZO) | BW85: -5.05 | BX85: (ni ZO) | BY85: -0.36
A86: SE11-2013mar | B86: 3.1 Sončne elektrarne - na stavbah 2013 marec | D86: mikro - manjše od 50kW | E86: SE11 | T86: 141.18 | U86: 0 | V86: 141.18 | W86: 141.18 | X86: 0 | Y86: 141.18 | Z86: 141.18 | AA86: 0 | AB86: 141.18 | AC86: 141.18 | AD86: 0 | AE86: 141.18 | AF86: 141.18 | AG86: 0 | AH86: 141.18 | AI86: 141.18 | AJ86: 0 | AK86: 141.18 | AL86: 0.88 | AY86: =T86+U86 -> 141.18 | AZ86: 96.6 | BA86: =W86+X86 -> 141.18 | BB86: 103.07 | BC86: =+Z86+AA86 -> 141.18 | BD86: 106.29 | BE86: =+AC86+AD86 -> 141.18 | BF86: 108.72 | BG86: =+AH86 -> 141.18 | BH86: 104.27 | BI86: =+AK86 -> 141.18 | BJ86: 103.96 | BL86: (ni podpore 2011/2) | BM86: (ni podpore 2011/2) | BN86: (ni podpore 2011/2) | BO86: (ni podpore 2011/2) | BP86: =BA86-AY86 -> 0 | BQ86: 6.47 | BR86: 0 | BS86: 3.22 | BT86: 0 | BU86: 2.43 | BV86: =BG86-BE86 -> 0 | BW86: -4.45 | BX86: =BI86-BG86 -> 0 | BY86: -0.31
A87: SE12-2013mar | B87: 3.1 Sončne elektrarne - na stavbah 2013 marec | D87: mala - manjše od 1MW | E87: SE12 | T87: 129.12 | U87: 0 | V87: 129.12 | W87: 129.12 | X87: 0 | Y87: 129.12 | Z87: 129.12 | AA87: 0 | AB87: 129.12 | AC87: 129.12 | AD87: 0 | AE87: 129.12 | AF87: 129.12 | AG87: 0 | AH87: 129.12 | AI87: 129.12 | AJ87: 0 | AK87: 129.12 | AL87: 0.88 | AY87: =T87+U87 -> 129.12 | AZ87: 84.54 | BA87: =W87+X87 -> 129.12 | BB87: 91.01 | BC87: =+Z87+AA87 -> 129.12 | BD87: 94.23 | BE87: =+AC87+AD87 -> 129.12 | BF87: 96.66 | BG87: =+AH87 -> 129.12 | BH87: 92.21 | BI87: 129.12 | BJ87: 91.9 | BL87: (ni podpore 2011/2) | BM87: (ni podpore 2011/2) | BN87: (ni podpore 2011/2) | BO87: (ni podpore 2011/2) | BP87: 0 | BQ87: 6.47 | BR87: 0 | BS87: 3.22 | BT87: 0 | BU87: 2.43 | BV87: 0 | BW87: -4.45 | BX87: 0 | BY87: -0.31
A88: SE13-2013mar | B88: 3.1 Sončne elektrarne - na stavbah 2013 marec | D88: srednja - od 1MW do vključno 10MW | E88: SE13 | T88: 107.15 | U88: 0 | V88: 107.15 | W88: 107.15 | X88: 0 | Y88: 107.15 | Z88: 107.15 | AA88: 0 | AB88: 107.15 | AC88: 107.15 | AD88: 0 | AE88: 107.15 | AF88: 107.15 | AG88: 0 | AH88: 107.15 | AI88: 107.15 | AJ88: 0 | AK88: 107.15 | AL88: 0.91 | AY88: =T88+U88 -> 107.15 | AZ88: 61.05 | BA88: =W88+X88 -> 107.15 | BB88: 67.74 | BC88: =+Z88+AA88 -> 107.15 | BD88: 71.07 | BE88: =+AC88+AD88 -> 107.15 | BF88: 73.58 | BG88: =+AH88 -> 107.15 | BH88: 68.98 | BI88: 107.15 | BJ88: 68.66 | BL88: (ni podpore 2011/2) | BM88: (ni podpore 2011/2) | BN88: (ni podpore 2011/2) | BO88: (ni podpore 2011/2) | BP88: 0 | BQ88: 6.69 | BR88: 0 | BS88: 3.33 | BT88: 0 | BU88: 2.51 | BV88: 0 | BW88: -4.6 | BX88: 0 | BY88: -0.32
A89: SE14-2013mar | B89: 3.1 Sončne elektrarne - na stavbah 2013 marec | D89: velika - nad 10MW do vključno 125MW | E89: SE14 | T89: 95.37 | U89: 0 | V89: 95.37 | W89: 95.37 | X89: 0 | Y89: 95.37 | Z89: 95.37 | AA89: 0 | AB89: 95.37 | AC89: 95.37 | AD89: 0 | AE89: 95.37 | AF89: 95.37 | AG89: 0 | AH89: 95.37 | AI89: 95.37 | AJ89: 0 | AK89: 95.37 | AL89: 1 | AY89: (ni ZO) | AZ89: 44.71 | BA89: (ni ZO) | BB89: 52.06 | BC89: (ni ZO) | BD89: 55.72 | BE89: (ni ZO) | BF89: 58.48 | BG89: (ni ZO) | BH89: 53.43 | BI89: (ni ZO) | BJ89: 53.07 | BL89: (ni podpore 2011/2) | BM89: (ni podpore 2011/2) | BN89: (ni podpore 2011/2) | BO89: (ni podpore 2011/2) | BP89: (ni ZO) | BQ89: 7.35 | BR89: (ni ZO) | BS89: 3.66 | BT89: (ni ZO) | BU89: 2.76 | BV89: (ni ZO) | BW89: -5.05 | BX89: (ni ZO) | BY89: -0.36
A90: SE21-2013mar | B90: 3.2 Sončne elektrarne - ostale 2013 marec | D90: mikro - manjše od 50kW | E90: SE21 | T90: 132.66 | U90: 0 | V90: 132.66 | W90: 132.66 | X90: 0 | Y90: 132.66 | Z90: 132.66 | AA90: 0 | AB90: 132.66 | AC90: 132.66 | AD90: 0 | AE90: 132.66 | AF90: 132.66 | AG90: 0 | AH90: 132.66 | AI90: 132.66 | AJ90: 0 | AK90: 132.66 | AL90: 0.88 | AY90: =T90+U90 -> 132.66 | AZ90: 88.08 | BA90: =W90+X90 -> 132.66 | BB90: 94.55 | BC90: =+Z90+AA90 -> 132.66 | BD90: 97.77 | BE90: =+AC90+AD90 -> 132.66 | BF90: 100.2 | BG90: =+AH90 -> 132.66 | BH90: 95.75 | BI90: =+AK90 -> 132.66 | BJ90: 95.44 | BL90: (ni podpore 2011/2) | BM90: (ni podpore 2011/2) | BN90: (ni podpore 2011/2) | BO90: (ni podpore 2011/2) | BP90: =BA90-AY90 -> 0 | BQ90: 6.47 | BR90: 0 | BS90: 3.22 | BT90: 0 | BU90: 2.43 | BV90: =BG90-BE90 -> 0 | BW90: -4.45 | BX90: =BI90-BG90 -> 0 | BY90: -0.31
A91: SE22-2013mar | B91: 3.2 Sončne elektrarne - ostale 2013 marec | D91: mala - manjše od 1MW | E91: SE22 | T91: 122.22 | U91: 0 | V91: 122.22 | W91: 122.22 | X91: 0 | Y91: 122.22 | Z91: 122.22 | AA91: 0 | AB91: 122.22 | AC91: 122.22 | AD91: 0 | AE91: 122.22 | AF91: 122.22 | AG91: 0 | AH91: 122.22 | AI91: 122.22 | AJ91: 0 | AK91: 122.22 | AL91: 0.88 | AY91: =T91+U91 -> 122.22 | AZ91: 77.64 | BA91: =W91+X91 -> 122.22 | BB91: 84.11 | BC91: =+Z91+AA91 -> 122.22 | BD91: 87.33 | BE91: =+AC91+AD91 -> 122.22 | BF91: 89.76 | BG91: =+AH91 -> 122.22 | BH91: 85.31 | BI91: 122.22 | BJ91: 85 | BL91: (ni podpore 2011/2) | BM91: (ni podpore 2011/2) | BN91: (ni podpore 2011/2) | BO91: (ni podpore 2011/2) | BP91: 0 | BQ91: 6.47 | BR91: 0 | BS91: 3.22 | BT91: 0 | BU91: 2.43 | BV91: 0 | BW91: -4.45 | BX91: 0 | BY91: -0.31
A92: SE23-2013mar | B92: 3.2 Sončne elektrarne - ostale 2013 marec | D92: srednja - od 1MW do vključno 10MW | E92: SE23 | T92: 98.53 | U92: 0 | V92: 98.53 | W92: 98.53 | X92: 0 | Y92: 98.53 | Z92: 98.53 | AA92: 0 | AB92: 98.53 | AC92: 98.53 | AD92: 0 | AE92: 98.53 | AF92: 98.53 | AG92: 0 | AH92: 98.53 | AI92: 98.53 | AJ92: 0 | AK92: 98.53 | AL92: 0.91 | AY92: =T92+U92 -> 98.53 | AZ92: 52.43 | BA92: =W92+X92 -> 98.53 | BB92: 59.12 | BC92: =+Z92+AA92 -> 98.53 | BD92: 62.45 | BE92: =+AC92+AD92 -> 98.53 | BF92: 64.96 | BG92: =+AH92 -> 98.53 | BH92: 60.36 | BI92: 98.53 | BJ92: 60.04 | BL92: (ni podpore 2011/2) | BM92: (ni podpore 2011/2) | BN92: (ni podpore 2011/2) | BO92: (ni podpore 2011/2) | BP92: 0 | BQ92: 6.69 | BR92: 0 | BS92: 3.33 | BT92: 0 | BU92: 2.51 | BV92: 0 | BW92: -4.6 | BX92: 0 | BY92: -0.32
A93: SE24-2013mar | B93: 3.2 Sončne elektrarne - ostale 2013 marec | D93: velika - nad 10MW do vključno 125MW | E93: SE24 | T93: 91.48 | U93: 0 | V93: 91.48 | W93: 91.48 | X93: 0 | Y93: 91.48 | Z93: 91.48 | AA93: 0 | AB93: 91.48 | AC93: 91.48 | AD93: 0 | AE93: 91.48 | AF93: 91.48 | AG93: 0 | AH93: 91.48 | AI93: 91.48 | AJ93: 0 | AK93: 91.48 | AL93: 1 | AY93: (ni ZO) | AZ93: 40.82 | BA93: (ni ZO) | BB93: 48.17 | BC93: (ni ZO) | BD93: 51.83 | BE93: (ni ZO) | BF93: 54.59 | BG93: (ni ZO) | BH93: 49.54 | BI93: (ni ZO) | BJ93: 49.18 | BL93: (ni podpore 2011/2) | BM93: (ni podpore 2011/2) | BN93: (ni podpore 2011/2) | BO93: (ni podpore 2011/2) | BP93: (ni ZO) | BQ93: 7.35 | BR93: (ni ZO) | BS93: 3.66 | BT93: (ni ZO) | BU93: 2.76 | BV93: (ni ZO) | BW93: -5.05 | BX93: (ni ZO) | BY93: -0.36
A94: SE11-2013apr | B94: 3.1 Sončne elektrarne - na stavbah 2013 april | D94: mikro - manjše od 50kW | E94: SE11 | T94: 138.36 | U94: 0 | V94: 138.36 | W94: 138.36 | X94: 0 | Y94: 138.36 | Z94: 138.36 | AA94: 0 | AB94: 138.36 | AC94: 138.36 | AD94: 0 | AE94: 138.36 | AF94: 138.36 | AG94: 0 | AH94: 138.36 | AI94: 138.36 | AJ94: 0 | AK94: 138.36 | AL94: 0.88 | AY94: =T94+U94 -> 138.36 | AZ94: 93.78 | BA94: =W94+X94 -> 138.36 | BB94: 100.25 | BC94: =+Z94+AA94 -> 138.36 | BD94: 103.47 | BE94: =+AC94+AD94 -> 138.36 | BF94: 105.9 | BG94: =+AH94 -> 138.36 | BH94: 101.45 | BI94: =+AK94 -> 138.36 | BJ94: 101.14 | BL94: (ni podpore 2011/2) | BM94: (ni podpore 2011/2) | BN94: (ni podpore 2011/2) | BO94: (ni podpore 2011/2) | BP94: =BA94-AY94 -> 0 | BQ94: 6.47 | BR94: 0 | BS94: 3.22 | BT94: 0 | BU94: 2.43 | BV94: =BG94-BE94 -> 0 | BW94: -4.45 | BX94: =BI94-BG94 -> 0 | BY94: -0.31
A95: SE12-2013apr | B95: 3.1 Sončne elektrarne - na stavbah 2013 april | D95: mala - manjše od 1MW | E95: SE12 | T95: 126.54 | U95: 0 | V95: 126.54 | W95: 126.54 | X95: 0 | Y95: 126.54 | Z95: 126.54 | AA95: 0 | AB95: 126.54 | AC95: 126.54 | AD95: 0 | AE95: 126.54 | AF95: 126.54 | AG95: 0 | AH95: 126.54 | AI95: 126.54 | AJ95: 0 | AK95: 126.54 | AL95: 0.88 | AY95: =T95+U95 -> 126.54 | AZ95: 81.96 | BA95: =W95+X95 -> 126.54 | BB95: 88.43 | BC95: =+Z95+AA95 -> 126.54 | BD95: 91.65 | BE95: =+AC95+AD95 -> 126.54 | BF95: 94.08 | BG95: =+AH95 -> 126.54 | BH95: 89.63 | BI95: 126.54 | BJ95: 89.32 | BL95: (ni podpore 2011/2) | BM95: (ni podpore 2011/2) | BN95: (ni podpore 2011/2) | BO95: (ni podpore 2011/2) | BP95: 0 | BQ95: 6.47 | BR95: 0 | BS95: 3.22 | BT95: 0 | BU95: 2.43 | BV95: 0 | BW95: -4.45 | BX95: 0 | BY95: -0.31
A96: SE13-2013apr | B96: 3.1 Sončne elektrarne - na stavbah 2013 april | D96: srednja - od 1MW do vključno 10MW | E96: SE13 | T96: 105.01 | U96: 0 | V96: 105.01 | W96: 105.01 | X96: 0 | Y96: 105.01 | Z96: 105.01 | AA96: 0 | AB96: 105.01 | AC96: 105.01 | AD96: 0 | AE96: 105.01 | AF96: 105.01 | AG96: 0 | AH96: 105.01 | AI96: 105.01 | AJ96: 0 | AK96: 105.01 | AL96: 0.91 | AY96: =T96+U96 -> 105.01 | AZ96: 58.91 | BA96: =W96+X96 -> 105.01 | BB96: 65.6 | BC96: =+Z96+AA96 -> 105.01 | BD96: 68.93 | BE96: =+AC96+AD96 -> 105.01 | BF96: 71.44 | BG96: =+AH96 -> 105.01 | BH96: 66.84 | BI96: 105.01 | BJ96: 66.52 | BL96: (ni podpore 2011/2) | BM96: (ni podpore 2011/2) | BN96: (ni podpore 2011/2) | BO96: (ni podpore 2011/2) | BP96: 0 | BQ96: 6.69 | BR96: 0 | BS96: 3.33 | BT96: 0 | BU96: 2.51 | BV96: 0 | BW96: -4.6 | BX96: 0 | BY96: -0.32
A97: SE14-2013apr | B97: 3.1 Sončne elektrarne - na stavbah 2013 april | D97: velika - nad 10MW do vključno 125MW | E97: SE14 | T97: 93.46 | U97: 0 | V97: 93.46 | W97: 93.46 | X97: 0 | Y97: 93.46 | Z97: 93.46 | AA97: 0 | AB97: 93.46 | AC97: 93.46 | AD97: 0 | AE97: 93.46 | AF97: 93.46 | AG97: 0 | AH97: 93.46 | AI97: 93.46 | AJ97: 0 | AK97: 93.46 | AL97: 1 | AY97: (ni ZO) | AZ97: 42.8 | BA97: (ni ZO) | BB97: 50.15 | BC97: (ni ZO) | BD97: 53.81 | BE97: (ni ZO) | BF97: 56.57 | BG97: (ni ZO) | BH97: 51.52 | BI97: (ni ZO) | BJ97: 51.16 | BL97: (ni podpore 2011/2) | BM97: (ni podpore 2011/2) | BN97: (ni podpore 2011/2) | BO97: (ni podpore 2011/2) | BP97: (ni ZO) | BQ97: 7.35 | BR97: (ni ZO) | BS97: 3.66 | BT97: (ni ZO) | BU97: 2.76 | BV97: (ni ZO) | BW97: -5.05 | BX97: (ni ZO) | BY97: -0.36
A98: SE21-2013apr | B98: 3.2 Sončne elektrarne - ostale 2013 april | D98: mikro - manjše od 50kW | E98: SE21 | T98: 130.01 | U98: 0 | V98: 130.01 | W98: 130.01 | X98: 0 | Y98: 130.01 | Z98: 130.01 | AA98: 0 | AB98: 130.01 | AC98: 130.01 | AD98: 0 | AE98: 130.01 | AF98: 130.01 | AG98: 0 | AH98: 130.01 | AI98: 130.01 | AJ98: 0 | AK98: 130.01 | AL98: 0.88 | AY98: =T98+U98 -> 130.01 | AZ98: =ROUND((T98+U98)-AL98*$J$326,2) -> 85.43 | BA98: =W98+X98 -> 130.01 | BB98: 91.9 | BC98: =+Z98+AA98 -> 130.01 | BD98: 95.12 | BE98: =+AC98+AD98 -> 130.01 | BF98: 97.55 | BG98: =+AH98 -> 130.01 | BH98: 93.1 | BI98: =+AK98 -> 130.01 | BJ98: 92.79 | BL98: (ni podpore 2011/2) | BM98: (ni podpore 2011/2) | BN98: (ni podpore 2011/2) | BO98: (ni podpore 2011/2) | BP98: =BA98-AY98 -> 0 | BQ98: 6.47 | BR98: 0 | BS98: 3.22 | BT98: 0 | BU98: 2.43 | BV98: =BG98-BE98 -> 0 | BW98: -4.45 | BX98: =BI98-BG98 -> 0 | BY98: -0.31
A99: SE22-2013apr | B99: 3.2 Sončne elektrarne - ostale 2013 april | D99: mala - manjše od 1MW | E99: SE22 | T99: 119.78 | U99: 0 | V99: 119.78 | W99: 119.78 | X99: 0 | Y99: 119.78 | Z99: 119.78 | AA99: 0 | AB99: 119.78 | AC99: 119.78 | AD99: 0 | AE99: 119.78 | AF99: 119.78 | AG99: 0 | AH99: 119.78 | AI99: 119.78 | AJ99: 0 | AK99: 119.78 | AL99: 0.88 | AY99: =T99+U99 -> 119.78 | AZ99: 75.2 | BA99: =W99+X99 -> 119.78 | BB99: 81.67 | BC99: =+Z99+AA99 -> 119.78 | BD99: 84.89 | BE99: =+AC99+AD99 -> 119.78 | BF99: 87.32 | BG99: =+AH99 -> 119.78 | BH99: 82.87 | BI99: 119.78 | BJ99: 82.56 | BL99: (ni podpore 2011/2) | BM99: (ni podpore 2011/2) | BN99: (ni podpore 2011/2) | BO99: (ni podpore 2011/2) | BP99: 0 | BQ99: 6.47 | BR99: 0 | BS99: 3.22 | BT99: 0 | BU99: 2.43 | BV99: 0 | BW99: -4.45 | BX99: 0 | BY99: -0.31
A100: SE23-2013apr | B100: 3.2 Sončne elektrarne - ostale 2013 april | D100: srednja - od 1MW do vključno 10MW | E100: SE23 | T100: 96.56 | U100: 0 | V100: 96.56 | W100: 96.56 | X100: 0 | Y100: 96.56 | Z100: 96.56 | AA100: 0 | AB100: 96.56 | AC100: 96.56 | AD100: 0 | AE100: 96.56 | AF100: 96.56 | AG100: 0 | AH100: 96.56 | AI100: 96.56 | AJ100: 0 | AK100: 96.56 | AL100: 0.91 | AY100: =T100+U100 -> 96.56 | AZ100: 50.46 | BA100: =W100+X100 -> 96.56 | BB100: 57.15 | BC100: =+Z100+AA100 -> 96.56 | BD100: 60.48 | BE100: =+AC100+AD100 -> 96.56 | BF100: 62.99 | BG100: =+AH100 -> 96.56 | BH100: 58.39 | BI100: 96.56 | BJ100: 58.07 | BL100: (ni podpore 2011/2) | BM100: (ni podpore 2011/2) | BN100: (ni podpore 2011/2) | BO100: (ni podpore 2011/2) | BP100: 0 | BQ100: 6.69 | BR100: 0 | BS100: 3.33 | BT100: 0 | BU100: 2.51 | BV100: 0 | BW100: -4.6 | BX100: 0 | BY100: -0.32
A101: SE24-2013apr | B101: 3.2 Sončne elektrarne - ostale 2013 april | D101: velika - nad 10MW do vključno 125MW | E101: SE24 | T101: 89.65 | U101: 0 | V101: 89.65 | W101: 89.65 | X101: 0 | Y101: 89.65 | Z101: 89.65 | AA101: 0 | AB101: 89.65 | AC101: 89.65 | AD101: 0 | AE101: 89.65 | AF101: 89.65 | AG101: 0 | AH101: 89.65 | AI101: 89.65 | AJ101: 0 | AK101: 89.65 | AL101: 1 | AY101: (ni ZO) | AZ101: 38.99 | BA101: (ni ZO) | BB101: 46.34 | BC101: (ni ZO) | BD101: 50 | BE101: (ni ZO) | BF101: 52.76 | BG101: (ni ZO) | BH101: 47.71 | BI101: (ni ZO) | BJ101: 47.35 | BL101: (ni podpore 2011/2) | BM101: (ni podpore 2011/2) | BN101: (ni podpore 2011/2) | BO101: (ni podpore 2011/2) | BP101: (ni ZO) | BQ101: 7.35 | BR101: (ni ZO) | BS101: 3.66 | BT101: (ni ZO) | BU101: 2.76 | BV101: (ni ZO) | BW101: -5.05 | BX101: (ni ZO) | BY101: -0.36
A102: SE11-2013maj | B102: 3.1 Sončne elektrarne - na stavbah 2013 maj | D102: mikro - manjše od 50kW | E102: SE11 | T102: 135.59 | U102: 0 | V102: 135.59 | W102: 135.59 | X102: 0 | Y102: 135.59 | Z102: 135.59 | AA102: 0 | AB102: 135.59 | AC102: 135.59 | AD102: 0 | AE102: 135.59 | AF102: 135.59 | AG102: 0 | AH102: 135.59 | AI102: 135.59 | AJ102: 0 | AK102: 135.59 | AL102: 0.88 | AY102: =T102+U102 -> 135.59 | AZ102: 91.01 | BA102: =W102+X102 -> 135.59 | BB102: 97.48 | BC102: =+Z102+AA102 -> 135.59 | BD102: 100.7 | BE102: =+AC102+AD102 -> 135.59 | BF102: 103.13 | BG102: =+AH102 -> 135.59 | BH102: 98.68 | BI102: =+AK102 -> 135.59 | BJ102: 98.37 | BL102: (ni podpore 2011/2) | BM102: (ni podpore 2011/2) | BN102: (ni podpore 2011/2) | BO102: (ni podpore 2011/2) | BP102: =BA102-AY102 -> 0 | BQ102: 6.47 | BR102: 0 | BS102: 3.22 | BT102: 0 | BU102: 2.43 | BV102: =BG102-BE102 -> 0 | BW102: -4.45 | BX102: =BI102-BG102 -> 0 | BY102: -0.31
A103: SE12-2013maj | B103: 3.1 Sončne elektrarne - na stavbah 2013 maj | D103: mala - manjše od 1MW | E103: SE12 | T103: 124.01 | U103: 0 | V103: 124.01 | W103: 124.01 | X103: 0 | Y103: 124.01 | Z103: 124.01 | AA103: 0 | AB103: 124.01 | AC103: 124.01 | AD103: 0 | AE103: 124.01 | AF103: 124.01 | AG103: 0 | AH103: 124.01 | AI103: 124.01 | AJ103: 0 | AK103: 124.01 | AL103: 0.88 | AY103: =T103+U103 -> 124.01 | AZ103: 79.43 | BA103: =W103+X103 -> 124.01 | BB103: 85.9 | BC103: =+Z103+AA103 -> 124.01 | BD103: 89.12 | BE103: =+AC103+AD103 -> 124.01 | BF103: 91.55 | BG103: =+AH103 -> 124.01 | BH103: 87.1 | BI103: 124.01 | BJ103: 86.79 | BL103: (ni podpore 2011/2) | BM103: (ni podpore 2011/2) | BN103: (ni podpore 2011/2) | BO103: (ni podpore 2011/2) | BP103: 0 | BQ103: 6.47 | BR103: 0 | BS103: 3.22 | BT103: 0 | BU103: 2.43 | BV103: 0 | BW103: -4.45 | BX103: 0 | BY103: -0.31
A104: SE13-2013maj | B104: 3.1 Sončne elektrarne - na stavbah 2013 maj | D104: srednja - od 1MW do vključno 10MW | E104: SE13 | T104: 102.91 | U104: 0 | V104: 102.91 | W104: 102.91 | X104: 0 | Y104: 102.91 | Z104: 102.91 | AA104: 0 | AB104: 102.91 | AC104: 102.91 | AD104: 0 | AE104: 102.91 | AF104: 102.91 | AG104: 0 | AH104: 102.91 | AI104: 102.91 | AJ104: 0 | AK104: 102.91 | AL104: 0.91 | AY104: =T104+U104 -> 102.91 | AZ104: 56.81 | BA104: =W104+X104 -> 102.91 | BB104: 63.5 | BC104: =+Z104+AA104 -> 102.91 | BD104: 66.83 | BE104: =+AC104+AD104 -> 102.91 | BF104: 69.34 | BG104: =+AH104 -> 102.91 | BH104: 64.74 | BI104: 102.91 | BJ104: 64.42 | BL104: (ni podpore 2011/2) | BM104: (ni podpore 2011/2) | BN104: (ni podpore 2011/2) | BO104: (ni podpore 2011/2) | BP104: 0 | BQ104: 6.69 | BR104: 0 | BS104: 3.33 | BT104: 0 | BU104: 2.51 | BV104: 0 | BW104: -4.6 | BX104: 0 | BY104: -0.32
A105: SE14-2013maj | B105: 3.1 Sončne elektrarne - na stavbah 2013 maj | D105: velika - nad 10MW do vključno 125MW | E105: SE14 | T105: 91.59 | U105: 0 | V105: 91.59 | W105: 91.59 | X105: 0 | Y105: 91.59 | Z105: 91.59 | AA105: 0 | AB105: 91.59 | AC105: 91.59 | AD105: 0 | AE105: 91.59 | AF105: 91.59 | AG105: 0 | AH105: 91.59 | AI105: 91.59 | AJ105: 0 | AK105: 91.59 | AL105: 1 | AY105: (ni ZO) | AZ105: 40.93 | BA105: (ni ZO) | BB105: 48.28 | BC105: (ni ZO) | BD105: 51.94 | BE105: (ni ZO) | BF105: 54.7 | BG105: (ni ZO) | BH105: 49.65 | BI105: (ni ZO) | BJ105: 49.29 | BL105: (ni podpore 2011/2) | BM105: (ni podpore 2011/2) | BN105: (ni podpore 2011/2) | BO105: (ni podpore 2011/2) | BP105: (ni ZO) | BQ105: 7.35 | BR105: (ni ZO) | BS105: 3.66 | BT105: (ni ZO) | BU105: 2.76 | BV105: (ni ZO) | BW105: -5.05 | BX105: (ni ZO) | BY105: -0.36
A106: SE21-2013maj | B106: 3.2 Sončne elektrarne - ostale 2013 maj | D106: mikro - manjše od 50kW | E106: SE21 | T106: 127.41 | U106: 0 | V106: 127.41 | W106: 127.41 | X106: 0 | Y106: 127.41 | Z106: 127.41 | AA106: 0 | AB106: 127.41 | AC106: 127.41 | AD106: 0 | AE106: 127.41 | AF106: 127.41 | AG106: 0 | AH106: 127.41 | AI106: 127.41 | AJ106: 0 | AK106: 127.41 | AL106: 0.88 | AY106: =T106+U106 -> 127.41 | AZ106: 82.83 | BA106: =W106+X106 -> 127.41 | BB106: 89.3 | BC106: =+Z106+AA106 -> 127.41 | BD106: 92.52 | BE106: =+AC106+AD106 -> 127.41 | BF106: 94.95 | BG106: =+AH106 -> 127.41 | BH106: 90.5 | BI106: =+AK106 -> 127.41 | BJ106: 90.19 | BL106: (ni podpore 2011/2) | BM106: (ni podpore 2011/2) | BN106: (ni podpore 2011/2) | BO106: (ni podpore 2011/2) | BP106: =BA106-AY106 -> 0 | BQ106: 6.47 | BR106: 0 | BS106: 3.22 | BT106: 0 | BU106: 2.43 | BV106: =BG106-BE106 -> 0 | BW106: -4.45 | BX106: =BI106-BG106 -> 0 | BY106: -0.31
A107: SE22-2013maj | B107: 3.2 Sončne elektrarne - ostale 2013 maj | D107: mala - manjše od 1MW | E107: SE22 | T107: 117.38 | U107: 0 | V107: 117.38 | W107: 117.38 | X107: 0 | Y107: 117.38 | Z107: 117.38 | AA107: 0 | AB107: 117.38 | AC107: 117.38 | AD107: 0 | AE107: 117.38 | AF107: 117.38 | AG107: 0 | AH107: 117.38 | AI107: 117.38 | AJ107: 0 | AK107: 117.38 | AL107: 0.88 | AY107: =T107+U107 -> 117.38 | AZ107: 72.8 | BA107: =W107+X107 -> 117.38 | BB107: 79.27 | BC107: =+Z107+AA107 -> 117.38 | BD107: 82.49 | BE107: =+AC107+AD107 -> 117.38 | BF107: 84.92 | BG107: =+AH107 -> 117.38 | BH107: 80.47 | BI107: 117.38 | BJ107: 80.16 | BL107: (ni podpore 2011/2) | BM107: (ni podpore 2011/2) | BN107: (ni podpore 2011/2) | BO107: (ni podpore 2011/2) | BP107: 0 | BQ107: 6.47 | BR107: 0 | BS107: 3.22 | BT107: 0 | BU107: 2.43 | BV107: 0 | BW107: -4.45 | BX107: 0 | BY107: -0.31
A108: SE23-2013maj | B108: 3.2 Sončne elektrarne - ostale 2013 maj | D108: srednja - od 1MW do vključno 10MW | E108: SE23 | T108: 94.63 | U108: 0 | V108: 94.63 | W108: 94.63 | X108: 0 | Y108: 94.63 | Z108: 94.63 | AA108: 0 | AB108: 94.63 | AC108: 94.63 | AD108: 0 | AE108: 94.63 | AF108: 94.63 | AG108: 0 | AH108: 94.63 | AI108: 94.63 | AJ108: 0 | AK108: 94.63 | AL108: 0.91 | AY108: =T108+U108 -> 94.63 | AZ108: 48.53 | BA108: =W108+X108 -> 94.63 | BB108: 55.22 | BC108: =+Z108+AA108 -> 94.63 | BD108: 58.55 | BE108: =+AC108+AD108 -> 94.63 | BF108: 61.06 | BG108: =+AH108 -> 94.63 | BH108: 56.46 | BI108: 94.63 | BJ108: 56.14 | BL108: (ni podpore 2011/2) | BM108: (ni podpore 2011/2) | BN108: (ni podpore 2011/2) | BO108: (ni podpore 2011/2) | BP108: 0 | BQ108: 6.69 | BR108: 0 | BS108: 3.33 | BT108: 0 | BU108: 2.51 | BV108: 0 | BW108: -4.6 | BX108: 0 | BY108: -0.32
A109: SE24-2013maj | B109: 3.2 Sončne elektrarne - ostale 2013 maj | D109: velika - nad 10MW do vključno 125MW | E109: SE24 | T109: 87.86 | U109: 0 | V109: 87.86 | W109: 87.86 | X109: 0 | Y109: 87.86 | Z109: 87.86 | AA109: 0 | AB109: 87.86 | AC109: 87.86 | AD109: 0 | AE109: 87.86 | AF109: 87.86 | AG109: 0 | AH109: 87.86 | AI109: 87.86 | AJ109: 0 | AK109: 87.86 | AL109: 1 | AY109: (ni ZO) | AZ109: 37.2 | BA109: (ni ZO) | BB109: 44.55 | BC109: (ni ZO) | BD109: 48.21 | BE109: (ni ZO) | BF109: 50.97 | BG109: (ni ZO) | BH109: 45.92 | BI109: (ni ZO) | BJ109: 45.56 | BL109: (ni podpore 2011/2) | BM109: (ni podpore 2011/2) | BN109: (ni podpore 2011/2) | BO109: (ni podpore 2011/2) | BP109: (ni ZO) | BQ109: 7.35 | BR109: (ni ZO) | BS109: 3.66 | BT109: (ni ZO) | BU109: 2.76 | BV109: (ni ZO) | BW109: -5.05 | BX109: (ni ZO) | BY109: -0.36
A110: SE11-2013jun | B110: 3.1 Sončne elektrarne - na stavbah 2013 junij | D110: mikro - manjše od 50kW | E110: SE11 | T110: 132.88 | U110: 0 | V110: 132.88 | W110: 132.88 | X110: 0 | Y110: 132.88 | Z110: 132.88 | AA110: 0 | AB110: 132.88 | AC110: 132.88 | AD110: 0 | AE110: 132.88 | AF110: 132.88 | AG110: 0 | AH110: 132.88 | AI110: 132.88 | AJ110: 0 | AK110: 132.88 | AL110: 0.88 | AY110: =T110+U110 -> 132.88 | AZ110: 88.3 | BA110: =W110+X110 -> 132.88 | BB110: 94.77 | BC110: =+Z110+AA110 -> 132.88 | BD110: 97.99 | BE110: =+AC110+AD110 -> 132.88 | BF110: 100.42 | BG110: =+AH110 -> 132.88 | BH110: 95.97 | BI110: =+AK110 -> 132.88 | BJ110: 95.66 | BL110: (ni podpore 2011/2) | BM110: (ni podpore 2011/2) | BN110: (ni podpore 2011/2) | BO110: (ni podpore 2011/2) | BP110: =BA110-AY110 -> 0 | BQ110: 6.47 | BR110: 0 | BS110: 3.22 | BT110: 0 | BU110: 2.43 | BV110: =BG110-BE110 -> 0 | BW110: -4.45 | BX110: =BI110-BG110 -> 0 | BY110: -0.31
A111: SE12-2013jun | B111: 3.1 Sončne elektrarne - na stavbah 2013 junij | D111: mala - manjše od 1MW | E111: SE12 | T111: 121.53 | U111: 0 | V111: 121.53 | W111: 121.53 | X111: 0 | Y111: 121.53 | Z111: 121.53 | AA111: 0 | AB111: 121.53 | AC111: 121.53 | AD111: 0 | AE111: 121.53 | AF111: 121.53 | AG111: 0 | AH111: 121.53 | AI111: 121.53 | AJ111: 0 | AK111: 121.53 | AL111: 0.88 | AY111: =T111+U111 -> 121.53 | AZ111: 76.95 | BA111: =W111+X111 -> 121.53 | BB111: 83.42 | BC111: =+Z111+AA111 -> 121.53 | BD111: 86.64 | BE111: =+AC111+AD111 -> 121.53 | BF111: 89.07 | BG111: =+AH111 -> 121.53 | BH111: 84.62 | BI111: 121.53 | BJ111: 84.31 | BL111: (ni podpore 2011/2) | BM111: (ni podpore 2011/2) | BN111: (ni podpore 2011/2) | BO111: (ni podpore 2011/2) | BP111: 0 | BQ111: 6.47 | BR111: 0 | BS111: 3.22 | BT111: 0 | BU111: 2.43 | BV111: 0 | BW111: -4.45 | BX111: 0 | BY111: -0.31
A112: SE13-2013jun | B112: 3.1 Sončne elektrarne - na stavbah 2013 junij | D112: srednja - od 1MW do vključno 10MW | E112: SE13 | T112: 100.85 | U112: 0 | V112: 100.85 | W112: 100.85 | X112: 0 | Y112: 100.85 | Z112: 100.85 | AA112: 0 | AB112: 100.85 | AC112: 100.85 | AD112: 0 | AE112: 100.85 | AF112: 100.85 | AG112: 0 | AH112: 100.85 | AI112: 100.85 | AJ112: 0 | AK112: 100.85 | AL112: 0.91 | AY112: =T112+U112 -> 100.85 | AZ112: 54.75 | BA112: =W112+X112 -> 100.85 | BB112: 61.44 | BC112: =+Z112+AA112 -> 100.85 | BD112: 64.77 | BE112: =+AC112+AD112 -> 100.85 | BF112: 67.28 | BG112: =+AH112 -> 100.85 | BH112: 62.68 | BI112: 100.85 | BJ112: 62.36 | BL112: (ni podpore 2011/2) | BM112: (ni podpore 2011/2) | BN112: (ni podpore 2011/2) | BO112: (ni podpore 2011/2) | BP112: 0 | BQ112: 6.69 | BR112: 0 | BS112: 3.33 | BT112: 0 | BU112: 2.51 | BV112: 0 | BW112: -4.6 | BX112: 0 | BY112: -0.32
A113: SE14-2013jun | B113: 3.1 Sončne elektrarne - na stavbah 2013 junij | D113: velika - nad 10MW do vključno 125MW | E113: SE14 | T113: 89.76 | U113: 0 | V113: 89.76 | W113: 89.76 | X113: 0 | Y113: 89.76 | Z113: 89.76 | AA113: 0 | AB113: 89.76 | AC113: 89.76 | AD113: 0 | AE113: 89.76 | AF113: 89.76 | AG113: 0 | AH113: 89.76 | AI113: 89.76 | AJ113: 0 | AK113: 89.76 | AL113: 1 | AY113: (ni ZO) | AZ113: 39.1 | BA113: (ni ZO) | BB113: 46.45 | BC113: (ni ZO) | BD113: 50.11 | BE113: (ni ZO) | BF113: 52.87 | BG113: (ni ZO) | BH113: 47.82 | BI113: (ni ZO) | BJ113: 47.46 | BL113: (ni podpore 2011/2) | BM113: (ni podpore 2011/2) | BN113: (ni podpore 2011/2) | BO113: (ni podpore 2011/2) | BP113: (ni ZO) | BQ113: 7.35 | BR113: (ni ZO) | BS113: 3.66 | BT113: (ni ZO) | BU113: 2.76 | BV113: (ni ZO) | BW113: -5.05 | BX113: (ni ZO) | BY113: -0.36
A114: SE21-2013jun | B114: 3.2 Sončne elektrarne - ostale 2013 junij | D114: mikro - manjše od 50kW | E114: SE21 | T114: 124.86 | U114: 0 | V114: 124.86 | W114: 124.86 | X114: 0 | Y114: 124.86 | Z114: 124.86 | AA114: 0 | AB114: 124.86 | AC114: 124.86 | AD114: 0 | AE114: 124.86 | AF114: 124.86 | AG114: 0 | AH114: 124.86 | AI114: 124.86 | AJ114: 0 | AK114: 124.86 | AL114: 0.88 | AY114: =T114+U114 -> 124.86 | AZ114: 80.28 | BA114: =W114+X114 -> 124.86 | BB114: 86.75 | BC114: =+Z114+AA114 -> 124.86 | BD114: 89.97 | BE114: =+AC114+AD114 -> 124.86 | BF114: 92.4 | BG114: =+AH114 -> 124.86 | BH114: 87.95 | BI114: =+AK114 -> 124.86 | BJ114: 87.64 | BL114: (ni podpore 2011/2) | BM114: (ni podpore 2011/2) | BN114: (ni podpore 2011/2) | BO114: (ni podpore 2011/2) | BP114: =BA114-AY114 -> 0 | BQ114: 6.47 | BR114: 0 | BS114: 3.22 | BT114: 0 | BU114: 2.43 | BV114: =BG114-BE114 -> 0 | BW114: -4.45 | BX114: =BI114-BG114 -> 0 | BY114: -0.31
A115: SE22-2013jun | B115: 3.2 Sončne elektrarne - ostale 2013 junij | D115: mala - manjše od 1MW | E115: SE22 | T115: 115.03 | U115: 0 | V115: 115.03 | W115: 115.03 | X115: 0 | Y115: 115.03 | Z115: 115.03 | AA115: 0 | AB115: 115.03 | AC115: 115.03 | AD115: 0 | AE115: 115.03 | AF115: 115.03 | AG115: 0 | AH115: 115.03 | AI115: 115.03 | AJ115: 0 | AK115: 115.03 | AL115: 0.88 | AY115: =T115+U115 -> 115.03 | AZ115: 70.45 | BA115: =W115+X115 -> 115.03 | BB115: 76.92 | BC115: =+Z115+AA115 -> 115.03 | BD115: 80.14 | BE115: =+AC115+AD115 -> 115.03 | BF115: 82.57 | BG115: =+AH115 -> 115.03 | BH115: 78.12 | BI115: 115.03 | BJ115: 77.81 | BL115: (ni podpore 2011/2) | BM115: (ni podpore 2011/2) | BN115: (ni podpore 2011/2) | BO115: (ni podpore 2011/2) | BP115: 0 | BQ115: 6.47 | BR115: 0 | BS115: 3.22 | BT115: 0 | BU115: 2.43 | BV115: 0 | BW115: -4.45 | BX115: 0 | BY115: -0.31
A116: SE23-2013jun | B116: 3.2 Sončne elektrarne - ostale 2013 junij | D116: srednja - od 1MW do vključno 10MW | E116: SE23 | T116: 92.74 | U116: 0 | V116: 92.74 | W116: 92.74 | X116: 0 | Y116: 92.74 | Z116: 92.74 | AA116: 0 | AB116: 92.74 | AC116: 92.74 | AD116: 0 | AE116: 92.74 | AF116: 92.74 | AG116: 0 | AH116: 92.74 | AI116: 92.74 | AJ116: 0 | AK116: 92.74 | AL116: 0.91 | AY116: =T116+U116 -> 92.74 | AZ116: 46.64 | BA116: =W116+X116 -> 92.74 | BB116: 53.33 | BC116: =+Z116+AA116 -> 92.74 | BD116: 56.66 | BE116: =+AC116+AD116 -> 92.74 | BF116: 59.17 | BG116: =+AH116 -> 92.74 | BH116: 54.57 | BI116: 92.74 | BJ116: 54.25 | BL116: (ni podpore 2011/2) | BM116: (ni podpore 2011/2) | BN116: (ni podpore 2011/2) | BO116: (ni podpore 2011/2) | BP116: 0 | BQ116: 6.69 | BR116: 0 | BS116: 3.33 | BT116: 0 | BU116: 2.51 | BV116: 0 | BW116: -4.6 | BX116: 0 | BY116: -0.32
A117: SE24-2013jun | B117: 3.2 Sončne elektrarne - ostale 2013 junij | D117: velika - nad 10MW do vključno 125MW | E117: SE24 | T117: 86.1 | U117: 0 | V117: 86.1 | W117: 86.1 | X117: 0 | Y117: 86.1 | Z117: 86.1 | AA117: 0 | AB117: 86.1 | AC117: 86.1 | AD117: 0 | AE117: 86.1 | AF117: 86.1 | AG117: 0 | AH117: 86.1 | AI117: 86.1 | AJ117: 0 | AK117: 86.1 | AL117: 1 | AY117: (ni ZO) | AZ117: 35.44 | BA117: (ni ZO) | BB117: 42.79 | BC117: (ni ZO) | BD117: 46.45 | BE117: (ni ZO) | BF117: 49.21 | BG117: (ni ZO) | BH117: 44.16 | BI117: (ni ZO) | BJ117: 43.8 | BL117: (ni podpore 2011/2) | BM117: (ni podpore 2011/2) | BN117: (ni podpore 2011/2) | BO117: (ni podpore 2011/2) | BP117: (ni ZO) | BQ117: 7.35 | BR117: (ni ZO) | BS117: 3.66 | BT117: (ni ZO) | BU117: 2.76 | BV117: (ni ZO) | BW117: -5.05 | BX117: (ni ZO) | BY117: -0.36
A118: SE11-2013jul | B118: 3.1 Sončne elektrarne - na stavbah 2013 julij | D118: mikro - manjše od 50kW | E118: SE11 | T118: 130.22 | U118: 0 | V118: 130.22 | W118: 130.22 | X118: 0 | Y118: 130.22 | Z118: 130.22 | AA118: 0 | AB118: 130.22 | AC118: 130.22 | AD118: 0 | AE118: 130.22 | AF118: 130.22 | AG118: 0 | AH118: 130.22 | AI118: 130.22 | AJ118: 0 | AK118: 130.22 | AL118: 0.88 | AY118: =T118+U118 -> 130.22 | AZ118: 85.64 | BA118: =W118+X118 -> 130.22 | BB118: 92.11 | BC118: =+Z118+AA118 -> 130.22 | BD118: 95.33 | BE118: =+AC118+AD118 -> 130.22 | BF118: 97.76 | BG118: =+AH118 -> 130.22 | BH118: 93.31 | BI118: =+AK118 -> 130.22 | BJ118: 93 | BL118: (ni podpore 2011/2) | BM118: (ni podpore 2011/2) | BN118: (ni podpore 2011/2) | BO118: (ni podpore 2011/2) | BP118: =BA118-AY118 -> 0 | BQ118: 6.47 | BR118: 0 | BS118: 3.22 | BT118: 0 | BU118: 2.43 | BV118: =BG118-BE118 -> 0 | BW118: -4.45 | BX118: =BI118-BG118 -> 0 | BY118: -0.31
A119: SE12-2013jul | B119: 3.1 Sončne elektrarne - na stavbah 2013 julij | D119: mala - manjše od 1MW | E119: SE12 | T119: 119.1 | U119: 0 | V119: 119.1 | W119: 119.1 | X119: 0 | Y119: 119.1 | Z119: 119.1 | AA119: 0 | AB119: 119.1 | AC119: 119.1 | AD119: 0 | AE119: 119.1 | AF119: 119.1 | AG119: 0 | AH119: 119.1 | AI119: 119.1 | AJ119: 0 | AK119: 119.1 | AL119: 0.88 | AY119: =T119+U119 -> 119.1 | AZ119: 74.52 | BA119: =W119+X119 -> 119.1 | BB119: 80.99 | BC119: =+Z119+AA119 -> 119.1 | BD119: 84.21 | BE119: =+AC119+AD119 -> 119.1 | BF119: 86.64 | BG119: =+AH119 -> 119.1 | BH119: 82.19 | BI119: 119.1 | BJ119: 81.88 | BL119: (ni podpore 2011/2) | BM119: (ni podpore 2011/2) | BN119: (ni podpore 2011/2) | BO119: (ni podpore 2011/2) | BP119: 0 | BQ119: 6.47 | BR119: 0 | BS119: 3.22 | BT119: 0 | BU119: 2.43 | BV119: 0 | BW119: -4.45 | BX119: 0 | BY119: -0.31
A120: SE13-2013jul | B120: 3.1 Sončne elektrarne - na stavbah 2013 julij | D120: srednja - od 1MW do vključno 10MW | E120: SE13 | T120: 98.83 | U120: 0 | V120: 98.83 | W120: 98.83 | X120: 0 | Y120: 98.83 | Z120: 98.83 | AA120: 0 | AB120: 98.83 | AC120: 98.83 | AD120: 0 | AE120: 98.83 | AF120: 98.83 | AG120: 0 | AH120: 98.83 | AI120: 98.83 | AJ120: 0 | AK120: 98.83 | AL120: 0.91 | AY120: =T120+U120 -> 98.83 | AZ120: 52.73 | BA120: =W120+X120 -> 98.83 | BB120: 59.42 | BC120: =+Z120+AA120 -> 98.83 | BD120: 62.75 | BE120: =+AC120+AD120 -> 98.83 | BF120: 65.26 | BG120: =+AH120 -> 98.83 | BH120: 60.66 | BI120: 98.83 | BJ120: 60.34 | BL120: (ni podpore 2011/2) | BM120: (ni podpore 2011/2) | BN120: (ni podpore 2011/2) | BO120: (ni podpore 2011/2) | BP120: 0 | BQ120: 6.69 | BR120: 0 | BS120: 3.33 | BT120: 0 | BU120: 2.51 | BV120: 0 | BW120: -4.6 | BX120: 0 | BY120: -0.32
A121: SE14-2013jul | B121: 3.1 Sončne elektrarne - na stavbah 2013 julij | D121: velika - nad 10MW do vključno 125MW | E121: SE14 | T121: 87.96 | U121: 0 | V121: 87.96 | W121: 87.96 | X121: 0 | Y121: 87.96 | Z121: 87.96 | AA121: 0 | AB121: 87.96 | AC121: 87.96 | AD121: 0 | AE121: 87.96 | AF121: 87.96 | AG121: 0 | AH121: 87.96 | AI121: 87.96 | AJ121: 0 | AK121: 87.96 | AL121: 1 | AY121: (ni ZO) | AZ121: 37.3 | BA121: (ni ZO) | BB121: 44.65 | BC121: (ni ZO) | BD121: 48.31 | BE121: (ni ZO) | BF121: 51.07 | BG121: (ni ZO) | BH121: 46.02 | BI121: (ni ZO) | BJ121: 45.66 | BL121: (ni podpore 2011/2) | BM121: (ni podpore 2011/2) | BN121: (ni podpore 2011/2) | BO121: (ni podpore 2011/2) | BP121: (ni ZO) | BQ121: 7.35 | BR121: (ni ZO) | BS121: 3.66 | BT121: (ni ZO) | BU121: 2.76 | BV121: (ni ZO) | BW121: -5.05 | BX121: (ni ZO) | BY121: -0.36
A122: SE21-2013jul | B122: 3.2 Sončne elektrarne - ostale 2013 julij | D122: mikro - manjše od 50kW | E122: SE21 | T122: 122.36 | U122: 0 | V122: 122.36 | W122: 122.36 | X122: 0 | Y122: 122.36 | Z122: 122.36 | AA122: 0 | AB122: 122.36 | AC122: 122.36 | AD122: 0 | AE122: 122.36 | AF122: 122.36 | AG122: 0 | AH122: 122.36 | AI122: 122.36 | AJ122: 0 | AK122: 122.36 | AL122: 0.88 | AY122: =T122+U122 -> 122.36 | AZ122: 77.78 | BA122: =W122+X122 -> 122.36 | BB122: 84.25 | BC122: =+Z122+AA122 -> 122.36 | BD122: 87.47 | BE122: =+AC122+AD122 -> 122.36 | BF122: 89.9 | BG122: =+AH122 -> 122.36 | BH122: 85.45 | BI122: =+AK122 -> 122.36 | BJ122: 85.14 | BL122: (ni podpore 2011/2) | BM122: (ni podpore 2011/2) | BN122: (ni podpore 2011/2) | BO122: (ni podpore 2011/2) | BP122: =BA122-AY122 -> 0 | BQ122: 6.47 | BR122: 0 | BS122: 3.22 | BT122: 0 | BU122: 2.43 | BV122: =BG122-BE122 -> 0 | BW122: -4.45 | BX122: =BI122-BG122 -> 0 | BY122: -0.31
A123: SE22-2013jul | B123: 3.2 Sončne elektrarne - ostale 2013 julij | D123: mala - manjše od 1MW | E123: SE22 | T123: 112.73 | U123: 0 | V123: 112.73 | W123: 112.73 | X123: 0 | Y123: 112.73 | Z123: 112.73 | AA123: 0 | AB123: 112.73 | AC123: 112.73 | AD123: 0 | AE123: 112.73 | AF123: 112.73 | AG123: 0 | AH123: 112.73 | AI123: 112.73 | AJ123: 0 | AK123: 112.73 | AL123: 0.88 | AY123: =T123+U123 -> 112.73 | AZ123: 68.15 | BA123: =W123+X123 -> 112.73 | BB123: 74.62 | BC123: =+Z123+AA123 -> 112.73 | BD123: 77.84 | BE123: =+AC123+AD123 -> 112.73 | BF123: 80.27 | BG123: =+AH123 -> 112.73 | BH123: 75.82 | BI123: 112.73 | BJ123: 75.51 | BL123: (ni podpore 2011/2) | BM123: (ni podpore 2011/2) | BN123: (ni podpore 2011/2) | BO123: (ni podpore 2011/2) | BP123: 0 | BQ123: 6.47 | BR123: 0 | BS123: 3.22 | BT123: 0 | BU123: 2.43 | BV123: 0 | BW123: -4.45 | BX123: 0 | BY123: -0.31
A124: SE23-2013jul | B124: 3.2 Sončne elektrarne - ostale 2013 julij | D124: srednja - od 1MW do vključno 10MW | E124: SE23 | T124: 90.89 | U124: 0 | V124: 90.89 | W124: 90.89 | X124: 0 | Y124: 90.89 | Z124: 90.89 | AA124: 0 | AB124: 90.89 | AC124: 90.89 | AD124: 0 | AE124: 90.89 | AF124: 90.89 | AG124: 0 | AH124: 90.89 | AI124: 90.89 | AJ124: 0 | AK124: 90.89 | AL124: 0.91 | AY124: =T124+U124 -> 90.89 | AZ124: 44.79 | BA124: =W124+X124 -> 90.89 | BB124: 51.48 | BC124: =+Z124+AA124 -> 90.89 | BD124: 54.81 | BE124: =+AC124+AD124 -> 90.89 | BF124: 57.32 | BG124: =+AH124 -> 90.89 | BH124: 52.72 | BI124: 90.89 | BJ124: 52.4 | BL124: (ni podpore 2011/2) | BM124: (ni podpore 2011/2) | BN124: (ni podpore 2011/2) | BO124: (ni podpore 2011/2) | BP124: 0 | BQ124: 6.69 | BR124: 0 | BS124: 3.33 | BT124: 0 | BU124: 2.51 | BV124: 0 | BW124: -4.6 | BX124: 0 | BY124: -0.32
A125: SE24-2013jul | B125: 3.2 Sončne elektrarne - ostale 2013 julij | D125: velika - nad 10MW do vključno 125MW | E125: SE24 | T125: 84.38 | U125: 0 | V125: 84.38 | W125: 84.38 | X125: 0 | Y125: 84.38 | Z125: 84.38 | AA125: 0 | AB125: 84.38 | AC125: 84.38 | AD125: 0 | AE125: 84.38 | AF125: 84.38 | AG125: 0 | AH125: 84.38 | AI125: 84.38 | AJ125: 0 | AK125: 84.38 | AL125: 1 | AY125: (ni ZO) | AZ125: 33.72 | BA125: (ni ZO) | BB125: 41.07 | BC125: (ni ZO) | BD125: 44.73 | BE125: (ni ZO) | BF125: 47.49 | BG125: (ni ZO) | BH125: 42.44 | BI125: (ni ZO) | BJ125: 42.08 | BL125: (ni podpore 2011/2) | BM125: (ni podpore 2011/2) | BN125: (ni podpore 2011/2) | BO125: (ni podpore 2011/2) | BP125: (ni ZO) | BQ125: 7.35 | BR125: (ni ZO) | BS125: 3.66 | BT125: (ni ZO) | BU125: 2.76 | BV125: (ni ZO) | BW125: -5.05 | BX125: (ni ZO) | BY125: -0.36
A126: SE11-2013avg | B126: 3.1 Sončne elektrarne - na stavbah 2013 avgust | D126: mikro - manjše od 50kW | E126: SE11 | T126: 127.62 | U126: 0 | V126: 127.62 | W126: 127.62 | X126: 0 | Y126: 127.62 | Z126: 127.62 | AA126: 0 | AB126: 127.62 | AC126: 127.62 | AD126: 0 | AE126: 127.62 | AF126: 127.62 | AG126: 0 | AH126: 127.62 | AI126: 127.62 | AJ126: 0 | AK126: 127.62 | AL126: 0.88 | AY126: =T126+U126 -> 127.62 | AZ126: 83.04 | BA126: =W126+X126 -> 127.62 | BB126: 89.51 | BC126: =+Z126+AA126 -> 127.62 | BD126: 92.73 | BE126: =+AC126+AD126 -> 127.62 | BF126: 95.16 | BG126: =+AH126 -> 127.62 | BH126: 90.71 | BI126: =+AK126 -> 127.62 | BJ126: 90.4 | BL126: (ni podpore 2011/2) | BM126: (ni podpore 2011/2) | BN126: (ni podpore 2011/2) | BO126: (ni podpore 2011/2) | BP126: =BA126-AY126 -> 0 | BQ126: =BB126-AZ126 -> 6.47 | BR126: 0 | BS126: 3.22 | BT126: 0 | BU126: 2.43 | BV126: =BG126-BE126 -> 0 | BW126: -4.45 | BX126: =BI126-BG126 -> 0 | BY126: -0.31
A127: SE12-2013avg | B127: 3.1 Sončne elektrarne - na stavbah 2013 avgust | D127: mala - manjše od 1MW | E127: SE12 | T127: 116.72 | U127: 0 | V127: 116.72 | W127: 116.72 | X127: 0 | Y127: 116.72 | Z127: 116.72 | AA127: 0 | AB127: 116.72 | AC127: 116.72 | AD127: 0 | AE127: 116.72 | AF127: 116.72 | AG127: 0 | AH127: 116.72 | AI127: 116.72 | AJ127: 0 | AK127: 116.72 | AL127: 0.88 | AY127: =T127+U127 -> 116.72 | AZ127: 72.14 | BA127: =W127+X127 -> 116.72 | BB127: 78.61 | BC127: =+Z127+AA127 -> 116.72 | BD127: 81.83 | BE127: =+AC127+AD127 -> 116.72 | BF127: 84.26 | BG127: =+AH127 -> 116.72 | BH127: 79.81 | BI127: 116.72 | BJ127: 79.5 | BL127: (ni podpore 2011/2) | BM127: (ni podpore 2011/2) | BN127: (ni podpore 2011/2) | BO127: (ni podpore 2011/2) | BP127: 0 | BQ127: 6.47 | BR127: 0 | BS127: 3.22 | BT127: 0 | BU127: 2.43 | BV127: 0 | BW127: -4.45 | BX127: 0 | BY127: -0.31
A128: SE13-2013avg | B128: 3.1 Sončne elektrarne - na stavbah 2013 avgust | D128: srednja - od 1MW do vključno 10MW | E128: SE13 | T128: 96.85 | U128: 0 | V128: 96.85 | W128: 96.85 | X128: 0 | Y128: 96.85 | Z128: 96.85 | AA128: 0 | AB128: 96.85 | AC128: 96.85 | AD128: 0 | AE128: 96.85 | AF128: 96.85 | AG128: 0 | AH128: 96.85 | AI128: 96.85 | AJ128: 0 | AK128: 96.85 | AL128: 0.91 | AY128: =T128+U128 -> 96.85 | AZ128: 50.75 | BA128: =W128+X128 -> 96.85 | BB128: 57.44 | BC128: =+Z128+AA128 -> 96.85 | BD128: 60.77 | BE128: =+AC128+AD128 -> 96.85 | BF128: 63.28 | BG128: =+AH128 -> 96.85 | BH128: 58.68 | BI128: 96.85 | BJ128: 58.36 | BL128: (ni podpore 2011/2) | BM128: (ni podpore 2011/2) | BN128: (ni podpore 2011/2) | BO128: (ni podpore 2011/2) | BP128: 0 | BQ128: 6.69 | BR128: 0 | BS128: 3.33 | BT128: 0 | BU128: 2.51 | BV128: 0 | BW128: -4.6 | BX128: 0 | BY128: -0.32
A129: SE14-2013avg | B129: 3.1 Sončne elektrarne - na stavbah 2013 avgust | D129: velika - nad 10MW do vključno 125MW | E129: SE14 | T129: 86.2 | U129: 0 | V129: 86.2 | W129: 86.2 | X129: 0 | Y129: 86.2 | Z129: 86.2 | AA129: 0 | AB129: 86.2 | AC129: 86.2 | AD129: 0 | AE129: 86.2 | AF129: 86.2 | AG129: 0 | AH129: 86.2 | AI129: 86.2 | AJ129: 0 | AK129: 86.2 | AL129: 1 | AY129: (ni ZO) | AZ129: 35.54 | BA129: (ni ZO) | BB129: 42.89 | BC129: (ni ZO) | BD129: 46.55 | BE129: (ni ZO) | BF129: 49.31 | BG129: (ni ZO) | BH129: 44.26 | BI129: (ni ZO) | BJ129: 43.9 | BL129: (ni podpore 2011/2) | BM129: (ni podpore 2011/2) | BN129: (ni podpore 2011/2) | BO129: (ni podpore 2011/2) | BP129: (ni ZO) | BQ129: 7.35 | BR129: (ni ZO) | BS129: 3.66 | BT129: (ni ZO) | BU129: 2.76 | BV129: (ni ZO) | BW129: -5.05 | BX129: (ni ZO) | BY129: -0.36
A130: SE21-2013avg | B130: 3.2 Sončne elektrarne - ostale 2013 avgust | D130: mikro - manjše od 50kW | E130: SE21 | T130: 119.91 | U130: 0 | V130: 119.91 | W130: 119.91 | X130: 0 | Y130: 119.91 | Z130: =+W130 -> 119.91 | AA130: =+X130 -> 0 | AB130: =+Z130+AA130 -> 119.91 | AC130: 119.91 | AD130: 0 | AE130: 119.91 | AF130: 119.91 | AG130: 0 | AH130: 119.91 | AI130: 119.91 | AJ130: 0 | AK130: 119.91 | AL130: 0.88 | AY130: =T130+U130 -> 119.91 | AZ130: =ROUND((T130+U130)-AL130*$J$326,2) -> 75.33 | BA130: =W130+X130 -> 119.91 | BB130: =ROUND((W130+X130)-AL130*$I$326,2) -> 81.8 | BC130: =+Z130+AA130 -> 119.91 | BD130: =ROUND((Z130+AA130)-AL130*$H$326,2) -> 85.02 | BE130: =+AC130+AD130 -> 119.91 | BF130: =ROUND((AC130+AD130)-AL130*$G$326,2) -> 87.45 | BG130: =+AH130 -> 119.91 | BH130: =ROUND(AH130-AL130*$F$326,2) -> 83 | BI130: =+AK130 -> 119.91 | BJ130: 82.69 | BL130: (ni podpore 2011/2) | BM130: (ni podpore 2011/2) | BN130: (ni podpore 2011/2) | BO130: (ni podpore 2011/2) | BP130: =BA130-AY130 -> 0 | BQ130: 6.47 | BR130: 0 | BS130: 3.22 | BT130: =BE130-BC130 -> 0 | BU130: =BF130-BD130 -> 2.43 | BV130: =BG130-BE130 -> 0 | BW130: =BH130-BF130 -> -4.45 | BX130: =BI130-BG130 -> 0 | BY130: =BJ130-BH130 -> -0.31
A131: SE22-2013avg | B131: 3.2 Sončne elektrarne - ostale 2013 avgust | D131: mala - manjše od 1MW | E131: SE22 | T131: 110.48 | U131: 0 | V131: 110.48 | W131: 110.48 | X131: 0 | Y131: 110.48 | Z131: 110.48 | AA131: 0 | AB131: 110.48 | AC131: =+Z131 -> 110.48 | AD131: =+AA131 -> 0 | AE131: =+AC131+AD131 -> 110.48 | AF131: =+AC131 -> 110.48 | AG131: =+AD131 -> 0 | AH131: =+AF131+AG131 -> 110.48 | AI131: =+AF131 -> 110.48 | AJ131: =+AG131 -> 0 | AK131: =+AI131+AJ131 -> 110.48 | AL131: 0.88 | AY131: =T131+U131 -> 110.48 | AZ131: 65.9 | BA131: =W131+X131 -> 110.48 | BB131: 72.37 | BC131: =+Z131+AA131 -> 110.48 | BD131: 75.59 | BE131: =+AC131+AD131 -> 110.48 | BF131: 78.02 | BG131: =+AH131 -> 110.48 | BH131: 73.57 | BI131: 110.48 | BJ131: =ROUND(AK131-AL131*$E$326,2) -> 73.26 | BL131: (ni podpore 2011/2) | BM131: (ni podpore 2011/2) | BN131: (ni podpore 2011/2) | BO131: (ni podpore 2011/2) | BP131: 0 | BQ131: 6.47 | BR131: =BC131-BA131 -> 0 | BS131: =BD131-BB131 -> 3.22 | BT131: 0 | BU131: 2.43 | BV131: 0 | BW131: -4.45 | BX131: 0 | BY131: -0.31
A132: SE23-2013avg | B132: 3.2 Sončne elektrarne - ostale 2013 avgust | D132: srednja - od 1MW do vključno 10MW | E132: SE23 | T132: 89.07 | U132: 0 | V132: 89.07 | W132: 89.07 | X132: 0 | Y132: 89.07 | Z132: 89.07 | AA132: 0 | AB132: 89.07 | AC132: 89.07 | AD132: 0 | AE132: 89.07 | AF132: 89.07 | AG132: 0 | AH132: 89.07 | AI132: 89.07 | AJ132: 0 | AK132: 89.07 | AL132: 0.91 | AY132: =T132+U132 -> 89.07 | AZ132: 42.97 | BA132: =W132+X132 -> 89.07 | BB132: 49.66 | BC132: =+Z132+AA132 -> 89.07 | BD132: 52.99 | BE132: =+AC132+AD132 -> 89.07 | BF132: 55.5 | BG132: =+AH132 -> 89.07 | BH132: 50.9 | BI132: 89.07 | BJ132: 50.58 | BL132: (ni podpore 2011/2) | BM132: (ni podpore 2011/2) | BN132: (ni podpore 2011/2) | BO132: (ni podpore 2011/2) | BP132: 0 | BQ132: 6.69 | BR132: 0 | BS132: 3.33 | BT132: 0 | BU132: 2.51 | BV132: 0 | BW132: -4.6 | BX132: 0 | BY132: -0.32
A133: SE24-2013avg | B133: 3.2 Sončne elektrarne - ostale 2013 avgust | D133: velika - nad 10MW do vključno 125MW | E133: SE24 | T133: 82.69 | U133: 0 | V133: 82.69 | W133: 82.69 | X133: 0 | Y133: 82.69 | Z133: 82.69 | AA133: 0 | AB133: 82.69 | AC133: 82.69 | AD133: 0 | AE133: 82.69 | AF133: 82.69 | AG133: 0 | AH133: 82.69 | AI133: 82.69 | AJ133: 0 | AK133: 82.69 | AL133: 1 | AY133: (ni ZO) | AZ133: 32.03 | BA133: (ni ZO) | BB133: 39.38 | BC133: (ni ZO) | BD133: 43.04 | BE133: (ni ZO) | BF133: 45.8 | BG133: (ni ZO) | BH133: 40.75 | BI133: (ni ZO) | BJ133: 40.39 | BL133: (ni podpore 2011/2) | BM133: (ni podpore 2011/2) | BN133: (ni podpore 2011/2) | BO133: (ni podpore 2011/2) | BP133: (ni ZO) | BQ133: 7.35 | BR133: (ni ZO) | BS133: 3.66 | BT133: (ni ZO) | BU133: 2.76 | BV133: (ni ZO) | BW133: -5.05 | BX133: (ni ZO) | BY133: -0.36
A134: SE11-2013sep | B134: 3.1 Sončne elektrarne - na stavbah 2013 september | D134: mikro - manjše od 50kW | E134: SE11 | T134: 125.07 | U134: 0 | V134: =T134+U134 -> 125.07 | W134: 125.07 | X134: 0 | Y134: 125.07 | Z134: 125.07 | AA134: 0 | AB134: 125.07 | AC134: 125.07 | AD134: 0 | AE134: 125.07 | AF134: 125.07 | AG134: 0 | AH134: 125.07 | AI134: 125.07 | AJ134: 0 | AK134: 125.07 | AL134: 0.88 | AY134: =T134+U134 -> 125.07 | AZ134: 80.49 | BA134: =W134+X134 -> 125.07 | BB134: 86.96 | BC134: =+Z134+AA134 -> 125.07 | BD134: 90.18 | BE134: =+AC134+AD134 -> 125.07 | BF134: 92.61 | BG134: =+AH134 -> 125.07 | BH134: 88.16 | BI134: =+AK134 -> 125.07 | BJ134: 87.85 | BL134: (ni podpore 2011/2) | BM134: (ni podpore 2011/2) | BN134: (ni podpore 2011/2) | BO134: (ni podpore 2011/2) | BP134: =BA134-AY134 -> 0 | BQ134: 6.47 | BR134: 0 | BS134: 3.22 | BT134: 0 | BU134: 2.43 | BV134: =BG134-BE134 -> 0 | BW134: -4.45 | BX134: =BI134-BG134 -> 0 | BY134: -0.31
A135: SE12-2013sep | B135: 3.1 Sončne elektrarne - na stavbah 2013 september | D135: mala - manjše od 1MW | E135: SE12 | T135: =ROUND(0.98*T127,2) -> 114.39 | U135: 0 | V135: 114.39 | W135: =ROUND(0.98*W127,2) -> 114.39 | X135: 0 | Y135: 114.39 | Z135: 114.39 | AA135: 0 | AB135: 114.39 | AC135: 114.39 | AD135: 0 | AE135: 114.39 | AF135: 114.39 | AG135: 0 | AH135: 114.39 | AI135: 114.39 | AJ135: 0 | AK135: 114.39 | AL135: 0.88 | AY135: =T135+U135 -> 114.39 | AZ135: 69.81 | BA135: =W135+X135 -> 114.39 | BB135: 76.28 | BC135: =+Z135+AA135 -> 114.39 | BD135: 79.5 | BE135: =+AC135+AD135 -> 114.39 | BF135: 81.93 | BG135: =+AH135 -> 114.39 | BH135: 77.48 | BI135: 114.39 | BJ135: 77.17 | BL135: (ni podpore 2011/2) | BM135: (ni podpore 2011/2) | BN135: (ni podpore 2011/2) | BO135: (ni podpore 2011/2) | BP135: 0 | BQ135: 6.47 | BR135: 0 | BS135: 3.22 | BT135: 0 | BU135: 2.43 | BV135: 0 | BW135: -4.45 | BX135: 0 | BY135: -0.31
A136: SE13-2013sep | B136: 3.1 Sončne elektrarne - na stavbah 2013 september | D136: srednja - od 1MW do vključno 10MW | E136: SE13 | T136: 94.91 | U136: 0 | V136: 94.91 | W136: 94.91 | X136: 0 | Y136: 94.91 | Z136: 94.91 | AA136: 0 | AB136: 94.91 | AC136: 94.91 | AD136: 0 | AE136: 94.91 | AF136: 94.91 | AG136: 0 | AH136: 94.91 | AI136: 94.91 | AJ136: 0 | AK136: 94.91 | AL136: 0.91 | AY136: =T136+U136 -> 94.91 | AZ136: 48.81 | BA136: =W136+X136 -> 94.91 | BB136: 55.5 | BC136: =+Z136+AA136 -> 94.91 | BD136: 58.83 | BE136: =+AC136+AD136 -> 94.91 | BF136: 61.34 | BG136: =+AH136 -> 94.91 | BH136: 56.74 | BI136: 94.91 | BJ136: 56.42 | BL136: (ni podpore 2011/2) | BM136: (ni podpore 2011/2) | BN136: (ni podpore 2011/2) | BO136: (ni podpore 2011/2) | BP136: 0 | BQ136: 6.69 | BR136: 0 | BS136: 3.33 | BT136: 0 | BU136: 2.51 | BV136: 0 | BW136: -4.6 | BX136: 0 | BY136: -0.32
A137: SE14-2013sep | B137: 3.1 Sončne elektrarne - na stavbah 2013 september | D137: velika - nad 10MW do vključno 125MW | E137: SE14 | T137: 84.48 | U137: 0 | V137: 84.48 | W137: 84.48 | X137: 0 | Y137: 84.48 | Z137: 84.48 | AA137: 0 | AB137: 84.48 | AC137: 84.48 | AD137: 0 | AE137: 84.48 | AF137: 84.48 | AG137: 0 | AH137: 84.48 | AI137: 84.48 | AJ137: 0 | AK137: 84.48 | AL137: 1 | AY137: (ni ZO) | AZ137: 33.82 | BA137: (ni ZO) | BB137: 41.17 | BC137: (ni ZO) | BD137: 44.83 | BE137: (ni ZO) | BF137: 47.59 | BG137: (ni ZO) | BH137: 42.54 | BI137: (ni ZO) | BJ137: 42.18 | BL137: (ni podpore 2011/2) | BM137: (ni podpore 2011/2) | BN137: (ni podpore 2011/2) | BO137: (ni podpore 2011/2) | BP137: (ni ZO) | BQ137: 7.35 | BR137: (ni ZO) | BS137: 3.66 | BT137: (ni ZO) | BU137: 2.76 | BV137: (ni ZO) | BW137: -5.05 | BX137: (ni ZO) | BY137: -0.36
A138: SE21-2013sep | B138: 3.2 Sončne elektrarne - ostale 2013 september | D138: mikro - manjše od 50kW | E138: SE21 | T138: 117.51 | U138: 0 | V138: 117.51 | W138: 117.51 | X138: 0 | Y138: 117.51 | Z138: 117.51 | AA138: 0 | AB138: 117.51 | AC138: 117.51 | AD138: 0 | AE138: 117.51 | AF138: 117.51 | AG138: 0 | AH138: 117.51 | AI138: 117.51 | AJ138: 0 | AK138: 117.51 | AL138: 0.88 | AY138: =T138+U138 -> 117.51 | AZ138: 72.93 | BA138: =W138+X138 -> 117.51 | BB138: 79.4 | BC138: =+Z138+AA138 -> 117.51 | BD138: 82.62 | BE138: =+AC138+AD138 -> 117.51 | BF138: 85.05 | BG138: =+AH138 -> 117.51 | BH138: 80.6 | BI138: =+AK138 -> 117.51 | BJ138: 80.29 | BL138: (ni podpore 2011/2) | BM138: (ni podpore 2011/2) | BN138: (ni podpore 2011/2) | BO138: (ni podpore 2011/2) | BP138: =BA138-AY138 -> 0 | BQ138: 6.47 | BR138: 0 | BS138: 3.22 | BT138: 0 | BU138: 2.43 | BV138: =BG138-BE138 -> 0 | BW138: -4.45 | BX138: =BI138-BG138 -> 0 | BY138: -0.31
A139: SE22-2013sep | B139: 3.2 Sončne elektrarne - ostale 2013 september | D139: mala - manjše od 1MW | E139: SE22 | T139: 108.27 | U139: 0 | V139: 108.27 | W139: 108.27 | X139: 0 | Y139: 108.27 | Z139: 108.27 | AA139: 0 | AB139: 108.27 | AC139: 108.27 | AD139: 0 | AE139: 108.27 | AF139: 108.27 | AG139: 0 | AH139: 108.27 | AI139: 108.27 | AJ139: 0 | AK139: 108.27 | AL139: 0.88 | AY139: =T139+U139 -> 108.27 | AZ139: 63.69 | BA139: =W139+X139 -> 108.27 | BB139: 70.16 | BC139: =+Z139+AA139 -> 108.27 | BD139: 73.38 | BE139: =+AC139+AD139 -> 108.27 | BF139: 75.81 | BG139: =+AH139 -> 108.27 | BH139: 71.36 | BI139: 108.27 | BJ139: 71.05 | BL139: (ni podpore 2011/2) | BM139: (ni podpore 2011/2) | BN139: (ni podpore 2011/2) | BO139: (ni podpore 2011/2) | BP139: 0 | BQ139: 6.47 | BR139: 0 | BS139: 3.22 | BT139: 0 | BU139: 2.43 | BV139: 0 | BW139: -4.45 | BX139: 0 | BY139: -0.31
A140: SE23-2013sep | B140: 3.2 Sončne elektrarne - ostale 2013 september | D140: srednja - od 1MW do vključno 10MW | E140: SE23 | T140: 87.29 | U140: 0 | V140: 87.29 | W140: 87.29 | X140: 0 | Y140: 87.29 | Z140: 87.29 | AA140: 0 | AB140: 87.29 | AC140: 87.29 | AD140: 0 | AE140: 87.29 | AF140: 87.29 | AG140: 0 | AH140: 87.29 | AI140: 87.29 | AJ140: 0 | AK140: 87.29 | AL140: 0.91 | AY140: =T140+U140 -> 87.29 | AZ140: 41.19 | BA140: =W140+X140 -> 87.29 | BB140: 47.88 | BC140: =+Z140+AA140 -> 87.29 | BD140: 51.21 | BE140: =+AC140+AD140 -> 87.29 | BF140: 53.72 | BG140: =+AH140 -> 87.29 | BH140: 49.12 | BI140: 87.29 | BJ140: 48.8 | BL140: (ni podpore 2011/2) | BM140: (ni podpore 2011/2) | BN140: (ni podpore 2011/2) | BO140: (ni podpore 2011/2) | BP140: 0 | BQ140: 6.69 | BR140: 0 | BS140: 3.33 | BT140: 0 | BU140: 2.51 | BV140: 0 | BW140: -4.6 | BX140: 0 | BY140: -0.32
A141: SE24-2013sep | B141: 3.2 Sončne elektrarne - ostale 2013 september | D141: velika - nad 10MW do vključno 125MW | E141: SE24 | T141: 81.04 | U141: 0 | V141: 81.04 | W141: 81.04 | X141: 0 | Y141: 81.04 | Z141: 81.04 | AA141: 0 | AB141: 81.04 | AC141: 81.04 | AD141: 0 | AE141: 81.04 | AF141: 81.04 | AG141: 0 | AH141: 81.04 | AI141: 81.04 | AJ141: 0 | AK141: 81.04 | AL141: 1 | AY141: (ni ZO) | AZ141: 30.38 | BA141: (ni ZO) | BB141: 37.73 | BC141: (ni ZO) | BD141: 41.39 | BE141: (ni ZO) | BF141: 44.15 | BG141: (ni ZO) | BH141: 39.1 | BI141: (ni ZO) | BJ141: 38.74 | BL141: (ni podpore 2011/2) | BM141: (ni podpore 2011/2) | BN141: (ni podpore 2011/2) | BO141: (ni podpore 2011/2) | BP141: (ni ZO) | BQ141: 7.35 | BR141: (ni ZO) | BS141: 3.66 | BT141: (ni ZO) | BU141: 2.76 | BV141: (ni ZO) | BW141: -5.05 | BX141: (ni ZO) | BY141: -0.36
A142: SE11-2013okt | B142: 3.1 Sončne elektrarne - na stavbah 2013 oktober | D142: mikro - manjše od 50kW | E142: SE11 | T142: 122.57 | U142: 0 | V142: 122.57 | W142: 122.57 | X142: 0 | Y142: 122.57 | Z142: 122.57 | AA142: 0 | AB142: 122.57 | AC142: 122.57 | AD142: 0 | AE142: 122.57 | AF142: 122.57 | AG142: 0 | AH142: 122.57 | AI142: 122.57 | AJ142: 0 | AK142: 122.57 | AL142: 0.88 | AY142: =T142+U142 -> 122.57 | AZ142: 77.99 | BA142: =W142+X142 -> 122.57 | BB142: 84.46 | BC142: =+Z142+AA142 -> 122.57 | BD142: 87.68 | BE142: =+AC142+AD142 -> 122.57 | BF142: 90.11 | BG142: =+AH142 -> 122.57 | BH142: 85.66 | BI142: =+AK142 -> 122.57 | BJ142: 85.35 | BL142: (ni podpore 2011/2) | BM142: (ni podpore 2011/2) | BN142: (ni podpore 2011/2) | BO142: (ni podpore 2011/2) | BP142: =BA142-AY142 -> 0 | BQ142: 6.47 | BR142: 0 | BS142: 3.22 | BT142: 0 | BU142: 2.43 | BV142: =BG142-BE142 -> 0 | BW142: -4.45 | BX142: =BI142-BG142 -> 0 | BY142: -0.31
A143: SE12-2013okt | B143: 3.1 Sončne elektrarne - na stavbah 2013 oktober | D143: mala - manjše od 1MW | E143: SE12 | T143: 112.1 | U143: 0 | V143: 112.1 | W143: 112.1 | X143: 0 | Y143: 112.1 | Z143: 112.1 | AA143: 0 | AB143: 112.1 | AC143: 112.1 | AD143: 0 | AE143: 112.1 | AF143: 112.1 | AG143: 0 | AH143: 112.1 | AI143: 112.1 | AJ143: 0 | AK143: 112.1 | AL143: 0.88 | AY143: =T143+U143 -> 112.1 | AZ143: 67.52 | BA143: =W143+X143 -> 112.1 | BB143: 73.99 | BC143: =+Z143+AA143 -> 112.1 | BD143: 77.21 | BE143: =+AC143+AD143 -> 112.1 | BF143: 79.64 | BG143: =+AH143 -> 112.1 | BH143: 75.19 | BI143: 112.1 | BJ143: 74.88 | BL143: (ni podpore 2011/2) | BM143: (ni podpore 2011/2) | BN143: (ni podpore 2011/2) | BO143: (ni podpore 2011/2) | BP143: 0 | BQ143: 6.47 | BR143: 0 | BS143: 3.22 | BT143: 0 | BU143: 2.43 | BV143: 0 | BW143: -4.45 | BX143: 0 | BY143: -0.31
A144: SE13-2013okt | B144: 3.1 Sončne elektrarne - na stavbah 2013 oktober | D144: srednja - od 1MW do vključno 10MW | E144: SE13 | T144: 93.01 | U144: 0 | V144: 93.01 | W144: 93.01 | X144: 0 | Y144: 93.01 | Z144: 93.01 | AA144: 0 | AB144: 93.01 | AC144: 93.01 | AD144: 0 | AE144: 93.01 | AF144: 93.01 | AG144: 0 | AH144: 93.01 | AI144: 93.01 | AJ144: 0 | AK144: 93.01 | AL144: 0.91 | AY144: =T144+U144 -> 93.01 | AZ144: 46.91 | BA144: =W144+X144 -> 93.01 | BB144: 53.6 | BC144: =+Z144+AA144 -> 93.01 | BD144: 56.93 | BE144: =+AC144+AD144 -> 93.01 | BF144: 59.44 | BG144: =+AH144 -> 93.01 | BH144: 54.84 | BI144: 93.01 | BJ144: 54.52 | BL144: (ni podpore 2011/2) | BM144: (ni podpore 2011/2) | BN144: (ni podpore 2011/2) | BO144: (ni podpore 2011/2) | BP144: 0 | BQ144: 6.69 | BR144: 0 | BS144: 3.33 | BT144: 0 | BU144: 2.51 | BV144: 0 | BW144: -4.6 | BX144: 0 | BY144: -0.32
A145: SE14-2013okt | B145: 3.1 Sončne elektrarne - na stavbah 2013 oktober | D145: velika - nad 10MW do vključno 125MW | E145: SE14 | T145: 82.79 | U145: 0 | V145: 82.79 | W145: 82.79 | X145: 0 | Y145: 82.79 | Z145: 82.79 | AA145: 0 | AB145: 82.79 | AC145: 82.79 | AD145: 0 | AE145: 82.79 | AF145: 82.79 | AG145: 0 | AH145: 82.79 | AI145: 82.79 | AJ145: 0 | AK145: 82.79 | AL145: 1 | AY145: (ni ZO) | AZ145: 32.13 | BA145: (ni ZO) | BB145: 39.48 | BC145: (ni ZO) | BD145: 43.14 | BE145: (ni ZO) | BF145: 45.9 | BG145: (ni ZO) | BH145: 40.85 | BI145: (ni ZO) | BJ145: 40.49 | BL145: (ni podpore 2011/2) | BM145: (ni podpore 2011/2) | BN145: (ni podpore 2011/2) | BO145: (ni podpore 2011/2) | BP145: (ni ZO) | BQ145: 7.35 | BR145: (ni ZO) | BS145: 3.66 | BT145: (ni ZO) | BU145: 2.76 | BV145: (ni ZO) | BW145: -5.05 | BX145: (ni ZO) | BY145: -0.36
A146: SE21-2013okt | B146: 3.2 Sončne elektrarne - ostale 2013 oktober | D146: mikro - manjše od 50kW | E146: SE21 | T146: 115.16 | U146: 0 | V146: 115.16 | W146: 115.16 | X146: 0 | Y146: 115.16 | Z146: 115.16 | AA146: 0 | AB146: 115.16 | AC146: 115.16 | AD146: 0 | AE146: 115.16 | AF146: 115.16 | AG146: 0 | AH146: 115.16 | AI146: 115.16 | AJ146: 0 | AK146: 115.16 | AL146: 0.88 | AY146: =T146+U146 -> 115.16 | AZ146: 70.58 | BA146: =W146+X146 -> 115.16 | BB146: 77.05 | BC146: =+Z146+AA146 -> 115.16 | BD146: 80.27 | BE146: =+AC146+AD146 -> 115.16 | BF146: 82.7 | BG146: =+AH146 -> 115.16 | BH146: 78.25 | BI146: =+AK146 -> 115.16 | BJ146: 77.94 | BL146: (ni podpore 2011/2) | BM146: (ni podpore 2011/2) | BN146: (ni podpore 2011/2) | BO146: (ni podpore 2011/2) | BP146: =BA146-AY146 -> 0 | BQ146: 6.47 | BR146: 0 | BS146: 3.22 | BT146: 0 | BU146: 2.43 | BV146: =BG146-BE146 -> 0 | BW146: -4.45 | BX146: =BI146-BG146 -> 0 | BY146: -0.31
A147: SE22-2013okt | B147: 3.2 Sončne elektrarne - ostale 2013 oktober | D147: mala - manjše od 1MW | E147: SE22 | T147: 106.1 | U147: 0 | V147: 106.1 | W147: 106.1 | X147: 0 | Y147: 106.1 | Z147: 106.1 | AA147: 0 | AB147: 106.1 | AC147: 106.1 | AD147: 0 | AE147: 106.1 | AF147: 106.1 | AG147: 0 | AH147: 106.1 | AI147: 106.1 | AJ147: 0 | AK147: 106.1 | AL147: 0.88 | AY147: =T147+U147 -> 106.1 | AZ147: 61.52 | BA147: =W147+X147 -> 106.1 | BB147: 67.99 | BC147: =+Z147+AA147 -> 106.1 | BD147: 71.21 | BE147: =+AC147+AD147 -> 106.1 | BF147: 73.64 | BG147: =+AH147 -> 106.1 | BH147: 69.19 | BI147: 106.1 | BJ147: 68.88 | BL147: (ni podpore 2011/2) | BM147: (ni podpore 2011/2) | BN147: (ni podpore 2011/2) | BO147: (ni podpore 2011/2) | BP147: 0 | BQ147: 6.47 | BR147: 0 | BS147: 3.22 | BT147: 0 | BU147: 2.43 | BV147: 0 | BW147: -4.45 | BX147: 0 | BY147: -0.31
A148: SE23-2013okt | B148: 3.2 Sončne elektrarne - ostale 2013 oktober | D148: srednja - od 1MW do vključno 10MW | E148: SE23 | T148: 85.54 | U148: 0 | V148: 85.54 | W148: 85.54 | X148: 0 | Y148: 85.54 | Z148: 85.54 | AA148: 0 | AB148: 85.54 | AC148: 85.54 | AD148: 0 | AE148: 85.54 | AF148: 85.54 | AG148: 0 | AH148: 85.54 | AI148: 85.54 | AJ148: 0 | AK148: 85.54 | AL148: 0.91 | AY148: =T148+U148 -> 85.54 | AZ148: 39.44 | BA148: =W148+X148 -> 85.54 | BB148: 46.13 | BC148: =+Z148+AA148 -> 85.54 | BD148: 49.46 | BE148: =+AC148+AD148 -> 85.54 | BF148: 51.97 | BG148: =+AH148 -> 85.54 | BH148: 47.37 | BI148: 85.54 | BJ148: 47.05 | BL148: (ni podpore 2011/2) | BM148: (ni podpore 2011/2) | BN148: (ni podpore 2011/2) | BO148: (ni podpore 2011/2) | BP148: 0 | BQ148: 6.69 | BR148: 0 | BS148: 3.33 | BT148: 0 | BU148: 2.51 | BV148: 0 | BW148: -4.6 | BX148: 0 | BY148: -0.32
A149: SE24-2013okt | B149: 3.2 Sončne elektrarne - ostale 2013 oktober | D149: velika - nad 10MW do vključno 125MW | E149: SE24 | T149: 79.42 | U149: 0 | V149: 79.42 | W149: 79.42 | X149: 0 | Y149: 79.42 | Z149: 79.42 | AA149: 0 | AB149: 79.42 | AC149: 79.42 | AD149: 0 | AE149: 79.42 | AF149: 79.42 | AG149: 0 | AH149: 79.42 | AI149: 79.42 | AJ149: 0 | AK149: 79.42 | AL149: 1 | AY149: (ni ZO) | AZ149: 28.76 | BA149: (ni ZO) | BB149: 36.11 | BC149: (ni ZO) | BD149: 39.77 | BE149: (ni ZO) | BF149: 42.53 | BG149: (ni ZO) | BH149: 37.48 | BI149: (ni ZO) | BJ149: 37.12 | BL149: (ni podpore 2011/2) | BM149: (ni podpore 2011/2) | BN149: (ni podpore 2011/2) | BO149: (ni podpore 2011/2) | BP149: (ni ZO) | BQ149: 7.35 | BR149: (ni ZO) | BS149: 3.66 | BT149: (ni ZO) | BU149: 2.76 | BV149: (ni ZO) | BW149: -5.05 | BX149: (ni ZO) | BY149: -0.36
A150: SE11-2013nov | B150: 3.1 Sončne elektrarne - na stavbah 2013 november | D150: mikro - manjše od 50kW | E150: SE11 | T150: 120.12 | U150: 0 | V150: 120.12 | W150: 120.12 | X150: 0 | Y150: 120.12 | Z150: 120.12 | AA150: 0 | AB150: 120.12 | AC150: 120.12 | AD150: 0 | AE150: 120.12 | AF150: 120.12 | AG150: 0 | AH150: 120.12 | AI150: 120.12 | AJ150: 0 | AK150: 120.12 | AL150: 0.88 | AY150: =T150+U150 -> 120.12 | AZ150: 75.54 | BA150: =W150+X150 -> 120.12 | BB150: 82.01 | BC150: =+Z150+AA150 -> 120.12 | BD150: 85.23 | BE150: =+AC150+AD150 -> 120.12 | BF150: 87.66 | BG150: =+AH150 -> 120.12 | BH150: 83.21 | BI150: =+AK150 -> 120.12 | BJ150: 82.9 | BL150: (ni podpore 2011/2) | BM150: (ni podpore 2011/2) | BN150: (ni podpore 2011/2) | BO150: (ni podpore 2011/2) | BP150: =BA150-AY150 -> 0 | BQ150: 6.47 | BR150: 0 | BS150: 3.22 | BT150: 0 | BU150: 2.43 | BV150: =BG150-BE150 -> 0 | BW150: -4.45 | BX150: =BI150-BG150 -> 0 | BY150: -0.31
A151: SE12-2013nov | B151: 3.1 Sončne elektrarne - na stavbah 2013 november | D151: mala - manjše od 1MW | E151: SE12 | T151: 109.86 | U151: 0 | V151: 109.86 | W151: 109.86 | X151: 0 | Y151: 109.86 | Z151: 109.86 | AA151: 0 | AB151: 109.86 | AC151: 109.86 | AD151: 0 | AE151: 109.86 | AF151: 109.86 | AG151: 0 | AH151: 109.86 | AI151: 109.86 | AJ151: 0 | AK151: 109.86 | AL151: 0.88 | AY151: =T151+U151 -> 109.86 | AZ151: 65.28 | BA151: =W151+X151 -> 109.86 | BB151: 71.75 | BC151: =+Z151+AA151 -> 109.86 | BD151: 74.97 | BE151: =+AC151+AD151 -> 109.86 | BF151: 77.4 | BG151: =+AH151 -> 109.86 | BH151: 72.95 | BI151: 109.86 | BJ151: 72.64 | BL151: (ni podpore 2011/2) | BM151: (ni podpore 2011/2) | BN151: (ni podpore 2011/2) | BO151: (ni podpore 2011/2) | BP151: 0 | BQ151: 6.47 | BR151: 0 | BS151: 3.22 | BT151: 0 | BU151: 2.43 | BV151: 0 | BW151: -4.45 | BX151: 0 | BY151: -0.31
A152: SE13-2013nov | B152: 3.1 Sončne elektrarne - na stavbah 2013 november | D152: srednja - od 1MW do vključno 10MW | E152: SE13 | T152: 91.15 | U152: 0 | V152: 91.15 | W152: 91.15 | X152: 0 | Y152: 91.15 | Z152: 91.15 | AA152: 0 | AB152: 91.15 | AC152: 91.15 | AD152: 0 | AE152: 91.15 | AF152: 91.15 | AG152: 0 | AH152: 91.15 | AI152: 91.15 | AJ152: 0 | AK152: 91.15 | AL152: 0.91 | AY152: =T152+U152 -> 91.15 | AZ152: 45.05 | BA152: =W152+X152 -> 91.15 | BB152: 51.74 | BC152: =+Z152+AA152 -> 91.15 | BD152: 55.07 | BE152: =+AC152+AD152 -> 91.15 | BF152: 57.58 | BG152: =+AH152 -> 91.15 | BH152: 52.98 | BI152: 91.15 | BJ152: 52.66 | BL152: (ni podpore 2011/2) | BM152: (ni podpore 2011/2) | BN152: (ni podpore 2011/2) | BO152: (ni podpore 2011/2) | BP152: 0 | BQ152: 6.69 | BR152: 0 | BS152: 3.33 | BT152: 0 | BU152: 2.51 | BV152: 0 | BW152: -4.6 | BX152: 0 | BY152: -0.32
A153: SE14-2013nov | B153: 3.1 Sončne elektrarne - na stavbah 2013 november | D153: velika - nad 10MW do vključno 125MW | E153: SE14 | T153: 81.13 | U153: 0 | V153: 81.13 | W153: 81.13 | X153: 0 | Y153: 81.13 | Z153: 81.13 | AA153: 0 | AB153: 81.13 | AC153: 81.13 | AD153: 0 | AE153: 81.13 | AF153: 81.13 | AG153: 0 | AH153: 81.13 | AI153: 81.13 | AJ153: 0 | AK153: 81.13 | AL153: 1 | AY153: (ni ZO) | AZ153: 30.47 | BA153: (ni ZO) | BB153: 37.82 | BC153: (ni ZO) | BD153: 41.48 | BE153: (ni ZO) | BF153: 44.24 | BG153: (ni ZO) | BH153: 39.19 | BI153: (ni ZO) | BJ153: 38.83 | BL153: (ni podpore 2011/2) | BM153: (ni podpore 2011/2) | BN153: (ni podpore 2011/2) | BO153: (ni podpore 2011/2) | BP153: (ni ZO) | BQ153: 7.35 | BR153: (ni ZO) | BS153: 3.66 | BT153: (ni ZO) | BU153: 2.76 | BV153: (ni ZO) | BW153: -5.05 | BX153: (ni ZO) | BY153: -0.36
A154: SE21-2013nov | B154: 3.2 Sončne elektrarne - ostale 2013 november | D154: mikro - manjše od 50kW | E154: SE21 | T154: 112.86 | U154: 0 | V154: 112.86 | W154: 112.86 | X154: 0 | Y154: 112.86 | Z154: 112.86 | AA154: 0 | AB154: 112.86 | AC154: 112.86 | AD154: 0 | AE154: 112.86 | AF154: 112.86 | AG154: 0 | AH154: 112.86 | AI154: 112.86 | AJ154: 0 | AK154: 112.86 | AL154: 0.88 | AY154: =T154+U154 -> 112.86 | AZ154: 68.28 | BA154: =W154+X154 -> 112.86 | BB154: 74.75 | BC154: =+Z154+AA154 -> 112.86 | BD154: 77.97 | BE154: =+AC154+AD154 -> 112.86 | BF154: 80.4 | BG154: =+AH154 -> 112.86 | BH154: 75.95 | BI154: =+AK154 -> 112.86 | BJ154: 75.64 | BL154: (ni podpore 2011/2) | BM154: (ni podpore 2011/2) | BN154: (ni podpore 2011/2) | BO154: (ni podpore 2011/2) | BP154: =BA154-AY154 -> 0 | BQ154: 6.47 | BR154: 0 | BS154: 3.22 | BT154: 0 | BU154: 2.43 | BV154: =BG154-BE154 -> 0 | BW154: -4.45 | BX154: =BI154-BG154 -> 0 | BY154: -0.31
A155: SE22-2013nov | B155: 3.2 Sončne elektrarne - ostale 2013 november | D155: mala - manjše od 1MW | E155: SE22 | T155: 103.98 | U155: 0 | V155: 103.98 | W155: 103.98 | X155: 0 | Y155: 103.98 | Z155: 103.98 | AA155: 0 | AB155: 103.98 | AC155: 103.98 | AD155: 0 | AE155: 103.98 | AF155: 103.98 | AG155: 0 | AH155: 103.98 | AI155: 103.98 | AJ155: 0 | AK155: 103.98 | AL155: 0.88 | AY155: =T155+U155 -> 103.98 | AZ155: 59.4 | BA155: =W155+X155 -> 103.98 | BB155: 65.87 | BC155: =+Z155+AA155 -> 103.98 | BD155: 69.09 | BE155: =+AC155+AD155 -> 103.98 | BF155: 71.52 | BG155: =+AH155 -> 103.98 | BH155: 67.07 | BI155: 103.98 | BJ155: 66.76 | BL155: (ni podpore 2011/2) | BM155: (ni podpore 2011/2) | BN155: (ni podpore 2011/2) | BO155: (ni podpore 2011/2) | BP155: 0 | BQ155: 6.47 | BR155: 0 | BS155: 3.22 | BT155: 0 | BU155: 2.43 | BV155: 0 | BW155: -4.45 | BX155: 0 | BY155: -0.31
A156: SE23-2013nov | B156: 3.2 Sončne elektrarne - ostale 2013 november | D156: srednja - od 1MW do vključno 10MW | E156: SE23 | T156: 83.83 | U156: 0 | V156: 83.83 | W156: 83.83 | X156: 0 | Y156: 83.83 | Z156: 83.83 | AA156: 0 | AB156: 83.83 | AC156: 83.83 | AD156: 0 | AE156: 83.83 | AF156: 83.83 | AG156: 0 | AH156: 83.83 | AI156: 83.83 | AJ156: 0 | AK156: 83.83 | AL156: 0.91 | AY156: =T156+U156 -> 83.83 | AZ156: 37.73 | BA156: =W156+X156 -> 83.83 | BB156: 44.42 | BC156: =+Z156+AA156 -> 83.83 | BD156: 47.75 | BE156: =+AC156+AD156 -> 83.83 | BF156: 50.26 | BG156: =+AH156 -> 83.83 | BH156: 45.66 | BI156: 83.83 | BJ156: 45.34 | BL156: (ni podpore 2011/2) | BM156: (ni podpore 2011/2) | BN156: (ni podpore 2011/2) | BO156: (ni podpore 2011/2) | BP156: 0 | BQ156: 6.69 | BR156: 0 | BS156: 3.33 | BT156: 0 | BU156: 2.51 | BV156: 0 | BW156: -4.6 | BX156: 0 | BY156: -0.32
A157: SE24-2013nov | B157: 3.2 Sončne elektrarne - ostale 2013 november | D157: velika - nad 10MW do vključno 125MW | E157: SE24 | T157: 77.83 | U157: 0 | V157: 77.83 | W157: 77.83 | X157: 0 | Y157: 77.83 | Z157: 77.83 | AA157: 0 | AB157: 77.83 | AC157: 77.83 | AD157: 0 | AE157: 77.83 | AF157: 77.83 | AG157: 0 | AH157: 77.83 | AI157: 77.83 | AJ157: 0 | AK157: 77.83 | AL157: 1 | AY157: (ni ZO) | AZ157: 27.17 | BA157: (ni ZO) | BB157: 34.52 | BC157: (ni ZO) | BD157: 38.18 | BE157: (ni ZO) | BF157: 40.94 | BG157: (ni ZO) | BH157: 35.89 | BI157: (ni ZO) | BJ157: 35.53 | BL157: (ni podpore 2011/2) | BM157: (ni podpore 2011/2) | BN157: (ni podpore 2011/2) | BO157: (ni podpore 2011/2) | BP157: (ni ZO) | BQ157: 7.35 | BR157: (ni ZO) | BS157: 3.66 | BT157: (ni ZO) | BU157: 2.76 | BV157: (ni ZO) | BW157: -5.05 | BX157: (ni ZO) | BY157: -0.36
A158: SE11-2013dec | B158: 3.1 Sončne elektrarne - na stavbah 2013 december | D158: mikro - manjše od 50kW | E158: SE11 | T158: 117.72 | U158: 0 | V158: 117.72 | W158: 117.72 | X158: 0 | Y158: 117.72 | Z158: 117.72 | AA158: 0 | AB158: 117.72 | AC158: 117.72 | AD158: 0 | AE158: 117.72 | AF158: 117.72 | AG158: 0 | AH158: 117.72 | AI158: 117.72 | AJ158: 0 | AK158: 117.72 | AL158: 0.88 | AY158: =T158+U158 -> 117.72 | AZ158: 73.14 | BA158: =W158+X158 -> 117.72 | BB158: 79.61 | BC158: =+Z158+AA158 -> 117.72 | BD158: 82.83 | BE158: =+AC158+AD158 -> 117.72 | BF158: 85.26 | BG158: =+AH158 -> 117.72 | BH158: 80.81 | BI158: =+AK158 -> 117.72 | BJ158: 80.5 | BL158: (ni podpore 2011/2) | BM158: (ni podpore 2011/2) | BN158: (ni podpore 2011/2) | BO158: (ni podpore 2011/2) | BP158: =BA158-AY158 -> 0 | BQ158: 6.47 | BR158: 0 | BS158: 3.22 | BT158: 0 | BU158: 2.43 | BV158: =BG158-BE158 -> 0 | BW158: -4.45 | BX158: =BI158-BG158 -> 0 | BY158: -0.31
A159: SE12-2013dec | B159: 3.1 Sončne elektrarne - na stavbah 2013 december | D159: mala - manjše od 1MW | E159: SE12 | T159: 107.66 | U159: 0 | V159: 107.66 | W159: 107.66 | X159: 0 | Y159: 107.66 | Z159: 107.66 | AA159: 0 | AB159: 107.66 | AC159: 107.66 | AD159: 0 | AE159: 107.66 | AF159: 107.66 | AG159: 0 | AH159: 107.66 | AI159: 107.66 | AJ159: 0 | AK159: 107.66 | AL159: 0.88 | AY159: =T159+U159 -> 107.66 | AZ159: 63.08 | BA159: =W159+X159 -> 107.66 | BB159: 69.55 | BC159: =+Z159+AA159 -> 107.66 | BD159: 72.77 | BE159: =+AC159+AD159 -> 107.66 | BF159: 75.2 | BG159: =+AH159 -> 107.66 | BH159: 70.75 | BI159: 107.66 | BJ159: 70.44 | BL159: (ni podpore 2011/2) | BM159: (ni podpore 2011/2) | BN159: (ni podpore 2011/2) | BO159: (ni podpore 2011/2) | BP159: 0 | BQ159: 6.47 | BR159: 0 | BS159: 3.22 | BT159: 0 | BU159: 2.43 | BV159: 0 | BW159: -4.45 | BX159: 0 | BY159: -0.31
A160: SE13-2013dec | B160: 3.1 Sončne elektrarne - na stavbah 2013 december | D160: srednja - od 1MW do vključno 10MW | E160: SE13 | T160: 89.33 | U160: 0 | V160: 89.33 | W160: 89.33 | X160: 0 | Y160: 89.33 | Z160: 89.33 | AA160: 0 | AB160: 89.33 | AC160: 89.33 | AD160: 0 | AE160: 89.33 | AF160: 89.33 | AG160: 0 | AH160: 89.33 | AI160: 89.33 | AJ160: 0 | AK160: 89.33 | AL160: 0.91 | AY160: =T160+U160 -> 89.33 | AZ160: 43.23 | BA160: =W160+X160 -> 89.33 | BB160: 49.92 | BC160: =+Z160+AA160 -> 89.33 | BD160: 53.25 | BE160: =+AC160+AD160 -> 89.33 | BF160: 55.76 | BG160: =+AH160 -> 89.33 | BH160: 51.16 | BI160: 89.33 | BJ160: 50.84 | BL160: (ni podpore 2011/2) | BM160: (ni podpore 2011/2) | BN160: (ni podpore 2011/2) | BO160: (ni podpore 2011/2) | BP160: 0 | BQ160: 6.69 | BR160: 0 | BS160: 3.33 | BT160: 0 | BU160: 2.51 | BV160: 0 | BW160: -4.6 | BX160: 0 | BY160: -0.32
A161: SE14-2013dec | B161: 3.1 Sončne elektrarne - na stavbah 2013 december | D161: velika - nad 10MW do vključno 125MW | E161: SE14 | T161: 79.51 | U161: 0 | V161: 79.51 | W161: 79.51 | X161: 0 | Y161: 79.51 | Z161: 79.51 | AA161: 0 | AB161: 79.51 | AC161: 79.51 | AD161: 0 | AE161: 79.51 | AF161: 79.51 | AG161: 0 | AH161: 79.51 | AI161: 79.51 | AJ161: 0 | AK161: 79.51 | AL161: 1 | AY161: (ni ZO) | AZ161: 28.85 | BA161: (ni ZO) | BB161: 36.2 | BC161: (ni ZO) | BD161: 39.86 | BE161: (ni ZO) | BF161: 42.62 | BG161: (ni ZO) | BH161: 37.57 | BI161: (ni ZO) | BJ161: 37.21 | BL161: (ni podpore 2011/2) | BM161: (ni podpore 2011/2) | BN161: (ni podpore 2011/2) | BO161: (ni podpore 2011/2) | BP161: (ni ZO) | BQ161: 7.35 | BR161: (ni ZO) | BS161: 3.66 | BT161: (ni ZO) | BU161: 2.76 | BV161: (ni ZO) | BW161: -5.05 | BX161: (ni ZO) | BY161: -0.36
A162: SE21-2013dec | B162: 3.2 Sončne elektrarne - ostale 2013 december | D162: mikro - manjše od 50kW | E162: SE21 | T162: 110.6 | U162: 0 | V162: 110.6 | W162: 110.6 | X162: 0 | Y162: 110.6 | Z162: 110.6 | AA162: 0 | AB162: 110.6 | AC162: 110.6 | AD162: 0 | AE162: 110.6 | AF162: 110.6 | AG162: 0 | AH162: 110.6 | AI162: 110.6 | AJ162: 0 | AK162: 110.6 | AL162: 0.88 | AY162: =T162+U162 -> 110.6 | AZ162: 66.02 | BA162: =W162+X162 -> 110.6 | BB162: 72.49 | BC162: =+Z162+AA162 -> 110.6 | BD162: 75.71 | BE162: =+AC162+AD162 -> 110.6 | BF162: 78.14 | BG162: =+AH162 -> 110.6 | BH162: 73.69 | BI162: =+AK162 -> 110.6 | BJ162: 73.38 | BL162: (ni podpore 2011/2) | BM162: (ni podpore 2011/2) | BN162: (ni podpore 2011/2) | BO162: (ni podpore 2011/2) | BP162: =BA162-AY162 -> 0 | BQ162: 6.47 | BR162: 0 | BS162: 3.22 | BT162: 0 | BU162: 2.43 | BV162: =BG162-BE162 -> 0 | BW162: -4.45 | BX162: =BI162-BG162 -> 0 | BY162: -0.31
A163: SE22-2013dec | B163: 3.2 Sončne elektrarne - ostale 2013 december | D163: mala - manjše od 1MW | E163: SE22 | T163: 101.9 | U163: 0 | V163: 101.9 | W163: 101.9 | X163: 0 | Y163: 101.9 | Z163: 101.9 | AA163: 0 | AB163: 101.9 | AC163: 101.9 | AD163: 0 | AE163: 101.9 | AF163: 101.9 | AG163: 0 | AH163: 101.9 | AI163: 101.9 | AJ163: 0 | AK163: 101.9 | AL163: 0.88 | AY163: =T163+U163 -> 101.9 | AZ163: 57.32 | BA163: =W163+X163 -> 101.9 | BB163: 63.79 | BC163: =+Z163+AA163 -> 101.9 | BD163: 67.01 | BE163: =+AC163+AD163 -> 101.9 | BF163: 69.44 | BG163: =+AH163 -> 101.9 | BH163: 64.99 | BI163: 101.9 | BJ163: 64.68 | BL163: (ni podpore 2011/2) | BM163: (ni podpore 2011/2) | BN163: (ni podpore 2011/2) | BO163: (ni podpore 2011/2) | BP163: 0 | BQ163: 6.47 | BR163: 0 | BS163: 3.22 | BT163: 0 | BU163: 2.43 | BV163: 0 | BW163: -4.45 | BX163: 0 | BY163: -0.31
A164: SE23-2013dec | B164: 3.2 Sončne elektrarne - ostale 2013 december | D164: srednja - od 1MW do vključno 10MW | E164: SE23 | T164: 82.15 | U164: 0 | V164: 82.15 | W164: 82.15 | X164: 0 | Y164: 82.15 | Z164: 82.15 | AA164: 0 | AB164: 82.15 | AC164: 82.15 | AD164: 0 | AE164: 82.15 | AF164: 82.15 | AG164: 0 | AH164: 82.15 | AI164: 82.15 | AJ164: 0 | AK164: 82.15 | AL164: 0.91 | AY164: =T164+U164 -> 82.15 | AZ164: 36.05 | BA164: =W164+X164 -> 82.15 | BB164: 42.74 | BC164: =+Z164+AA164 -> 82.15 | BD164: 46.07 | BE164: =+AC164+AD164 -> 82.15 | BF164: 48.58 | BG164: =+AH164 -> 82.15 | BH164: 43.98 | BI164: 82.15 | BJ164: 43.66 | BL164: (ni podpore 2011/2) | BM164: (ni podpore 2011/2) | BN164: (ni podpore 2011/2) | BO164: (ni podpore 2011/2) | BP164: 0 | BQ164: 6.69 | BR164: 0 | BS164: 3.33 | BT164: 0 | BU164: 2.51 | BV164: 0 | BW164: -4.6 | BX164: 0 | BY164: -0.32
A165: SE24-2013dec | B165: 3.2 Sončne elektrarne - ostale 2013 december | D165: velika - nad 10MW do vključno 125MW | E165: SE24 | T165: 76.27 | U165: 0 | V165: 76.27 | W165: 76.27 | X165: 0 | Y165: 76.27 | Z165: 76.27 | AA165: 0 | AB165: 76.27 | AC165: 76.27 | AD165: 0 | AE165: 76.27 | AF165: 76.27 | AG165: 0 | AH165: 76.27 | AI165: 76.27 | AJ165: 0 | AK165: 76.27 | AL165: 1 | AY165: (ni ZO) | AZ165: 25.61 | BA165: (ni ZO) | BB165: 32.96 | BC165: (ni ZO) | BD165: 36.62 | BE165: (ni ZO) | BF165: 39.38 | BG165: (ni ZO) | BH165: 34.33 | BI165: (ni ZO) | BJ165: 33.97 | BL165: (ni podpore 2011/2) | BM165: (ni podpore 2011/2) | BN165: (ni podpore 2011/2) | BO165: (ni podpore 2011/2) | BP165: (ni ZO) | BQ165: 7.35 | BR165: (ni ZO) | BS165: 3.66 | BT165: (ni ZO) | BU165: 2.76 | BV165: (ni ZO) | BW165: -5.05 | BX165: (ni ZO) | BY165: -0.36
A166: SE11-2014jan | B166: 3.1 Sončne elektrarne - na stavbah 2014 januar | D166: mikro - manjše od 50kW | E166: SE11 | W166: 115.37 | X166: 0 | Y166: =W166+X166 -> 115.37 | Z166: 115.37 | AA166: 0 | AB166: 115.37 | AC166: 115.37 | AD166: 0 | AE166: 115.37 | AF166: 115.37 | AG166: 0 | AH166: 115.37 | AI166: 115.37 | AJ166: 0 | AK166: 115.37 | AL166: 0.88 | BA166: =W166+X166 -> 115.37 | BB166: 77.26 | BC166: =+Z166+AA166 -> 115.37 | BD166: 80.48 | BE166: =+AC166+AD166 -> 115.37 | BF166: 82.91 | BG166: =+AH166 -> 115.37 | BH166: 78.46 | BI166: =+AK166 -> 115.37 | BJ166: 78.15 | BL166: (ni podpore 2011/2) | BM166: (ni podpore 2011/2) | BN166: (ni podpore 2011/2) | BO166: (ni podpore 2011/2) | BP166: (ni podpore 2013) | BQ166: (ni podpore 2013) | BR166: 0 | BS166: 3.22 | BT166: 0 | BU166: 2.43 | BV166: =BG166-BE166 -> 0 | BW166: -4.45 | BX166: =BI166-BG166 -> 0 | BY166: -0.31
A167: SE12-2014jan | B167: 3.1 Sončne elektrarne - na stavbah 2014 januar | D167: mala - manjše od 1MW | E167: SE12 | W167: 105.51 | X167: 0 | Y167: 105.51 | Z167: 105.51 | AA167: 0 | AB167: 105.51 | AC167: 105.51 | AD167: 0 | AE167: 105.51 | AF167: 105.51 | AG167: 0 | AH167: 105.51 | AI167: 105.51 | AJ167: 0 | AK167: 105.51 | AL167: 0.88 | BA167: =W167+X167 -> 105.51 | BB167: 67.4 | BC167: =+Z167+AA167 -> 105.51 | BD167: 70.62 | BE167: =+AC167+AD167 -> 105.51 | BF167: 73.05 | BG167: =+AH167 -> 105.51 | BH167: 68.6 | BI167: 105.51 | BJ167: 68.29 | BL167: (ni podpore 2011/2) | BM167: (ni podpore 2011/2) | BN167: (ni podpore 2011/2) | BO167: (ni podpore 2011/2) | BP167: (ni podpore 2013) | BQ167: (ni podpore 2013) | BR167: 0 | BS167: 3.22 | BT167: 0 | BU167: 2.43 | BV167: 0 | BW167: -4.45 | BX167: 0 | BY167: -0.31
A168: SE13-2014jan | B168: 3.1 Sončne elektrarne - na stavbah 2014 januar | D168: srednja - od 1MW do vključno 10MW | E168: SE13 | W168: 87.54 | X168: 0 | Y168: 87.54 | Z168: 87.54 | AA168: 0 | AB168: 87.54 | AC168: 87.54 | AD168: 0 | AE168: 87.54 | AF168: 87.54 | AG168: 0 | AH168: 87.54 | AI168: 87.54 | AJ168: 0 | AK168: 87.54 | AL168: 0.91 | BA168: =W168+X168 -> 87.54 | BB168: 48.13 | BC168: =+Z168+AA168 -> 87.54 | BD168: 51.46 | BE168: =+AC168+AD168 -> 87.54 | BF168: 53.97 | BG168: =+AH168 -> 87.54 | BH168: 49.37 | BI168: 87.54 | BJ168: 49.05 | BL168: (ni podpore 2011/2) | BM168: (ni podpore 2011/2) | BN168: (ni podpore 2011/2) | BO168: (ni podpore 2011/2) | BP168: (ni podpore 2013) | BQ168: (ni podpore 2013) | BR168: 0 | BS168: 3.33 | BT168: 0 | BU168: 2.51 | BV168: 0 | BW168: -4.6 | BX168: 0 | BY168: -0.32
A169: SE14-2014jan | B169: 3.1 Sončne elektrarne - na stavbah 2014 januar | D169: velika - nad 10MW do vključno 125MW | E169: SE14 | W169: 77.92 | X169: 0 | Y169: 77.92 | Z169: 77.92 | AA169: 0 | AB169: 77.92 | AC169: 77.92 | AD169: 0 | AE169: 77.92 | AF169: 77.92 | AG169: 0 | AH169: 77.92 | AI169: 77.92 | AJ169: 0 | AK169: 77.92 | AL169: 1 | BA169: (ni ZO) | BB169: 34.61 | BC169: (ni ZO) | BD169: 38.27 | BE169: (ni ZO) | BF169: 41.03 | BG169: (ni ZO) | BH169: 35.98 | BI169: (ni ZO) | BJ169: 35.62 | BL169: (ni podpore 2011/2) | BM169: (ni podpore 2011/2) | BN169: (ni podpore 2011/2) | BO169: (ni podpore 2011/2) | BP169: (ni podpore 2013) | BQ169: (ni podpore 2013) | BR169: (ni ZO) | BS169: 3.66 | BT169: (ni ZO) | BU169: 2.76 | BV169: (ni ZO) | BW169: -5.05 | BX169: (ni ZO) | BY169: -0.36
A170: SE21-2014jan | B170: 3.2 Sončne elektrarne - ostale 2014 januar | D170: mikro - manjše od 50kW | E170: SE21 | W170: 108.39 | X170: 0 | Y170: 108.39 | Z170: 108.39 | AA170: 0 | AB170: 108.39 | AC170: 108.39 | AD170: 0 | AE170: 108.39 | AF170: 108.39 | AG170: 0 | AH170: 108.39 | AI170: 108.39 | AJ170: 0 | AK170: 108.39 | AL170: 0.88 | BA170: =W170+X170 -> 108.39 | BB170: 70.28 | BC170: =+Z170+AA170 -> 108.39 | BD170: 73.5 | BE170: =+AC170+AD170 -> 108.39 | BF170: 75.93 | BG170: =+AH170 -> 108.39 | BH170: 71.48 | BI170: =+AK170 -> 108.39 | BJ170: 71.17 | BL170: (ni podpore 2011/2) | BM170: (ni podpore 2011/2) | BN170: (ni podpore 2011/2) | BO170: (ni podpore 2011/2) | BP170: (ni podpore 2013) | BQ170: (ni podpore 2013) | BR170: 0 | BS170: 3.22 | BT170: 0 | BU170: 2.43 | BV170: =BG170-BE170 -> 0 | BW170: -4.45 | BX170: =BI170-BG170 -> 0 | BY170: -0.31
A171: SE22-2014jan | B171: 3.2 Sončne elektrarne - ostale 2014 januar | D171: mala - manjše od 1MW | E171: SE22 | W171: 99.86 | X171: 0 | Y171: 99.86 | Z171: 99.86 | AA171: 0 | AB171: 99.86 | AC171: 99.86 | AD171: 0 | AE171: 99.86 | AF171: 99.86 | AG171: 0 | AH171: 99.86 | AI171: 99.86 | AJ171: 0 | AK171: 99.86 | AL171: 0.88 | BA171: =W171+X171 -> 99.86 | BB171: 61.75 | BC171: =+Z171+AA171 -> 99.86 | BD171: 64.97 | BE171: =+AC171+AD171 -> 99.86 | BF171: 67.4 | BG171: =+AH171 -> 99.86 | BH171: 62.95 | BI171: 99.86 | BJ171: 62.64 | BL171: (ni podpore 2011/2) | BM171: (ni podpore 2011/2) | BN171: (ni podpore 2011/2) | BO171: (ni podpore 2011/2) | BP171: (ni podpore 2013) | BQ171: (ni podpore 2013) | BR171: 0 | BS171: 3.22 | BT171: 0 | BU171: 2.43 | BV171: 0 | BW171: -4.45 | BX171: 0 | BY171: -0.31
A172: SE23-2014jan | B172: 3.2 Sončne elektrarne - ostale 2014 januar | D172: srednja - od 1MW do vključno 10MW | E172: SE23 | W172: 80.51 | X172: 0 | Y172: 80.51 | Z172: 80.51 | AA172: 0 | AB172: 80.51 | AC172: 80.51 | AD172: 0 | AE172: 80.51 | AF172: 80.51 | AG172: 0 | AH172: 80.51 | AI172: 80.51 | AJ172: 0 | AK172: 80.51 | AL172: 0.91 | BA172: =W172+X172 -> 80.51 | BB172: 41.1 | BC172: =+Z172+AA172 -> 80.51 | BD172: 44.43 | BE172: =+AC172+AD172 -> 80.51 | BF172: 46.94 | BG172: =+AH172 -> 80.51 | BH172: 42.34 | BI172: 80.51 | BJ172: 42.02 | BL172: (ni podpore 2011/2) | BM172: (ni podpore 2011/2) | BN172: (ni podpore 2011/2) | BO172: (ni podpore 2011/2) | BP172: (ni podpore 2013) | BQ172: (ni podpore 2013) | BR172: 0 | BS172: 3.33 | BT172: 0 | BU172: 2.51 | BV172: 0 | BW172: -4.6 | BX172: 0 | BY172: -0.32
A173: SE24-2014jan | B173: 3.2 Sončne elektrarne - ostale 2014 januar | D173: velika - nad 10MW do vključno 125MW | E173: SE24 | W173: 74.74 | X173: 0 | Y173: 74.74 | Z173: 74.74 | AA173: 0 | AB173: 74.74 | AC173: 74.74 | AD173: 0 | AE173: 74.74 | AF173: 74.74 | AG173: 0 | AH173: 74.74 | AI173: 74.74 | AJ173: 0 | AK173: 74.74 | AL173: 1 | BA173: (ni ZO) | BB173: 31.43 | BC173: (ni ZO) | BD173: 35.09 | BE173: (ni ZO) | BF173: 37.85 | BG173: (ni ZO) | BH173: 32.8 | BI173: (ni ZO) | BJ173: 32.44 | BL173: (ni podpore 2011/2) | BM173: (ni podpore 2011/2) | BN173: (ni podpore 2011/2) | BO173: (ni podpore 2011/2) | BP173: (ni podpore 2013) | BQ173: (ni podpore 2013) | BR173: (ni ZO) | BS173: 3.66 | BT173: (ni ZO) | BU173: 2.76 | BV173: (ni ZO) | BW173: -5.05 | BX173: (ni ZO) | BY173: -0.36
A174: SE11-2014feb | B174: 3.1 Sončne elektrarne - na stavbah 2014 februar | D174: mikro - manjše od 50kW | E174: SE11 | W174: 113.06 | X174: 0 | Y174: 113.06 | Z174: 113.06 | AA174: 0 | AB174: 113.06 | AC174: 113.06 | AD174: 0 | AE174: 113.06 | AF174: 113.06 | AG174: 0 | AH174: 113.06 | AI174: 113.06 | AJ174: 0 | AK174: 113.06 | AL174: 0.88 | BA174: =W174+X174 -> 113.06 | BB174: 74.95 | BC174: =+Z174+AA174 -> 113.06 | BD174: 78.17 | BE174: =+AC174+AD174 -> 113.06 | BF174: 80.6 | BG174: =+AH174 -> 113.06 | BH174: 76.15 | BI174: =+AK174 -> 113.06 | BJ174: 75.84 | BL174: (ni podpore 2011/2) | BM174: (ni podpore 2011/2) | BN174: (ni podpore 2011/2) | BO174: (ni podpore 2011/2) | BP174: (ni podpore 2013) | BQ174: (ni podpore 2013) | BR174: 0 | BS174: 3.22 | BT174: 0 | BU174: 2.43 | BV174: =BG174-BE174 -> 0 | BW174: -4.45 | BX174: =BI174-BG174 -> 0 | BY174: -0.31
A175: SE12-2014feb | B175: 3.1 Sončne elektrarne - na stavbah 2014 februar | D175: mala - manjše od 1MW | E175: SE12 | W175: 103.4 | X175: 0 | Y175: 103.4 | Z175: 103.4 | AA175: 0 | AB175: 103.4 | AC175: 103.4 | AD175: 0 | AE175: 103.4 | AF175: 103.4 | AG175: 0 | AH175: 103.4 | AI175: 103.4 | AJ175: 0 | AK175: 103.4 | AL175: 0.88 | BA175: =W175+X175 -> 103.4 | BB175: 65.29 | BC175: =+Z175+AA175 -> 103.4 | BD175: 68.51 | BE175: =+AC175+AD175 -> 103.4 | BF175: 70.94 | BG175: =+AH175 -> 103.4 | BH175: 66.49 | BI175: 103.4 | BJ175: 66.18 | BL175: (ni podpore 2011/2) | BM175: (ni podpore 2011/2) | BN175: (ni podpore 2011/2) | BO175: (ni podpore 2011/2) | BP175: (ni podpore 2013) | BQ175: (ni podpore 2013) | BR175: 0 | BS175: 3.22 | BT175: 0 | BU175: 2.43 | BV175: 0 | BW175: -4.45 | BX175: 0 | BY175: -0.31
A176: SE13-2014feb | B176: 3.1 Sončne elektrarne - na stavbah 2014 februar | D176: srednja - od 1MW do vključno 10MW | E176: SE13 | W176: 85.79 | X176: 0 | Y176: 85.79 | Z176: 85.79 | AA176: 0 | AB176: 85.79 | AC176: 85.79 | AD176: 0 | AE176: 85.79 | AF176: 85.79 | AG176: 0 | AH176: 85.79 | AI176: 85.79 | AJ176: 0 | AK176: 85.79 | AL176: 0.91 | BA176: =W176+X176 -> 85.79 | BB176: 46.38 | BC176: =+Z176+AA176 -> 85.79 | BD176: 49.71 | BE176: =+AC176+AD176 -> 85.79 | BF176: 52.22 | BG176: =+AH176 -> 85.79 | BH176: 47.62 | BI176: 85.79 | BJ176: 47.3 | BL176: (ni podpore 2011/2) | BM176: (ni podpore 2011/2) | BN176: (ni podpore 2011/2) | BO176: (ni podpore 2011/2) | BP176: (ni podpore 2013) | BQ176: (ni podpore 2013) | BR176: 0 | BS176: 3.33 | BT176: 0 | BU176: 2.51 | BV176: 0 | BW176: -4.6 | BX176: 0 | BY176: -0.32
A177: SE14-2014feb | B177: 3.1 Sončne elektrarne - na stavbah 2014 februar | D177: velika - nad 10MW do vključno 125MW | E177: SE14 | W177: 76.36 | X177: 0 | Y177: 76.36 | Z177: 76.36 | AA177: 0 | AB177: 76.36 | AC177: 76.36 | AD177: 0 | AE177: 76.36 | AF177: 76.36 | AG177: 0 | AH177: 76.36 | AI177: 76.36 | AJ177: 0 | AK177: 76.36 | AL177: 1 | BA177: (ni ZO) | BB177: 33.05 | BC177: (ni ZO) | BD177: 36.71 | BE177: (ni ZO) | BF177: 39.47 | BG177: (ni ZO) | BH177: 34.42 | BI177: (ni ZO) | BJ177: 34.06 | BL177: (ni podpore 2011/2) | BM177: (ni podpore 2011/2) | BN177: (ni podpore 2011/2) | BO177: (ni podpore 2011/2) | BP177: (ni podpore 2013) | BQ177: (ni podpore 2013) | BR177: (ni ZO) | BS177: 3.66 | BT177: (ni ZO) | BU177: 2.76 | BV177: (ni ZO) | BW177: -5.05 | BX177: (ni ZO) | BY177: -0.36
A178: SE21-2014feb | B178: 3.2 Sončne elektrarne - ostale 2014 februar | D178: mikro - manjše od 50kW | E178: SE21 | W178: 106.22 | X178: 0 | Y178: 106.22 | Z178: 106.22 | AA178: 0 | AB178: 106.22 | AC178: 106.22 | AD178: 0 | AE178: 106.22 | AF178: 106.22 | AG178: 0 | AH178: 106.22 | AI178: 106.22 | AJ178: 0 | AK178: 106.22 | AL178: 0.88 | BA178: =W178+X178 -> 106.22 | BB178: 68.11 | BC178: =+Z178+AA178 -> 106.22 | BD178: 71.33 | BE178: =+AC178+AD178 -> 106.22 | BF178: 73.76 | BG178: =+AH178 -> 106.22 | BH178: 69.31 | BI178: =+AK178 -> 106.22 | BJ178: 69 | BL178: (ni podpore 2011/2) | BM178: (ni podpore 2011/2) | BN178: (ni podpore 2011/2) | BO178: (ni podpore 2011/2) | BP178: (ni podpore 2013) | BQ178: (ni podpore 2013) | BR178: 0 | BS178: 3.22 | BT178: 0 | BU178: 2.43 | BV178: =BG178-BE178 -> 0 | BW178: -4.45 | BX178: =BI178-BG178 -> 0 | BY178: -0.31
A179: SE22-2014feb | B179: 3.2 Sončne elektrarne - ostale 2014 februar | D179: mala - manjše od 1MW | E179: SE22 | W179: 97.86 | X179: 0 | Y179: 97.86 | Z179: 97.86 | AA179: 0 | AB179: 97.86 | AC179: 97.86 | AD179: 0 | AE179: 97.86 | AF179: 97.86 | AG179: 0 | AH179: 97.86 | AI179: 97.86 | AJ179: 0 | AK179: 97.86 | AL179: 0.88 | BA179: =W179+X179 -> 97.86 | BB179: 59.75 | BC179: =+Z179+AA179 -> 97.86 | BD179: 62.97 | BE179: =+AC179+AD179 -> 97.86 | BF179: 65.4 | BG179: =+AH179 -> 97.86 | BH179: 60.95 | BI179: 97.86 | BJ179: 60.64 | BL179: (ni podpore 2011/2) | BM179: (ni podpore 2011/2) | BN179: (ni podpore 2011/2) | BO179: (ni podpore 2011/2) | BP179: (ni podpore 2013) | BQ179: (ni podpore 2013) | BR179: 0 | BS179: 3.22 | BT179: 0 | BU179: 2.43 | BV179: 0 | BW179: -4.45 | BX179: 0 | BY179: -0.31
A180: SE23-2014feb | B180: 3.2 Sončne elektrarne - ostale 2014 februar | D180: srednja - od 1MW do vključno 10MW | E180: SE23 | W180: 78.9 | X180: 0 | Y180: 78.9 | Z180: 78.9 | AA180: 0 | AB180: 78.9 | AC180: 78.9 | AD180: 0 | AE180: 78.9 | AF180: 78.9 | AG180: 0 | AH180: 78.9 | AI180: 78.9 | AJ180: 0 | AK180: 78.9 | AL180: 0.91 | BA180: =W180+X180 -> 78.9 | BB180: 39.49 | BC180: =+Z180+AA180 -> 78.9 | BD180: 42.82 | BE180: =+AC180+AD180 -> 78.9 | BF180: 45.33 | BG180: =+AH180 -> 78.9 | BH180: 40.73 | BI180: 78.9 | BJ180: 40.41 | BL180: (ni podpore 2011/2) | BM180: (ni podpore 2011/2) | BN180: (ni podpore 2011/2) | BO180: (ni podpore 2011/2) | BP180: (ni podpore 2013) | BQ180: (ni podpore 2013) | BR180: 0 | BS180: 3.33 | BT180: 0 | BU180: 2.51 | BV180: 0 | BW180: -4.6 | BX180: 0 | BY180: -0.32
A181: SE24-2014feb | B181: 3.2 Sončne elektrarne - ostale 2014 februar | D181: velika - nad 10MW do vključno 125MW | E181: SE24 | W181: 73.25 | X181: 0 | Y181: 73.25 | Z181: 73.25 | AA181: 0 | AB181: 73.25 | AC181: 73.25 | AD181: 0 | AE181: 73.25 | AF181: 73.25 | AG181: 0 | AH181: 73.25 | AI181: 73.25 | AJ181: 0 | AK181: 73.25 | AL181: 1 | BA181: (ni ZO) | BB181: 29.94 | BC181: (ni ZO) | BD181: 33.6 | BE181: (ni ZO) | BF181: 36.36 | BG181: (ni ZO) | BH181: 31.31 | BI181: (ni ZO) | BJ181: 30.95 | BL181: (ni podpore 2011/2) | BM181: (ni podpore 2011/2) | BN181: (ni podpore 2011/2) | BO181: (ni podpore 2011/2) | BP181: (ni podpore 2013) | BQ181: (ni podpore 2013) | BR181: (ni ZO) | BS181: 3.66 | BT181: (ni ZO) | BU181: 2.76 | BV181: (ni ZO) | BW181: -5.05 | BX181: (ni ZO) | BY181: -0.36
A182: SE11-2014mar | B182: 3.1 Sončne elektrarne - na stavbah 2014 marec | D182: mikro - manjše od 50kW | E182: SE11 | W182: 110.8 | X182: 0 | Y182: 110.8 | Z182: 110.8 | AA182: 0 | AB182: 110.8 | AC182: 110.8 | AD182: 0 | AE182: 110.8 | AF182: 110.8 | AG182: 0 | AH182: 110.8 | AI182: 110.8 | AJ182: 0 | AK182: 110.8 | AL182: 0.88 | BA182: =W182+X182 -> 110.8 | BB182: 72.69 | BC182: =+Z182+AA182 -> 110.8 | BD182: 75.91 | BE182: =+AC182+AD182 -> 110.8 | BF182: 78.34 | BG182: =+AH182 -> 110.8 | BH182: 73.89 | BI182: =+AK182 -> 110.8 | BJ182: 73.58 | BL182: (ni podpore 2011/2) | BM182: (ni podpore 2011/2) | BN182: (ni podpore 2011/2) | BO182: (ni podpore 2011/2) | BP182: (ni podpore 2013) | BQ182: (ni podpore 2013) | BR182: 0 | BS182: 3.22 | BT182: 0 | BU182: 2.43 | BV182: =BG182-BE182 -> 0 | BW182: -4.45 | BX182: =BI182-BG182 -> 0 | BY182: -0.31
A183: SE12-2014mar | B183: 3.1 Sončne elektrarne - na stavbah 2014 marec | D183: mala - manjše od 1MW | E183: SE12 | W183: 101.33 | X183: 0 | Y183: 101.33 | Z183: 101.33 | AA183: 0 | AB183: 101.33 | AC183: 101.33 | AD183: 0 | AE183: 101.33 | AF183: 101.33 | AG183: 0 | AH183: 101.33 | AI183: 101.33 | AJ183: 0 | AK183: 101.33 | AL183: 0.88 | BA183: =W183+X183 -> 101.33 | BB183: 63.22 | BC183: =+Z183+AA183 -> 101.33 | BD183: 66.44 | BE183: =+AC183+AD183 -> 101.33 | BF183: 68.87 | BG183: =+AH183 -> 101.33 | BH183: 64.42 | BI183: 101.33 | BJ183: 64.11 | BL183: (ni podpore 2011/2) | BM183: (ni podpore 2011/2) | BN183: (ni podpore 2011/2) | BO183: (ni podpore 2011/2) | BP183: (ni podpore 2013) | BQ183: (ni podpore 2013) | BR183: 0 | BS183: 3.22 | BT183: 0 | BU183: 2.43 | BV183: 0 | BW183: -4.45 | BX183: 0 | BY183: -0.31
A184: SE13-2014mar | B184: 3.1 Sončne elektrarne - na stavbah 2014 marec | D184: srednja - od 1MW do vključno 10MW | E184: SE13 | W184: 84.07 | X184: 0 | Y184: 84.07 | Z184: 84.07 | AA184: 0 | AB184: 84.07 | AC184: 84.07 | AD184: 0 | AE184: 84.07 | AF184: 84.07 | AG184: 0 | AH184: 84.07 | AI184: 84.07 | AJ184: 0 | AK184: 84.07 | AL184: 0.91 | BA184: =W184+X184 -> 84.07 | BB184: 44.66 | BC184: =+Z184+AA184 -> 84.07 | BD184: 47.99 | BE184: =+AC184+AD184 -> 84.07 | BF184: 50.5 | BG184: =+AH184 -> 84.07 | BH184: 45.9 | BI184: 84.07 | BJ184: 45.58 | BL184: (ni podpore 2011/2) | BM184: (ni podpore 2011/2) | BN184: (ni podpore 2011/2) | BO184: (ni podpore 2011/2) | BP184: (ni podpore 2013) | BQ184: (ni podpore 2013) | BR184: 0 | BS184: 3.33 | BT184: 0 | BU184: 2.51 | BV184: 0 | BW184: -4.6 | BX184: 0 | BY184: -0.32
A185: SE14-2014mar | B185: 3.1 Sončne elektrarne - na stavbah 2014 marec | D185: velika - nad 10MW do vključno 125MW | E185: SE14 | W185: 74.83 | X185: 0 | Y185: 74.83 | Z185: 74.83 | AA185: 0 | AB185: 74.83 | AC185: 74.83 | AD185: 0 | AE185: 74.83 | AF185: 74.83 | AG185: 0 | AH185: 74.83 | AI185: 74.83 | AJ185: 0 | AK185: 74.83 | AL185: 1 | BA185: (ni ZO) | BB185: 31.52 | BC185: (ni ZO) | BD185: 35.18 | BE185: (ni ZO) | BF185: 37.94 | BG185: (ni ZO) | BH185: 32.89 | BI185: (ni ZO) | BJ185: 32.53 | BL185: (ni podpore 2011/2) | BM185: (ni podpore 2011/2) | BN185: (ni podpore 2011/2) | BO185: (ni podpore 2011/2) | BP185: (ni podpore 2013) | BQ185: (ni podpore 2013) | BR185: (ni ZO) | BS185: 3.66 | BT185: (ni ZO) | BU185: 2.76 | BV185: (ni ZO) | BW185: -5.05 | BX185: (ni ZO) | BY185: -0.36
A186: SE21-2014mar | B186: 3.2 Sončne elektrarne - ostale 2014 marec | D186: mikro - manjše od 50kW | E186: SE21 | W186: 104.1 | X186: 0 | Y186: 104.1 | Z186: 104.1 | AA186: 0 | AB186: 104.1 | AC186: 104.1 | AD186: 0 | AE186: 104.1 | AF186: 104.1 | AG186: 0 | AH186: 104.1 | AI186: 104.1 | AJ186: 0 | AK186: 104.1 | AL186: 0.88 | BA186: =W186+X186 -> 104.1 | BB186: 65.99 | BC186: =+Z186+AA186 -> 104.1 | BD186: 69.21 | BE186: =+AC186+AD186 -> 104.1 | BF186: 71.64 | BG186: =+AH186 -> 104.1 | BH186: 67.19 | BI186: =+AK186 -> 104.1 | BJ186: 66.88 | BL186: (ni podpore 2011/2) | BM186: (ni podpore 2011/2) | BN186: (ni podpore 2011/2) | BO186: (ni podpore 2011/2) | BP186: (ni podpore 2013) | BQ186: (ni podpore 2013) | BR186: 0 | BS186: 3.22 | BT186: 0 | BU186: 2.43 | BV186: =BG186-BE186 -> 0 | BW186: -4.45 | BX186: =BI186-BG186 -> 0 | BY186: -0.31
A187: SE22-2014mar | B187: 3.2 Sončne elektrarne - ostale 2014 marec | D187: mala - manjše od 1MW | E187: SE22 | W187: 95.9 | X187: 0 | Y187: 95.9 | Z187: 95.9 | AA187: 0 | AB187: 95.9 | AC187: 95.9 | AD187: 0 | AE187: 95.9 | AF187: 95.9 | AG187: 0 | AH187: 95.9 | AI187: 95.9 | AJ187: 0 | AK187: 95.9 | AL187: 0.88 | BA187: =W187+X187 -> 95.9 | BB187: 57.79 | BC187: =+Z187+AA187 -> 95.9 | BD187: 61.01 | BE187: =+AC187+AD187 -> 95.9 | BF187: 63.44 | BG187: =+AH187 -> 95.9 | BH187: 58.99 | BI187: 95.9 | BJ187: 58.68 | BL187: (ni podpore 2011/2) | BM187: (ni podpore 2011/2) | BN187: (ni podpore 2011/2) | BO187: (ni podpore 2011/2) | BP187: (ni podpore 2013) | BQ187: (ni podpore 2013) | BR187: 0 | BS187: 3.22 | BT187: 0 | BU187: 2.43 | BV187: 0 | BW187: -4.45 | BX187: 0 | BY187: -0.31
A188: SE23-2014mar | B188: 3.2 Sončne elektrarne - ostale 2014 marec | D188: srednja - od 1MW do vključno 10MW | E188: SE23 | W188: 77.32 | X188: 0 | Y188: 77.32 | Z188: 77.32 | AA188: 0 | AB188: 77.32 | AC188: 77.32 | AD188: 0 | AE188: 77.32 | AF188: 77.32 | AG188: 0 | AH188: 77.32 | AI188: 77.32 | AJ188: 0 | AK188: 77.32 | AL188: 0.91 | BA188: =W188+X188 -> 77.32 | BB188: 37.91 | BC188: =+Z188+AA188 -> 77.32 | BD188: 41.24 | BE188: =+AC188+AD188 -> 77.32 | BF188: 43.75 | BG188: =+AH188 -> 77.32 | BH188: 39.15 | BI188: 77.32 | BJ188: 38.83 | BL188: (ni podpore 2011/2) | BM188: (ni podpore 2011/2) | BN188: (ni podpore 2011/2) | BO188: (ni podpore 2011/2) | BP188: (ni podpore 2013) | BQ188: (ni podpore 2013) | BR188: 0 | BS188: 3.33 | BT188: 0 | BU188: 2.51 | BV188: 0 | BW188: -4.6 | BX188: 0 | BY188: -0.32
A189: SE24-2014mar | B189: 3.2 Sončne elektrarne - ostale 2014 marec | D189: velika - nad 10MW do vključno 125MW | E189: SE24 | W189: 71.79 | X189: 0 | Y189: 71.79 | Z189: 71.79 | AA189: 0 | AB189: 71.79 | AC189: 71.79 | AD189: 0 | AE189: 71.79 | AF189: 71.79 | AG189: 0 | AH189: 71.79 | AI189: 71.79 | AJ189: 0 | AK189: 71.79 | AL189: 1 | BA189: (ni ZO) | BB189: 28.48 | BC189: (ni ZO) | BD189: 32.14 | BE189: (ni ZO) | BF189: 34.9 | BG189: (ni ZO) | BH189: 29.85 | BI189: (ni ZO) | BJ189: 29.49 | BL189: (ni podpore 2011/2) | BM189: (ni podpore 2011/2) | BN189: (ni podpore 2011/2) | BO189: (ni podpore 2011/2) | BP189: (ni podpore 2013) | BQ189: (ni podpore 2013) | BR189: (ni ZO) | BS189: 3.66 | BT189: (ni ZO) | BU189: 2.76 | BV189: (ni ZO) | BW189: -5.05 | BX189: (ni ZO) | BY189: -0.36
A190: SE11-2014apr | B190: 3.1 Sončne elektrarne - na stavbah 2014 april | D190: mikro - manjše od 50kW | E190: SE11 | W190: 108.58 | X190: 0 | Y190: 108.58 | Z190: 108.58 | AA190: 0 | AB190: 108.58 | AC190: 108.58 | AD190: 0 | AE190: 108.58 | AF190: 108.58 | AG190: 0 | AH190: 108.58 | AI190: 108.58 | AJ190: 0 | AK190: 108.58 | AL190: 0.88 | BA190: =W190+X190 -> 108.58 | BB190: 70.47 | BC190: =+Z190+AA190 -> 108.58 | BD190: 73.69 | BE190: =+AC190+AD190 -> 108.58 | BF190: 76.12 | BG190: =+AH190 -> 108.58 | BH190: 71.67 | BI190: =+AK190 -> 108.58 | BJ190: 71.36 | BL190: (ni podpore 2011/2) | BM190: (ni podpore 2011/2) | BN190: (ni podpore 2011/2) | BO190: (ni podpore 2011/2) | BP190: (ni podpore 2013) | BQ190: (ni podpore 2013) | BR190: 0 | BS190: 3.22 | BT190: 0 | BU190: 2.43 | BV190: =BG190-BE190 -> 0 | BW190: -4.45 | BX190: =BI190-BG190 -> 0 | BY190: -0.31
A191: SE12-2014apr | B191: 3.1 Sončne elektrarne - na stavbah 2014 april | D191: mala - manjše od 1MW | E191: SE12 | W191: 99.3 | X191: 0 | Y191: 99.3 | Z191: 99.3 | AA191: 0 | AB191: 99.3 | AC191: 99.3 | AD191: 0 | AE191: 99.3 | AF191: 99.3 | AG191: 0 | AH191: 99.3 | AI191: 99.3 | AJ191: 0 | AK191: 99.3 | AL191: 0.88 | BA191: =W191+X191 -> 99.3 | BB191: 61.19 | BC191: =+Z191+AA191 -> 99.3 | BD191: 64.41 | BE191: =+AC191+AD191 -> 99.3 | BF191: 66.84 | BG191: =+AH191 -> 99.3 | BH191: 62.39 | BI191: 99.3 | BJ191: 62.08 | BL191: (ni podpore 2011/2) | BM191: (ni podpore 2011/2) | BN191: (ni podpore 2011/2) | BO191: (ni podpore 2011/2) | BP191: (ni podpore 2013) | BQ191: (ni podpore 2013) | BR191: 0 | BS191: 3.22 | BT191: 0 | BU191: 2.43 | BV191: 0 | BW191: -4.45 | BX191: 0 | BY191: -0.31
A192: SE13-2014apr | B192: 3.1 Sončne elektrarne - na stavbah 2014 april | D192: srednja - od 1MW do vključno 10MW | E192: SE13 | W192: 82.39 | X192: 0 | Y192: 82.39 | Z192: 82.39 | AA192: 0 | AB192: 82.39 | AC192: 82.39 | AD192: 0 | AE192: 82.39 | AF192: 82.39 | AG192: 0 | AH192: 82.39 | AI192: 82.39 | AJ192: 0 | AK192: 82.39 | AL192: 0.91 | BA192: =W192+X192 -> 82.39 | BB192: 42.98 | BC192: =+Z192+AA192 -> 82.39 | BD192: 46.31 | BE192: =+AC192+AD192 -> 82.39 | BF192: 48.82 | BG192: =+AH192 -> 82.39 | BH192: 44.22 | BI192: 82.39 | BJ192: 43.9 | BL192: (ni podpore 2011/2) | BM192: (ni podpore 2011/2) | BN192: (ni podpore 2011/2) | BO192: (ni podpore 2011/2) | BP192: (ni podpore 2013) | BQ192: (ni podpore 2013) | BR192: 0 | BS192: 3.33 | BT192: 0 | BU192: 2.51 | BV192: 0 | BW192: -4.6 | BX192: 0 | BY192: -0.32
A193: SE14-2014apr | B193: 3.1 Sončne elektrarne - na stavbah 2014 april | D193: velika - nad 10MW do vključno 125MW | E193: SE14 | W193: 73.33 | X193: 0 | Y193: 73.33 | Z193: 73.33 | AA193: 0 | AB193: 73.33 | AC193: 73.33 | AD193: 0 | AE193: 73.33 | AF193: 73.33 | AG193: 0 | AH193: 73.33 | AI193: 73.33 | AJ193: 0 | AK193: 73.33 | AL193: 1 | BA193: (ni ZO) | BB193: 30.02 | BC193: (ni ZO) | BD193: 33.68 | BE193: (ni ZO) | BF193: 36.44 | BG193: (ni ZO) | BH193: 31.39 | BI193: (ni ZO) | BJ193: 31.03 | BL193: (ni podpore 2011/2) | BM193: (ni podpore 2011/2) | BN193: (ni podpore 2011/2) | BO193: (ni podpore 2011/2) | BP193: (ni podpore 2013) | BQ193: (ni podpore 2013) | BR193: (ni ZO) | BS193: 3.66 | BT193: (ni ZO) | BU193: 2.76 | BV193: (ni ZO) | BW193: -5.05 | BX193: (ni ZO) | BY193: -0.36
A194: SE21-2014apr | B194: 3.2 Sončne elektrarne - ostale 2014 april | D194: mikro - manjše od 50kW | E194: SE21 | W194: 102.02 | X194: 0 | Y194: 102.02 | Z194: =+W194 -> 102.02 | AA194: =+X194 -> 0 | AB194: =+Z194+AA194 -> 102.02 | AC194: 102.02 | AD194: 0 | AE194: 102.02 | AF194: 102.02 | AG194: 0 | AH194: 102.02 | AI194: 102.02 | AJ194: 0 | AK194: 102.02 | AL194: 0.88 | BA194: =W194+X194 -> 102.02 | BB194: =ROUND((W194+X194)-AL194*$I$326,2) -> 63.91 | BC194: =+Z194+AA194 -> 102.02 | BD194: =ROUND((Z194+AA194)-AL194*$H$326,2) -> 67.13 | BE194: =+AC194+AD194 -> 102.02 | BF194: =ROUND((AC194+AD194)-AL194*$G$326,2) -> 69.56 | BG194: =+AH194 -> 102.02 | BH194: =ROUND(AH194-AL194*$F$326,2) -> 65.11 | BI194: =+AK194 -> 102.02 | BJ194: 64.8 | BL194: (ni podpore 2011/2) | BM194: (ni podpore 2011/2) | BN194: (ni podpore 2011/2) | BO194: (ni podpore 2011/2) | BP194: (ni podpore 2013) | BQ194: (ni podpore 2013) | BR194: 0 | BS194: 3.22 | BT194: =BE194-BC194 -> 0 | BU194: =BF194-BD194 -> 2.43 | BV194: =BG194-BE194 -> 0 | BW194: =BH194-BF194 -> -4.45 | BX194: =BI194-BG194 -> 0 | BY194: =BJ194-BH194 -> -0.31
A195: SE22-2014apr | B195: 3.2 Sončne elektrarne - ostale 2014 april | D195: mala - manjše od 1MW | E195: SE22 | W195: 93.98 | X195: 0 | Y195: 93.98 | Z195: 93.98 | AA195: 0 | AB195: 93.98 | AC195: =+Z195 -> 93.98 | AD195: =+AA195 -> 0 | AE195: =+AC195+AD195 -> 93.98 | AF195: =+AC195 -> 93.98 | AG195: =+AD195 -> 0 | AH195: =+AF195+AG195 -> 93.98 | AI195: =+AF195 -> 93.98 | AJ195: =+AG195 -> 0 | AK195: =+AI195+AJ195 -> 93.98 | AL195: 0.88 | BA195: =W195+X195 -> 93.98 | BB195: 55.87 | BC195: =+Z195+AA195 -> 93.98 | BD195: 59.09 | BE195: =+AC195+AD195 -> 93.98 | BF195: 61.52 | BG195: =+AH195 -> 93.98 | BH195: 57.07 | BI195: 93.98 | BJ195: =ROUND(AK195-AL195*$E$326,2) -> 56.76 | BL195: (ni podpore 2011/2) | BM195: (ni podpore 2011/2) | BN195: (ni podpore 2011/2) | BO195: (ni podpore 2011/2) | BP195: (ni podpore 2013) | BQ195: (ni podpore 2013) | BR195: =BC195-BA195 -> 0 | BS195: =BD195-BB195 -> 3.22 | BT195: 0 | BU195: 2.43 | BV195: 0 | BW195: -4.45 | BX195: 0 | BY195: -0.31
A196: SE23-2014apr | B196: 3.2 Sončne elektrarne - ostale 2014 april | D196: srednja - od 1MW do vključno 10MW | E196: SE23 | W196: 75.77 | X196: 0 | Y196: 75.77 | Z196: 75.77 | AA196: 0 | AB196: 75.77 | AC196: 75.77 | AD196: 0 | AE196: 75.77 | AF196: 75.77 | AG196: 0 | AH196: 75.77 | AI196: 75.77 | AJ196: 0 | AK196: 75.77 | AL196: 0.91 | BA196: =W196+X196 -> 75.77 | BB196: 36.36 | BC196: =+Z196+AA196 -> 75.77 | BD196: 39.69 | BE196: =+AC196+AD196 -> 75.77 | BF196: 42.2 | BG196: =+AH196 -> 75.77 | BH196: 37.6 | BI196: 75.77 | BJ196: 37.28 | BL196: (ni podpore 2011/2) | BM196: (ni podpore 2011/2) | BN196: (ni podpore 2011/2) | BO196: (ni podpore 2011/2) | BP196: (ni podpore 2013) | BQ196: (ni podpore 2013) | BR196: 0 | BS196: 3.33 | BT196: 0 | BU196: 2.51 | BV196: 0 | BW196: -4.6 | BX196: 0 | BY196: -0.32
A197: SE24-2014apr | B197: 3.2 Sončne elektrarne - ostale 2014 april | D197: velika - nad 10MW do vključno 125MW | E197: SE24 | W197: 70.35 | X197: 0 | Y197: 70.35 | Z197: 70.35 | AA197: 0 | AB197: 70.35 | AC197: 70.35 | AD197: 0 | AE197: 70.35 | AF197: 70.35 | AG197: 0 | AH197: 70.35 | AI197: 70.35 | AJ197: 0 | AK197: 70.35 | AL197: 1 | BA197: (ni ZO) | BB197: 27.04 | BC197: (ni ZO) | BD197: 30.7 | BE197: (ni ZO) | BF197: 33.46 | BG197: (ni ZO) | BH197: 28.41 | BI197: (ni ZO) | BJ197: 28.05 | BL197: (ni podpore 2011/2) | BM197: (ni podpore 2011/2) | BN197: (ni podpore 2011/2) | BO197: (ni podpore 2011/2) | BP197: (ni podpore 2013) | BQ197: (ni podpore 2013) | BR197: (ni ZO) | BS197: 3.66 | BT197: (ni ZO) | BU197: 2.76 | BV197: (ni ZO) | BW197: -5.05 | BX197: (ni ZO) | BY197: -0.36
A198: SE11-2014maj | B198: 3.1 Sončne elektrarne - na stavbah 2014 maj | D198: mikro - manjše od 50kW | E198: SE11 | W198: 106.41 | X198: 0 | Y198: 106.41 | Z198: 106.41 | AA198: 0 | AB198: 106.41 | AC198: 106.41 | AD198: 0 | AE198: 106.41 | AF198: 106.41 | AG198: 0 | AH198: 106.41 | AI198: 106.41 | AJ198: 0 | AK198: 106.41 | AL198: 0.88 | BA198: =W198+X198 -> 106.41 | BB198: 68.3 | BC198: =+Z198+AA198 -> 106.41 | BD198: 71.52 | BE198: =+AC198+AD198 -> 106.41 | BF198: 73.95 | BG198: =+AH198 -> 106.41 | BH198: 69.5 | BI198: =+AK198 -> 106.41 | BJ198: 69.19 | BL198: (ni podpore 2011/2) | BM198: (ni podpore 2011/2) | BN198: (ni podpore 2011/2) | BO198: (ni podpore 2011/2) | BP198: (ni podpore 2013) | BQ198: (ni podpore 2013) | BR198: 0 | BS198: 3.22 | BT198: 0 | BU198: 2.43 | BV198: =BG198-BE198 -> 0 | BW198: -4.45 | BX198: =BI198-BG198 -> 0 | BY198: -0.31
A199: SE12-2014maj | B199: 3.1 Sončne elektrarne - na stavbah 2014 maj | D199: mala - manjše od 1MW | E199: SE12 | W199: =ROUND(0.98*W191,2) -> 97.31 | X199: 0 | Y199: 97.31 | Z199: 97.31 | AA199: 0 | AB199: 97.31 | AC199: 97.31 | AD199: 0 | AE199: 97.31 | AF199: 97.31 | AG199: 0 | AH199: 97.31 | AI199: 97.31 | AJ199: 0 | AK199: 97.31 | AL199: 0.88 | BA199: =W199+X199 -> 97.31 | BB199: 59.2 | BC199: =+Z199+AA199 -> 97.31 | BD199: 62.42 | BE199: =+AC199+AD199 -> 97.31 | BF199: 64.85 | BG199: =+AH199 -> 97.31 | BH199: 60.4 | BI199: 97.31 | BJ199: 60.09 | BL199: (ni podpore 2011/2) | BM199: (ni podpore 2011/2) | BN199: (ni podpore 2011/2) | BO199: (ni podpore 2011/2) | BP199: (ni podpore 2013) | BQ199: (ni podpore 2013) | BR199: 0 | BS199: 3.22 | BT199: 0 | BU199: 2.43 | BV199: 0 | BW199: -4.45 | BX199: 0 | BY199: -0.31
A200: SE13-2014maj | B200: 3.1 Sončne elektrarne - na stavbah 2014 maj | D200: srednja - od 1MW do vključno 10MW | E200: SE13 | W200: 80.74 | X200: 0 | Y200: 80.74 | Z200: 80.74 | AA200: 0 | AB200: 80.74 | AC200: 80.74 | AD200: 0 | AE200: 80.74 | AF200: 80.74 | AG200: 0 | AH200: 80.74 | AI200: 80.74 | AJ200: 0 | AK200: 80.74 | AL200: 0.91 | BA200: =W200+X200 -> 80.74 | BB200: 41.33 | BC200: =+Z200+AA200 -> 80.74 | BD200: 44.66 | BE200: =+AC200+AD200 -> 80.74 | BF200: 47.17 | BG200: =+AH200 -> 80.74 | BH200: 42.57 | BI200: 80.74 | BJ200: 42.25 | BL200: (ni podpore 2011/2) | BM200: (ni podpore 2011/2) | BN200: (ni podpore 2011/2) | BO200: (ni podpore 2011/2) | BP200: (ni podpore 2013) | BQ200: (ni podpore 2013) | BR200: 0 | BS200: 3.33 | BT200: 0 | BU200: 2.51 | BV200: 0 | BW200: -4.6 | BX200: 0 | BY200: -0.32
... 150 more rows

Sheet OPOMBE (hidden)
A2: Upoštevani parametri AGEN-RS za 2012
A4: elektrika | B4: 55.79 | C4: EUR/MWh
A5: plin | B5: 0.3768 | C5: EUR/Sm3
A6: lesna biomasa | B6: 54.47 | C6: EUR/t
A7: koruzna silaža | B7: 24 | C7: EUR/t
A8: premog | B8: 2.65 | C8: EUR/GJ
A10: v28nov11
A11: popravljeni SDRS 2012 za skupino SF2
A13: v23dec11
A14: dodani H1 in H2 za 2012 za PV (RSEE) glede na spremembo uredbe OVE
A16: v20nov12
A17: Narejena verzija za podpore 2013 - manjkajo še PV instalirane v 2013
A18: Upoštevani parametri AGEN
A19: EE | B19: €/MWh | C19: 50.66
A20: PREMOG | B20: EUR/GJ | C20: 2.61
A21: LB sosežig | B21: EUR/GJ | C21: 8.27
A22: lesna biomasa - Clb | B22: €/t | C22: 58.5
A23: koruzna silaža - Cs | B23: EUR/t | C23: 24
A24: zemeljski plin - Cb | B24: €/Sm3 | C24: 0.4087
A26: v3jan13
A28: cena koruzne silaže popravljena iz 24 na 32 glede na objavo AGEN-RS z dne 31.12.2012
A30: v18jul14
A31: korigirana cena plina za drugo polovico 2014 (1.7.-31.12.)
A33: v2dec14
A34: popravljena formula pri BP13 SDRS
A36: v1avg16
A37: cena zemeljski plin za H2 2016

Sheet Podpore 2014 (hidden)
A1: VIŠINE PODPOR 2014
D3: KODA | E3: NDRS 2014 | F3: SDRS 2014 | G3: Skupni 2014 | H3: Faktor B po Prilogi III | I3: Cena ZO 2014 | J3: Višina OP 2014 | L3: ZO2014 - ZO2013 | M3: OP2014 - OP2013
A4: HE01 | B4: 1. Hidroelektrarne | C4: mikro - manjše od 50kW | D4: HE01 | E4: 105.47 | F4: 0 | G4: 105.47 | H4: 0.86 | I4: 105.47 | J4: 68.22 | L4: 0 | M4: 6.32
A5: HE02 | C5: mala - manjše od 1MW | D5: HE02 | E5: 92.61 | F5: 0 | G5: 92.61 | H5: 0.86 | I5: 92.61 | J5: 55.36 | L5: 0 | M5: 6.32
A6: HE03 | C6: srednja - od 1MW do vključno 10MW | D6: HE03 | E6: 82.34 | F6: 0 | G6: 82.34 | H6: 0.9 | I6: 82.34 | J6: 43.36 | L6: 0 | M6: 6.61
A7: HE04 | C7: velika - nad 10MW do vključno 125MW | D7: HE04 | E7: 76.57 | F7: 0 | G7: 76.57 | H7: 0.9 | I7: (ni ZO) | J7: 37.59 | L7: (ni ZO) | M7: 6.61
A8: VE01 | B8: 2. Vetrne elektrarne | C8: mikro - manjše od 50kW | D8: VE01 | E8: 95.38 | F8: 0 | G8: 95.38 | H8: 0.8 | I8: 95.38 | J8: 60.73 | L8: 0 | M8: 5.88
A9: VE02 | C9: mala - manjše od 1MW | D9: VE02 | E9: 95.38 | F9: 0 | G9: 95.38 | H9: 0.8 | I9: 95.38 | J9: 60.73 | L9: 0 | M9: 5.88
A10: VE03 | C10: srednja - od 1MW do vključno 10MW | D10: VE03 | E10: 95.38 | F10: 0 | G10: 95.38 | H10: 0.8 | I10: 95.38 | J10: 60.73 | L10: 0 | M10: 5.88
A11: VE04 | C11: velika - nad 10MW do vključno 125MW | D11: VE04 | E11: 86.74 | F11: 0 | G11: 86.74 | H11: 0.86 | I11: (ni ZO) | J11: 49.49 | L11: (ni ZO) | M11: 6.32
A12: SE11-2009 | B12: 3.1 Sončne elektrarne - na stavbah 2009 | C12: mikro - manjše od 50kW | D12: SE11 | E12: 415.46 | F12: 0 | G12: 415.46 | H12: 0.88 | I12: 415.46 | J12: 377.35 | L12: 0 | M12: 6.47
A13: SE12-2009 | C13: mala - manjše od 1MW | D13: SE12 | E13: 380.02 | F13: 0 | G13: 380.02 | H13: 0.88 | I13: 380.02 | J13: 341.91 | L13: 0 | M13: 6.47
A14: SE13-2009 | C14: srednja - od 1MW do vključno 10MW | D14: SE13 | E14: 315.36 | F14: 0 | G14: 315.36 | H14: 0.91 | I14: 315.36 | J14: 275.95 | L14: 0 | M14: 6.69
A15: SE14-2009 | C15: velika - nad 10MW do vključno 125MW | D15: SE14 | E15: 280.71 | F15: 0 | G15: 280.71 | H15: 1 | I15: (ni ZO) | J15: 237.4 | L15: (ni ZO) | M15: 7.35
B16: 3.1. INT Sončne elektrarne - integrirane 2009 | C16: mikro - manjše od 50kW | E16: 477.78 | F16: 0 | G16: 477.78 | H16: 0.88 | I16: 477.78 | J16: 439.67 | L16: 0 | M16: 6.47
C17: mala - manjše od 1MW | E17: 437.02 | F17: 0 | G17: 437.02 | H17: 0.88 | I17: 437.02 | J17: 398.91 | L17: 0 | M17: 6.47
C18: srednja - od 1MW do vključno 10MW | E18: 362.66 | F18: 0 | G18: 362.66 | H18: 0.91 | I18: 362.66 | J18: 323.25 | L18: 0 | M18: 6.69
C19: velika - nad 10MW do vključno 125MW | E19: 322.82 | F19: 0 | G19: 322.82 | H19: 1 | I19: (ni ZO) | J19: 279.51 | L19: (ni ZO) | M19: 7.35
A20: SE21-2009 | B20: 3.2 Sončne elektrarne - samostojni objekti 2009 | C20: mikro - manjše od 50kW | D20: SE21 | E20: 390.42 | F20: 0 | G20: 390.42 | H20: 0.88 | I20: 390.42 | J20: 352.31 | L20: 0 | M20: 6.47
A21: SE22-2009 | C21: mala - manjše od 1MW | D21: SE22 | E21: 359.71 | F21: 0 | G21: 359.71 | H21: 0.88 | I21: 359.71 | J21: 321.6 | L21: 0 | M21: 6.47
A22: SE23-2009 | C22: srednja - od 1MW do vključno 10MW | D22: SE23 | E22: 289.98 | F22: 0 | G22: 289.98 | H22: 0.91 | I22: 289.98 | J22: 250.57 | L22: 0 | M22: 6.69
A23: SE24-2009 | C23: velika - nad 10MW do vključno 125MW | D23: SE24 | E23: 269.22 | F23: 0 | G23: 269.22 | H23: 1 | I23: (ni ZO) | J23: 225.91 | L23: (ni ZO) | M23: 7.35
A24: SE11-2010 | B24: 3.1 Sončne elektrarne - na stavbah 2010 | C24: mikro - manjše od 50kW | D24: SE11 | E24: 386.38 | F24: 0 | G24: 386.38 | H24: 0.88 | I24: 386.38 | J24: 348.27 | L24: 0 | M24: 6.47
A25: SE12-2010 | C25: mala - manjše od 1MW | D25: SE12 | E25: 353.42 | F25: 0 | G25: 353.42 | H25: 0.88 | I25: 353.42 | J25: 315.31 | L25: 0 | M25: 6.47
A26: SE13-2010 | C26: srednja - od 1MW do vključno 10MW | D26: SE13 | E26: 293.28 | F26: 0 | G26: 293.28 | H26: 0.91 | I26: 293.28 | J26: 253.87 | L26: 0 | M26: 6.69
A27: SE14-2010 | C27: velika - nad 10MW do vključno 125MW | D27: SE14 | E27: 261.06 | F27: 0 | G27: 261.06 | H27: 1 | I27: (ni ZO) | J27: 217.75 | L27: (ni ZO) | M27: 7.35
B28: 3.1 INT Sončne elektrarne - integrirane 2010 | C28: mikro - manjše od 50kW | E28: 444.34 | F28: 0 | G28: 444.34 | H28: 0.88 | I28: 444.34 | J28: 406.23 | L28: 0 | M28: 6.47
C29: mala - manjše od 1MW | E29: 406.43 | F29: 0 | G29: 406.43 | H29: 0.88 | I29: 406.43 | J29: 368.32 | L29: 0 | M29: 6.47
C30: srednja - od 1MW do vključno 10MW | E30: 337.27 | F30: 0 | G30: 337.27 | H30: 0.91 | I30: 337.27 | J30: 297.86 | L30: 0 | M30: 6.69
C31: velika - nad 10MW do vključno 125MW | E31: 300.22 | F31: 0 | G31: 300.22 | H31: 1 | I31: (ni ZO) | J31: 256.91 | L31: (ni ZO) | M31: 7.35
A32: SE21-2010 | B32: 3.2 Sončne elektrarne - samostojni objekti 2010 | C32: mikro - manjše od 50kW | D32: SE21 | E32: 363.09 | F32: 0 | G32: 363.09 | H32: 0.88 | I32: 363.09 | J32: 324.98 | L32: 0 | M32: 6.47
A33: SE22-2010 | C33: mala - manjše od 1MW | D33: SE22 | E33: 334.53 | F33: 0 | G33: 334.53 | H33: 0.88 | I33: 334.53 | J33: 296.42 | L33: 0 | M33: 6.47
A34: SE23-2010 | C34: srednja - od 1MW do vključno 10MW | D34: SE23 | E34: 269.68 | F34: 0 | G34: 269.68 | H34: 0.91 | I34: 269.68 | J34: 230.27 | L34: 0 | M34: 6.69
A35: SE24-2010 | C35: velika - nad 10MW do vključno 125MW | D35: SE24 | E35: 250.37 | F35: 0 | G35: 250.37 | H35: 1 | I35: (ni ZO) | J35: 207.06 | L35: (ni ZO) | M35: 7.35
A36: SE11-2011 | B36: 3.1 Sončne elektrarne - na stavbah 2011 | C36: mikro - manjše od 50kW | D36: SE11 | E36: 332.37 | F36: 0 | G36: 332.37 | H36: 0.88 | I36: 332.37 | J36: 294.26 | L36: 0 | M36: 6.47
A37: SE12-2011 | C37: mala - manjše od 1MW | D37: SE12 | E37: 304.02 | F37: 0 | G37: 304.02 | H37: 0.88 | I37: 304.02 | J37: 265.91 | L37: 0 | M37: 6.47
A38: SE13-2011 | C38: srednja - od 1MW do vključno 10MW | D38: SE13 | E38: 252.29 | F38: 0 | G38: 252.29 | H38: 0.91 | I38: 252.29 | J38: 212.88 | L38: 0 | M38: 6.69
A39: SE14-2011 | C39: velika - nad 10MW do vključno 125MW | D39: SE14 | E39: 224.57 | F39: 0 | G39: 224.57 | H39: 1 | I39: (ni ZO) | J39: 181.26 | L39: (ni ZO) | M39: 7.35
B40: 3.1 INT Sončne elektrarne - integrirane 2011 | C40: mikro - manjše od 50kW | E40: 382.23 | F40: 0 | G40: 382.23 | H40: 0.88 | I40: 382.23 | J40: 344.12 | L40: 0 | M40: 6.47
C41: mala - manjše od 1MW | E41: 349.62 | F41: 0 | G41: 349.62 | H41: 0.88 | I41: 349.62 | J41: 311.51 | L41: 0 | M41: 6.47
C42: srednja - od 1MW do vključno 10MW | E42: 290.13 | F42: 0 | G42: 290.13 | H42: 0.91 | I42: 290.13 | J42: 250.72 | L42: 0 | M42: 6.69
C43: velika - nad 10MW do vključno 125MW | E43: 258.26 | F43: 0 | G43: 258.26 | H43: 1 | I43: (ni ZO) | J43: 214.95 | L43: (ni ZO) | M43: 7.35
A44: SE21-2011 | B44: 3.2 Sončne elektrarne - samostojni objekti 2011 | C44: mikro - manjše od 50kW | D44: SE21 | E44: 312.34 | F44: 0 | G44: 312.34 | H44: 0.88 | I44: 312.34 | J44: 274.23 | L44: 0 | M44: 6.47
A45: SE22-2011 | C45: mala - manjše od 1MW | D45: SE22 | E45: 287.77 | F45: 0 | G45: 287.77 | H45: 0.88 | I45: 287.77 | J45: 249.66 | L45: 0 | M45: 6.47
A46: SE23-2011 | C46: srednja - od 1MW do vključno 10MW | D46: SE23 | E46: 231.98 | F46: 0 | G46: 231.98 | H46: 0.91 | I46: 231.98 | J46: 192.57 | L46: 0 | M46: 6.69
A47: SE24-2011 | C47: velika - nad 10MW do vključno 125MW | D47: SE24 | E47: 215.38 | F47: 0 | G47: 215.38 | H47: 1 | I47: (ni ZO) | J47: 172.07 | L47: (ni ZO) | M47: 7.35
A48: SE11-2012H1 | B48: 3.1 Sončne elektrarne - na stavbah 2012 H1 | C48: mikro - manjše od 50kW | D48: SE11 | E48: 290.82 | F48: 0 | G48: 290.82 | H48: 0.88 | I48: 290.82 | J48: 252.71 | L48: 0 | M48: 6.47
A49: SE12-2012H1 | C49: mala - manjše od 1MW | D49: SE12 | E49: 266.01 | F49: 0 | G49: 266.01 | H49: 0.88 | I49: 266.01 | J49: 227.9 | L49: 0 | M49: 6.47
A50: SE13-2012H1 | C50: srednja - od 1MW do vključno 10MW | D50: SE13 | E50: 220.75 | F50: 0 | G50: 220.75 | H50: 0.91 | I50: 220.75 | J50: 181.34 | L50: 0 | M50: 6.69
A51: SE14-2012H1 | C51: velika - nad 10MW do vključno 125MW | D51: SE14 | E51: 196.5 | F51: 0 | G51: 196.5 | H51: 1 | I51: (ni ZO) | J51: 153.19 | L51: (ni ZO) | M51: 7.35
A52: SE11-2012H2 | B52: 3.1 Sončne elektrarne - na stavbah 2012 H2 | C52: mikro - manjše od 50kW | D52: SE11 | E52: 197.55 | F52: 0 | G52: 197.55 | H52: 0.88 | I52: 197.55 | J52: 159.44 | L52: 0 | M52: 6.47
A53: SE12-2012H2 | C53: mala - manjše od 1MW | D53: SE12 | E53: 180.7 | F53: 0 | G53: 180.7 | H53: 0.88 | I53: 180.7 | J53: 142.59 | L53: 0 | M53: 6.47
A54: SE13-2012H2 | C54: srednja - od 1MW do vključno 10MW | D54: SE13 | E54: 149.95 | F54: 0 | G54: 149.95 | H54: 0.91 | I54: 149.95 | J54: 110.54 | L54: 0 | M54: 6.69
A55: SE14-2012H2 | C55: velika - nad 10MW do vključno 125MW | D55: SE14 | E55: 133.48 | F55: 0 | G55: 133.48 | H55: 1 | I55: (ni ZO) | J55: 90.17 | L55: (ni ZO) | M55: 7.35
A56: SE21-2012H1 | B56: 3.2 Sončne elektrarne - ostale 2012 H1 | C56: mikro - manjše od 50kW | D56: SE21 | E56: 273.29 | F56: 0 | G56: 273.29 | H56: 0.88 | I56: 273.29 | J56: 235.18 | L56: 0 | M56: 6.47
A57: SE22-2012H1 | C57: mala - manjše od 1MW | D57: SE22 | E57: 251.8 | F57: 0 | G57: 251.8 | H57: 0.88 | I57: 251.8 | J57: 213.69 | L57: 0 | M57: 6.47
A58: SE23-2012H1 | C58: srednja - od 1MW do vključno 10MW | D58: SE23 | E58: 202.99 | F58: 0 | G58: 202.99 | H58: 0.91 | I58: 202.99 | J58: 163.58 | L58: 0 | M58: 6.69
A59: SE24-2012H1 | C59: velika - nad 10MW do vključno 125MW | D59: SE24 | E59: 188.45 | F59: 0 | G59: 188.45 | H59: 1 | I59: (ni ZO) | J59: 145.14 | L59: (ni ZO) | M59: 7.35
A60: SE21-2012H2 | B60: 3.2 Sončne elektrarne - ostale 2012 H2 | C60: mikro - manjše od 50kW | D60: SE21 | E60: 185.64 | F60: 0 | G60: 185.64 | H60: 0.88 | I60: 185.64 | J60: 147.53 | L60: 0 | M60: 6.47
A61: SE22-2012H2 | C61: mala - manjše od 1MW | D61: SE22 | E61: 171.04 | F61: 0 | G61: 171.04 | H61: 0.88 | I61: 171.04 | J61: 132.93 | L61: 0 | M61: 6.47
A62: SE23-2012H2 | C62: srednja - od 1MW do vključno 10MW | D62: SE23 | E62: 137.89 | F62: 0 | G62: 137.89 | H62: 0.91 | I62: 137.89 | J62: 98.48 | L62: 0 | M62: 6.69
A63: SE24-2012H2 | C63: velika - nad 10MW do vključno 125MW | D63: SE24 | E63: 128.01 | F63: 0 | G63: 128.01 | H63: 1 | I63: (ni ZO) | J63: 84.7 | L63: (ni ZO) | M63: 7.35
A64: SE11-2012dec | B64: =CONCATENATE("3.1 Sončne elektrarne - na stavbah"," ",RIGHT(A64,7)) -> 3.1 Sončne elektrarne - na stavbah 2012dec | C64: mikro - manjše od 50kW | D64: SE11 | E64: 150 | F64: 0 | G64: 150 | H64: 0.88 | I64: 150 | J64: 111.89 | L64: 0 | M64: 6.47
A65: SE12-2012dec | C65: mala - manjše od 1MW | D65: SE12 | E65: 137.19 | F65: 0 | G65: 137.19 | H65: 0.88 | I65: 137.19 | J65: 99.08 | L65: 0 | M65: 6.47
A66: SE13-2012dec | C66: srednja - od 1MW do vključno 10MW | D66: SE13 | E66: 113.85 | F66: 0 | G66: 113.85 | H66: 0.91 | I66: 113.85 | J66: 74.44 | L66: 0 | M66: 6.69
A67: SE14-2012dec | C67: velika - nad 10MW do vključno 125MW | D67: SE14 | E67: 101.34 | F67: 0 | G67: 101.34 | H67: 1 | I67: (ni ZO) | J67: 58.03 | L67: (ni ZO) | M67: 7.35
A68: SE21-2012dec | B68: =CONCATENATE("3.2 Sončne elektrarne - ostale"," ",RIGHT(A68,7)) -> 3.2 Sončne elektrarne - ostale 2012dec | C68: mikro - manjše od 50kW | D68: SE21 | E68: 140.95 | F68: 0 | G68: 140.95 | H68: 0.88 | I68: 140.95 | J68: 102.84 | L68: 0 | M68: 6.47
A69: SE22-2012dec | C69: mala - manjše od 1MW | D69: SE22 | E69: 129.86 | F69: 0 | G69: 129.86 | H69: 0.88 | I69: 129.86 | J69: 91.75 | L69: 0 | M69: 6.47
A70: SE23-2012dec | C70: srednja - od 1MW do vključno 10MW | D70: SE23 | E70: 104.68 | F70: 0 | G70: 104.68 | H70: 0.91 | I70: 104.68 | J70: 65.27 | L70: 0 | M70: 6.69
A71: SE24-2012dec | C71: velika - nad 10MW do vključno 125MW | D71: SE24 | E71: 97.19 | F71: 0 | G71: 97.19 | H71: 1 | I71: (ni ZO) | J71: 53.88 | L71: (ni ZO) | M71: 7.35
A72: SE11-2013jan | B72: =CONCATENATE("3.1 Sončne elektrarne - na stavbah"," ",RIGHT(A72,7)) -> 3.1 Sončne elektrarne - na stavbah 2013jan | C72: mikro - manjše od 50kW | D72: SE11 | E72: 147 | F72: 0 | G72: 147 | H72: 0.88 | I72: 147 | J72: 108.89 | L72: 0 | M72: 6.47
A73: SE12-2013jan | C73: mala - manjše od 1MW | D73: SE12 | E73: 134.45 | F73: 0 | G73: 134.45 | H73: 0.88 | I73: 134.45 | J73: 96.34 | L73: 0 | M73: 6.47
A74: SE13-2013jan | C74: srednja - od 1MW do vključno 10MW | D74: SE13 | E74: 111.57 | F74: 0 | G74: 111.57 | H74: 0.91 | I74: 111.57 | J74: 72.16 | L74: 0 | M74: 6.69
A75: SE14-2013jan | C75: velika - nad 10MW do vključno 125MW | D75: SE14 | E75: 99.31 | F75: 0 | G75: 99.31 | H75: 1 | I75: (ni ZO) | J75: 56 | L75: (ni ZO) | M75: 7.35
A76: SE21-2013jan | B76: =CONCATENATE("3.2 Sončne elektrarne - ostale"," ",RIGHT(A76,7)) -> 3.2 Sončne elektrarne - ostale 2013jan | C76: mikro - manjše od 50kW | D76: SE21 | E76: 138.13 | F76: 0 | G76: 138.13 | H76: 0.88 | I76: 138.13 | J76: 100.02 | L76: 0 | M76: 6.47
A77: SE22-2013jan | C77: mala - manjše od 1MW | D77: SE22 | E77: 127.26 | F77: 0 | G77: 127.26 | H77: 0.88 | I77: 127.26 | J77: 89.15 | L77: 0 | M77: 6.47
A78: SE23-2013jan | C78: srednja - od 1MW do vključno 10MW | D78: SE23 | E78: 102.59 | F78: 0 | G78: 102.59 | H78: 0.91 | I78: 102.59 | J78: 63.18 | L78: 0 | M78: 6.69
A79: SE24-2013jan | C79: velika - nad 10MW do vključno 125MW | D79: SE24 | E79: 95.25 | F79: 0 | G79: 95.25 | H79: 1 | I79: (ni ZO) | J79: 51.94 | L79: (ni ZO) | M79: 7.35
A80: SE11-2013feb | B80: =CONCATENATE("3.1 Sončne elektrarne - na stavbah"," ",RIGHT(A80,7)) -> 3.1 Sončne elektrarne - na stavbah 2013feb | C80: mikro - manjše od 50kW | D80: SE11 | E80: 144.06 | F80: 0 | G80: 144.06 | H80: 0.88 | I80: 144.06 | J80: 105.95 | L80: 0 | M80: 6.47
A81: SE12-2013feb | C81: mala - manjše od 1MW | D81: SE12 | E81: 131.76 | F81: 0 | G81: 131.76 | H81: 0.88 | I81: 131.76 | J81: 93.65 | L81: 0 | M81: 6.47
A82: SE13-2013feb | C82: srednja - od 1MW do vključno 10MW | D82: SE13 | E82: 109.34 | F82: 0 | G82: 109.34 | H82: 0.91 | I82: 109.34 | J82: 69.93 | L82: 0 | M82: 6.69
A83: SE14-2013feb | C83: velika - nad 10MW do vključno 125MW | D83: SE14 | E83: 97.32 | F83: 0 | G83: 97.32 | H83: 1 | I83: (ni ZO) | J83: 54.01 | L83: (ni ZO) | M83: 7.35
A84: SE21-2013feb | B84: =CONCATENATE("3.2 Sončne elektrarne - ostale"," ",RIGHT(A84,7)) -> 3.2 Sončne elektrarne - ostale 2013feb | C84: mikro - manjše od 50kW | D84: SE21 | E84: 135.37 | F84: 0 | G84: 135.37 | H84: 0.88 | I84: 135.37 | J84: 97.26 | L84: 0 | M84: 6.47
A85: SE22-2013feb | C85: mala - manjše od 1MW | D85: SE22 | E85: 124.71 | F85: 0 | G85: 124.71 | H85: 0.88 | I85: 124.71 | J85: 86.6 | L85: 0 | M85: 6.47
A86: SE23-2013feb | C86: srednja - od 1MW do vključno 10MW | D86: SE23 | E86: 100.54 | F86: 0 | G86: 100.54 | H86: 0.91 | I86: 100.54 | J86: 61.13 | L86: 0 | M86: 6.69
A87: SE24-2013feb | C87: velika - nad 10MW do vključno 125MW | D87: SE24 | E87: 93.35 | F87: 0 | G87: 93.35 | H87: 1 | I87: (ni ZO) | J87: 50.04 | L87: (ni ZO) | M87: 7.35
A88: SE11-2013mar | B88: =CONCATENATE("3.1 Sončne elektrarne - na stavbah"," ",RIGHT(A88,7)) -> 3.1 Sončne elektrarne - na stavbah 2013mar | C88: mikro - manjše od 50kW | D88: SE11 | E88: 141.18 | F88: 0 | G88: 141.18 | H88: 0.88 | I88: 141.18 | J88: 103.07 | L88: 0 | M88: 6.47
A89: SE12-2013mar | C89: mala - manjše od 1MW | D89: SE12 | E89: 129.12 | F89: 0 | G89: 129.12 | H89: 0.88 | I89: 129.12 | J89: 91.01 | L89: 0 | M89: 6.47
A90: SE13-2013mar | C90: srednja - od 1MW do vključno 10MW | D90: SE13 | E90: 107.15 | F90: 0 | G90: 107.15 | H90: 0.91 | I90: 107.15 | J90: 67.74 | L90: 0 | M90: 6.69
A91: SE14-2013mar | C91: velika - nad 10MW do vključno 125MW | D91: SE14 | E91: 95.37 | F91: 0 | G91: 95.37 | H91: 1 | I91: (ni ZO) | J91: 52.06 | L91: (ni ZO) | M91: 7.35
A92: SE21-2013mar | B92: =CONCATENATE("3.2 Sončne elektrarne - ostale"," ",RIGHT(A92,7)) -> 3.2 Sončne elektrarne - ostale 2013mar | C92: mikro - manjše od 50kW | D92: SE21 | E92: 132.66 | F92: 0 | G92: 132.66 | H92: 0.88 | I92: 132.66 | J92: 94.55 | L92: 0 | M92: 6.47
A93: SE22-2013mar | C93: mala - manjše od 1MW | D93: SE22 | E93: 122.22 | F93: 0 | G93: 122.22 | H93: 0.88 | I93: 122.22 | J93: 84.11 | L93: 0 | M93: 6.47
A94: SE23-2013mar | C94: srednja - od 1MW do vključno 10MW | D94: SE23 | E94: 98.53 | F94: 0 | G94: 98.53 | H94: 0.91 | I94: 98.53 | J94: 59.12 | L94: 0 | M94: 6.69
A95: SE24-2013mar | C95: velika - nad 10MW do vključno 125MW | D95: SE24 | E95: 91.48 | F95: 0 | G95: 91.48 | H95: 1 | I95: (ni ZO) | J95: 48.17 | L95: (ni ZO) | M95: 7.35
A96: SE11-2013apr | B96: =CONCATENATE("3.1 Sončne elektrarne - na stavbah"," ",RIGHT(A96,7)) -> 3.1 Sončne elektrarne - na stavbah 2013apr | C96: mikro - manjše od 50kW | D96: SE11 | E96: 138.36 | F96: 0 | G96: 138.36 | H96: 0.88 | I96: 138.36 | J96: 100.25 | L96: 0 | M96: 6.47
A97: SE12-2013apr | C97: mala - manjše od 1MW | D97: SE12 | E97: 126.54 | F97: 0 | G97: 126.54 | H97: 0.88 | I97: 126.54 | J97: 88.43 | L97: 0 | M97: 6.47
A98: SE13-2013apr | C98: srednja - od 1MW do vključno 10MW | D98: SE13 | E98: 105.01 | F98: 0 | G98: 105.01 | H98: 0.91 | I98: 105.01 | J98: 65.6 | L98: 0 | M98: 6.69
A99: SE14-2013apr | C99: velika - nad 10MW do vključno 125MW | D99: SE14 | E99: 93.46 | F99: 0 | G99: 93.46 | H99: 1 | I99: (ni ZO) | J99: 50.15 | L99: (ni ZO) | M99: 7.35
A100: SE21-2013apr | B100: =CONCATENATE("3.2 Sončne elektrarne - ostale"," ",RIGHT(A100,7)) -> 3.2 Sončne elektrarne - ostale 2013apr | C100: mikro - manjše od 50kW | D100: SE21 | E100: 130.01 | F100: 0 | G100: 130.01 | H100: 0.88 | I100: 130.01 | J100: 91.9 | L100: 0 | M100: 6.47
A101: SE22-2013apr | C101: mala - manjše od 1MW | D101: SE22 | E101: 119.78 | F101: 0 | G101: 119.78 | H101: 0.88 | I101: 119.78 | J101: 81.67 | L101: 0 | M101: 6.47
A102: SE23-2013apr | C102: srednja - od 1MW do vključno 10MW | D102: SE23 | E102: 96.56 | F102: 0 | G102: 96.56 | H102: 0.91 | I102: 96.56 | J102: 57.15 | L102: 0 | M102: 6.69
A103: SE24-2013apr | C103: velika - nad 10MW do vključno 125MW | D103: SE24 | E103: 89.65 | F103: 0 | G103: 89.65 | H103: 1 | I103: (ni ZO) | J103: 46.34 | L103: (ni ZO) | M103: 7.35
A104: SE11-2013maj | B104: =CONCATENATE("3.1 Sončne elektrarne - na stavbah"," ",RIGHT(A104,7)) -> 3.1 Sončne elektrarne - na stavbah 2013maj | C104: mikro - manjše od 50kW | D104: SE11 | E104: 135.59 | F104: 0 | G104: 135.59 | H104: 0.88 | I104: 135.59 | J104: 97.48 | L104: 0 | M104: 6.47
A105: SE12-2013maj | C105: mala - manjše od 1MW | D105: SE12 | E105: 124.01 | F105: 0 | G105: 124.01 | H105: 0.88 | I105: 124.01 | J105: 85.9 | L105: 0 | M105: 6.47
A106: SE13-2013maj | C106: srednja - od 1MW do vključno 10MW | D106: SE13 | E106: 102.91 | F106: 0 | G106: 102.91 | H106: 0.91 | I106: 102.91 | J106: 63.5 | L106: 0 | M106: 6.69
A107: SE14-2013maj | C107: velika - nad 10MW do vključno 125MW | D107: SE14 | E107: 91.59 | F107: 0 | G107: 91.59 | H107: 1 | I107: (ni ZO) | J107: 48.28 | L107: (ni ZO) | M107: 7.35
A108: SE21-2013maj | B108: =CONCATENATE("3.2 Sončne elektrarne - ostale"," ",RIGHT(A108,7)) -> 3.2 Sončne elektrarne - ostale 2013maj | C108: mikro - manjše od 50kW | D108: SE21 | E108: 127.41 | F108: 0 | G108: 127.41 | H108: 0.88 | I108: 127.41 | J108: 89.3 | L108: 0 | M108: 6.47
A109: SE22-2013maj | C109: mala - manjše od 1MW | D109: SE22 | E109: 117.38 | F109: 0 | G109: 117.38 | H109: 0.88 | I109: 117.38 | J109: 79.27 | L109: 0 | M109: 6.47
A110: SE23-2013maj | C110: srednja - od 1MW do vključno 10MW | D110: SE23 | E110: 94.63 | F110: 0 | G110: 94.63 | H110: 0.91 | I110: 94.63 | J110: 55.22 | L110: 0 | M110: 6.69
A111: SE24-2013maj | C111: velika - nad 10MW do vključno 125MW | D111: SE24 | E111: 87.86 | F111: 0 | G111: 87.86 | H111: 1 | I111: (ni ZO) | J111: 44.55 | L111: (ni ZO) | M111: 7.35
A112: SE11-2013jun | B112: =CONCATENATE("3.1 Sončne elektrarne - na stavbah"," ",RIGHT(A112,7)) -> 3.1 Sončne elektrarne - na stavbah 2013jun | C112: mikro - manjše od 50kW | D112: SE11 | E112: 132.88 | F112: 0 | G112: 132.88 | H112: 0.88 | I112: 132.88 | J112: 94.77 | L112: 0 | M112: 6.47
A113: SE12-2013jun | C113: mala - manjše od 1MW | D113: SE12 | E113: 121.53 | F113: 0 | G113: 121.53 | H113: 0.88 | I113: 121.53 | J113: 83.42 | L113: 0 | M113: 6.47
A114: SE13-2013jun | C114: srednja - od 1MW do vključno 10MW | D114: SE13 | E114: 100.85 | F114: 0 | G114: 100.85 | H114: 0.91 | I114: 100.85 | J114: 61.44 | L114: 0 | M114: 6.69
A115: SE14-2013jun | C115: velika - nad 10MW do vključno 125MW | D115: SE14 | E115: 89.76 | F115: 0 | G115: 89.76 | H115: 1 | I115: (ni ZO) | J115: 46.45 | L115: (ni ZO) | M115: 7.35
A116: SE21-2013jun | B116: =CONCATENATE("3.2 Sončne elektrarne - ostale"," ",RIGHT(A116,7)) -> 3.2 Sončne elektrarne - ostale 2013jun | C116: mikro - manjše od 50kW | D116: SE21 | E116: 124.86 | F116: 0 | G116: 124.86 | H116: 0.88 | I116: 124.86 | J116: 86.75 | L116: 0 | M116: 6.47
A117: SE22-2013jun | C117: mala - manjše od 1MW | D117: SE22 | E117: 115.03 | F117: 0 | G117: 115.03 | H117: 0.88 | I117: 115.03 | J117: 76.92 | L117: 0 | M117: 6.47
A118: SE23-2013jun | C118: srednja - od 1MW do vključno 10MW | D118: SE23 | E118: 92.74 | F118: 0 | G118: 92.74 | H118: 0.91 | I118: 92.74 | J118: 53.33 | L118: 0 | M118: 6.69
A119: SE24-2013jun | C119: velika - nad 10MW do vključno 125MW | D119: SE24 | E119: 86.1 | F119: 0 | G119: 86.1 | H119: 1 | I119: (ni ZO) | J119: 42.79 | L119: (ni ZO) | M119: 7.35
A120: SE11-2013jul | B120: =CONCATENATE("3.1 Sončne elektrarne - na stavbah"," ",RIGHT(A120,7)) -> 3.1 Sončne elektrarne - na stavbah 2013jul | C120: mikro - manjše od 50kW | D120: SE11 | E120: 130.22 | F120: 0 | G120: 130.22 | H120: 0.88 | I120: 130.22 | J120: 92.11 | L120: 0 | M120: 6.47
A121: SE12-2013jul | C121: mala - manjše od 1MW | D121: SE12 | E121: 119.1 | F121: 0 | G121: 119.1 | H121: 0.88 | I121: 119.1 | J121: 80.99 | L121: 0 | M121: 6.47
A122: SE13-2013jul | C122: srednja - od 1MW do vključno 10MW | D122: SE13 | E122: 98.83 | F122: 0 | G122: 98.83 | H122: 0.91 | I122: 98.83 | J122: 59.42 | L122: 0 | M122: 6.69
A123: SE14-2013jul | C123: velika - nad 10MW do vključno 125MW | D123: SE14 | E123: 87.96 | F123: 0 | G123: 87.96 | H123: 1 | I123: (ni ZO) | J123: 44.65 | L123: (ni ZO) | M123: 7.35
A124: SE21-2013jul | B124: =CONCATENATE("3.2 Sončne elektrarne - ostale"," ",RIGHT(A124,7)) -> 3.2 Sončne elektrarne - ostale 2013jul | C124: mikro - manjše od 50kW | D124: SE21 | E124: 122.36 | F124: 0 | G124: 122.36 | H124: 0.88 | I124: 122.36 | J124: 84.25 | L124: 0 | M124: 6.47
A125: SE22-2013jul | C125: mala - manjše od 1MW | D125: SE22 | E125: 112.73 | F125: 0 | G125: 112.73 | H125: 0.88 | I125: 112.73 | J125: 74.62 | L125: 0 | M125: 6.47
A126: SE23-2013jul | C126: srednja - od 1MW do vključno 10MW | D126: SE23 | E126: 90.89 | F126: 0 | G126: 90.89 | H126: 0.91 | I126: 90.89 | J126: 51.48 | L126: 0 | M126: 6.69
A127: SE24-2013jul | C127: velika - nad 10MW do vključno 125MW | D127: SE24 | E127: 84.38 | F127: 0 | G127: 84.38 | H127: 1 | I127: (ni ZO) | J127: 41.07 | L127: (ni ZO) | M127: 7.35
A128: SE11-2013avg | B128: =CONCATENATE("3.1 Sončne elektrarne - na stavbah"," ",RIGHT(A128,7)) -> 3.1 Sončne elektrarne - na stavbah 2013avg | C128: mikro - manjše od 50kW | D128: SE11 | E128: 127.62 | F128: 0 | G128: 127.62 | H128: 0.88 | I128: 127.62 | J128: 89.51 | L128: 0 | M128: 6.47
A129: SE12-2013avg | C129: mala - manjše od 1MW | D129: SE12 | E129: 116.72 | F129: 0 | G129: 116.72 | H129: 0.88 | I129: 116.72 | J129: 78.61 | L129: 0 | M129: 6.47
A130: SE13-2013avg | C130: srednja - od 1MW do vključno 10MW | D130: SE13 | E130: 96.85 | F130: 0 | G130: 96.85 | H130: 0.91 | I130: 96.85 | J130: 57.44 | L130: 0 | M130: 6.69
A131: SE14-2013avg | C131: velika - nad 10MW do vključno 125MW | D131: SE14 | E131: 86.2 | F131: 0 | G131: 86.2 | H131: 1 | I131: (ni ZO) | J131: 42.89 | L131: (ni ZO) | M131: 7.35
A132: SE21-2013avg | B132: =CONCATENATE("3.2 Sončne elektrarne - ostale"," ",RIGHT(A132,7)) -> 3.2 Sončne elektrarne - ostale 2013avg | C132: mikro - manjše od 50kW | D132: SE21 | E132: 119.91 | F132: 0 | G132: 119.91 | H132: 0.88 | I132: 119.91 | J132: 81.8 | L132: 0 | M132: 6.47
A133: SE22-2013avg | C133: mala - manjše od 1MW | D133: SE22 | E133: 110.48 | F133: 0 | G133: 110.48 | H133: 0.88 | I133: 110.48 | J133: 72.37 | L133: 0 | M133: 6.47
A134: SE23-2013avg | C134: srednja - od 1MW do vključno 10MW | D134: SE23 | E134: 89.07 | F134: 0 | G134: 89.07 | H134: 0.91 | I134: 89.07 | J134: 49.66 | L134: 0 | M134: 6.69
A135: SE24-2013avg | C135: velika - nad 10MW do vključno 125MW | D135: SE24 | E135: 82.69 | F135: 0 | G135: 82.69 | H135: 1 | I135: (ni ZO) | J135: 39.38 | L135: (ni ZO) | M135: 7.35
A136: SE11-2013sep | B136: =CONCATENATE("3.1 Sončne elektrarne - na stavbah"," ",RIGHT(A136,7)) -> 3.1 Sončne elektrarne - na stavbah 2013sep | C136: mikro - manjše od 50kW | D136: SE11 | E136: 125.07 | F136: 0 | G136: 125.07 | H136: 0.88 | I136: 125.07 | J136: 86.96 | L136: 0 | M136: 6.47
A137: SE12-2013sep | C137: mala - manjše od 1MW | D137: SE12 | E137: 114.39 | F137: 0 | G137: 114.39 | H137: 0.88 | I137: 114.39 | J137: 76.28 | L137: 0 | M137: 6.47
A138: SE13-2013sep | C138: srednja - od 1MW do vključno 10MW | D138: SE13 | E138: 94.91 | F138: 0 | G138: 94.91 | H138: 0.91 | I138: 94.91 | J138: 55.5 | L138: 0 | M138: 6.69
A139: SE14-2013sep | C139: velika - nad 10MW do vključno 125MW | D139: SE14 | E139: 84.48 | F139: 0 | G139: 84.48 | H139: 1 | I139: (ni ZO) | J139: 41.17 | L139: (ni ZO) | M139: 7.35
A140: SE21-2013sep | B140: =CONCATENATE("3.2 Sončne elektrarne - ostale"," ",RIGHT(A140,7)) -> 3.2 Sončne elektrarne - ostale 2013sep | C140: mikro - manjše od 50kW | D140: SE21 | E140: 117.51 | F140: 0 | G140: 117.51 | H140: 0.88 | I140: 117.51 | J140: 79.4 | L140: 0 | M140: 6.47
A141: SE22-2013sep | C141: mala - manjše od 1MW | D141: SE22 | E141: 108.27 | F141: 0 | G141: 108.27 | H141: 0.88 | I141: 108.27 | J141: 70.16 | L141: 0 | M141: 6.47
A142: SE23-2013sep | C142: srednja - od 1MW do vključno 10MW | D142: SE23 | E142: 87.29 | F142: 0 | G142: 87.29 | H142: 0.91 | I142: 87.29 | J142: 47.88 | L142: 0 | M142: 6.69
A143: SE24-2013sep | C143: velika - nad 10MW do vključno 125MW | D143: SE24 | E143: 81.04 | F143: 0 | G143: 81.04 | H143: 1 | I143: (ni ZO) | J143: 37.73 | L143: (ni ZO) | M143: 7.35
A144: SE11-2013okt | B144: =CONCATENATE("3.1 Sončne elektrarne - na stavbah"," ",RIGHT(A144,7)) -> 3.1 Sončne elektrarne - na stavbah 2013okt | C144: mikro - manjše od 50kW | D144: SE11 | E144: 122.57 | F144: 0 | G144: 122.57 | H144: 0.88 | I144: 122.57 | J144: 84.46 | L144: 0 | M144: 6.47
A145: SE12-2013okt | C145: mala - manjše od 1MW | D145: SE12 | E145: 112.1 | F145: 0 | G145: 112.1 | H145: 0.88 | I145: 112.1 | J145: 73.99 | L145: 0 | M145: 6.47
A146: SE13-2013okt | C146: srednja - od 1MW do vključno 10MW | D146: SE13 | E146: 93.01 | F146: 0 | G146: 93.01 | H146: 0.91 | I146: 93.01 | J146: 53.6 | L146: 0 | M146: 6.69
A147: SE14-2013okt | C147: velika - nad 10MW do vključno 125MW | D147: SE14 | E147: 82.79 | F147: 0 | G147: 82.79 | H147: 1 | I147: (ni ZO) | J147: 39.48 | L147: (ni ZO) | M147: 7.35
A148: SE21-2013okt | B148: =CONCATENATE("3.2 Sončne elektrarne - ostale"," ",RIGHT(A148,7)) -> 3.2 Sončne elektrarne - ostale 2013okt | C148: mikro - manjše od 50kW | D148: SE21 | E148: 115.16 | F148: 0 | G148: 115.16 | H148: 0.88 | I148: 115.16 | J148: 77.05 | L148: 0 | M148: 6.47
A149: SE22-2013okt | C149: mala - manjše od 1MW | D149: SE22 | E149: 106.1 | F149: 0 | G149: 106.1 | H149: 0.88 | I149: 106.1 | J149: 67.99 | L149: 0 | M149: 6.47
A150: SE23-2013okt | C150: srednja - od 1MW do vključno 10MW | D150: SE23 | E150: 85.54 | F150: 0 | G150: 85.54 | H150: 0.91 | I150: 85.54 | J150: 46.13 | L150: 0 | M150: 6.69
A151: SE24-2013okt | C151: velika - nad 10MW do vključno 125MW | D151: SE24 | E151: 79.42 | F151: 0 | G151: 79.42 | H151: 1 | I151: (ni ZO) | J151: 36.11 | L151: (ni ZO) | M151: 7.35
A152: SE11-2013nov | B152: =CONCATENATE("3.1 Sončne elektrarne - na stavbah"," ",RIGHT(A152,7)) -> 3.1 Sončne elektrarne - na stavbah 2013nov | C152: mikro - manjše od 50kW | D152: SE11 | E152: 120.12 | F152: 0 | G152: 120.12 | H152: 0.88 | I152: 120.12 | J152: 82.01 | L152: 0 | M152: 6.47
A153: SE12-2013nov | C153: mala - manjše od 1MW | D153: SE12 | E153: 109.86 | F153: 0 | G153: 109.86 | H153: 0.88 | I153: 109.86 | J153: 71.75 | L153: 0 | M153: 6.47
A154: SE13-2013nov | C154: srednja - od 1MW do vključno 10MW | D154: SE13 | E154: 91.15 | F154: 0 | G154: 91.15 | H154: 0.91 | I154: 91.15 | J154: 51.74 | L154: 0 | M154: 6.69
A155: SE14-2013nov | C155: velika - nad 10MW do vključno 125MW | D155: SE14 | E155: 81.13 | F155: 0 | G155: 81.13 | H155: 1 | I155: (ni ZO) | J155: 37.82 | L155: (ni ZO) | M155: 7.35
A156: SE21-2013nov | B156: =CONCATENATE("3.2 Sončne elektrarne - ostale"," ",RIGHT(A156,7)) -> 3.2 Sončne elektrarne - ostale 2013nov | C156: mikro - manjše od 50kW | D156: SE21 | E156: 112.86 | F156: 0 | G156: 112.86 | H156: 0.88 | I156: 112.86 | J156: 74.75 | L156: 0 | M156: 6.47
A157: SE22-2013nov | C157: mala - manjše od 1MW | D157: SE22 | E157: 103.98 | F157: 0 | G157: 103.98 | H157: 0.88 | I157: 103.98 | J157: 65.87 | L157: 0 | M157: 6.47
A158: SE23-2013nov | C158: srednja - od 1MW do vključno 10MW | D158: SE23 | E158: 83.83 | F158: 0 | G158: 83.83 | H158: 0.91 | I158: 83.83 | J158: 44.42 | L158: 0 | M158: 6.69
A159: SE24-2013nov | C159: velika - nad 10MW do vključno 125MW | D159: SE24 | E159: 77.83 | F159: 0 | G159: 77.83 | H159: 1 | I159: (ni ZO) | J159: 34.52 | L159: (ni ZO) | M159: 7.35
A160: SE11-2013dec | B160: =CONCATENATE("3.1 Sončne elektrarne - na stavbah"," ",RIGHT(A160,7)) -> 3.1 Sončne elektrarne - na stavbah 2013dec | C160: mikro - manjše od 50kW | D160: SE11 | E160: 117.72 | F160: 0 | G160: 117.72 | H160: 0.88 | I160: 117.72 | J160: 79.61 | L160: 0 | M160: 6.47
A161: SE12-2013dec | C161: mala - manjše od 1MW | D161: SE12 | E161: 107.66 | F161: 0 | G161: 107.66 | H161: 0.88 | I161: 107.66 | J161: 69.55 | L161: 0 | M161: 6.47
A162: SE13-2013dec | C162: srednja - od 1MW do vključno 10MW | D162: SE13 | E162: 89.33 | F162: 0 | G162: 89.33 | H162: 0.91 | I162: 89.33 | J162: 49.92 | L162: 0 | M162: 6.69
A163: SE14-2013dec | C163: velika - nad 10MW do vključno 125MW | D163: SE14 | E163: 79.51 | F163: 0 | G163: 79.51 | H163: 1 | I163: (ni ZO) | J163: 36.2 | L163: (ni ZO) | M163: 7.35
A164: SE21-2013dec | B164: =CONCATENATE("3.2 Sončne elektrarne - ostale"," ",RIGHT(A164,7)) -> 3.2 Sončne elektrarne - ostale 2013dec | C164: mikro - manjše od 50kW | D164: SE21 | E164: 110.6 | F164: 0 | G164: 110.6 | H164: 0.88 | I164: 110.6 | J164: 72.49 | L164: 0 | M164: 6.47
A165: SE22-2013dec | C165: mala - manjše od 1MW | D165: SE22 | E165: 101.9 | F165: 0 | G165: 101.9 | H165: 0.88 | I165: 101.9 | J165: 63.79 | L165: 0 | M165: 6.47
A166: SE23-2013dec | C166: srednja - od 1MW do vključno 10MW | D166: SE23 | E166: 82.15 | F166: 0 | G166: 82.15 | H166: 0.91 | I166: 82.15 | J166: 42.74 | L166: 0 | M166: 6.69
A167: SE24-2013dec | C167: velika - nad 10MW do vključno 125MW | D167: SE24 | E167: 76.27 | F167: 0 | G167: 76.27 | H167: 1 | I167: (ni ZO) | J167: 32.96 | L167: (ni ZO) | M167: 7.35
A168: SE11-2014jan | B168: =CONCATENATE("3.1 Sončne elektrarne - na stavbah"," ",RIGHT(A168,7)) -> 3.1 Sončne elektrarne - na stavbah 2014jan | C168: mikro - manjše od 50kW | D168: SE11 | E168: 115.37 | F168: 0 | G168: 115.37 | H168: 0.88 | I168: 115.37 | J168: 77.26 | L168: (ni podpore 2013) | M168: (ni podpore 2013)
A169: SE12-2014jan | C169: mala - manjše od 1MW | D169: SE12 | E169: 105.51 | F169: 0 | G169: 105.51 | H169: 0.88 | I169: 105.51 | J169: 67.4 | L169: (ni podpore 2013) | M169: (ni podpore 2013)
A170: SE13-2014jan | C170: srednja - od 1MW do vključno 10MW | D170: SE13 | E170: 87.54 | F170: 0 | G170: 87.54 | H170: 0.91 | I170: 87.54 | J170: 48.13 | L170: (ni podpore 2013) | M170: (ni podpore 2013)
A171: SE14-2014jan | C171: velika - nad 10MW do vključno 125MW | D171: SE14 | E171: 77.92 | F171: 0 | G171: 77.92 | H171: 1 | I171: (ni ZO) | J171: 34.61 | L171: (ni podpore 2013) | M171: (ni podpore 2013)
A172: SE21-2014jan | B172: =CONCATENATE("3.2 Sončne elektrarne - ostale"," ",RIGHT(A172,7)) -> 3.2 Sončne elektrarne - ostale 2014jan | C172: mikro - manjše od 50kW | D172: SE21 | E172: 108.39 | F172: 0 | G172: 108.39 | H172: 0.88 | I172: 108.39 | J172: 70.28 | L172: (ni podpore 2013) | M172: (ni podpore 2013)
A173: SE22-2014jan | C173: mala - manjše od 1MW | D173: SE22 | E173: 99.86 | F173: 0 | G173: 99.86 | H173: 0.88 | I173: 99.86 | J173: 61.75 | L173: (ni podpore 2013) | M173: (ni podpore 2013)
A174: SE23-2014jan | C174: srednja - od 1MW do vključno 10MW | D174: SE23 | E174: 80.51 | F174: 0 | G174: 80.51 | H174: 0.91 | I174: 80.51 | J174: 41.1 | L174: (ni podpore 2013) | M174: (ni podpore 2013)
A175: SE24-2014jan | C175: velika - nad 10MW do vključno 125MW | D175: SE24 | E175: 74.74 | F175: 0 | G175: 74.74 | H175: 1 | I175: (ni ZO) | J175: 31.43 | L175: (ni podpore 2013) | M175: (ni podpore 2013)
A176: SE11-2014feb | B176: =CONCATENATE("3.1 Sončne elektrarne - na stavbah"," ",RIGHT(A176,7)) -> 3.1 Sončne elektrarne - na stavbah 2014feb | C176: mikro - manjše od 50kW | D176: SE11 | E176: 113.06 | F176: 0 | G176: 113.06 | H176: 0.88 | I176: 113.06 | J176: 74.95 | L176: (ni podpore 2013) | M176: (ni podpore 2013)
A177: SE12-2014feb | C177: mala - manjše od 1MW | D177: SE12 | E177: 103.4 | F177: 0 | G177: 103.4 | H177: 0.88 | I177: 103.4 | J177: 65.29 | L177: (ni podpore 2013) | M177: (ni podpore 2013)
A178: SE13-2014feb | C178: srednja - od 1MW do vključno 10MW | D178: SE13 | E178: 85.79 | F178: 0 | G178: 85.79 | H178: 0.91 | I178: 85.79 | J178: 46.38 | L178: (ni podpore 2013) | M178: (ni podpore 2013)
A179: SE14-2014feb | C179: velika - nad 10MW do vključno 125MW | D179: SE14 | E179: 76.36 | F179: 0 | G179: 76.36 | H179: 1 | I179: (ni ZO) | J179: 33.05 | L179: (ni podpore 2013) | M179: (ni podpore 2013)
A180: SE21-2014feb | B180: =CONCATENATE("3.2 Sončne elektrarne - ostale"," ",RIGHT(A180,7)) -> 3.2 Sončne elektrarne - ostale 2014feb | C180: mikro - manjše od 50kW | D180: SE21 | E180: 106.22 | F180: 0 | G180: 106.22 | H180: 0.88 | I180: 106.22 | J180: 68.11 | L180: (ni podpore 2013) | M180: (ni podpore 2013)
A181: SE22-2014feb | C181: mala - manjše od 1MW | D181: SE22 | E181: 97.86 | F181: 0 | G181: 97.86 | H181: 0.88 | I181: 97.86 | J181: 59.75 | L181: (ni podpore 2013) | M181: (ni podpore 2013)
A182: SE23-2014feb | C182: srednja - od 1MW do vključno 10MW | D182: SE23 | E182: 78.9 | F182: 0 | G182: 78.9 | H182: 0.91 | I182: 78.9 | J182: 39.49 | L182: (ni podpore 2013) | M182: (ni podpore 2013)
A183: SE24-2014feb | C183: velika - nad 10MW do vključno 125MW | D183: SE24 | E183: 73.25 | F183: 0 | G183: 73.25 | H183: 1 | I183: (ni ZO) | J183: 29.94 | L183: (ni podpore 2013) | M183: (ni podpore 2013)
A184: SE11-2014mar | B184: =CONCATENATE("3.1 Sončne elektrarne - na stavbah"," ",RIGHT(A184,7)) -> 3.1 Sončne elektrarne - na stavbah 2014mar | C184: mikro - manjše od 50kW | D184: SE11 | E184: 110.8 | F184: 0 | G184: 110.8 | H184: 0.88 | I184: 110.8 | J184: 72.69 | L184: (ni podpore 2013) | M184: (ni podpore 2013)
A185: SE12-2014mar | C185: mala - manjše od 1MW | D185: SE12 | E185: 101.33 | F185: 0 | G185: 101.33 | H185: 0.88 | I185: 101.33 | J185: 63.22 | L185: (ni podpore 2013) | M185: (ni podpore 2013)
A186: SE13-2014mar | C186: srednja - od 1MW do vključno 10MW | D186: SE13 | E186: 84.07 | F186: 0 | G186: 84.07 | H186: 0.91 | I186: 84.07 | J186: 44.66 | L186: (ni podpore 2013) | M186: (ni podpore 2013)
A187: SE14-2014mar | C187: velika - nad 10MW do vključno 125MW | D187: SE14 | E187: 74.83 | F187: 0 | G187: 74.83 | H187: 1 | I187: (ni ZO) | J187: 31.52 | L187: (ni podpore 2013) | M187: (ni podpore 2013)
A188: SE21-2014mar | B188: =CONCATENATE("3.2 Sončne elektrarne - ostale"," ",RIGHT(A188,7)) -> 3.2 Sončne elektrarne - ostale 2014mar | C188: mikro - manjše od 50kW | D188: SE21 | E188: 104.1 | F188: 0 | G188: 104.1 | H188: 0.88 | I188: 104.1 | J188: 65.99 | L188: (ni podpore 2013) | M188: (ni podpore 2013)
A189: SE22-2014mar | C189: mala - manjše od 1MW | D189: SE22 | E189: 95.9 | F189: 0 | G189: 95.9 | H189: 0.88 | I189: 95.9 | J189: 57.79 | L189: (ni podpore 2013) | M189: (ni podpore 2013)
A190: SE23-2014mar | C190: srednja - od 1MW do vključno 10MW | D190: SE23 | E190: 77.32 | F190: 0 | G190: 77.32 | H190: 0.91 | I190: 77.32 | J190: 37.91 | L190: (ni podpore 2013) | M190: (ni podpore 2013)
A191: SE24-2014mar | C191: velika - nad 10MW do vključno 125MW | D191: SE24 | E191: 71.79 | F191: 0 | G191: 71.79 | H191: 1 | I191: (ni ZO) | J191: 28.48 | L191: (ni podpore 2013) | M191: (ni podpore 2013)
A192: SE11-2014apr | B192: =CONCATENATE("3.1 Sončne elektrarne - na stavbah"," ",RIGHT(A192,7)) -> 3.1 Sončne elektrarne - na stavbah 2014apr | C192: mikro - manjše od 50kW | D192: SE11 | E192: 108.58 | F192: 0 | G192: 108.58 | H192: 0.88 | I192: 108.58 | J192: 70.47 | L192: (ni podpore 2013) | M192: (ni podpore 2013)
A193: SE12-2014apr | C193: mala - manjše od 1MW | D193: SE12 | E193: 99.3 | F193: 0 | G193: 99.3 | H193: 0.88 | I193: 99.3 | J193: 61.19 | L193: (ni podpore 2013) | M193: (ni podpore 2013)
A194: SE13-2014apr | C194: srednja - od 1MW do vključno 10MW | D194: SE13 | E194: 82.39 | F194: 0 | G194: 82.39 | H194: 0.91 | I194: 82.39 | J194: 42.98 | L194: (ni podpore 2013) | M194: (ni podpore 2013)
A195: SE14-2014apr | C195: velika - nad 10MW do vključno 125MW | D195: SE14 | E195: 73.33 | F195: 0 | G195: 73.33 | H195: 1 | I195: (ni ZO) | J195: 30.02 | L195: (ni podpore 2013) | M195: (ni podpore 2013)
A196: SE21-2014apr | B196: =CONCATENATE("3.2 Sončne elektrarne - ostale"," ",RIGHT(A196,7)) -> 3.2 Sončne elektrarne - ostale 2014apr | C196: mikro - manjše od 50kW | D196: SE21 | E196: 102.02 | F196: 0 | G196: 102.02 | H196: 0.88 | I196: 102.02 | J196: 63.91 | L196: (ni podpore 2013) | M196: (ni podpore 2013)
A197: SE22-2014apr | C197: mala - manjše od 1MW | D197: SE22 | E197: 93.98 | F197: 0 | G197: 93.98 | H197: 0.88 | I197: 93.98 | J197: 55.87 | L197: (ni podpore 2013) | M197: (ni podpore 2013)
A198: SE23-2014apr | C198: srednja - od 1MW do vključno 10MW | D198: SE23 | E198: 75.77 | F198: 0 | G198: 75.77 | H198: 0.91 | I198: 75.77 | J198: 36.36 | L198: (ni podpore 2013) | M198: (ni podpore 2013)
A199: SE24-2014apr | C199: velika - nad 10MW do vključno 125MW | D199: SE24 | E199: 70.35 | F199: 0 | G199: 70.35 | H199: 1 | I199: (ni ZO) | J199: 27.04 | L199: (ni podpore 2013) | M199: (ni podpore 2013)
A200: SE11-2014maj | B200: =CONCATENATE("3.1 Sončne elektrarne - na stavbah"," ",RIGHT(A200,7)) -> 3.1 Sončne elektrarne - na stavbah 2014maj | C200: mikro - manjše od 50kW | D200: SE11 | E200: 106.41 | F200: 0 | G200: 106.41 | H200: 0.88 | I200: 106.41 | J200: 68.3 | L200: (ni podpore 2013) | M200: (ni podpore 2013)
A201: SE12-2014maj | C201: mala - manjše od 1MW | D201: SE12 | E201: 97.31 | F201: 0 | G201: 97.31 | H201: 0.88 | I201: 97.31 | J201: 59.2 | L201: (ni podpore 2013) | M201: (ni podpore 2013)
... 142 more rows

Sheet Podpore 2016 (hidden)
A1: VIŠINE PODPOR 2016
D3: KODA | E3: NDRS 2016 | F3: SDRS 2016 | G3: Skupni stroški 2016 | H3: Faktor B po Prilogi III | I3: Cena ZO 2016 | J3: Višina OP 2016 | L3: ZO2016 - ZO2015 | M3: OP2016 - OP2015
A4: HE01 | B4: 1. Hidroelektrarne | C4: mikro - manjše od 50kW | D4: HE01 | E4: 105.47 | F4: 0 | G4: 105.47 | H4: 0.86 | I4: 105.47 | J4: 73.74 | L4: 0 | M4: 2.37
A5: HE02 | C5: mala - manjše od 1MW | D5: HE02 | E5: 92.61 | F5: 0 | G5: 92.61 | H5: 0.86 | I5: 92.61 | J5: 60.88 | L5: 0 | M5: 2.37
A6: HE03 | C6: srednja - od 1MW do vključno 10MW | D6: HE03 | E6: 82.34 | F6: 0 | G6: 82.34 | H6: 0.9 | I6: 82.34 | J6: 49.14 | L6: 0 | M6: 2.48
A7: HE04 | C7: velika - nad 10MW do vključno 125MW | D7: HE04 | E7: 76.57 | F7: 0 | G7: 76.57 | H7: 0.9 | I7: (ni ZO) | J7: 43.37 | L7: (ni ZO) | M7: 2.48
A8: VE01 | B8: 2. Vetrne elektrarne | C8: mikro - manjše od 50kW | D8: VE01 | E8: 95.38 | F8: 0 | G8: 95.38 | H8: 0.8 | I8: 95.38 | J8: 65.87 | L8: 0 | M8: 2.21
A9: VE02 | C9: mala - manjše od 1MW | D9: VE02 | E9: 95.38 | F9: 0 | G9: 95.38 | H9: 0.8 | I9: 95.38 | J9: 65.87 | L9: 0 | M9: 2.21
A10: VE03 | C10: srednja - od 1MW do vključno 10MW | D10: VE03 | E10: 95.38 | F10: 0 | G10: 95.38 | H10: 0.8 | I10: 95.38 | J10: 65.87 | L10: 0 | M10: 2.21
A11: VE04 | C11: velika - nad 10MW do vključno 125MW | D11: VE04 | E11: 86.74 | F11: 0 | G11: 86.74 | H11: 0.86 | I11: (ni ZO) | J11: 55.01 | L11: (ni ZO) | M11: 2.37
A12: SE11-2009 | B12: 3.1 Sončne elektrarne - na stavbah 2009 | C12: mikro - manjše od 50kW | D12: SE11 | E12: 415.46 | F12: 0 | G12: 415.46 | H12: 0.88 | I12: 415.46 | J12: 383 | L12: 0 | M12: 2.43
A13: SE12-2009 | C13: mala - manjše od 1MW | D13: SE12 | E13: 380.02 | F13: 0 | G13: 380.02 | H13: 0.88 | I13: 380.02 | J13: 347.56 | L13: 0 | M13: 2.43
A14: SE13-2009 | C14: srednja - od 1MW do vključno 10MW | D14: SE13 | E14: 315.36 | F14: 0 | G14: 315.36 | H14: 0.91 | I14: 315.36 | J14: 281.79 | L14: 0 | M14: 2.51
A15: SE14-2009 | C15: velika - nad 10MW do vključno 125MW | D15: SE14 | E15: 280.71 | F15: 0 | G15: 280.71 | H15: 1 | I15: (ni ZO) | J15: 243.82 | L15: (ni ZO) | M15: 2.76
B16: 3.1. INT Sončne elektrarne - integrirane 2009 | C16: mikro - manjše od 50kW | E16: 477.78 | F16: 0 | G16: 477.78 | H16: 0.88 | I16: 477.78 | J16: 445.32 | L16: 0 | M16: 2.43
C17: mala - manjše od 1MW | E17: 437.02 | F17: 0 | G17: 437.02 | H17: 0.88 | I17: 437.02 | J17: 404.56 | L17: 0 | M17: 2.43
C18: srednja - od 1MW do vključno 10MW | E18: 362.66 | F18: 0 | G18: 362.66 | H18: 0.91 | I18: 362.66 | J18: 329.09 | L18: 0 | M18: 2.51
C19: velika - nad 10MW do vključno 125MW | E19: 322.82 | F19: 0 | G19: 322.82 | H19: 1 | I19: (ni ZO) | J19: 285.93 | L19: (ni ZO) | M19: 2.76
A20: SE21-2009 | B20: 3.2 Sončne elektrarne - samostojni objekti 2009 | C20: mikro - manjše od 50kW | D20: SE21 | E20: 390.42 | F20: 0 | G20: 390.42 | H20: 0.88 | I20: 390.42 | J20: 357.96 | L20: 0 | M20: 2.43
A21: SE22-2009 | C21: mala - manjše od 1MW | D21: SE22 | E21: 359.71 | F21: 0 | G21: 359.71 | H21: 0.88 | I21: 359.71 | J21: 327.25 | L21: 0 | M21: 2.43
A22: SE23-2009 | C22: srednja - od 1MW do vključno 10MW | D22: SE23 | E22: 289.98 | F22: 0 | G22: 289.98 | H22: 0.91 | I22: 289.98 | J22: 256.41 | L22: 0 | M22: 2.51
A23: SE24-2009 | C23: velika - nad 10MW do vključno 125MW | D23: SE24 | E23: 269.22 | F23: 0 | G23: 269.22 | H23: 1 | I23: (ni ZO) | J23: 232.33 | L23: (ni ZO) | M23: 2.76
A24: SE11-2010 | B24: 3.1 Sončne elektrarne - na stavbah 2010 | C24: mikro - manjše od 50kW | D24: SE11 | E24: 386.38 | F24: 0 | G24: 386.38 | H24: 0.88 | I24: 386.38 | J24: 353.92 | L24: 0 | M24: 2.43
A25: SE12-2010 | C25: mala - manjše od 1MW | D25: SE12 | E25: 353.42 | F25: 0 | G25: 353.42 | H25: 0.88 | I25: 353.42 | J25: 320.96 | L25: 0 | M25: 2.43
A26: SE13-2010 | C26: srednja - od 1MW do vključno 10MW | D26: SE13 | E26: 293.28 | F26: 0 | G26: 293.28 | H26: 0.91 | I26: 293.28 | J26: 259.71 | L26: 0 | M26: 2.51
A27: SE14-2010 | C27: velika - nad 10MW do vključno 125MW | D27: SE14 | E27: 261.06 | F27: 0 | G27: 261.06 | H27: 1 | I27: (ni ZO) | J27: 224.17 | L27: (ni ZO) | M27: 2.76
B28: 3.1 INT Sončne elektrarne - integrirane 2010 | C28: mikro - manjše od 50kW | E28: 444.34 | F28: 0 | G28: 444.34 | H28: 0.88 | I28: 444.34 | J28: 411.88 | L28: 0 | M28: 2.43
C29: mala - manjše od 1MW | E29: 406.43 | F29: 0 | G29: 406.43 | H29: 0.88 | I29: 406.43 | J29: 373.97 | L29: 0 | M29: 2.43
C30: srednja - od 1MW do vključno 10MW | E30: 337.27 | F30: 0 | G30: 337.27 | H30: 0.91 | I30: 337.27 | J30: 303.7 | L30: 0 | M30: 2.51
C31: velika - nad 10MW do vključno 125MW | E31: 300.22 | F31: 0 | G31: 300.22 | H31: 1 | I31: (ni ZO) | J31: 263.33 | L31: (ni ZO) | M31: 2.76
A32: SE21-2010 | B32: 3.2 Sončne elektrarne - samostojni objekti 2010 | C32: mikro - manjše od 50kW | D32: SE21 | E32: 363.09 | F32: 0 | G32: 363.09 | H32: 0.88 | I32: 363.09 | J32: 330.63 | L32: 0 | M32: 2.43
A33: SE22-2010 | C33: mala - manjše od 1MW | D33: SE22 | E33: 334.53 | F33: 0 | G33: 334.53 | H33: 0.88 | I33: 334.53 | J33: 302.07 | L33: 0 | M33: 2.43
A34: SE23-2010 | C34: srednja - od 1MW do vključno 10MW | D34: SE23 | E34: 269.68 | F34: 0 | G34: 269.68 | H34: 0.91 | I34: 269.68 | J34: 236.11 | L34: 0 | M34: 2.51
A35: SE24-2010 | C35: velika - nad 10MW do vključno 125MW | D35: SE24 | E35: 250.37 | F35: 0 | G35: 250.37 | H35: 1 | I35: (ni ZO) | J35: 213.48 | L35: (ni ZO) | M35: 2.76
A36: SE11-2011 | B36: 3.1 Sončne elektrarne - na stavbah 2011 | C36: mikro - manjše od 50kW | D36: SE11 | E36: 332.37 | F36: 0 | G36: 332.37 | H36: 0.88 | I36: 332.37 | J36: 299.91 | L36: 0 | M36: 2.43
A37: SE12-2011 | C37: mala - manjše od 1MW | D37: SE12 | E37: 304.02 | F37: 0 | G37: 304.02 | H37: 0.88 | I37: 304.02 | J37: 271.56 | L37: 0 | M37: 2.43
A38: SE13-2011 | C38: srednja - od 1MW do vključno 10MW | D38: SE13 | E38: 252.29 | F38: 0 | G38: 252.29 | H38: 0.91 | I38: 252.29 | J38: 218.72 | L38: 0 | M38: 2.51
A39: SE14-2011 | C39: velika - nad 10MW do vključno 125MW | D39: SE14 | E39: 224.57 | F39: 0 | G39: 224.57 | H39: 1 | I39: (ni ZO) | J39: 187.68 | L39: (ni ZO) | M39: 2.76
B40: 3.1 INT Sončne elektrarne - integrirane 2011 | C40: mikro - manjše od 50kW | E40: 382.23 | F40: 0 | G40: 382.23 | H40: 0.88 | I40: 382.23 | J40: 349.77 | L40: 0 | M40: 2.43
C41: mala - manjše od 1MW | E41: 349.62 | F41: 0 | G41: 349.62 | H41: 0.88 | I41: 349.62 | J41: 317.16 | L41: 0 | M41: 2.43
C42: srednja - od 1MW do vključno 10MW | E42: 290.13 | F42: 0 | G42: 290.13 | H42: 0.91 | I42: 290.13 | J42: 256.56 | L42: 0 | M42: 2.51
C43: velika - nad 10MW do vključno 125MW | E43: 258.26 | F43: 0 | G43: 258.26 | H43: 1 | I43: (ni ZO) | J43: 221.37 | L43: (ni ZO) | M43: 2.76
A44: SE21-2011 | B44: 3.2 Sončne elektrarne - samostojni objekti 2011 | C44: mikro - manjše od 50kW | D44: SE21 | E44: 312.34 | F44: 0 | G44: 312.34 | H44: 0.88 | I44: 312.34 | J44: 279.88 | L44: 0 | M44: 2.43
A45: SE22-2011 | C45: mala - manjše od 1MW | D45: SE22 | E45: 287.77 | F45: 0 | G45: 287.77 | H45: 0.88 | I45: 287.77 | J45: 255.31 | L45: 0 | M45: 2.43
A46: SE23-2011 | C46: srednja - od 1MW do vključno 10MW | D46: SE23 | E46: 231.98 | F46: 0 | G46: 231.98 | H46: 0.91 | I46: 231.98 | J46: 198.41 | L46: 0 | M46: 2.51
A47: SE24-2011 | C47: velika - nad 10MW do vključno 125MW | D47: SE24 | E47: 215.38 | F47: 0 | G47: 215.38 | H47: 1 | I47: (ni ZO) | J47: 178.49 | L47: (ni ZO) | M47: 2.76
A48: SE11-2012H1 | B48: 3.1 Sončne elektrarne - na stavbah 2012 H1 | C48: mikro - manjše od 50kW | D48: SE11 | E48: 290.82 | F48: 0 | G48: 290.82 | H48: 0.88 | I48: 290.82 | J48: 258.36 | L48: 0 | M48: 2.43
A49: SE12-2012H1 | C49: mala - manjše od 1MW | D49: SE12 | E49: 266.01 | F49: 0 | G49: 266.01 | H49: 0.88 | I49: 266.01 | J49: 233.55 | L49: 0 | M49: 2.43
A50: SE13-2012H1 | C50: srednja - od 1MW do vključno 10MW | D50: SE13 | E50: 220.75 | F50: 0 | G50: 220.75 | H50: 0.91 | I50: 220.75 | J50: 187.18 | L50: 0 | M50: 2.51
A51: SE14-2012H1 | C51: velika - nad 10MW do vključno 125MW | D51: SE14 | E51: 196.5 | F51: 0 | G51: 196.5 | H51: 1 | I51: (ni ZO) | J51: 159.61 | L51: (ni ZO) | M51: 2.76
A52: SE11-2012H2 | B52: 3.1 Sončne elektrarne - na stavbah 2012 H2 | C52: mikro - manjše od 50kW | D52: SE11 | E52: 197.55 | F52: 0 | G52: 197.55 | H52: 0.88 | I52: 197.55 | J52: 165.09 | L52: 0 | M52: 2.43
A53: SE12-2012H2 | C53: mala - manjše od 1MW | D53: SE12 | E53: 180.7 | F53: 0 | G53: 180.7 | H53: 0.88 | I53: 180.7 | J53: 148.24 | L53: 0 | M53: 2.43
A54: SE13-2012H2 | C54: srednja - od 1MW do vključno 10MW | D54: SE13 | E54: 149.95 | F54: 0 | G54: 149.95 | H54: 0.91 | I54: 149.95 | J54: 116.38 | L54: 0 | M54: 2.51
A55: SE14-2012H2 | C55: velika - nad 10MW do vključno 125MW | D55: SE14 | E55: 133.48 | F55: 0 | G55: 133.48 | H55: 1 | I55: (ni ZO) | J55: 96.59 | L55: (ni ZO) | M55: 2.76
A56: SE21-2012H1 | B56: 3.2 Sončne elektrarne - ostale 2012 H1 | C56: mikro - manjše od 50kW | D56: SE21 | E56: 273.29 | F56: 0 | G56: 273.29 | H56: 0.88 | I56: 273.29 | J56: 240.83 | L56: 0 | M56: 2.43
A57: SE22-2012H1 | C57: mala - manjše od 1MW | D57: SE22 | E57: 251.8 | F57: 0 | G57: 251.8 | H57: 0.88 | I57: 251.8 | J57: 219.34 | L57: 0 | M57: 2.43
A58: SE23-2012H1 | C58: srednja - od 1MW do vključno 10MW | D58: SE23 | E58: 202.99 | F58: 0 | G58: 202.99 | H58: 0.91 | I58: 202.99 | J58: 169.42 | L58: 0 | M58: 2.51
A59: SE24-2012H1 | C59: velika - nad 10MW do vključno 125MW | D59: SE24 | E59: 188.45 | F59: 0 | G59: 188.45 | H59: 1 | I59: (ni ZO) | J59: 151.56 | L59: (ni ZO) | M59: 2.76
A60: SE21-2012H2 | B60: 3.2 Sončne elektrarne - ostale 2012 H2 | C60: mikro - manjše od 50kW | D60: SE21 | E60: 185.64 | F60: 0 | G60: 185.64 | H60: 0.88 | I60: 185.64 | J60: 153.18 | L60: 0 | M60: 2.43
A61: SE22-2012H2 | C61: mala - manjše od 1MW | D61: SE22 | E61: 171.04 | F61: 0 | G61: 171.04 | H61: 0.88 | I61: 171.04 | J61: 138.58 | L61: 0 | M61: 2.43
A62: SE23-2012H2 | C62: srednja - od 1MW do vključno 10MW | D62: SE23 | E62: 137.89 | F62: 0 | G62: 137.89 | H62: 0.91 | I62: 137.89 | J62: 104.32 | L62: 0 | M62: 2.51
A63: SE24-2012H2 | C63: velika - nad 10MW do vključno 125MW | D63: SE24 | E63: 128.01 | F63: 0 | G63: 128.01 | H63: 1 | I63: (ni ZO) | J63: 91.12 | L63: (ni ZO) | M63: 2.76
A64: SE11-2012dec | B64: =CONCATENATE("3.1 Sončne elektrarne - na stavbah"," ",RIGHT(A64,7)) -> 3.1 Sončne elektrarne - na stavbah 2012dec | C64: mikro - manjše od 50kW | D64: SE11 | E64: 150 | F64: 0 | G64: 150 | H64: 0.88 | I64: 150 | J64: 117.54 | L64: 0 | M64: 2.43
A65: SE12-2012dec | C65: mala - manjše od 1MW | D65: SE12 | E65: 137.19 | F65: 0 | G65: 137.19 | H65: 0.88 | I65: 137.19 | J65: 104.73 | L65: 0 | M65: 2.43
A66: SE13-2012dec | C66: srednja - od 1MW do vključno 10MW | D66: SE13 | E66: 113.85 | F66: 0 | G66: 113.85 | H66: 0.91 | I66: 113.85 | J66: 80.28 | L66: 0 | M66: 2.51
A67: SE14-2012dec | C67: velika - nad 10MW do vključno 125MW | D67: SE14 | E67: 101.34 | F67: 0 | G67: 101.34 | H67: 1 | I67: (ni ZO) | J67: 64.45 | L67: (ni ZO) | M67: 2.76
A68: SE21-2012dec | B68: =CONCATENATE("3.2 Sončne elektrarne - ostale"," ",RIGHT(A68,7)) -> 3.2 Sončne elektrarne - ostale 2012dec | C68: mikro - manjše od 50kW | D68: SE21 | E68: 140.95 | F68: 0 | G68: 140.95 | H68: 0.88 | I68: 140.95 | J68: 108.49 | L68: 0 | M68: 2.43
A69: SE22-2012dec | C69: mala - manjše od 1MW | D69: SE22 | E69: 129.86 | F69: 0 | G69: 129.86 | H69: 0.88 | I69: 129.86 | J69: 97.4 | L69: 0 | M69: 2.43
A70: SE23-2012dec | C70: srednja - od 1MW do vključno 10MW | D70: SE23 | E70: 104.68 | F70: 0 | G70: 104.68 | H70: 0.91 | I70: 104.68 | J70: 71.11 | L70: 0 | M70: 2.51
A71: SE24-2012dec | C71: velika - nad 10MW do vključno 125MW | D71: SE24 | E71: 97.19 | F71: 0 | G71: 97.19 | H71: 1 | I71: (ni ZO) | J71: 60.3 | L71: (ni ZO) | M71: 2.76
A72: SE11-2013jan | B72: =CONCATENATE("3.1 Sončne elektrarne - na stavbah"," ",RIGHT(A72,7)) -> 3.1 Sončne elektrarne - na stavbah 2013jan | C72: mikro - manjše od 50kW | D72: SE11 | E72: 147 | F72: 0 | G72: 147 | H72: 0.88 | I72: 147 | J72: 114.54 | L72: 0 | M72: 2.43
A73: SE12-2013jan | C73: mala - manjše od 1MW | D73: SE12 | E73: 134.45 | F73: 0 | G73: 134.45 | H73: 0.88 | I73: 134.45 | J73: 101.99 | L73: 0 | M73: 2.43
A74: SE13-2013jan | C74: srednja - od 1MW do vključno 10MW | D74: SE13 | E74: 111.57 | F74: 0 | G74: 111.57 | H74: 0.91 | I74: 111.57 | J74: 78 | L74: 0 | M74: 2.51
A75: SE14-2013jan | C75: velika - nad 10MW do vključno 125MW | D75: SE14 | E75: 99.31 | F75: 0 | G75: 99.31 | H75: 1 | I75: (ni ZO) | J75: 62.42 | L75: (ni ZO) | M75: 2.76
A76: SE21-2013jan | B76: =CONCATENATE("3.2 Sončne elektrarne - ostale"," ",RIGHT(A76,7)) -> 3.2 Sončne elektrarne - ostale 2013jan | C76: mikro - manjše od 50kW | D76: SE21 | E76: 138.13 | F76: 0 | G76: 138.13 | H76: 0.88 | I76: 138.13 | J76: 105.67 | L76: 0 | M76: 2.43
A77: SE22-2013jan | C77: mala - manjše od 1MW | D77: SE22 | E77: 127.26 | F77: 0 | G77: 127.26 | H77: 0.88 | I77: 127.26 | J77: 94.8 | L77: 0 | M77: 2.43
A78: SE23-2013jan | C78: srednja - od 1MW do vključno 10MW | D78: SE23 | E78: 102.59 | F78: 0 | G78: 102.59 | H78: 0.91 | I78: 102.59 | J78: 69.02 | L78: 0 | M78: 2.51
A79: SE24-2013jan | C79: velika - nad 10MW do vključno 125MW | D79: SE24 | E79: 95.25 | F79: 0 | G79: 95.25 | H79: 1 | I79: (ni ZO) | J79: 58.36 | L79: (ni ZO) | M79: 2.76
A80: SE11-2013feb | B80: =CONCATENATE("3.1 Sončne elektrarne - na stavbah"," ",RIGHT(A80,7)) -> 3.1 Sončne elektrarne - na stavbah 2013feb | C80: mikro - manjše od 50kW | D80: SE11 | E80: 144.06 | F80: 0 | G80: 144.06 | H80: 0.88 | I80: 144.06 | J80: 111.6 | L80: 0 | M80: 2.43
A81: SE12-2013feb | C81: mala - manjše od 1MW | D81: SE12 | E81: 131.76 | F81: 0 | G81: 131.76 | H81: 0.88 | I81: 131.76 | J81: 99.3 | L81: 0 | M81: 2.43
A82: SE13-2013feb | C82: srednja - od 1MW do vključno 10MW | D82: SE13 | E82: 109.34 | F82: 0 | G82: 109.34 | H82: 0.91 | I82: 109.34 | J82: 75.77 | L82: 0 | M82: 2.51
A83: SE14-2013feb | C83: velika - nad 10MW do vključno 125MW | D83: SE14 | E83: 97.32 | F83: 0 | G83: 97.32 | H83: 1 | I83: (ni ZO) | J83: 60.43 | L83: (ni ZO) | M83: 2.76
A84: SE21-2013feb | B84: =CONCATENATE("3.2 Sončne elektrarne - ostale"," ",RIGHT(A84,7)) -> 3.2 Sončne elektrarne - ostale 2013feb | C84: mikro - manjše od 50kW | D84: SE21 | E84: 135.37 | F84: 0 | G84: 135.37 | H84: 0.88 | I84: 135.37 | J84: 102.91 | L84: 0 | M84: 2.43
A85: SE22-2013feb | C85: mala - manjše od 1MW | D85: SE22 | E85: 124.71 | F85: 0 | G85: 124.71 | H85: 0.88 | I85: 124.71 | J85: 92.25 | L85: 0 | M85: 2.43
A86: SE23-2013feb | C86: srednja - od 1MW do vključno 10MW | D86: SE23 | E86: 100.54 | F86: 0 | G86: 100.54 | H86: 0.91 | I86: 100.54 | J86: 66.97 | L86: 0 | M86: 2.51
A87: SE24-2013feb | C87: velika - nad 10MW do vključno 125MW | D87: SE24 | E87: 93.35 | F87: 0 | G87: 93.35 | H87: 1 | I87: (ni ZO) | J87: 56.46 | L87: (ni ZO) | M87: 2.76
A88: SE11-2013mar | B88: =CONCATENATE("3.1 Sončne elektrarne - na stavbah"," ",RIGHT(A88,7)) -> 3.1 Sončne elektrarne - na stavbah 2013mar | C88: mikro - manjše od 50kW | D88: SE11 | E88: 141.18 | F88: 0 | G88: 141.18 | H88: 0.88 | I88: 141.18 | J88: 108.72 | L88: 0 | M88: 2.43
A89: SE12-2013mar | C89: mala - manjše od 1MW | D89: SE12 | E89: 129.12 | F89: 0 | G89: 129.12 | H89: 0.88 | I89: 129.12 | J89: 96.66 | L89: 0 | M89: 2.43
A90: SE13-2013mar | C90: srednja - od 1MW do vključno 10MW | D90: SE13 | E90: 107.15 | F90: 0 | G90: 107.15 | H90: 0.91 | I90: 107.15 | J90: 73.58 | L90: 0 | M90: 2.51
A91: SE14-2013mar | C91: velika - nad 10MW do vključno 125MW | D91: SE14 | E91: 95.37 | F91: 0 | G91: 95.37 | H91: 1 | I91: (ni ZO) | J91: 58.48 | L91: (ni ZO) | M91: 2.76
A92: SE21-2013mar | B92: =CONCATENATE("3.2 Sončne elektrarne - ostale"," ",RIGHT(A92,7)) -> 3.2 Sončne elektrarne - ostale 2013mar | C92: mikro - manjše od 50kW | D92: SE21 | E92: 132.66 | F92: 0 | G92: 132.66 | H92: 0.88 | I92: 132.66 | J92: 100.2 | L92: 0 | M92: 2.43
A93: SE22-2013mar | C93: mala - manjše od 1MW | D93: SE22 | E93: 122.22 | F93: 0 | G93: 122.22 | H93: 0.88 | I93: 122.22 | J93: 89.76 | L93: 0 | M93: 2.43
A94: SE23-2013mar | C94: srednja - od 1MW do vključno 10MW | D94: SE23 | E94: 98.53 | F94: 0 | G94: 98.53 | H94: 0.91 | I94: 98.53 | J94: 64.96 | L94: 0 | M94: 2.51
A95: SE24-2013mar | C95: velika - nad 10MW do vključno 125MW | D95: SE24 | E95: 91.48 | F95: 0 | G95: 91.48 | H95: 1 | I95: (ni ZO) | J95: 54.59 | L95: (ni ZO) | M95: 2.76
A96: SE11-2013apr | B96: =CONCATENATE("3.1 Sončne elektrarne - na stavbah"," ",RIGHT(A96,7)) -> 3.1 Sončne elektrarne - na stavbah 2013apr | C96: mikro - manjše od 50kW | D96: SE11 | E96: 138.36 | F96: 0 | G96: 138.36 | H96: 0.88 | I96: 138.36 | J96: 105.9 | L96: 0 | M96: 2.43
A97: SE12-2013apr | C97: mala - manjše od 1MW | D97: SE12 | E97: 126.54 | F97: 0 | G97: 126.54 | H97: 0.88 | I97: 126.54 | J97: 94.08 | L97: 0 | M97: 2.43
A98: SE13-2013apr | C98: srednja - od 1MW do vključno 10MW | D98: SE13 | E98: 105.01 | F98: 0 | G98: 105.01 | H98: 0.91 | I98: 105.01 | J98: 71.44 | L98: 0 | M98: 2.51
A99: SE14-2013apr | C99: velika - nad 10MW do vključno 125MW | D99: SE14 | E99: 93.46 | F99: 0 | G99: 93.46 | H99: 1 | I99: (ni ZO) | J99: 56.57 | L99: (ni ZO) | M99: 2.76
A100: SE21-2013apr | B100: =CONCATENATE("3.2 Sončne elektrarne - ostale"," ",RIGHT(A100,7)) -> 3.2 Sončne elektrarne - ostale 2013apr | C100: mikro - manjše od 50kW | D100: SE21 | E100: 130.01 | F100: 0 | G100: 130.01 | H100: 0.88 | I100: 130.01 | J100: 97.55 | L100: 0 | M100: 2.43
A101: SE22-2013apr | C101: mala - manjše od 1MW | D101: SE22 | E101: 119.78 | F101: 0 | G101: 119.78 | H101: 0.88 | I101: 119.78 | J101: 87.32 | L101: 0 | M101: 2.43
A102: SE23-2013apr | C102: srednja - od 1MW do vključno 10MW | D102: SE23 | E102: 96.56 | F102: 0 | G102: 96.56 | H102: 0.91 | I102: 96.56 | J102: 62.99 | L102: 0 | M102: 2.51
A103: SE24-2013apr | C103: velika - nad 10MW do vključno 125MW | D103: SE24 | E103: 89.65 | F103: 0 | G103: 89.65 | H103: 1 | I103: (ni ZO) | J103: 52.76 | L103: (ni ZO) | M103: 2.76
A104: SE11-2013maj | B104: =CONCATENATE("3.1 Sončne elektrarne - na stavbah"," ",RIGHT(A104,7)) -> 3.1 Sončne elektrarne - na stavbah 2013maj | C104: mikro - manjše od 50kW | D104: SE11 | E104: 135.59 | F104: 0 | G104: 135.59 | H104: 0.88 | I104: 135.59 | J104: 103.13 | L104: 0 | M104: 2.43
A105: SE12-2013maj | C105: mala - manjše od 1MW | D105: SE12 | E105: 124.01 | F105: 0 | G105: 124.01 | H105: 0.88 | I105: 124.01 | J105: 91.55 | L105: 0 | M105: 2.43
A106: SE13-2013maj | C106: srednja - od 1MW do vključno 10MW | D106: SE13 | E106: 102.91 | F106: 0 | G106: 102.91 | H106: 0.91 | I106: 102.91 | J106: 69.34 | L106: 0 | M106: 2.51
A107: SE14-2013maj | C107: velika - nad 10MW do vključno 125MW | D107: SE14 | E107: 91.59 | F107: 0 | G107: 91.59 | H107: 1 | I107: (ni ZO) | J107: 54.7 | L107: (ni ZO) | M107: 2.76
A108: SE21-2013maj | B108: =CONCATENATE("3.2 Sončne elektrarne - ostale"," ",RIGHT(A108,7)) -> 3.2 Sončne elektrarne - ostale 2013maj | C108: mikro - manjše od 50kW | D108: SE21 | E108: 127.41 | F108: 0 | G108: 127.41 | H108: 0.88 | I108: 127.41 | J108: 94.95 | L108: 0 | M108: 2.43
A109: SE22-2013maj | C109: mala - manjše od 1MW | D109: SE22 | E109: 117.38 | F109: 0 | G109: 117.38 | H109: 0.88 | I109: 117.38 | J109: 84.92 | L109: 0 | M109: 2.43
A110: SE23-2013maj | C110: srednja - od 1MW do vključno 10MW | D110: SE23 | E110: 94.63 | F110: 0 | G110: 94.63 | H110: 0.91 | I110: 94.63 | J110: 61.06 | L110: 0 | M110: 2.51
A111: SE24-2013maj | C111: velika - nad 10MW do vključno 125MW | D111: SE24 | E111: 87.86 | F111: 0 | G111: 87.86 | H111: 1 | I111: (ni ZO) | J111: 50.97 | L111: (ni ZO) | M111: 2.76
A112: SE11-2013jun | B112: =CONCATENATE("3.1 Sončne elektrarne - na stavbah"," ",RIGHT(A112,7)) -> 3.1 Sončne elektrarne - na stavbah 2013jun | C112: mikro - manjše od 50kW | D112: SE11 | E112: 132.88 | F112: 0 | G112: 132.88 | H112: 0.88 | I112: 132.88 | J112: 100.42 | L112: 0 | M112: 2.43
A113: SE12-2013jun | C113: mala - manjše od 1MW | D113: SE12 | E113: 121.53 | F113: 0 | G113: 121.53 | H113: 0.88 | I113: 121.53 | J113: 89.07 | L113: 0 | M113: 2.43
A114: SE13-2013jun | C114: srednja - od 1MW do vključno 10MW | D114: SE13 | E114: 100.85 | F114: 0 | G114: 100.85 | H114: 0.91 | I114: 100.85 | J114: 67.28 | L114: 0 | M114: 2.51
A115: SE14-2013jun | C115: velika - nad 10MW do vključno 125MW | D115: SE14 | E115: 89.76 | F115: 0 | G115: 89.76 | H115: 1 | I115: (ni ZO) | J115: 52.87 | L115: (ni ZO) | M115: 2.76
A116: SE21-2013jun | B116: =CONCATENATE("3.2 Sončne elektrarne - ostale"," ",RIGHT(A116,7)) -> 3.2 Sončne elektrarne - ostale 2013jun | C116: mikro - manjše od 50kW | D116: SE21 | E116: 124.86 | F116: 0 | G116: 124.86 | H116: 0.88 | I116: 124.86 | J116: 92.4 | L116: 0 | M116: 2.43
A117: SE22-2013jun | C117: mala - manjše od 1MW | D117: SE22 | E117: 115.03 | F117: 0 | G117: 115.03 | H117: 0.88 | I117: 115.03 | J117: 82.57 | L117: 0 | M117: 2.43
A118: SE23-2013jun | C118: srednja - od 1MW do vključno 10MW | D118: SE23 | E118: 92.74 | F118: 0 | G118: 92.74 | H118: 0.91 | I118: 92.74 | J118: 59.17 | L118: 0 | M118: 2.51
A119: SE24-2013jun | C119: velika - nad 10MW do vključno 125MW | D119: SE24 | E119: 86.1 | F119: 0 | G119: 86.1 | H119: 1 | I119: (ni ZO) | J119: 49.21 | L119: (ni ZO) | M119: 2.76
A120: SE11-2013jul | B120: =CONCATENATE("3.1 Sončne elektrarne - na stavbah"," ",RIGHT(A120,7)) -> 3.1 Sončne elektrarne - na stavbah 2013jul | C120: mikro - manjše od 50kW | D120: SE11 | E120: 130.22 | F120: 0 | G120: 130.22 | H120: 0.88 | I120: 130.22 | J120: 97.76 | L120: 0 | M120: 2.43
A121: SE12-2013jul | C121: mala - manjše od 1MW | D121: SE12 | E121: 119.1 | F121: 0 | G121: 119.1 | H121: 0.88 | I121: 119.1 | J121: 86.64 | L121: 0 | M121: 2.43
A122: SE13-2013jul | C122: srednja - od 1MW do vključno 10MW | D122: SE13 | E122: 98.83 | F122: 0 | G122: 98.83 | H122: 0.91 | I122: 98.83 | J122: 65.26 | L122: 0 | M122: 2.51
A123: SE14-2013jul | C123: velika - nad 10MW do vključno 125MW | D123: SE14 | E123: 87.96 | F123: 0 | G123: 87.96 | H123: 1 | I123: (ni ZO) | J123: 51.07 | L123: (ni ZO) | M123: 2.76
A124: SE21-2013jul | B124: =CONCATENATE("3.2 Sončne elektrarne - ostale"," ",RIGHT(A124,7)) -> 3.2 Sončne elektrarne - ostale 2013jul | C124: mikro - manjše od 50kW | D124: SE21 | E124: 122.36 | F124: 0 | G124: 122.36 | H124: 0.88 | I124: 122.36 | J124: 89.9 | L124: 0 | M124: 2.43
A125: SE22-2013jul | C125: mala - manjše od 1MW | D125: SE22 | E125: 112.73 | F125: 0 | G125: 112.73 | H125: 0.88 | I125: 112.73 | J125: 80.27 | L125: 0 | M125: 2.43
A126: SE23-2013jul | C126: srednja - od 1MW do vključno 10MW | D126: SE23 | E126: 90.89 | F126: 0 | G126: 90.89 | H126: 0.91 | I126: 90.89 | J126: 57.32 | L126: 0 | M126: 2.51
A127: SE24-2013jul | C127: velika - nad 10MW do vključno 125MW | D127: SE24 | E127: 84.38 | F127: 0 | G127: 84.38 | H127: 1 | I127: (ni ZO) | J127: 47.49 | L127: (ni ZO) | M127: 2.76
A128: SE11-2013avg | B128: =CONCATENATE("3.1 Sončne elektrarne - na stavbah"," ",RIGHT(A128,7)) -> 3.1 Sončne elektrarne - na stavbah 2013avg | C128: mikro - manjše od 50kW | D128: SE11 | E128: 127.62 | F128: 0 | G128: 127.62 | H128: 0.88 | I128: 127.62 | J128: 95.16 | L128: 0 | M128: 2.43
A129: SE12-2013avg | C129: mala - manjše od 1MW | D129: SE12 | E129: 116.72 | F129: 0 | G129: 116.72 | H129: 0.88 | I129: 116.72 | J129: 84.26 | L129: 0 | M129: 2.43
A130: SE13-2013avg | C130: srednja - od 1MW do vključno 10MW | D130: SE13 | E130: 96.85 | F130: 0 | G130: 96.85 | H130: 0.91 | I130: 96.85 | J130: 63.28 | L130: 0 | M130: 2.51
A131: SE14-2013avg | C131: velika - nad 10MW do vključno 125MW | D131: SE14 | E131: 86.2 | F131: 0 | G131: 86.2 | H131: 1 | I131: (ni ZO) | J131: 49.31 | L131: (ni ZO) | M131: 2.76
A132: SE21-2013avg | B132: =CONCATENATE("3.2 Sončne elektrarne - ostale"," ",RIGHT(A132,7)) -> 3.2 Sončne elektrarne - ostale 2013avg | C132: mikro - manjše od 50kW | D132: SE21 | E132: 119.91 | F132: 0 | G132: 119.91 | H132: 0.88 | I132: 119.91 | J132: 87.45 | L132: 0 | M132: 2.43
A133: SE22-2013avg | C133: mala - manjše od 1MW | D133: SE22 | E133: 110.48 | F133: 0 | G133: 110.48 | H133: 0.88 | I133: 110.48 | J133: 78.02 | L133: 0 | M133: 2.43
A134: SE23-2013avg | C134: srednja - od 1MW do vključno 10MW | D134: SE23 | E134: 89.07 | F134: 0 | G134: 89.07 | H134: 0.91 | I134: 89.07 | J134: 55.5 | L134: 0 | M134: 2.51
A135: SE24-2013avg | C135: velika - nad 10MW do vključno 125MW | D135: SE24 | E135: 82.69 | F135: 0 | G135: 82.69 | H135: 1 | I135: (ni ZO) | J135: 45.8 | L135: (ni ZO) | M135: 2.76
A136: SE11-2013sep | B136: =CONCATENATE("3.1 Sončne elektrarne - na stavbah"," ",RIGHT(A136,7)) -> 3.1 Sončne elektrarne - na stavbah 2013sep | C136: mikro - manjše od 50kW | D136: SE11 | E136: 125.07 | F136: 0 | G136: 125.07 | H136: 0.88 | I136: 125.07 | J136: 92.61 | L136: 0 | M136: 2.43
A137: SE12-2013sep | C137: mala - manjše od 1MW | D137: SE12 | E137: 114.39 | F137: 0 | G137: 114.39 | H137: 0.88 | I137: 114.39 | J137: 81.93 | L137: 0 | M137: 2.43
A138: SE13-2013sep | C138: srednja - od 1MW do vključno 10MW | D138: SE13 | E138: 94.91 | F138: 0 | G138: 94.91 | H138: 0.91 | I138: 94.91 | J138: 61.34 | L138: 0 | M138: 2.51
A139: SE14-2013sep | C139: velika - nad 10MW do vključno 125MW | D139: SE14 | E139: 84.48 | F139: 0 | G139: 84.48 | H139: 1 | I139: (ni ZO) | J139: 47.59 | L139: (ni ZO) | M139: 2.76
A140: SE21-2013sep | B140: =CONCATENATE("3.2 Sončne elektrarne - ostale"," ",RIGHT(A140,7)) -> 3.2 Sončne elektrarne - ostale 2013sep | C140: mikro - manjše od 50kW | D140: SE21 | E140: 117.51 | F140: 0 | G140: 117.51 | H140: 0.88 | I140: 117.51 | J140: 85.05 | L140: 0 | M140: 2.43
A141: SE22-2013sep | C141: mala - manjše od 1MW | D141: SE22 | E141: 108.27 | F141: 0 | G141: 108.27 | H141: 0.88 | I141: 108.27 | J141: 75.81 | L141: 0 | M141: 2.43
A142: SE23-2013sep | C142: srednja - od 1MW do vključno 10MW | D142: SE23 | E142: 87.29 | F142: 0 | G142: 87.29 | H142: 0.91 | I142: 87.29 | J142: 53.72 | L142: 0 | M142: 2.51
A143: SE24-2013sep | C143: velika - nad 10MW do vključno 125MW | D143: SE24 | E143: 81.04 | F143: 0 | G143: 81.04 | H143: 1 | I143: (ni ZO) | J143: 44.15 | L143: (ni ZO) | M143: 2.76
A144: SE11-2013okt | B144: =CONCATENATE("3.1 Sončne elektrarne - na stavbah"," ",RIGHT(A144,7)) -> 3.1 Sončne elektrarne - na stavbah 2013okt | C144: mikro - manjše od 50kW | D144: SE11 | E144: 122.57 | F144: 0 | G144: 122.57 | H144: 0.88 | I144: 122.57 | J144: 90.11 | L144: 0 | M144: 2.43
A145: SE12-2013okt | C145: mala - manjše od 1MW | D145: SE12 | E145: 112.1 | F145: 0 | G145: 112.1 | H145: 0.88 | I145: 112.1 | J145: 79.64 | L145: 0 | M145: 2.43
A146: SE13-2013okt | C146: srednja - od 1MW do vključno 10MW | D146: SE13 | E146: 93.01 | F146: 0 | G146: 93.01 | H146: 0.91 | I146: 93.01 | J146: 59.44 | L146: 0 | M146: 2.51
A147: SE14-2013okt | C147: velika - nad 10MW do vključno 125MW | D147: SE14 | E147: 82.79 | F147: 0 | G147: 82.79 | H147: 1 | I147: (ni ZO) | J147: 45.9 | L147: (ni ZO) | M147: 2.76
A148: SE21-2013okt | B148: =CONCATENATE("3.2 Sončne elektrarne - ostale"," ",RIGHT(A148,7)) -> 3.2 Sončne elektrarne - ostale 2013okt | C148: mikro - manjše od 50kW | D148: SE21 | E148: 115.16 | F148: 0 | G148: 115.16 | H148: 0.88 | I148: 115.16 | J148: 82.7 | L148: 0 | M148: 2.43
A149: SE22-2013okt | C149: mala - manjše od 1MW | D149: SE22 | E149: 106.1 | F149: 0 | G149: 106.1 | H149: 0.88 | I149: 106.1 | J149: 73.64 | L149: 0 | M149: 2.43
A150: SE23-2013okt | C150: srednja - od 1MW do vključno 10MW | D150: SE23 | E150: 85.54 | F150: 0 | G150: 85.54 | H150: 0.91 | I150: 85.54 | J150: 51.97 | L150: 0 | M150: 2.51
A151: SE24-2013okt | C151: velika - nad 10MW do vključno 125MW | D151: SE24 | E151: 79.42 | F151: 0 | G151: 79.42 | H151: 1 | I151: (ni ZO) | J151: 42.53 | L151: (ni ZO) | M151: 2.76
A152: SE11-2013nov | B152: =CONCATENATE("3.1 Sončne elektrarne - na stavbah"," ",RIGHT(A152,7)) -> 3.1 Sončne elektrarne - na stavbah 2013nov | C152: mikro - manjše od 50kW | D152: SE11 | E152: 120.12 | F152: 0 | G152: 120.12 | H152: 0.88 | I152: 120.12 | J152: 87.66 | L152: 0 | M152: 2.43
A153: SE12-2013nov | C153: mala - manjše od 1MW | D153: SE12 | E153: 109.86 | F153: 0 | G153: 109.86 | H153: 0.88 | I153: 109.86 | J153: 77.4 | L153: 0 | M153: 2.43
A154: SE13-2013nov | C154: srednja - od 1MW do vključno 10MW | D154: SE13 | E154: 91.15 | F154: 0 | G154: 91.15 | H154: 0.91 | I154: 91.15 | J154: 57.58 | L154: 0 | M154: 2.51
A155: SE14-2013nov | C155: velika - nad 10MW do vključno 125MW | D155: SE14 | E155: 81.13 | F155: 0 | G155: 81.13 | H155: 1 | I155: (ni ZO) | J155: 44.24 | L155: (ni ZO) | M155: 2.76
A156: SE21-2013nov | B156: =CONCATENATE("3.2 Sončne elektrarne - ostale"," ",RIGHT(A156,7)) -> 3.2 Sončne elektrarne - ostale 2013nov | C156: mikro - manjše od 50kW | D156: SE21 | E156: 112.86 | F156: 0 | G156: 112.86 | H156: 0.88 | I156: 112.86 | J156: 80.4 | L156: 0 | M156: 2.43
A157: SE22-2013nov | C157: mala - manjše od 1MW | D157: SE22 | E157: 103.98 | F157: 0 | G157: 103.98 | H157: 0.88 | I157: 103.98 | J157: 71.52 | L157: 0 | M157: 2.43
A158: SE23-2013nov | C158: srednja - od 1MW do vključno 10MW | D158: SE23 | E158: 83.83 | F158: 0 | G158: 83.83 | H158: 0.91 | I158: 83.83 | J158: 50.26 | L158: 0 | M158: 2.51
A159: SE24-2013nov | C159: velika - nad 10MW do vključno 125MW | D159: SE24 | E159: 77.83 | F159: 0 | G159: 77.83 | H159: 1 | I159: (ni ZO) | J159: 40.94 | L159: (ni ZO) | M159: 2.76
A160: SE11-2013dec | B160: =CONCATENATE("3.1 Sončne elektrarne - na stavbah"," ",RIGHT(A160,7)) -> 3.1 Sončne elektrarne - na stavbah 2013dec | C160: mikro - manjše od 50kW | D160: SE11 | E160: 117.72 | F160: 0 | G160: 117.72 | H160: 0.88 | I160: 117.72 | J160: 85.26 | L160: 0 | M160: 2.43
A161: SE12-2013dec | C161: mala - manjše od 1MW | D161: SE12 | E161: 107.66 | F161: 0 | G161: 107.66 | H161: 0.88 | I161: 107.66 | J161: 75.2 | L161: 0 | M161: 2.43
A162: SE13-2013dec | C162: srednja - od 1MW do vključno 10MW | D162: SE13 | E162: 89.33 | F162: 0 | G162: 89.33 | H162: 0.91 | I162: 89.33 | J162: 55.76 | L162: 0 | M162: 2.51
A163: SE14-2013dec | C163: velika - nad 10MW do vključno 125MW | D163: SE14 | E163: 79.51 | F163: 0 | G163: 79.51 | H163: 1 | I163: (ni ZO) | J163: 42.62 | L163: (ni ZO) | M163: 2.76
A164: SE21-2013dec | B164: =CONCATENATE("3.2 Sončne elektrarne - ostale"," ",RIGHT(A164,7)) -> 3.2 Sončne elektrarne - ostale 2013dec | C164: mikro - manjše od 50kW | D164: SE21 | E164: 110.6 | F164: 0 | G164: 110.6 | H164: 0.88 | I164: 110.6 | J164: 78.14 | L164: 0 | M164: 2.43
A165: SE22-2013dec | C165: mala - manjše od 1MW | D165: SE22 | E165: 101.9 | F165: 0 | G165: 101.9 | H165: 0.88 | I165: 101.9 | J165: 69.44 | L165: 0 | M165: 2.43
A166: SE23-2013dec | C166: srednja - od 1MW do vključno 10MW | D166: SE23 | E166: 82.15 | F166: 0 | G166: 82.15 | H166: 0.91 | I166: 82.15 | J166: 48.58 | L166: 0 | M166: 2.51
A167: SE24-2013dec | C167: velika - nad 10MW do vključno 125MW | D167: SE24 | E167: 76.27 | F167: 0 | G167: 76.27 | H167: 1 | I167: (ni ZO) | J167: 39.38 | L167: (ni ZO) | M167: 2.76
A168: SE11-2014jan | B168: =CONCATENATE("3.1 Sončne elektrarne - na stavbah"," ",RIGHT(A168,7)) -> 3.1 Sončne elektrarne - na stavbah 2014jan | C168: mikro - manjše od 50kW | D168: SE11 | E168: 115.37 | F168: 0 | G168: 115.37 | H168: 0.88 | I168: 115.37 | J168: 82.91 | L168: 0 | M168: 2.43
A169: SE12-2014jan | C169: mala - manjše od 1MW | D169: SE12 | E169: 105.51 | F169: 0 | G169: 105.51 | H169: 0.88 | I169: 105.51 | J169: 73.05 | L169: 0 | M169: 2.43
A170: SE13-2014jan | C170: srednja - od 1MW do vključno 10MW | D170: SE13 | E170: 87.54 | F170: 0 | G170: 87.54 | H170: 0.91 | I170: 87.54 | J170: 53.97 | L170: 0 | M170: 2.51
A171: SE14-2014jan | C171: velika - nad 10MW do vključno 125MW | D171: SE14 | E171: 77.92 | F171: 0 | G171: 77.92 | H171: 1 | I171: (ni ZO) | J171: 41.03 | L171: (ni ZO) | M171: 2.76
A172: SE21-2014jan | B172: =CONCATENATE("3.2 Sončne elektrarne - ostale"," ",RIGHT(A172,7)) -> 3.2 Sončne elektrarne - ostale 2014jan | C172: mikro - manjše od 50kW | D172: SE21 | E172: 108.39 | F172: 0 | G172: 108.39 | H172: 0.88 | I172: 108.39 | J172: 75.93 | L172: 0 | M172: 2.43
A173: SE22-2014jan | C173: mala - manjše od 1MW | D173: SE22 | E173: 99.86 | F173: 0 | G173: 99.86 | H173: 0.88 | I173: 99.86 | J173: 67.4 | L173: 0 | M173: 2.43
A174: SE23-2014jan | C174: srednja - od 1MW do vključno 10MW | D174: SE23 | E174: 80.51 | F174: 0 | G174: 80.51 | H174: 0.91 | I174: 80.51 | J174: 46.94 | L174: 0 | M174: 2.51
A175: SE24-2014jan | C175: velika - nad 10MW do vključno 125MW | D175: SE24 | E175: 74.74 | F175: 0 | G175: 74.74 | H175: 1 | I175: (ni ZO) | J175: 37.85 | L175: (ni ZO) | M175: 2.76
A176: SE11-2014feb | B176: =CONCATENATE("3.1 Sončne elektrarne - na stavbah"," ",RIGHT(A176,7)) -> 3.1 Sončne elektrarne - na stavbah 2014feb | C176: mikro - manjše od 50kW | D176: SE11 | E176: 113.06 | F176: 0 | G176: 113.06 | H176: 0.88 | I176: 113.06 | J176: 80.6 | L176: 0 | M176: 2.43
A177: SE12-2014feb | C177: mala - manjše od 1MW | D177: SE12 | E177: 103.4 | F177: 0 | G177: 103.4 | H177: 0.88 | I177: 103.4 | J177: 70.94 | L177: 0 | M177: 2.43
A178: SE13-2014feb | C178: srednja - od 1MW do vključno 10MW | D178: SE13 | E178: 85.79 | F178: 0 | G178: 85.79 | H178: 0.91 | I178: 85.79 | J178: 52.22 | L178: 0 | M178: 2.51
A179: SE14-2014feb | C179: velika - nad 10MW do vključno 125MW | D179: SE14 | E179: 76.36 | F179: 0 | G179: 76.36 | H179: 1 | I179: (ni ZO) | J179: 39.47 | L179: (ni ZO) | M179: 2.76
A180: SE21-2014feb | B180: =CONCATENATE("3.2 Sončne elektrarne - ostale"," ",RIGHT(A180,7)) -> 3.2 Sončne elektrarne - ostale 2014feb | C180: mikro - manjše od 50kW | D180: SE21 | E180: 106.22 | F180: 0 | G180: 106.22 | H180: 0.88 | I180: 106.22 | J180: 73.76 | L180: 0 | M180: 2.43
A181: SE22-2014feb | C181: mala - manjše od 1MW | D181: SE22 | E181: 97.86 | F181: 0 | G181: 97.86 | H181: 0.88 | I181: 97.86 | J181: 65.4 | L181: 0 | M181: 2.43
A182: SE23-2014feb | C182: srednja - od 1MW do vključno 10MW | D182: SE23 | E182: 78.9 | F182: 0 | G182: 78.9 | H182: 0.91 | I182: 78.9 | J182: 45.33 | L182: 0 | M182: 2.51
A183: SE24-2014feb | C183: velika - nad 10MW do vključno 125MW | D183: SE24 | E183: 73.25 | F183: 0 | G183: 73.25 | H183: 1 | I183: (ni ZO) | J183: 36.36 | L183: (ni ZO) | M183: 2.76
A184: SE11-2014mar | B184: =CONCATENATE("3.1 Sončne elektrarne - na stavbah"," ",RIGHT(A184,7)) -> 3.1 Sončne elektrarne - na stavbah 2014mar | C184: mikro - manjše od 50kW | D184: SE11 | E184: 110.8 | F184: 0 | G184: 110.8 | H184: 0.88 | I184: 110.8 | J184: 78.34 | L184: 0 | M184: 2.43
A185: SE12-2014mar | C185: mala - manjše od 1MW | D185: SE12 | E185: 101.33 | F185: 0 | G185: 101.33 | H185: 0.88 | I185: 101.33 | J185: 68.87 | L185: 0 | M185: 2.43
A186: SE13-2014mar | C186: srednja - od 1MW do vključno 10MW | D186: SE13 | E186: 84.07 | F186: 0 | G186: 84.07 | H186: 0.91 | I186: 84.07 | J186: 50.5 | L186: 0 | M186: 2.51
A187: SE14-2014mar | C187: velika - nad 10MW do vključno 125MW | D187: SE14 | E187: 74.83 | F187: 0 | G187: 74.83 | H187: 1 | I187: (ni ZO) | J187: 37.94 | L187: (ni ZO) | M187: 2.76
A188: SE21-2014mar | B188: =CONCATENATE("3.2 Sončne elektrarne - ostale"," ",RIGHT(A188,7)) -> 3.2 Sončne elektrarne - ostale 2014mar | C188: mikro - manjše od 50kW | D188: SE21 | E188: 104.1 | F188: 0 | G188: 104.1 | H188: 0.88 | I188: 104.1 | J188: 71.64 | L188: 0 | M188: 2.43
A189: SE22-2014mar | C189: mala - manjše od 1MW | D189: SE22 | E189: 95.9 | F189: 0 | G189: 95.9 | H189: 0.88 | I189: 95.9 | J189: 63.44 | L189: 0 | M189: 2.43
A190: SE23-2014mar | C190: srednja - od 1MW do vključno 10MW | D190: SE23 | E190: 77.32 | F190: 0 | G190: 77.32 | H190: 0.91 | I190: 77.32 | J190: 43.75 | L190: 0 | M190: 2.51
A191: SE24-2014mar | C191: velika - nad 10MW do vključno 125MW | D191: SE24 | E191: 71.79 | F191: 0 | G191: 71.79 | H191: 1 | I191: (ni ZO) | J191: 34.9 | L191: (ni ZO) | M191: 2.76
A192: SE11-2014apr | B192: =CONCATENATE("3.1 Sončne elektrarne - na stavbah"," ",RIGHT(A192,7)) -> 3.1 Sončne elektrarne - na stavbah 2014apr | C192: mikro - manjše od 50kW | D192: SE11 | E192: 108.58 | F192: 0 | G192: 108.58 | H192: 0.88 | I192: 108.58 | J192: 76.12 | L192: 0 | M192: 2.43
A193: SE12-2014apr | C193: mala - manjše od 1MW | D193: SE12 | E193: 99.3 | F193: 0 | G193: 99.3 | H193: 0.88 | I193: 99.3 | J193: 66.84 | L193: 0 | M193: 2.43
A194: SE13-2014apr | C194: srednja - od 1MW do vključno 10MW | D194: SE13 | E194: 82.39 | F194: 0 | G194: 82.39 | H194: 0.91 | I194: 82.39 | J194: 48.82 | L194: 0 | M194: 2.51
A195: SE14-2014apr | C195: velika - nad 10MW do vključno 125MW | D195: SE14 | E195: 73.33 | F195: 0 | G195: 73.33 | H195: 1 | I195: (ni ZO) | J195: 36.44 | L195: (ni ZO) | M195: 2.76
A196: SE21-2014apr | B196: =CONCATENATE("3.2 Sončne elektrarne - ostale"," ",RIGHT(A196,7)) -> 3.2 Sončne elektrarne - ostale 2014apr | C196: mikro - manjše od 50kW | D196: SE21 | E196: 102.02 | F196: 0 | G196: 102.02 | H196: 0.88 | I196: 102.02 | J196: 69.56 | L196: 0 | M196: 2.43
A197: SE22-2014apr | C197: mala - manjše od 1MW | D197: SE22 | E197: 93.98 | F197: 0 | G197: 93.98 | H197: 0.88 | I197: 93.98 | J197: 61.52 | L197: 0 | M197: 2.43
A198: SE23-2014apr | C198: srednja - od 1MW do vključno 10MW | D198: SE23 | E198: 75.77 | F198: 0 | G198: 75.77 | H198: 0.91 | I198: 75.77 | J198: 42.2 | L198: 0 | M198: 2.51
A199: SE24-2014apr | C199: velika - nad 10MW do vključno 125MW | D199: SE24 | E199: 70.35 | F199: 0 | G199: 70.35 | H199: 1 | I199: (ni ZO) | J199: 33.46 | L199: (ni ZO) | M199: 2.76
A200: SE11-2014maj | B200: =CONCATENATE("3.1 Sončne elektrarne - na stavbah"," ",RIGHT(A200,7)) -> 3.1 Sončne elektrarne - na stavbah 2014maj | C200: mikro - manjše od 50kW | D200: SE11 | E200: 106.41 | F200: 0 | G200: 106.41 | H200: 0.88 | I200: 106.41 | J200: 73.95 | L200: 0 | M200: 2.43
A201: SE12-2014maj | C201: mala - manjše od 1MW | D201: SE12 | E201: 97.31 | F201: 0 | G201: 97.31 | H201: 0.88 | I201: 97.31 | J201: 64.85 | L201: 0 | M201: 2.43
... 105 more rows

Sheet Podpore 2017 (hidden)
A1: VIŠINE PODPOR 2017
D3: KODA | E3: NDRS 2017 | F3: SDRS 2017 | G3: Skupni stroški 2017 | H3: Faktor B po Prilogi III | I3: Cena ZO 2017 | J3: Višina OP 2017 | L3: ZO2017 - ZO2016 | M3: OP2017 - OP2016
A4: HE01 | B4: 1. Hidroelektrarne | C4: mikro - manjše od 50kW | D4: HE01 | E4: 105.47 | F4: 0 | G4: 105.47 | H4: 0.86 | I4: 105.47 | J4: 69.4 | L4: 0 | M4: -4.34
A5: HE02 | C5: mala - manjše od 1MW | D5: HE02 | E5: 92.61 | F5: 0 | G5: 92.61 | H5: 0.86 | I5: 92.61 | J5: 56.54 | L5: 0 | M5: -4.34
A6: HE03 | C6: srednja - od 1MW do vključno 10MW | D6: HE03 | E6: 82.34 | F6: 0 | G6: 82.34 | H6: 0.9 | I6: 82.34 | J6: 44.59 | L6: 0 | M6: -4.55
A7: HE04 | C7: velika - nad 10MW do vključno 125MW | D7: HE04 | E7: 76.57 | F7: 0 | G7: 76.57 | H7: 0.9 | I7: (ni ZO) | J7: 38.82 | L7: (ni ZO) | M7: -4.55
A8: VE01 | B8: 2. Vetrne elektrarne | C8: mikro - manjše od 50kW | D8: VE01 | E8: 95.38 | F8: 0 | G8: 95.38 | H8: 0.8 | I8: 95.38 | J8: 61.83 | L8: 0 | M8: -4.04
A9: VE02 | C9: mala - manjše od 1MW | D9: VE02 | E9: 95.38 | F9: 0 | G9: 95.38 | H9: 0.8 | I9: 95.38 | J9: 61.83 | L9: 0 | M9: -4.04
A10: VE03 | C10: srednja - od 1MW do vključno 10MW | D10: VE03 | E10: 95.38 | F10: 0 | G10: 95.38 | H10: 0.8 | I10: 95.38 | J10: 61.83 | L10: 0 | M10: -4.04
A11: VE04 | C11: velika - nad 10MW do vključno 125MW | D11: VE04 | E11: 86.74 | F11: 0 | G11: 86.74 | H11: 0.86 | I11: (ni ZO) | J11: 50.67 | L11: (ni ZO) | M11: -4.34
A12: SE11-2009 | B12: 3.1 Sončne elektrarne - na stavbah 2009 | C12: mikro - manjše od 50kW | D12: SE11 | E12: 415.46 | F12: 0 | G12: 415.46 | H12: 0.88 | I12: 415.46 | J12: 378.55 | L12: 0 | M12: -4.45
A13: SE12-2009 | C13: mala - manjše od 1MW | D13: SE12 | E13: 380.02 | F13: 0 | G13: 380.02 | H13: 0.88 | I13: 380.02 | J13: 343.11 | L13: 0 | M13: -4.45
A14: SE13-2009 | C14: srednja - od 1MW do vključno 10MW | D14: SE13 | E14: 315.36 | F14: 0 | G14: 315.36 | H14: 0.91 | I14: 315.36 | J14: 277.19 | L14: 0 | M14: -4.6
A15: SE14-2009 | C15: velika - nad 10MW do vključno 125MW | D15: SE14 | E15: 280.71 | F15: 0 | G15: 280.71 | H15: 1 | I15: (ni ZO) | J15: 238.77 | L15: (ni ZO) | M15: -5.05
B16: 3.1. INT Sončne elektrarne - integrirane 2009 | C16: mikro - manjše od 50kW | E16: 477.78 | F16: 0 | G16: 477.78 | H16: 0.88 | I16: 477.78 | J16: 440.87 | L16: 0 | M16: -4.45
C17: mala - manjše od 1MW | E17: 437.02 | F17: 0 | G17: 437.02 | H17: 0.88 | I17: 437.02 | J17: 400.11 | L17: 0 | M17: -4.45
C18: srednja - od 1MW do vključno 10MW | E18: 362.66 | F18: 0 | G18: 362.66 | H18: 0.91 | I18: 362.66 | J18: 324.49 | L18: 0 | M18: -4.6
C19: velika - nad 10MW do vključno 125MW | E19: 322.82 | F19: 0 | G19: 322.82 | H19: 1 | I19: (ni ZO) | J19: 280.88 | L19: (ni ZO) | M19: -5.05
A20: SE21-2009 | B20: 3.2 Sončne elektrarne - samostojni objekti 2009 | C20: mikro - manjše od 50kW | D20: SE21 | E20: 390.42 | F20: 0 | G20: 390.42 | H20: 0.88 | I20: 390.42 | J20: 353.51 | L20: 0 | M20: -4.45
A21: SE22-2009 | C21: mala - manjše od 1MW | D21: SE22 | E21: 359.71 | F21: 0 | G21: 359.71 | H21: 0.88 | I21: 359.71 | J21: 322.8 | L21: 0 | M21: -4.45
A22: SE23-2009 | C22: srednja - od 1MW do vključno 10MW | D22: SE23 | E22: 289.98 | F22: 0 | G22: 289.98 | H22: 0.91 | I22: 289.98 | J22: 251.81 | L22: 0 | M22: -4.6
A23: SE24-2009 | C23: velika - nad 10MW do vključno 125MW | D23: SE24 | E23: 269.22 | F23: 0 | G23: 269.22 | H23: 1 | I23: (ni ZO) | J23: 227.28 | L23: (ni ZO) | M23: -5.05
A24: SE11-2010 | B24: 3.1 Sončne elektrarne - na stavbah 2010 | C24: mikro - manjše od 50kW | D24: SE11 | E24: 386.38 | F24: 0 | G24: 386.38 | H24: 0.88 | I24: 386.38 | J24: 349.47 | L24: 0 | M24: -4.45
A25: SE12-2010 | C25: mala - manjše od 1MW | D25: SE12 | E25: 353.42 | F25: 0 | G25: 353.42 | H25: 0.88 | I25: 353.42 | J25: 316.51 | L25: 0 | M25: -4.45
A26: SE13-2010 | C26: srednja - od 1MW do vključno 10MW | D26: SE13 | E26: 293.28 | F26: 0 | G26: 293.28 | H26: 0.91 | I26: 293.28 | J26: 255.11 | L26: 0 | M26: -4.6
A27: SE14-2010 | C27: velika - nad 10MW do vključno 125MW | D27: SE14 | E27: 261.06 | F27: 0 | G27: 261.06 | H27: 1 | I27: (ni ZO) | J27: 219.12 | L27: (ni ZO) | M27: -5.05
B28: 3.1 INT Sončne elektrarne - integrirane 2010 | C28: mikro - manjše od 50kW | E28: 444.34 | F28: 0 | G28: 444.34 | H28: 0.88 | I28: 444.34 | J28: 407.43 | L28: 0 | M28: -4.45
C29: mala - manjše od 1MW | E29: 406.43 | F29: 0 | G29: 406.43 | H29: 0.88 | I29: 406.43 | J29: 369.52 | L29: 0 | M29: -4.45
C30: srednja - od 1MW do vključno 10MW | E30: 337.27 | F30: 0 | G30: 337.27 | H30: 0.91 | I30: 337.27 | J30: 299.1 | L30: 0 | M30: -4.6
C31: velika - nad 10MW do vključno 125MW | E31: 300.22 | F31: 0 | G31: 300.22 | H31: 1 | I31: (ni ZO) | J31: 258.28 | L31: (ni ZO) | M31: -5.05
A32: SE21-2010 | B32: 3.2 Sončne elektrarne - samostojni objekti 2010 | C32: mikro - manjše od 50kW | D32: SE21 | E32: 363.09 | F32: 0 | G32: 363.09 | H32: 0.88 | I32: 363.09 | J32: 326.18 | L32: 0 | M32: -4.45
A33: SE22-2010 | C33: mala - manjše od 1MW | D33: SE22 | E33: 334.53 | F33: 0 | G33: 334.53 | H33: 0.88 | I33: 334.53 | J33: 297.62 | L33: 0 | M33: -4.45
A34: SE23-2010 | C34: srednja - od 1MW do vključno 10MW | D34: SE23 | E34: 269.68 | F34: 0 | G34: 269.68 | H34: 0.91 | I34: 269.68 | J34: 231.51 | L34: 0 | M34: -4.6
A35: SE24-2010 | C35: velika - nad 10MW do vključno 125MW | D35: SE24 | E35: 250.37 | F35: 0 | G35: 250.37 | H35: 1 | I35: (ni ZO) | J35: 208.43 | L35: (ni ZO) | M35: -5.05
A36: SE11-2011 | B36: 3.1 Sončne elektrarne - na stavbah 2011 | C36: mikro - manjše od 50kW | D36: SE11 | E36: 332.37 | F36: 0 | G36: 332.37 | H36: 0.88 | I36: 332.37 | J36: 295.46 | L36: 0 | M36: -4.45
A37: SE12-2011 | C37: mala - manjše od 1MW | D37: SE12 | E37: 304.02 | F37: 0 | G37: 304.02 | H37: 0.88 | I37: 304.02 | J37: 267.11 | L37: 0 | M37: -4.45
A38: SE13-2011 | C38: srednja - od 1MW do vključno 10MW | D38: SE13 | E38: 252.29 | F38: 0 | G38: 252.29 | H38: 0.91 | I38: 252.29 | J38: 214.12 | L38: 0 | M38: -4.6
A39: SE14-2011 | C39: velika - nad 10MW do vključno 125MW | D39: SE14 | E39: 224.57 | F39: 0 | G39: 224.57 | H39: 1 | I39: (ni ZO) | J39: 182.63 | L39: (ni ZO) | M39: -5.05
B40: 3.1 INT Sončne elektrarne - integrirane 2011 | C40: mikro - manjše od 50kW | E40: 382.23 | F40: 0 | G40: 382.23 | H40: 0.88 | I40: 382.23 | J40: 345.32 | L40: 0 | M40: -4.45
C41: mala - manjše od 1MW | E41: 349.62 | F41: 0 | G41: 349.62 | H41: 0.88 | I41: 349.62 | J41: 312.71 | L41: 0 | M41: -4.45
C42: srednja - od 1MW do vključno 10MW | E42: 290.13 | F42: 0 | G42: 290.13 | H42: 0.91 | I42: 290.13 | J42: 251.96 | L42: 0 | M42: -4.6
C43: velika - nad 10MW do vključno 125MW | E43: 258.26 | F43: 0 | G43: 258.26 | H43: 1 | I43: (ni ZO) | J43: 216.32 | L43: (ni ZO) | M43: -5.05
A44: SE21-2011 | B44: 3.2 Sončne elektrarne - samostojni objekti 2011 | C44: mikro - manjše od 50kW | D44: SE21 | E44: 312.34 | F44: 0 | G44: 312.34 | H44: 0.88 | I44: 312.34 | J44: 275.43 | L44: 0 | M44: -4.45
A45: SE22-2011 | C45: mala - manjše od 1MW | D45: SE22 | E45: 287.77 | F45: 0 | G45: 287.77 | H45: 0.88 | I45: 287.77 | J45: 250.86 | L45: 0 | M45: -4.45
A46: SE23-2011 | C46: srednja - od 1MW do vključno 10MW | D46: SE23 | E46: 231.98 | F46: 0 | G46: 231.98 | H46: 0.91 | I46: 231.98 | J46: 193.81 | L46: 0 | M46: -4.6
A47: SE24-2011 | C47: velika - nad 10MW do vključno 125MW | D47: SE24 | E47: 215.38 | F47: 0 | G47: 215.38 | H47: 1 | I47: (ni ZO) | J47: 173.44 | L47: (ni ZO) | M47: -5.05
A48: SE11-2012H1 | B48: 3.1 Sončne elektrarne - na stavbah 2012 H1 | C48: mikro - manjše od 50kW | D48: SE11 | E48: 290.82 | F48: 0 | G48: 290.82 | H48: 0.88 | I48: 290.82 | J48: 253.91 | L48: 0 | M48: -4.45
A49: SE12-2012H1 | C49: mala - manjše od 1MW | D49: SE12 | E49: 266.01 | F49: 0 | G49: 266.01 | H49: 0.88 | I49: 266.01 | J49: 229.1 | L49: 0 | M49: -4.45
A50: SE13-2012H1 | C50: srednja - od 1MW do vključno 10MW | D50: SE13 | E50: 220.75 | F50: 0 | G50: 220.75 | H50: 0.91 | I50: 220.75 | J50: 182.58 | L50: 0 | M50: -4.6
A51: SE14-2012H1 | C51: velika - nad 10MW do vključno 125MW | D51: SE14 | E51: 196.5 | F51: 0 | G51: 196.5 | H51: 1 | I51: (ni ZO) | J51: 154.56 | L51: (ni ZO) | M51: -5.05
A52: SE11-2012H2 | B52: 3.1 Sončne elektrarne - na stavbah 2012 H2 | C52: mikro - manjše od 50kW | D52: SE11 | E52: 197.55 | F52: 0 | G52: 197.55 | H52: 0.88 | I52: 197.55 | J52: 160.64 | L52: 0 | M52: -4.45
A53: SE12-2012H2 | C53: mala - manjše od 1MW | D53: SE12 | E53: 180.7 | F53: 0 | G53: 180.7 | H53: 0.88 | I53: 180.7 | J53: 143.79 | L53: 0 | M53: -4.45
A54: SE13-2012H2 | C54: srednja - od 1MW do vključno 10MW | D54: SE13 | E54: 149.95 | F54: 0 | G54: 149.95 | H54: 0.91 | I54: 149.95 | J54: 111.78 | L54: 0 | M54: -4.6
A55: SE14-2012H2 | C55: velika - nad 10MW do vključno 125MW | D55: SE14 | E55: 133.48 | F55: 0 | G55: 133.48 | H55: 1 | I55: (ni ZO) | J55: 91.54 | L55: (ni ZO) | M55: -5.05
A56: SE21-2012H1 | B56: 3.2 Sončne elektrarne - ostale 2012 H1 | C56: mikro - manjše od 50kW | D56: SE21 | E56: 273.29 | F56: 0 | G56: 273.29 | H56: 0.88 | I56: 273.29 | J56: 236.38 | L56: 0 | M56: -4.45
A57: SE22-2012H1 | C57: mala - manjše od 1MW | D57: SE22 | E57: 251.8 | F57: 0 | G57: 251.8 | H57: 0.88 | I57: 251.8 | J57: 214.89 | L57: 0 | M57: -4.45
A58: SE23-2012H1 | C58: srednja - od 1MW do vključno 10MW | D58: SE23 | E58: 202.99 | F58: 0 | G58: 202.99 | H58: 0.91 | I58: 202.99 | J58: 164.82 | L58: 0 | M58: -4.6
A59: SE24-2012H1 | C59: velika - nad 10MW do vključno 125MW | D59: SE24 | E59: 188.45 | F59: 0 | G59: 188.45 | H59: 1 | I59: (ni ZO) | J59: 146.51 | L59: (ni ZO) | M59: -5.05
A60: SE21-2012H2 | B60: 3.2 Sončne elektrarne - ostale 2012 H2 | C60: mikro - manjše od 50kW | D60: SE21 | E60: 185.64 | F60: 0 | G60: 185.64 | H60: 0.88 | I60: 185.64 | J60: 148.73 | L60: 0 | M60: -4.45
A61: SE22-2012H2 | C61: mala - manjše od 1MW | D61: SE22 | E61: 171.04 | F61: 0 | G61: 171.04 | H61: 0.88 | I61: 171.04 | J61: 134.13 | L61: 0 | M61: -4.45
A62: SE23-2012H2 | C62: srednja - od 1MW do vključno 10MW | D62: SE23 | E62: 137.89 | F62: 0 | G62: 137.89 | H62: 0.91 | I62: 137.89 | J62: 99.72 | L62: 0 | M62: -4.6
A63: SE24-2012H2 | C63: velika - nad 10MW do vključno 125MW | D63: SE24 | E63: 128.01 | F63: 0 | G63: 128.01 | H63: 1 | I63: (ni ZO) | J63: 86.07 | L63: (ni ZO) | M63: -5.05
A64: SE11-2012dec | B64: =CONCATENATE("3.1 Sončne elektrarne - na stavbah"," ",RIGHT(A64,7)) -> 3.1 Sončne elektrarne - na stavbah 2012dec | C64: mikro - manjše od 50kW | D64: SE11 | E64: 150 | F64: 0 | G64: 150 | H64: 0.88 | I64: 150 | J64: 113.09 | L64: 0 | M64: -4.45
A65: SE12-2012dec | C65: mala - manjše od 1MW | D65: SE12 | E65: 137.19 | F65: 0 | G65: 137.19 | H65: 0.88 | I65: 137.19 | J65: 100.28 | L65: 0 | M65: -4.45
A66: SE13-2012dec | C66: srednja - od 1MW do vključno 10MW | D66: SE13 | E66: 113.85 | F66: 0 | G66: 113.85 | H66: 0.91 | I66: 113.85 | J66: 75.68 | L66: 0 | M66: -4.6
A67: SE14-2012dec | C67: velika - nad 10MW do vključno 125MW | D67: SE14 | E67: 101.34 | F67: 0 | G67: 101.34 | H67: 1 | I67: (ni ZO) | J67: 59.4 | L67: (ni ZO) | M67: -5.05
A68: SE21-2012dec | B68: =CONCATENATE("3.2 Sončne elektrarne - ostale"," ",RIGHT(A68,7)) -> 3.2 Sončne elektrarne - ostale 2012dec | C68: mikro - manjše od 50kW | D68: SE21 | E68: 140.95 | F68: 0 | G68: 140.95 | H68: 0.88 | I68: 140.95 | J68: 104.04 | L68: 0 | M68: -4.45
A69: SE22-2012dec | C69: mala - manjše od 1MW | D69: SE22 | E69: 129.86 | F69: 0 | G69: 129.86 | H69: 0.88 | I69: 129.86 | J69: 92.95 | L69: 0 | M69: -4.45
A70: SE23-2012dec | C70: srednja - od 1MW do vključno 10MW | D70: SE23 | E70: 104.68 | F70: 0 | G70: 104.68 | H70: 0.91 | I70: 104.68 | J70: 66.51 | L70: 0 | M70: -4.6
A71: SE24-2012dec | C71: velika - nad 10MW do vključno 125MW | D71: SE24 | E71: 97.19 | F71: 0 | G71: 97.19 | H71: 1 | I71: (ni ZO) | J71: 55.25 | L71: (ni ZO) | M71: -5.05
A72: SE11-2013jan | B72: =CONCATENATE("3.1 Sončne elektrarne - na stavbah"," ",RIGHT(A72,7)) -> 3.1 Sončne elektrarne - na stavbah 2013jan | C72: mikro - manjše od 50kW | D72: SE11 | E72: 147 | F72: 0 | G72: 147 | H72: 0.88 | I72: 147 | J72: 110.09 | L72: 0 | M72: -4.45
A73: SE12-2013jan | C73: mala - manjše od 1MW | D73: SE12 | E73: 134.45 | F73: 0 | G73: 134.45 | H73: 0.88 | I73: 134.45 | J73: 97.54 | L73: 0 | M73: -4.45
A74: SE13-2013jan | C74: srednja - od 1MW do vključno 10MW | D74: SE13 | E74: 111.57 | F74: 0 | G74: 111.57 | H74: 0.91 | I74: 111.57 | J74: 73.4 | L74: 0 | M74: -4.6
A75: SE14-2013jan | C75: velika - nad 10MW do vključno 125MW | D75: SE14 | E75: 99.31 | F75: 0 | G75: 99.31 | H75: 1 | I75: (ni ZO) | J75: 57.37 | L75: (ni ZO) | M75: -5.05
A76: SE21-2013jan | B76: =CONCATENATE("3.2 Sončne elektrarne - ostale"," ",RIGHT(A76,7)) -> 3.2 Sončne elektrarne - ostale 2013jan | C76: mikro - manjše od 50kW | D76: SE21 | E76: 138.13 | F76: 0 | G76: 138.13 | H76: 0.88 | I76: 138.13 | J76: 101.22 | L76: 0 | M76: -4.45
A77: SE22-2013jan | C77: mala - manjše od 1MW | D77: SE22 | E77: 127.26 | F77: 0 | G77: 127.26 | H77: 0.88 | I77: 127.26 | J77: 90.35 | L77: 0 | M77: -4.45
A78: SE23-2013jan | C78: srednja - od 1MW do vključno 10MW | D78: SE23 | E78: 102.59 | F78: 0 | G78: 102.59 | H78: 0.91 | I78: 102.59 | J78: 64.42 | L78: 0 | M78: -4.6
A79: SE24-2013jan | C79: velika - nad 10MW do vključno 125MW | D79: SE24 | E79: 95.25 | F79: 0 | G79: 95.25 | H79: 1 | I79: (ni ZO) | J79: 53.31 | L79: (ni ZO) | M79: -5.05
A80: SE11-2013feb | B80: =CONCATENATE("3.1 Sončne elektrarne - na stavbah"," ",RIGHT(A80,7)) -> 3.1 Sončne elektrarne - na stavbah 2013feb | C80: mikro - manjše od 50kW | D80: SE11 | E80: 144.06 | F80: 0 | G80: 144.06 | H80: 0.88 | I80: 144.06 | J80: 107.15 | L80: 0 | M80: -4.45
A81: SE12-2013feb | C81: mala - manjše od 1MW | D81: SE12 | E81: 131.76 | F81: 0 | G81: 131.76 | H81: 0.88 | I81: 131.76 | J81: 94.85 | L81: 0 | M81: -4.45
A82: SE13-2013feb | C82: srednja - od 1MW do vključno 10MW | D82: SE13 | E82: 109.34 | F82: 0 | G82: 109.34 | H82: 0.91 | I82: 109.34 | J82: 71.17 | L82: 0 | M82: -4.6
A83: SE14-2013feb | C83: velika - nad 10MW do vključno 125MW | D83: SE14 | E83: 97.32 | F83: 0 | G83: 97.32 | H83: 1 | I83: (ni ZO) | J83: 55.38 | L83: (ni ZO) | M83: -5.05
A84: SE21-2013feb | B84: =CONCATENATE("3.2 Sončne elektrarne - ostale"," ",RIGHT(A84,7)) -> 3.2 Sončne elektrarne - ostale 2013feb | C84: mikro - manjše od 50kW | D84: SE21 | E84: 135.37 | F84: 0 | G84: 135.37 | H84: 0.88 | I84: 135.37 | J84: 98.46 | L84: 0 | M84: -4.45
A85: SE22-2013feb | C85: mala - manjše od 1MW | D85: SE22 | E85: 124.71 | F85: 0 | G85: 124.71 | H85: 0.88 | I85: 124.71 | J85: 87.8 | L85: 0 | M85: -4.45
A86: SE23-2013feb | C86: srednja - od 1MW do vključno 10MW | D86: SE23 | E86: 100.54 | F86: 0 | G86: 100.54 | H86: 0.91 | I86: 100.54 | J86: 62.37 | L86: 0 | M86: -4.6
A87: SE24-2013feb | C87: velika - nad 10MW do vključno 125MW | D87: SE24 | E87: 93.35 | F87: 0 | G87: 93.35 | H87: 1 | I87: (ni ZO) | J87: 51.41 | L87: (ni ZO) | M87: -5.05
A88: SE11-2013mar | B88: =CONCATENATE("3.1 Sončne elektrarne - na stavbah"," ",RIGHT(A88,7)) -> 3.1 Sončne elektrarne - na stavbah 2013mar | C88: mikro - manjše od 50kW | D88: SE11 | E88: 141.18 | F88: 0 | G88: 141.18 | H88: 0.88 | I88: 141.18 | J88: 104.27 | L88: 0 | M88: -4.45
A89: SE12-2013mar | C89: mala - manjše od 1MW | D89: SE12 | E89: 129.12 | F89: 0 | G89: 129.12 | H89: 0.88 | I89: 129.12 | J89: 92.21 | L89: 0 | M89: -4.45
A90: SE13-2013mar | C90: srednja - od 1MW do vključno 10MW | D90: SE13 | E90: 107.15 | F90: 0 | G90: 107.15 | H90: 0.91 | I90: 107.15 | J90: 68.98 | L90: 0 | M90: -4.6
A91: SE14-2013mar | C91: velika - nad 10MW do vključno 125MW | D91: SE14 | E91: 95.37 | F91: 0 | G91: 95.37 | H91: 1 | I91: (ni ZO) | J91: 53.43 | L91: (ni ZO) | M91: -5.05
A92: SE21-2013mar | B92: =CONCATENATE("3.2 Sončne elektrarne - ostale"," ",RIGHT(A92,7)) -> 3.2 Sončne elektrarne - ostale 2013mar | C92: mikro - manjše od 50kW | D92: SE21 | E92: 132.66 | F92: 0 | G92: 132.66 | H92: 0.88 | I92: 132.66 | J92: 95.75 | L92: 0 | M92: -4.45
A93: SE22-2013mar | C93: mala - manjše od 1MW | D93: SE22 | E93: 122.22 | F93: 0 | G93: 122.22 | H93: 0.88 | I93: 122.22 | J93: 85.31 | L93: 0 | M93: -4.45
A94: SE23-2013mar | C94: srednja - od 1MW do vključno 10MW | D94: SE23 | E94: 98.53 | F94: 0 | G94: 98.53 | H94: 0.91 | I94: 98.53 | J94: 60.36 | L94: 0 | M94: -4.6
A95: SE24-2013mar | C95: velika - nad 10MW do vključno 125MW | D95: SE24 | E95: 91.48 | F95: 0 | G95: 91.48 | H95: 1 | I95: (ni ZO) | J95: 49.54 | L95: (ni ZO) | M95: -5.05
A96: SE11-2013apr | B96: =CONCATENATE("3.1 Sončne elektrarne - na stavbah"," ",RIGHT(A96,7)) -> 3.1 Sončne elektrarne - na stavbah 2013apr | C96: mikro - manjše od 50kW | D96: SE11 | E96: 138.36 | F96: 0 | G96: 138.36 | H96: 0.88 | I96: 138.36 | J96: 101.45 | L96: 0 | M96: -4.45
A97: SE12-2013apr | C97: mala - manjše od 1MW | D97: SE12 | E97: 126.54 | F97: 0 | G97: 126.54 | H97: 0.88 | I97: 126.54 | J97: 89.63 | L97: 0 | M97: -4.45
A98: SE13-2013apr | C98: srednja - od 1MW do vključno 10MW | D98: SE13 | E98: 105.01 | F98: 0 | G98: 105.01 | H98: 0.91 | I98: 105.01 | J98: 66.84 | L98: 0 | M98: -4.6
A99: SE14-2013apr | C99: velika - nad 10MW do vključno 125MW | D99: SE14 | E99: 93.46 | F99: 0 | G99: 93.46 | H99: 1 | I99: (ni ZO) | J99: 51.52 | L99: (ni ZO) | M99: -5.05
A100: SE21-2013apr | B100: =CONCATENATE("3.2 Sončne elektrarne - ostale"," ",RIGHT(A100,7)) -> 3.2 Sončne elektrarne - ostale 2013apr | C100: mikro - manjše od 50kW | D100: SE21 | E100: 130.01 | F100: 0 | G100: 130.01 | H100: 0.88 | I100: 130.01 | J100: 93.1 | L100: 0 | M100: -4.45
A101: SE22-2013apr | C101: mala - manjše od 1MW | D101: SE22 | E101: 119.78 | F101: 0 | G101: 119.78 | H101: 0.88 | I101: 119.78 | J101: 82.87 | L101: 0 | M101: -4.45
A102: SE23-2013apr | C102: srednja - od 1MW do vključno 10MW | D102: SE23 | E102: 96.56 | F102: 0 | G102: 96.56 | H102: 0.91 | I102: 96.56 | J102: 58.39 | L102: 0 | M102: -4.6
A103: SE24-2013apr | C103: velika - nad 10MW do vključno 125MW | D103: SE24 | E103: 89.65 | F103: 0 | G103: 89.65 | H103: 1 | I103: (ni ZO) | J103: 47.71 | L103: (ni ZO) | M103: -5.05
A104: SE11-2013maj | B104: =CONCATENATE("3.1 Sončne elektrarne - na stavbah"," ",RIGHT(A104,7)) -> 3.1 Sončne elektrarne - na stavbah 2013maj | C104: mikro - manjše od 50kW | D104: SE11 | E104: 135.59 | F104: 0 | G104: 135.59 | H104: 0.88 | I104: 135.59 | J104: 98.68 | L104: 0 | M104: -4.45
A105: SE12-2013maj | C105: mala - manjše od 1MW | D105: SE12 | E105: 124.01 | F105: 0 | G105: 124.01 | H105: 0.88 | I105: 124.01 | J105: 87.1 | L105: 0 | M105: -4.45
A106: SE13-2013maj | C106: srednja - od 1MW do vključno 10MW | D106: SE13 | E106: 102.91 | F106: 0 | G106: 102.91 | H106: 0.91 | I106: 102.91 | J106: 64.74 | L106: 0 | M106: -4.6
A107: SE14-2013maj | C107: velika - nad 10MW do vključno 125MW | D107: SE14 | E107: 91.59 | F107: 0 | G107: 91.59 | H107: 1 | I107: (ni ZO) | J107: 49.65 | L107: (ni ZO) | M107: -5.05
A108: SE21-2013maj | B108: =CONCATENATE("3.2 Sončne elektrarne - ostale"," ",RIGHT(A108,7)) -> 3.2 Sončne elektrarne - ostale 2013maj | C108: mikro - manjše od 50kW | D108: SE21 | E108: 127.41 | F108: 0 | G108: 127.41 | H108: 0.88 | I108: 127.41 | J108: 90.5 | L108: 0 | M108: -4.45
A109: SE22-2013maj | C109: mala - manjše od 1MW | D109: SE22 | E109: 117.38 | F109: 0 | G109: 117.38 | H109: 0.88 | I109: 117.38 | J109: 80.47 | L109: 0 | M109: -4.45
A110: SE23-2013maj | C110: srednja - od 1MW do vključno 10MW | D110: SE23 | E110: 94.63 | F110: 0 | G110: 94.63 | H110: 0.91 | I110: 94.63 | J110: 56.46 | L110: 0 | M110: -4.6
A111: SE24-2013maj | C111: velika - nad 10MW do vključno 125MW | D111: SE24 | E111: 87.86 | F111: 0 | G111: 87.86 | H111: 1 | I111: (ni ZO) | J111: 45.92 | L111: (ni ZO) | M111: -5.05
A112: SE11-2013jun | B112: =CONCATENATE("3.1 Sončne elektrarne - na stavbah"," ",RIGHT(A112,7)) -> 3.1 Sončne elektrarne - na stavbah 2013jun | C112: mikro - manjše od 50kW | D112: SE11 | E112: 132.88 | F112: 0 | G112: 132.88 | H112: 0.88 | I112: 132.88 | J112: 95.97 | L112: 0 | M112: -4.45
A113: SE12-2013jun | C113: mala - manjše od 1MW | D113: SE12 | E113: 121.53 | F113: 0 | G113: 121.53 | H113: 0.88 | I113: 121.53 | J113: 84.62 | L113: 0 | M113: -4.45
A114: SE13-2013jun | C114: srednja - od 1MW do vključno 10MW | D114: SE13 | E114: 100.85 | F114: 0 | G114: 100.85 | H114: 0.91 | I114: 100.85 | J114: 62.68 | L114: 0 | M114: -4.6
A115: SE14-2013jun | C115: velika - nad 10MW do vključno 125MW | D115: SE14 | E115: 89.76 | F115: 0 | G115: 89.76 | H115: 1 | I115: (ni ZO) | J115: 47.82 | L115: (ni ZO) | M115: -5.05
A116: SE21-2013jun | B116: =CONCATENATE("3.2 Sončne elektrarne - ostale"," ",RIGHT(A116,7)) -> 3.2 Sončne elektrarne - ostale 2013jun | C116: mikro - manjše od 50kW | D116: SE21 | E116: 124.86 | F116: 0 | G116: 124.86 | H116: 0.88 | I116: 124.86 | J116: 87.95 | L116: 0 | M116: -4.45
A117: SE22-2013jun | C117: mala - manjše od 1MW | D117: SE22 | E117: 115.03 | F117: 0 | G117: 115.03 | H117: 0.88 | I117: 115.03 | J117: 78.12 | L117: 0 | M117: -4.45
A118: SE23-2013jun | C118: srednja - od 1MW do vključno 10MW | D118: SE23 | E118: 92.74 | F118: 0 | G118: 92.74 | H118: 0.91 | I118: 92.74 | J118: 54.57 | L118: 0 | M118: -4.6
A119: SE24-2013jun | C119: velika - nad 10MW do vključno 125MW | D119: SE24 | E119: 86.1 | F119: 0 | G119: 86.1 | H119: 1 | I119: (ni ZO) | J119: 44.16 | L119: (ni ZO) | M119: -5.05
A120: SE11-2013jul | B120: =CONCATENATE("3.1 Sončne elektrarne - na stavbah"," ",RIGHT(A120,7)) -> 3.1 Sončne elektrarne - na stavbah 2013jul | C120: mikro - manjše od 50kW | D120: SE11 | E120: 130.22 | F120: 0 | G120: 130.22 | H120: 0.88 | I120: 130.22 | J120: 93.31 | L120: 0 | M120: -4.45
A121: SE12-2013jul | C121: mala - manjše od 1MW | D121: SE12 | E121: 119.1 | F121: 0 | G121: 119.1 | H121: 0.88 | I121: 119.1 | J121: 82.19 | L121: 0 | M121: -4.45
A122: SE13-2013jul | C122: srednja - od 1MW do vključno 10MW | D122: SE13 | E122: 98.83 | F122: 0 | G122: 98.83 | H122: 0.91 | I122: 98.83 | J122: 60.66 | L122: 0 | M122: -4.6
A123: SE14-2013jul | C123: velika - nad 10MW do vključno 125MW | D123: SE14 | E123: 87.96 | F123: 0 | G123: 87.96 | H123: 1 | I123: (ni ZO) | J123: 46.02 | L123: (ni ZO) | M123: -5.05
A124: SE21-2013jul | B124: =CONCATENATE("3.2 Sončne elektrarne - ostale"," ",RIGHT(A124,7)) -> 3.2 Sončne elektrarne - ostale 2013jul | C124: mikro - manjše od 50kW | D124: SE21 | E124: 122.36 | F124: 0 | G124: 122.36 | H124: 0.88 | I124: 122.36 | J124: 85.45 | L124: 0 | M124: -4.45
A125: SE22-2013jul | C125: mala - manjše od 1MW | D125: SE22 | E125: 112.73 | F125: 0 | G125: 112.73 | H125: 0.88 | I125: 112.73 | J125: 75.82 | L125: 0 | M125: -4.45
A126: SE23-2013jul | C126: srednja - od 1MW do vključno 10MW | D126: SE23 | E126: 90.89 | F126: 0 | G126: 90.89 | H126: 0.91 | I126: 90.89 | J126: 52.72 | L126: 0 | M126: -4.6
A127: SE24-2013jul | C127: velika - nad 10MW do vključno 125MW | D127: SE24 | E127: 84.38 | F127: 0 | G127: 84.38 | H127: 1 | I127: (ni ZO) | J127: 42.44 | L127: (ni ZO) | M127: -5.05
A128: SE11-2013avg | B128: =CONCATENATE("3.1 Sončne elektrarne - na stavbah"," ",RIGHT(A128,7)) -> 3.1 Sončne elektrarne - na stavbah 2013avg | C128: mikro - manjše od 50kW | D128: SE11 | E128: 127.62 | F128: 0 | G128: 127.62 | H128: 0.88 | I128: 127.62 | J128: 90.71 | L128: 0 | M128: -4.45
A129: SE12-2013avg | C129: mala - manjše od 1MW | D129: SE12 | E129: 116.72 | F129: 0 | G129: 116.72 | H129: 0.88 | I129: 116.72 | J129: 79.81 | L129: 0 | M129: -4.45
A130: SE13-2013avg | C130: srednja - od 1MW do vključno 10MW | D130: SE13 | E130: 96.85 | F130: 0 | G130: 96.85 | H130: 0.91 | I130: 96.85 | J130: 58.68 | L130: 0 | M130: -4.6
A131: SE14-2013avg | C131: velika - nad 10MW do vključno 125MW | D131: SE14 | E131: 86.2 | F131: 0 | G131: 86.2 | H131: 1 | I131: (ni ZO) | J131: 44.26 | L131: (ni ZO) | M131: -5.05
A132: SE21-2013avg | B132: =CONCATENATE("3.2 Sončne elektrarne - ostale"," ",RIGHT(A132,7)) -> 3.2 Sončne elektrarne - ostale 2013avg | C132: mikro - manjše od 50kW | D132: SE21 | E132: 119.91 | F132: 0 | G132: 119.91 | H132: 0.88 | I132: 119.91 | J132: 83 | L132: 0 | M132: -4.45
A133: SE22-2013avg | C133: mala - manjše od 1MW | D133: SE22 | E133: 110.48 | F133: 0 | G133: 110.48 | H133: 0.88 | I133: 110.48 | J133: 73.57 | L133: 0 | M133: -4.45
A134: SE23-2013avg | C134: srednja - od 1MW do vključno 10MW | D134: SE23 | E134: 89.07 | F134: 0 | G134: 89.07 | H134: 0.91 | I134: 89.07 | J134: 50.9 | L134: 0 | M134: -4.6
A135: SE24-2013avg | C135: velika - nad 10MW do vključno 125MW | D135: SE24 | E135: 82.69 | F135: 0 | G135: 82.69 | H135: 1 | I135: (ni ZO) | J135: 40.75 | L135: (ni ZO) | M135: -5.05
A136: SE11-2013sep | B136: =CONCATENATE("3.1 Sončne elektrarne - na stavbah"," ",RIGHT(A136,7)) -> 3.1 Sončne elektrarne - na stavbah 2013sep | C136: mikro - manjše od 50kW | D136: SE11 | E136: 125.07 | F136: 0 | G136: 125.07 | H136: 0.88 | I136: 125.07 | J136: 88.16 | L136: 0 | M136: -4.45
A137: SE12-2013sep | C137: mala - manjše od 1MW | D137: SE12 | E137: 114.39 | F137: 0 | G137: 114.39 | H137: 0.88 | I137: 114.39 | J137: 77.48 | L137: 0 | M137: -4.45
A138: SE13-2013sep | C138: srednja - od 1MW do vključno 10MW | D138: SE13 | E138: 94.91 | F138: 0 | G138: 94.91 | H138: 0.91 | I138: 94.91 | J138: 56.74 | L138: 0 | M138: -4.6
A139: SE14-2013sep | C139: velika - nad 10MW do vključno 125MW | D139: SE14 | E139: 84.48 | F139: 0 | G139: 84.48 | H139: 1 | I139: (ni ZO) | J139: 42.54 | L139: (ni ZO) | M139: -5.05
A140: SE21-2013sep | B140: =CONCATENATE("3.2 Sončne elektrarne - ostale"," ",RIGHT(A140,7)) -> 3.2 Sončne elektrarne - ostale 2013sep | C140: mikro - manjše od 50kW | D140: SE21 | E140: 117.51 | F140: 0 | G140: 117.51 | H140: 0.88 | I140: 117.51 | J140: 80.6 | L140: 0 | M140: -4.45
A141: SE22-2013sep | C141: mala - manjše od 1MW | D141: SE22 | E141: 108.27 | F141: 0 | G141: 108.27 | H141: 0.88 | I141: 108.27 | J141: 71.36 | L141: 0 | M141: -4.45
A142: SE23-2013sep | C142: srednja - od 1MW do vključno 10MW | D142: SE23 | E142: 87.29 | F142: 0 | G142: 87.29 | H142: 0.91 | I142: 87.29 | J142: 49.12 | L142: 0 | M142: -4.6
A143: SE24-2013sep | C143: velika - nad 10MW do vključno 125MW | D143: SE24 | E143: 81.04 | F143: 0 | G143: 81.04 | H143: 1 | I143: (ni ZO) | J143: 39.1 | L143: (ni ZO) | M143: -5.05
A144: SE11-2013okt | B144: =CONCATENATE("3.1 Sončne elektrarne - na stavbah"," ",RIGHT(A144,7)) -> 3.1 Sončne elektrarne - na stavbah 2013okt | C144: mikro - manjše od 50kW | D144: SE11 | E144: 122.57 | F144: 0 | G144: 122.57 | H144: 0.88 | I144: 122.57 | J144: 85.66 | L144: 0 | M144: -4.45
A145: SE12-2013okt | C145: mala - manjše od 1MW | D145: SE12 | E145: 112.1 | F145: 0 | G145: 112.1 | H145: 0.88 | I145: 112.1 | J145: 75.19 | L145: 0 | M145: -4.45
A146: SE13-2013okt | C146: srednja - od 1MW do vključno 10MW | D146: SE13 | E146: 93.01 | F146: 0 | G146: 93.01 | H146: 0.91 | I146: 93.01 | J146: 54.84 | L146: 0 | M146: -4.6
A147: SE14-2013okt | C147: velika - nad 10MW do vključno 125MW | D147: SE14 | E147: 82.79 | F147: 0 | G147: 82.79 | H147: 1 | I147: (ni ZO) | J147: 40.85 | L147: (ni ZO) | M147: -5.05
A148: SE21-2013okt | B148: =CONCATENATE("3.2 Sončne elektrarne - ostale"," ",RIGHT(A148,7)) -> 3.2 Sončne elektrarne - ostale 2013okt | C148: mikro - manjše od 50kW | D148: SE21 | E148: 115.16 | F148: 0 | G148: 115.16 | H148: 0.88 | I148: 115.16 | J148: 78.25 | L148: 0 | M148: -4.45
A149: SE22-2013okt | C149: mala - manjše od 1MW | D149: SE22 | E149: 106.1 | F149: 0 | G149: 106.1 | H149: 0.88 | I149: 106.1 | J149: 69.19 | L149: 0 | M149: -4.45
A150: SE23-2013okt | C150: srednja - od 1MW do vključno 10MW | D150: SE23 | E150: 85.54 | F150: 0 | G150: 85.54 | H150: 0.91 | I150: 85.54 | J150: 47.37 | L150: 0 | M150: -4.6
A151: SE24-2013okt | C151: velika - nad 10MW do vključno 125MW | D151: SE24 | E151: 79.42 | F151: 0 | G151: 79.42 | H151: 1 | I151: (ni ZO) | J151: 37.48 | L151: (ni ZO) | M151: -5.05
A152: SE11-2013nov | B152: =CONCATENATE("3.1 Sončne elektrarne - na stavbah"," ",RIGHT(A152,7)) -> 3.1 Sončne elektrarne - na stavbah 2013nov | C152: mikro - manjše od 50kW | D152: SE11 | E152: 120.12 | F152: 0 | G152: 120.12 | H152: 0.88 | I152: 120.12 | J152: 83.21 | L152: 0 | M152: -4.45
A153: SE12-2013nov | C153: mala - manjše od 1MW | D153: SE12 | E153: 109.86 | F153: 0 | G153: 109.86 | H153: 0.88 | I153: 109.86 | J153: 72.95 | L153: 0 | M153: -4.45
A154: SE13-2013nov | C154: srednja - od 1MW do vključno 10MW | D154: SE13 | E154: 91.15 | F154: 0 | G154: 91.15 | H154: 0.91 | I154: 91.15 | J154: 52.98 | L154: 0 | M154: -4.6
A155: SE14-2013nov | C155: velika - nad 10MW do vključno 125MW | D155: SE14 | E155: 81.13 | F155: 0 | G155: 81.13 | H155: 1 | I155: (ni ZO) | J155: 39.19 | L155: (ni ZO) | M155: -5.05
A156: SE21-2013nov | B156: =CONCATENATE("3.2 Sončne elektrarne - ostale"," ",RIGHT(A156,7)) -> 3.2 Sončne elektrarne - ostale 2013nov | C156: mikro - manjše od 50kW | D156: SE21 | E156: 112.86 | F156: 0 | G156: 112.86 | H156: 0.88 | I156: 112.86 | J156: 75.95 | L156: 0 | M156: -4.45
A157: SE22-2013nov | C157: mala - manjše od 1MW | D157: SE22 | E157: 103.98 | F157: 0 | G157: 103.98 | H157: 0.88 | I157: 103.98 | J157: 67.07 | L157: 0 | M157: -4.45
A158: SE23-2013nov | C158: srednja - od 1MW do vključno 10MW | D158: SE23 | E158: 83.83 | F158: 0 | G158: 83.83 | H158: 0.91 | I158: 83.83 | J158: 45.66 | L158: 0 | M158: -4.6
A159: SE24-2013nov | C159: velika - nad 10MW do vključno 125MW | D159: SE24 | E159: 77.83 | F159: 0 | G159: 77.83 | H159: 1 | I159: (ni ZO) | J159: 35.89 | L159: (ni ZO) | M159: -5.05
